Workbook

Sheet 1. INFORMACION ACUMULADA
A2: VEEDURIA DISTRITAL - INFORMACIÓN GESTION CONTRACTUAL
A3: DEL 1 DE ENERO AL 31 DE DICIEMBRE DE 2021
A5: 1. Entidad | E5: FONDO DE DESARROLLO LOCAL DE LOS MARTIRES | H5: 2. Sector | I5: Gestión Pública
A6: 3. Presupuesto Disponible Inversión Directa PREDIS (BOGDATA) | E6: 15992156000 | H6: 5. Presupuesto Disponible Funcionamiento PREDIS (BOGDATA) | I6: 3298961788 | AH6: 9. Nombre de quien diligencia el formato
A7: 4. Presupuesto Comprometido de Inversión Directa según PREDIS (BOGDATA) | E7: 14105243982 | H7: 6. Presupuesto Comprometido Funcionamiento según PREDIS (BOGDATA) | I7: 2745389740 | AH7: Cargo
AH8: Dependencia
A9: 7. Presupuesto Disponible Operación (Régimen Privado) | AH9: Teléfono
A10: 8. Presupuesto Comprometido Operación mediante contratos | AH10: Correo Electrónico
A11: 1- INFORMACION GENERAL | V11: 2- INFORMACION FINANCIERA | AB11: 3 - PLAZOS | AH11: 4. CESION | AL11: 5. ESTADO | AP11: 6. % Avance y/o cumplimiento
A12: 1 | B12: 2 | C12: 3 | E12: 4 | F12: 5 | G12: 6 | H12: 7 | I12: 8 | N12: 9 | O12: 10 | P12: 11 | V12: 12 | W12: 13 | X12: 14 | Y12: 15 | Z12: 16 | AA12: 17 | AB12: 18 | AC12: 19 | AD12: 20 | AE12: 21 | AF12: 22 | AG12: 23 | AH12: 24 | AI12: 25 | AJ12: 26 | AK12: 27 | AL12: 28 | AP12: 29
A13: Número Contrato | B13: Año | C13: Número de proceso contractual SECOP | D13: Link proceso SECOP | E13: Tipo de contrato | F13: Modalidad de Selección | G13: Procedimiento o causal | H13: Objeto | I13: Afectación | J13: Plan de Desarrollo Distrital | K13: Número Programa | L13: Equivalencia número de programa | M13: Propósito | N13: Número Proyecto | O13: Número de proponentes | P13: Número de Identificación del contratista (Cédula o NIT sin puntos, comas ni caracteres especiales y sin digito de verificación) | Q13: Nombre del contratista (según el caso: nombres y apellidos o Razón social y Tipo societario) | R13: Naturaleza Jurídica | S13: Número de Identificación del integrante del Consorcio o U.T. (Cédula o NIT sin puntos, comas ni caracteres especiales y sin digito de verificación) | T13: Nombre del Integrante del Consorcio o U.T. y Tipo societario (Según el caso: nombres y apellidos o razón social y tipo societario) | U13: % Participación (indicar solo el numero del porcentaje, sin caracteres especiales) | V13: Valor Inicial del contrato | W13: Valor total reducciones (En valor negativo) | X13: Número de adiciones | Y13: Valor total de adiciones | Z13: Valor Final | AA13: Giros (Valor en pesos) | AB13: Fecha de suscripción (DD/MM/AAAA) | AC13: Fecha de inicio (DD/MM/AAAA) | AD13: Fecha de terminación (DD/MM/AAAA) | AE13: Plazo en días | AF13: Número de prórrogas | AG13: Prorroga en días | AH13: Número de Identificación del cesionario (NIT sin digito de verificación) | AI13: Nombre cesionario | AJ13: Fecha cesión (DD/MM/AAAA) | AK13: Valor cesión | AL13: Celebrado o por iniciar | AM13: En Ejecución | AN13: Terminado | AO13: Liquidado | AP13: % Avance y/o Cumplimiento
A14: 001-2021 | B14: 2021 | C14: FDLM-CD-001-2021 | D14: https://community.secop.gov.co/Public/Tendering/OpportunityDetail/Index?noticeUID=CO1.NTC.1667031&isFromPublicArea=True&isModal=False | E14: Contratos de prestación de servicios profesionales y de apoyo a la gestión | F14: Contratación directa | G14: Prestación de servicios profesionales y de apoyo a la gestión, o para la ejecución de trabajos artísticos que sólo puedan encomendarse a determinadas personas naturales; | H14: PRESTAR LOS SERVICIOS PROFESIONALES ESPECIALIZADOS DE ABOGADO PARA COORDINAR LAS ETAPAS PRECONTRACTUAL, CONTRACTUAL Y POS-CONTRACTUAL Y DEMÁS LABORES PROPIAS DE LA OFICINA DE CONTRATACIÓN DEL FONDO DE DESARROLLO LOCAL DE LOS MÁRTIRES EN CUMPLIMIENTO DEL PLAN DE DESARROLLO LOCAL VIGENTE. | I14: Inversión | J14: Un Nuevo Contrato Social y Ambiental para la Bogotá del Siglo XXI | K14: 3 | L14: =IF(ISERROR(VLOOKUP(K14,Proposito_programa!$C$2:$E$59,2,FALSE))," ",VLOOKUP(K14,Proposito_programa!$C$2:$E$59,2,FALSE)) -> Movilidad social integral | M14: =IF(ISERROR(VLOOKUP(K14,Proposito_programa!$C$2:$E$59,3,FALSE))," ",VLOOKUP(K14,Proposito_programa!$C$2:$E$59,3,FALSE)) -> Propósito 1: Hacer un nuevo contrato social para incrementar la inclusión social, productiva y política | N14: 133011605570000002099 | O14: 0 | P14: 80771631 | Q14: EFRAIN DANIEL BARROS SEGRERA | R14: Persona Natural | S14: N/A | T14: N/A | U14: N/A | V14: 64000000 | Y14: 0 | Z14: =+V14+W14+Y14 -> 64000000 | AA14: 64000000 | AB14: 2021-01-18 | AC14: 2021-01-19 | AD14: 2021-09-18 | AE14: 8 MESES | AG14: N/A | AH14: 80770210 | AI14: MILTON RICARDO CASAS IREGUI | AJ14: 2021-04-20 | AK14: 64000000 | AN14: X | AP14: =IF(ISERROR(AA14/Z14),"-",(AA14/Z14)) -> 1
A15: 002-2021 | B15: 2021 | C15: FDLM-CD-002-2021 | D15: https://community.secop.gov.co/Public/Tendering/OpportunityDetail/Index?noticeUID=CO1.NTC.1667166&isFromPublicArea=True&isModal=False | E15: Contratos de prestación de servicios profesionales y de apoyo a la gestión | F15: Contratación directa | G15: Prestación de servicios profesionales y de apoyo a la gestión, o para la ejecución de trabajos artísticos que sólo puedan encomendarse a determinadas personas naturales; | H15: PRESTAR LOS SERVICIOS PROFESIONALES ADMINISTRATIVOS AL FONDO DE DESARROLLO LOCAL DE LA LOCALIDAD DE LOS MÁRTIRES. | I15: Inversión | J15: Un Nuevo Contrato Social y Ambiental para la Bogotá del Siglo XXI | K15: 3 | L15: =IF(ISERROR(VLOOKUP(K15,Proposito_programa!$C$2:$E$59,2,FALSE))," ",VLOOKUP(K15,Proposito_programa!$C$2:$E$59,2,FALSE)) -> Movilidad social integral | M15: =IF(ISERROR(VLOOKUP(K15,Proposito_programa!$C$2:$E$59,3,FALSE))," ",VLOOKUP(K15,Proposito_programa!$C$2:$E$59,3,FALSE)) -> Propósito 1: Hacer un nuevo contrato social para incrementar la inclusión social, productiva y política | N15: 133011605570000002099 | O15: 0 | P15: 53006011 | Q15: DIANA CAROLINA CARDENAS CRUZ | R15: Persona Natural | S15: N/A | T15: N/A | U15: N/A | V15: 36800000 | X15: 1 | Y15: =15486667 -> 15486667 | Z15: 52286667 | AA15: 54586667 | AB15: 2021-01-18 | AC15: 2021-01-20 | AD15: 2022-01-15 | AE15: 8 MESES | AF15: 2 | AG15: 3 MESES Y 11 DIAS-15 dias | AN15: X | AP15: 1.04398827
A16: 003-2021 | B16: 2021 | C16: FDLM-CD-003-2021 | D16: https://community.secop.gov.co/Public/Tendering/OpportunityDetail/Index?noticeUID=CO1.NTC.1667407&isFromPublicArea=True&isModal=False | E16: Contratos de prestación de servicios profesionales y de apoyo a la gestión | F16: Contratación directa | G16: Prestación de servicios profesionales y de apoyo a la gestión, o para la ejecución de trabajos artísticos que sólo puedan encomendarse a determinadas personas naturales; | H16: PRESTAR LOS SERVICIOS PROFESIONALES COMO ABOGADO PARA APOYAR LAS DIFERENTES ETAPAS CONTRACTUALES, Y DEMÁS LABORES PROPIAS DE LA OFICINA DE CONTRATACIÓN DEL FONDO DE DESARROLLO LOCAL DE LOS MÁRTIRES. | I16: Inversión | J16: Un Nuevo Contrato Social y Ambiental para la Bogotá del Siglo XXI | K16: 3 | L16: =IF(ISERROR(VLOOKUP(K16,Proposito_programa!$C$2:$E$59,2,FALSE))," ",VLOOKUP(K16,Proposito_programa!$C$2:$E$59,2,FALSE)) -> Movilidad social integral | M16: =IF(ISERROR(VLOOKUP(K16,Proposito_programa!$C$2:$E$59,3,FALSE))," ",VLOOKUP(K16,Proposito_programa!$C$2:$E$59,3,FALSE)) -> Propósito 1: Hacer un nuevo contrato social para incrementar la inclusión social, productiva y política | N16: 133011605570000002099 | O16: 0 | P16: 80075029 | Q16: MILTON RICARDO CASAS IREGUI | R16: Persona Natural | S16: N/A | T16: N/A | U16: N/A | V16: 48000000 | Y16: 0 | Z16: 48000000 | AA16: 48000000 | AB16: 2021-01-18 | AC16: 2021-01-19 | AD16: 2021-09-18 | AE16: 8 MESES | AG16: N/A | AH16: 80770210 | AI16: SERGIO DANIEL BORBON TORRES | AJ16: 2021-04-20 | AK16: 48000000 | AN16: X | AP16: 1
A17: 005-2021 | B17: 2021 | C17: FDLM-CD-005-2021 | D17: https://community.secop.gov.co/Public/Tendering/OpportunityDetail/Index?noticeUID=CO1.NTC.1668122&isFromPublicArea=True&isModal=False | E17: Contratos de prestación de servicios profesionales y de apoyo a la gestión | F17: Contratación directa | G17: Prestación de servicios profesionales y de apoyo a la gestión, o para la ejecución de trabajos artísticos que sólo puedan encomendarse a determinadas personas naturales; | H17: PRESTAR SERVICIOS PROFESIONALES ESPECIALIZADOS AL ÁREA POLICIVA DE LA ALCALDÍA LOCAL DE LOS MÁRTIRES, PARA ADELANTAR TRÁMITES, PROCEDIMIENTOS Y LINEAMIENTOS EN MATERIA JURÍDICA QUE PERMITAN GARANTIZAR EL CUMPLIMIENTO DE LAS METAS ESTABLECIDAS EN EL PLAN DE DESARROLLO LOCAL VIGENTE. | I17: Inversión | J17: Un Nuevo Contrato Social y Ambiental para la Bogotá del Siglo XXI | K17: 3 | L17: =IF(ISERROR(VLOOKUP(K17,Proposito_programa!$C$2:$E$59,2,FALSE))," ",VLOOKUP(K17,Proposito_programa!$C$2:$E$59,2,FALSE)) -> Movilidad social integral | M17: =IF(ISERROR(VLOOKUP(K17,Proposito_programa!$C$2:$E$59,3,FALSE))," ",VLOOKUP(K17,Proposito_programa!$C$2:$E$59,3,FALSE)) -> Propósito 1: Hacer un nuevo contrato social para incrementar la inclusión social, productiva y política | N17: 133011605570000002099 | O17: 0 | P17: 31152253 | Q17: MARIA DEL ROSARIO VALDERRUTEN BUENO | R17: Persona Natural | S17: N/A | T17: N/A | U17: N/A | V17: 64000000 | Y17: 0 | Z17: 64000000 | AA17: 64000000 | AB17: 2021-01-18 | AC17: 2021-01-19 | AD17: 2021-09-18 | AE17: 8 MESES | AG17: N/A | AN17: X | AP17: 1
A18: 006-2021 | B18: 2021 | C18: FDLM-CD-006-2021 | D18: https://community.secop.gov.co/Public/Tendering/OpportunityDetail/Index?noticeUID=CO1.NTC.1668145&isFromPublicArea=True&isModal=False | E18: Contratos de prestación de servicios profesionales y de apoyo a la gestión | F18: Contratación directa | G18: Prestación de servicios profesionales y de apoyo a la gestión, o para la ejecución de trabajos artísticos que sólo puedan encomendarse a determinadas personas naturales; | H18: PRESTAR SUS SERVICIOS COMO PROFESIONAL ESPECIALIZADO A LA OFICINA DE PLANEACIÓN DEL FONDO DE DESARROLLO LOCAL DE LOS MÁRTIRES EN LA FORMULACIÓN PRE CONTRACTUAL, APOYO A LA SUPERVISIÓN, SEGUIMIENTO Y EVALUACIÓN DE LOS PROYECTOS ASIGNADOS, ASÍ COMO LAS DEMÁS ACTIVIDADES RELACIONADAS CON EL ÁREA DE GESTIÓN DEL DESARROLLO LOCAL DE LA LOCALIDAD DE LOS MÁRTIRES, EN CUMPLIMIENTO DEL PLAN DE DESARROLLO LOCAL VIGENTE. | I18: Inversión | J18: Un Nuevo Contrato Social y Ambiental para la Bogotá del Siglo XXI | K18: 3 | L18: =IF(ISERROR(VLOOKUP(K18,Proposito_programa!$C$2:$E$59,2,FALSE))," ",VLOOKUP(K18,Proposito_programa!$C$2:$E$59,2,FALSE)) -> Movilidad social integral | M18: =IF(ISERROR(VLOOKUP(K18,Proposito_programa!$C$2:$E$59,3,FALSE))," ",VLOOKUP(K18,Proposito_programa!$C$2:$E$59,3,FALSE)) -> Propósito 1: Hacer un nuevo contrato social para incrementar la inclusión social, productiva y política | N18: 133011605570000002099 | O18: 0 | P18: 52085298 | Q18: ADRIANA INES PIRAQUIVE BAUTISTA | R18: Persona Natural | S18: N/A | T18: N/A | U18: N/A | V18: 64000000 | Y18: 0 | Z18: 64000000 | AA18: 64000000 | AB18: 2021-01-18 | AC18: 2021-01-19 | AD18: 2021-09-18 | AE18: 8 MESES | AG18: N/A | AN18: X | AP18: 1
A19: 007-2021 | B19: 2021 | C19: FDLM-CD-007-2021 | D19: https://community.secop.gov.co/Public/Tendering/OpportunityDetail/Index?noticeUID=CO1.NTC.1668256&isFromPublicArea=True&isModal=False | E19: Contratos de prestación de servicios profesionales y de apoyo a la gestión | F19: Contratación directa | G19: Prestación de servicios profesionales y de apoyo a la gestión, o para la ejecución de trabajos artísticos que sólo puedan encomendarse a determinadas personas naturales; | H19: PRESTAR SUS SERVICIOS COMO PERSONAL DE APOYO EN LA CONDUCCIÓN DE LOS VEHÍCULOS LIVIANOS O PESADOS DE PROPIEDAD DEL FONDO DE DESARROLLO LOCAL DE LOS MÁRTIRES, DE CONFORMIDAD CON LOS LINEAMIENTOS DEL DESPACHO, | I19: Inversión | J19: Un Nuevo Contrato Social y Ambiental para la Bogotá del Siglo XXI | K19: 3 | L19: =IF(ISERROR(VLOOKUP(K19,Proposito_programa!$C$2:$E$59,2,FALSE))," ",VLOOKUP(K19,Proposito_programa!$C$2:$E$59,2,FALSE)) -> Movilidad social integral | M19: =IF(ISERROR(VLOOKUP(K19,Proposito_programa!$C$2:$E$59,3,FALSE))," ",VLOOKUP(K19,Proposito_programa!$C$2:$E$59,3,FALSE)) -> Propósito 1: Hacer un nuevo contrato social para incrementar la inclusión social, productiva y política | N19: 133011605570000002099 | O19: 0 | P19: 79616287 | Q19: GERMAN MORENO PARRA | R19: Persona Natural | S19: N/A | T19: N/A | U19: N/A | V19: 25600000 | Z19: 25600000 | AA19: 36373333 | AB19: 2021-01-18 | AC19: 2021-01-20 | AD19: 2021-12-30 | AE19: 8 MESES | AF19: 1 | AG19: 101 DIAS | AN19: X | AP19: 1.42083332
A20: 008-2021 | B20: 2021 | C20: FDLM-CD-008-2021 | D20: https://community.secop.gov.co/Public/Tendering/OpportunityDetail/Index?noticeUID=CO1.NTC.1670425&isFromPublicArea=True&isModal=False | E20: Contratos de prestación de servicios profesionales y de apoyo a la gestión | F20: Contratación directa | G20: Prestación de servicios profesionales y de apoyo a la gestión, o para la ejecución de trabajos artísticos que sólo puedan encomendarse a determinadas personas naturales; | H20: PRESTAR SUS SERVICIOS COMO PERSONAL DE APOYO EN LA CONDUCCIÓN DE LOS VEHÍCULOS LIVIANOS O PESADOS DE PROPIEDAD DEL FONDO DE DESARROLLO LOCAL DE LOS MÁRTIRES. | I20: Inversión | J20: Un Nuevo Contrato Social y Ambiental para la Bogotá del Siglo XXI | K20: 3 | L20: =IF(ISERROR(VLOOKUP(K20,Proposito_programa!$C$2:$E$59,2,FALSE))," ",VLOOKUP(K20,Proposito_programa!$C$2:$E$59,2,FALSE)) -> Movilidad social integral | M20: =IF(ISERROR(VLOOKUP(K20,Proposito_programa!$C$2:$E$59,3,FALSE))," ",VLOOKUP(K20,Proposito_programa!$C$2:$E$59,3,FALSE)) -> Propósito 1: Hacer un nuevo contrato social para incrementar la inclusión social, productiva y política | N20: 133011605570000002099 | O20: 0 | P20: 1032356526 | Q20: JOSE ORLANDO RUIZ GARCIA | R20: Persona Natural | S20: N/A | T20: N/A | U20: N/A | V20: 19656000 | X20: 1 | Y20: 7761532 | Z20: 27417532 | AA20: 21300000 | AB20: 2021-01-19 | AC20: 2021-01-22 | AD20: 2021-12-30 | AE20: 8 MESES | AF20: 1 | AG20: 99 DIAS | AN20: X | AP20: 0.7768751761
A21: 009-2021 | B21: 2021 | C21: FDLM-CD-009-2021 | D21: https://community.secop.gov.co/Public/Tendering/OpportunityDetail/Index?noticeUID=CO1.NTC.1671142&isFromPublicArea=True&isModal=False | E21: Contratos de prestación de servicios profesionales y de apoyo a la gestión | F21: Contratación directa | G21: Prestación de servicios profesionales y de apoyo a la gestión, o para la ejecución de trabajos artísticos que sólo puedan encomendarse a determinadas personas naturales; | H21: PRESTAR SUS SERVICIOS COMO PERSONAL DE APOYO EN LA CONDUCCIÓN DE LOS VEHÍCULOS LIVIANOS O PESADOS DE PROPIEDAD DEL FONDO DE DESARROLLO LOCAL DE LOS MÁRTIRES. | I21: Inversión | J21: Un Nuevo Contrato Social y Ambiental para la Bogotá del Siglo XXI | K21: 3 | L21: =IF(ISERROR(VLOOKUP(K21,Proposito_programa!$C$2:$E$59,2,FALSE))," ",VLOOKUP(K21,Proposito_programa!$C$2:$E$59,2,FALSE)) -> Movilidad social integral | M21: =IF(ISERROR(VLOOKUP(K21,Proposito_programa!$C$2:$E$59,3,FALSE))," ",VLOOKUP(K21,Proposito_programa!$C$2:$E$59,3,FALSE)) -> Propósito 1: Hacer un nuevo contrato social para incrementar la inclusión social, productiva y política | N21: 133011605570000002099 | O21: 0 | P21: 19406345 | Q21: JOSE FABIO TORRES VIGOYA | R21: Persona Natural | S21: N/A | T21: N/A | U21: N/A | V21: 19656000 | X21: 1 | Y21: 7371000 | Z21: 27027000 | AA21: 19800000 | AB21: 2021-01-20 | AC21: 2021-01-22 | AD21: 2021-12-29 | AE21: 8 MESES | AF21: 1 | AG21: 3 MESES | AN21: X | AP21: 0.7326007326
A22: 010-2021 | B22: 2021 | C22: FDLM-CD-010-2021 | D22: https://community.secop.gov.co/Public/Tendering/OpportunityDetail/Index?noticeUID=CO1.NTC.1672109&isFromPublicArea=True&isModal=False | E22: Contratos de prestación de servicios profesionales y de apoyo a la gestión | F22: Contratación directa | G22: Prestación de servicios profesionales y de apoyo a la gestión, o para la ejecución de trabajos artísticos que sólo puedan encomendarse a determinadas personas naturales; | H22: PRESTAR LOS SERVICIOS DE APOYO LOGÍSTICO EN LAS DIFERENTES TAREAS DE BODEGAJE, TRASLADOS, MONTAJES Y DEMÁS ACTIVIDADES RELACIONADAS A CARGO DE LA ALCALDÍA LOCAL DE LOS MÁRTIRES. | I22: Inversión | J22: Un Nuevo Contrato Social y Ambiental para la Bogotá del Siglo XXI | K22: 3 | L22: =IF(ISERROR(VLOOKUP(K22,Proposito_programa!$C$2:$E$59,2,FALSE))," ",VLOOKUP(K22,Proposito_programa!$C$2:$E$59,2,FALSE)) -> Movilidad social integral | M22: =IF(ISERROR(VLOOKUP(K22,Proposito_programa!$C$2:$E$59,3,FALSE))," ",VLOOKUP(K22,Proposito_programa!$C$2:$E$59,3,FALSE)) -> Propósito 1: Hacer un nuevo contrato social para incrementar la inclusión social, productiva y política | N22: 133011605570000002099 | O22: 0 | P22: 79218238 | Q22: EDWIN ANDRES MOSQUERA ORTIZ | R22: Persona Natural | S22: N/A | T22: N/A | U22: N/A | V22: 18960000 | Y22: 0 | Z22: 18960000 | AA22: 1659000 | AB22: 2021-01-20 | AC22: 2021-01-22 | AD22: 2021-09-21 | AE22: 8 MESES | AG22: N/A | AN22: X | AP22: 0.0875
A23: 011-2021 | B23: 2021 | C23: FDLM-CD-011-2021 | D23: https://community.secop.gov.co/Public/Tendering/OpportunityDetail/Index?noticeUID=CO1.NTC.1672233&isFromPublicArea=True&isModal=False | E23: Contratos de prestación de servicios profesionales y de apoyo a la gestión | F23: Contratación directa | G23: Prestación de servicios profesionales y de apoyo a la gestión, o para la ejecución de trabajos artísticos que sólo puedan encomendarse a determinadas personas naturales; | H23: PRESTAR LOS SERVICIOS DE APOYO A LOS ARCHIVOS DE GESTIÓN DE LA ENTIDAD EN LA IMPLEMENTACIÓN DE LOS PROCESOS DE CLASIFICACIÓN, ORDENACIÓN, SELECCIÓN NATURAL, FOLIACIÓN, IDENTIFICACIÓN, LEVANTAMIENTO DE INVENTARIOS, ALMACENAMIENTO Y APLICACIÓN DE PROTOCOLOS DE ELIMINACIÓN Y TRANSFERENCIAS DOCUMENTALES. | I23: Inversión | J23: Un Nuevo Contrato Social y Ambiental para la Bogotá del Siglo XXI | K23: 3 | L23: =IF(ISERROR(VLOOKUP(K23,Proposito_programa!$C$2:$E$59,2,FALSE))," ",VLOOKUP(K23,Proposito_programa!$C$2:$E$59,2,FALSE)) -> Movilidad social integral | M23: =IF(ISERROR(VLOOKUP(K23,Proposito_programa!$C$2:$E$59,3,FALSE))," ",VLOOKUP(K23,Proposito_programa!$C$2:$E$59,3,FALSE)) -> Propósito 1: Hacer un nuevo contrato social para incrementar la inclusión social, productiva y política | N23: 133011605570000002099 | O23: 0 | P23: 52484985 | Q23: YENSSY LAURA RODRIGUEZ PEDROZA | R23: Persona Natural | S23: N/A | T23: N/A | U23: N/A | V23: 18960000 | Y23: 0 | Z23: 18960000 | AA23: 18960000 | AB23: 2021-01-20 | AC23: 2021-01-25 | AD23: 2021-09-24 | AE23: 8 MESES | AG23: N/A | AN23: X | AP23: 1
A24: 012-2021 | B24: 2021 | C24: FDLM-CD-012-2021 | D24: https://community.secop.gov.co/Public/Tendering/OpportunityDetail/Index?noticeUID=CO1.NTC.1672039&isFromPublicArea=True&isModal=False | E24: Contratos de prestación de servicios profesionales y de apoyo a la gestión | F24: Contratación directa | G24: Prestación de servicios profesionales y de apoyo a la gestión, o para la ejecución de trabajos artísticos que sólo puedan encomendarse a determinadas personas naturales; | H24: PRESTAR LOS SERVICIOS DE APOYO A LOS ARCHIVOS DE GESTIÓN DE LA ENTIDAD EN LA IMPLEMENTACIÓN DE LOS PROCESOS DE CLASIFICACIÓN, ORDENACIÓN, SELECCIÓN NATURAL, FOLIACIÓN, IDENTIFICACIÓN, LEVANTAMIENTO DE INVENTARIOS, ALMACENAMIENTO Y APLICACIÓN DE PROTOCOLOS DE ELIMINACIÓN Y TRANSFERENCIAS DOCUMENTALES. | I24: Inversión | J24: Un Nuevo Contrato Social y Ambiental para la Bogotá del Siglo XXI | K24: 3 | L24: =IF(ISERROR(VLOOKUP(K24,Proposito_programa!$C$2:$E$59,2,FALSE))," ",VLOOKUP(K24,Proposito_programa!$C$2:$E$59,2,FALSE)) -> Movilidad social integral | M24: =IF(ISERROR(VLOOKUP(K24,Proposito_programa!$C$2:$E$59,3,FALSE))," ",VLOOKUP(K24,Proposito_programa!$C$2:$E$59,3,FALSE)) -> Propósito 1: Hacer un nuevo contrato social para incrementar la inclusión social, productiva y política | N24: 133011605570000002099 | O24: 0 | P24: 38071047 | Q24: DIANA CAROLINA RAMIREZ | R24: Persona Natural | S24: N/A | T24: N/A | U24: N/A | V24: 18960000 | Y24: 0 | Z24: 18960000 | AA24: 18960000 | AB24: 2021-01-20 | AC24: 2021-01-25 | AD24: 2021-09-24 | AE24: 8 MESES | AG24: N/A | AN24: X | AP24: 1
A25: 013-2021 | B25: 2021 | C25: FDLM-CD-013-2021 | D25: https://community.secop.gov.co/Public/Tendering/OpportunityDetail/Index?noticeUID=CO1.NTC.1672107&isFromPublicArea=True&isModal=False | E25: Contratos de prestación de servicios profesionales y de apoyo a la gestión | F25: Contratación directa | G25: Prestación de servicios profesionales y de apoyo a la gestión, o para la ejecución de trabajos artísticos que sólo puedan encomendarse a determinadas personas naturales; | H25: PRESTAR LOS SERVICIOS DE APOYO A LOS ARCHIVOS DE GESTIÓN DE LA ENTIDAD EN LA IMPLEMENTACIÓN DE LOS PROCESOS DE CLASIFICACIÓN, ORDENACIÓN, SELECCIÓN NATURAL, FOLIACIÓN, IDENTIFICACIÓN, LEVANTAMIENTO DE INVENTARIOS, ALMACENAMIENTO Y APLICACIÓN DE PROTOCOLOS DE ELIMINACIÓN Y TRANSFERENCIAS DOCUMENTALES. | I25: Inversión | J25: Un Nuevo Contrato Social y Ambiental para la Bogotá del Siglo XXI | K25: 3 | L25: =IF(ISERROR(VLOOKUP(K25,Proposito_programa!$C$2:$E$59,2,FALSE))," ",VLOOKUP(K25,Proposito_programa!$C$2:$E$59,2,FALSE)) -> Movilidad social integral | M25: =IF(ISERROR(VLOOKUP(K25,Proposito_programa!$C$2:$E$59,3,FALSE))," ",VLOOKUP(K25,Proposito_programa!$C$2:$E$59,3,FALSE)) -> Propósito 1: Hacer un nuevo contrato social para incrementar la inclusión social, productiva y política | N25: 133011605570000002099 | O25: 0 | P25: 1010233475 | Q25: CRISTIAN EDUARDO MORENO DUCUARA | R25: Persona Natural | S25: N/A | T25: N/A | U25: N/A | V25: 18960000 | X25: 1 | Y25: 7900000 | Z25: 26860000 | AA25: 21800000 | AB25: 2021-01-20 | AC25: 2021-01-21 | AD25: 2021-12-30 | AE25: 8 MESES | AF25: 1 | AG25: 100 DIAS | AN25: X | AP25: 0.8116157856
A26: 014-2021 | B26: 2021 | C26: FDLM-CD-014-2021 | D26: https://community.secop.gov.co/Public/Tendering/OpportunityDetail/Index?noticeUID=CO1.NTC.1672046&isFromPublicArea=True&isModal=False | E26: Contratos de prestación de servicios profesionales y de apoyo a la gestión | F26: Contratación directa | G26: Prestación de servicios profesionales y de apoyo a la gestión, o para la ejecución de trabajos artísticos que sólo puedan encomendarse a determinadas personas naturales; | H26: PRESTAR LOS SERVICIOS PROFESIONALES COMO APOYO AL ÁREA DE GESTIÓN DEL DESARROLLO ADMINISTRATIVA Y FINANCIERA LOCAL, EN LO RELACIONADO EN TEMAS DE PRESUPUESTO Y CONTABILIDAD EN LAS DIFERENTES ACTIVIDADES QUE SE REQUIERA, ADEMÁS DEL APOYO CORRESPONDIENTE PARA EL MANEJO DE LOS APLICATIVOS PREDIS, OPGET, ORFEO, PAC, SIPROJ, SICO, SIPSE Y BOG DATA. | I26: Inversión | J26: Un Nuevo Contrato Social y Ambiental para la Bogotá del Siglo XXI | K26: 3 | L26: =IF(ISERROR(VLOOKUP(K26,Proposito_programa!$C$2:$E$59,2,FALSE))," ",VLOOKUP(K26,Proposito_programa!$C$2:$E$59,2,FALSE)) -> Movilidad social integral | M26: =IF(ISERROR(VLOOKUP(K26,Proposito_programa!$C$2:$E$59,3,FALSE))," ",VLOOKUP(K26,Proposito_programa!$C$2:$E$59,3,FALSE)) -> Propósito 1: Hacer un nuevo contrato social para incrementar la inclusión social, productiva y política | N26: 133011605570000002099 | O26: 0 | P26: 52060589 | Q26: EDITH CAROLINA CASTELLANOS MARTINEZ | R26: Persona Natural | S26: N/A | T26: N/A | U26: N/A | V26: 44240000 | X26: 1 | Y26: 18433333 | Z26: 62673333 | AA26: 62673333 | AB26: 2021-01-19 | AC26: 2021-01-21 | AD26: 2021-12-30 | AE26: 8 MESES | AF26: 1 | AG26: 100 DIAS | AN26: X | AP26: 1
A27: 015-2021 | B27: 2021 | C27: FDLM-CD-015-2021 | D27: https://community.secop.gov.co/Public/Tendering/OpportunityDetail/Index?noticeUID=CO1.NTC.1675523&isFromPublicArea=True&isModal=False | E27: Contratos de prestación de servicios profesionales y de apoyo a la gestión | F27: Contratación directa | G27: Prestación de servicios profesionales y de apoyo a la gestión, o para la ejecución de trabajos artísticos que sólo puedan encomendarse a determinadas personas naturales; | H27: PRESTAR LOS SERVICIOS DE APOYO LOGÍSTICO EN LAS DIFERENTES TAREAS DE BODEGAJE, TRASLADOS, MONTAJES Y DEMÁS ACTIVIDADES RELACIONADAS A CARGO DE LA ALCALDÍA LOCAL DE LOS MÁRTIRES. | I27: Inversión | J27: Un Nuevo Contrato Social y Ambiental para la Bogotá del Siglo XXI | K27: 3 | L27: =IF(ISERROR(VLOOKUP(K27,Proposito_programa!$C$2:$E$59,2,FALSE))," ",VLOOKUP(K27,Proposito_programa!$C$2:$E$59,2,FALSE)) -> Movilidad social integral | M27: =IF(ISERROR(VLOOKUP(K27,Proposito_programa!$C$2:$E$59,3,FALSE))," ",VLOOKUP(K27,Proposito_programa!$C$2:$E$59,3,FALSE)) -> Propósito 1: Hacer un nuevo contrato social para incrementar la inclusión social, productiva y política | N27: 133011605570000002099 | O27: 0 | P27: 1023921919 | Q27: JOSE VICENTE SANCHEZ DOMINGUEZ | R27: Persona Natural | S27: N/A | T27: N/A | U27: N/A | V27: 18960000 | Y27: 0 | Z27: 18960000 | AA27: 18960000 | AB27: 2021-01-20 | AC27: 2021-01-26 | AD27: 2021-09-25 | AE27: 8 MESES | AG27: N/A | AN27: X | AP27: 1
A28: 016-2021 | B28: 2021 | C28: FDLM-CD-016-2021 | D28: https://community.secop.gov.co/Public/Tendering/OpportunityDetail/Index?noticeUID=CO1.NTC.1697206&isFromPublicArea=True&isModal=False | E28: Contratos de prestación de servicios profesionales y de apoyo a la gestión | F28: Contratación directa | G28: Prestación de servicios profesionales y de apoyo a la gestión, o para la ejecución de trabajos artísticos que sólo puedan encomendarse a determinadas personas naturales; | H28: PRESTAR SUS SERVICIOS COMO PERSONAL DE APOYO EN LA CONDUCCIÓN DE LOS VEHÍCULOS LIVIANOS O PESADOS DE PROPIEDAD DEL FONDO DE DESARROLLO LOCAL DE LOS MÁRTIRES | I28: Inversión | J28: Un Nuevo Contrato Social y Ambiental para la Bogotá del Siglo XXI | K28: 3 | L28: =IF(ISERROR(VLOOKUP(K28,Proposito_programa!$C$2:$E$59,2,FALSE))," ",VLOOKUP(K28,Proposito_programa!$C$2:$E$59,2,FALSE)) -> Movilidad social integral | M28: =IF(ISERROR(VLOOKUP(K28,Proposito_programa!$C$2:$E$59,3,FALSE))," ",VLOOKUP(K28,Proposito_programa!$C$2:$E$59,3,FALSE)) -> Propósito 1: Hacer un nuevo contrato social para incrementar la inclusión social, productiva y política | N28: 133011605570000002099 | O28: 0 | P28: 79372750 | Q28: FABIO CESAR SALGADO MURILLO | R28: Persona Natural | S28: N/A | T28: N/A | U28: N/A | V28: 19656000 | X28: 1 | Y28: 7371000 | Z28: 27027000 | AA28: 27027000 | AB28: 2021-01-27 | AC28: 2021-01-30 | AD28: 2021-12-29 | AE28: 8 MESES | AF28: 1 | AG28: 3 MESES | AN28: X | AP28: 1
A29: 017-2021 | B29: 2021 | C29: FDLM-CD-017-2021 | D29: https://community.secop.gov.co/Public/Tendering/OpportunityDetail/Index?noticeUID=CO1.NTC.1697403&isFromPublicArea=True&isModal=False | E29: Contratos de prestación de servicios profesionales y de apoyo a la gestión | F29: Contratación directa | G29: Prestación de servicios profesionales y de apoyo a la gestión, o para la ejecución de trabajos artísticos que sólo puedan encomendarse a determinadas personas naturales; | H29: PRESTAR LOS SERVICIOS PROFESIONALES COMO ABOGADO ESPECIALIZADO PARA APOYAR LAS ETAPAS PRECONTRACTUAL, CONTRACTUAL Y POS CONTRACTUAL Y DEMÁS LABORES PROPIAS DE LA OFICINA DE CONTRATACIÓN DEL FONDO DE DESARROLLO LOCAL DE LOS MÁRTIRES. | I29: Inversión | J29: Un Nuevo Contrato Social y Ambiental para la Bogotá del Siglo XXI | K29: 3 | L29: =IF(ISERROR(VLOOKUP(K29,Proposito_programa!$C$2:$E$59,2,FALSE))," ",VLOOKUP(K29,Proposito_programa!$C$2:$E$59,2,FALSE)) -> Movilidad social integral | M29: =IF(ISERROR(VLOOKUP(K29,Proposito_programa!$C$2:$E$59,3,FALSE))," ",VLOOKUP(K29,Proposito_programa!$C$2:$E$59,3,FALSE)) -> Propósito 1: Hacer un nuevo contrato social para incrementar la inclusión social, productiva y política | N29: 133011605570000002099 | O29: 0 | P29: 79994357 | Q29: JAIRO ARMANDO PEÑA RIOS | R29: Persona Natural | S29: N/A | T29: N/A | U29: N/A | V29: 52000000 | X29: 1 | Y29: 20366667 | Z29: 72366667 | AA29: 52900000 | AB29: 2021-01-26 | AC29: 2021-01-27 | AD29: 2021-12-31 | AE29: 8 MESES | AF29: 1 | AG29: 94 DIAS | AN29: X | AP29: 0.730999536
A30: 018-2021 | B30: 2021 | C30: FDLM-CD-018-2021 | D30: https://community.secop.gov.co/Public/Tendering/OpportunityDetail/Index?noticeUID=CO1.NTC.1703512&isFromPublicArea=True&isModal=False | E30: Contratos de prestación de servicios profesionales y de apoyo a la gestión | F30: Contratación directa | G30: Prestación de servicios profesionales y de apoyo a la gestión, o para la ejecución de trabajos artísticos que sólo puedan encomendarse a determinadas personas naturales; | H30: APOYAR JURÍDICAMENTE LA EJECUCIÓN DE LAS ACCIONES REQUERIDAS PARA LA DEPURACIÓN DE LAS ACTUACIONES ADMINISTRATIVAS QUE CURSAN EN LA ALCALDÍA LOCAL. | I30: Inversión | J30: Un Nuevo Contrato Social y Ambiental para la Bogotá del Siglo XXI | K30: 3 | L30: =IF(ISERROR(VLOOKUP(K30,Proposito_programa!$C$2:$E$59,2,FALSE))," ",VLOOKUP(K30,Proposito_programa!$C$2:$E$59,2,FALSE)) -> Movilidad social integral | M30: =IF(ISERROR(VLOOKUP(K30,Proposito_programa!$C$2:$E$59,3,FALSE))," ",VLOOKUP(K30,Proposito_programa!$C$2:$E$59,3,FALSE)) -> Propósito 1: Hacer un nuevo contrato social para incrementar la inclusión social, productiva y política | N30: 133011605570000002099 | O30: 0 | P30: 52796223 | Q30: ALEXANDRA GUZMAN LAMUS | R30: Persona Natural | S30: N/A | T30: N/A | U30: N/A | V30: 29490000 | X30: 1 | Y30: 14745000 | Z30: 44235000 | AA30: 44235000 | AB30: 2021-01-28 | AC30: 2021-01-29 | AD30: 2021-10-28 | AE30: 6 MESES | AF30: 1 | AG30: 3 MESES | AN30: X | AP30: 1
A31: 019-2021 | B31: 2021 | C31: FDLM-CPS-019-2021 | D31: https://community.secop.gov.co/Public/Tendering/ContractNoticePhases/View?PPI=CO1.PPI.11877522&isFromPublicArea=True&isModal=False | E31: Contratos de prestación de servicios profesionales y de apoyo a la gestión | F31: Contratación directa | G31: Prestación de servicios profesionales y de apoyo a la gestión, o para la ejecución de trabajos artísticos que sólo puedan encomendarse a determinadas personas naturales; | H31: APOYAR EN LAS TAREAS OPERATIVAS DE CARÁCTER ARCHIVÍSTICO DESARROLLADAS EN LA ALCALDÍA LOCAL PARA GARANTIZAR LA APLICACIÓN CORRECTA DE LOS PROCEDIMIENTOS TÉCNICOS. | I31: Inversión | J31: Un Nuevo Contrato Social y Ambiental para la Bogotá del Siglo XXI | K31: 3 | L31: =IF(ISERROR(VLOOKUP(K31,Proposito_programa!$C$2:$E$59,2,FALSE))," ",VLOOKUP(K31,Proposito_programa!$C$2:$E$59,2,FALSE)) -> Movilidad social integral | M31: =IF(ISERROR(VLOOKUP(K31,Proposito_programa!$C$2:$E$59,3,FALSE))," ",VLOOKUP(K31,Proposito_programa!$C$2:$E$59,3,FALSE)) -> Propósito 1: Hacer un nuevo contrato social para incrementar la inclusión social, productiva y política | N31: 133011605570000002099 | O31: 0 | P31: 51689390 | Q31: CARMEN MARIA NISPERUZA FLOREZ | R31: Persona Natural | S31: N/A | T31: N/A | U31: N/A | V31: 26680000 | Y31: 0 | Z31: 26680000 | AA31: 26680000 | AB31: 2021-02-02 | AC31: 2021-02-05 | AD31: 2021-10-04 | AE31: 8 MESES | AG31: N/A | AN31: X | AP31: 1
A32: 020-021 | B32: 2021 | C32: FDLM-CD-020-2021 | D32: https://community.secop.gov.co/Public/Tendering/OpportunityDetail/Index?noticeUID=CO1.NTC.1724450&isFromPublicArea=True&isModal=False | E32: Contratos de prestación de servicios profesionales y de apoyo a la gestión | F32: Contratación directa | G32: Prestación de servicios profesionales y de apoyo a la gestión, o para la ejecución de trabajos artísticos que sólo puedan encomendarse a determinadas personas naturales; | H32: APOYAR JURÍDICAMENTE LA EJECUCIÓN DE LAS ACCIONES REQUERIDAS PARA LA DEPURACIÓN DE LAS ACTUACIONES ADMINISTRATIVAS QUE CURSAN EN LA ALCALDÍA LOCAL | I32: Inversión | J32: Un Nuevo Contrato Social y Ambiental para la Bogotá del Siglo XXI | K32: 3 | L32: =IF(ISERROR(VLOOKUP(K32,Proposito_programa!$C$2:$E$59,2,FALSE))," ",VLOOKUP(K32,Proposito_programa!$C$2:$E$59,2,FALSE)) -> Movilidad social integral | M32: =IF(ISERROR(VLOOKUP(K32,Proposito_programa!$C$2:$E$59,3,FALSE))," ",VLOOKUP(K32,Proposito_programa!$C$2:$E$59,3,FALSE)) -> Propósito 1: Hacer un nuevo contrato social para incrementar la inclusión social, productiva y política | N32: 133011605570000002099 | O32: 0 | P32: 1016036141 | Q32: EDMON RUMIE VALENCIA | R32: Persona Natural | S32: N/A | T32: N/A | U32: N/A | V32: 29490000 | Y32: 0 | Z32: 29490000 | AA32: 5570333 | AB32: 2021-02-02 | AC32: 2021-02-05 | AD32: 2021-08-04 | AE32: 6 MESES | AG32: N/A | AN32: X | AP32: 0.1888888776
A33: 021-2021 | B33: 2021 | C33: FDLM-CD-021-202 | D33: https://community.secop.gov.co/Public/Tendering/OpportunityDetail/Index?noticeUID=CO1.NTC.1724452&isFromPublicArea=True&isModal=False | E33: Contratos de prestación de servicios profesionales y de apoyo a la gestión | F33: Contratación directa | G33: Prestación de servicios profesionales y de apoyo a la gestión, o para la ejecución de trabajos artísticos que sólo puedan encomendarse a determinadas personas naturales; | H33: APOYAR TÉCNICAMENTE LAS DISTINTAS ETAPAS DE LOS PROCESOS DE COMPETENCIA DE LA ALCALDÍA LOCAL PARA LA DEPURACIÓN DE ACTUACIONES ADMINISTRATIVAS | I33: Inversión | J33: Un Nuevo Contrato Social y Ambiental para la Bogotá del Siglo XXI | K33: 3 | L33: =IF(ISERROR(VLOOKUP(K33,Proposito_programa!$C$2:$E$59,2,FALSE))," ",VLOOKUP(K33,Proposito_programa!$C$2:$E$59,2,FALSE)) -> Movilidad social integral | M33: =IF(ISERROR(VLOOKUP(K33,Proposito_programa!$C$2:$E$59,3,FALSE))," ",VLOOKUP(K33,Proposito_programa!$C$2:$E$59,3,FALSE)) -> Propósito 1: Hacer un nuevo contrato social para incrementar la inclusión social, productiva y política | N33: 133011605570000002099 | O33: 0 | P33: 79996671 | Q33: CARLOS ANDRES SERRANO GARZON | R33: Persona Natural | S33: N/A | T33: N/A | U33: N/A | V33: 25224000 | Y33: 0 | Z33: 25224000 | AA33: 25224000 | AB33: 2021-02-02 | AC33: 2021-02-03 | AD33: 2021-08-02 | AE33: 6 MESES | AG33: N/A | AN33: X | AP33: 1
A34: 022-2021 | B34: 2021 | C34: FDLM-CD-022-2021 | D34: https://community.secop.gov.co/Public/Tendering/OpportunityDetail/Index?noticeUID=CO1.NTC.1724640&isFromPublicArea=True&isModal=False | E34: Contratos de prestación de servicios profesionales y de apoyo a la gestión | F34: Contratación directa | G34: Prestación de servicios profesionales y de apoyo a la gestión, o para la ejecución de trabajos artísticos que sólo puedan encomendarse a determinadas personas naturales; | H34: APOYAR TÉCNICAMENTE LAS DISTINTAS ETAPAS DE LOS PROCESOS DE COMPETENCIA DE LA ALCALDÍA LOCAL PARA LA DEPURACIÓN DE ACTUACIONES ADMINISTRATIVAS | I34: Inversión | J34: Un Nuevo Contrato Social y Ambiental para la Bogotá del Siglo XXI | K34: 3 | L34: =IF(ISERROR(VLOOKUP(K34,Proposito_programa!$C$2:$E$59,2,FALSE))," ",VLOOKUP(K34,Proposito_programa!$C$2:$E$59,2,FALSE)) -> Movilidad social integral | M34: =IF(ISERROR(VLOOKUP(K34,Proposito_programa!$C$2:$E$59,3,FALSE))," ",VLOOKUP(K34,Proposito_programa!$C$2:$E$59,3,FALSE)) -> Propósito 1: Hacer un nuevo contrato social para incrementar la inclusión social, productiva y política | N34: 133011605570000002099 | O34: 0 | P34: 79749022 | Q34: FREDDY RICARDO BRIÑEZ MONTOYA | R34: Persona Natural | S34: N/A | T34: N/A | U34: N/A | V34: 25224000 | Y34: 0 | Z34: 25224000 | AA34: 25224000 | AB34: 2021-02-02 | AC34: 2021-02-03 | AD34: 2021-08-02 | AE34: 6 MESES | AG34: N/A | AN34: X | AP34: 1
A35: 023-2021 | B35: 2021 | C35: FDLM-CPS-023-202 | D35: https://community.secop.gov.co/Public/Tendering/OpportunityDetail/Index?noticeUID=CO1.NTC.1737554&isFromPublicArea=True&isModal=False | E35: Contratos de prestación de servicios profesionales y de apoyo a la gestión | F35: Contratación directa | G35: Prestación de servicios profesionales y de apoyo a la gestión, o para la ejecución de trabajos artísticos que sólo puedan encomendarse a determinadas personas naturales; | H35: PRESTAR SUS SERVICIOS PROFESIONALES ESPECIALIZADOS EN EL SEGUIMIENTO ADMINISTRATIVO Y FINANCIERO DEL ÁREA DE GESTIÓN DE DESARROLLO LOCAL; CON RELACIÓN AL SEGUIMIENTO A LA INVERSIÓN, GASTOS DE FUNCIONAMIENTO, VERIFICACIÓN DE DOCUMENTOS CONTRACTUALES, SEGUIMIENTO A LOS PQRS Y PROYECCIÓN DE INFORMES QUE REQUIERE EL FONDO DE DESARROLLO LOCAL DE LOS MÁRTIRES. | I35: Inversión | J35: Un Nuevo Contrato Social y Ambiental para la Bogotá del Siglo XXI | K35: 3 | L35: =IF(ISERROR(VLOOKUP(K35,Proposito_programa!$C$2:$E$59,2,FALSE))," ",VLOOKUP(K35,Proposito_programa!$C$2:$E$59,2,FALSE)) -> Movilidad social integral | M35: =IF(ISERROR(VLOOKUP(K35,Proposito_programa!$C$2:$E$59,3,FALSE))," ",VLOOKUP(K35,Proposito_programa!$C$2:$E$59,3,FALSE)) -> Propósito 1: Hacer un nuevo contrato social para incrementar la inclusión social, productiva y política | N35: 133011605570000002099 | O35: 0 | P35: 1016026075 | Q35: DANNA SALOME MARTINEZ RAMIREZ | R35: Persona Natural | S35: N/A | T35: N/A | U35: N/A | V35: 57792000 | Y35: 0 | Z35: 57792000 | AA35: 57792000 | AB35: 2021-02-05 | AC35: 2021-02-08 | AD35: 2021-10-07 | AE35: 8 MESES | AG35: N/A | AN35: X | AP35: 1
A36: 024-2021 | B36: 2021 | C36: FDLM-CD-024-2021 | D36: https://community.secop.gov.co/Public/Tendering/OpportunityDetail/Index?noticeUID=CO1.NTC.1726190&isFromPublicArea=True&isModal=False | E36: Contratos de prestación de servicios profesionales y de apoyo a la gestión | F36: Contratación directa | G36: Prestación de servicios profesionales y de apoyo a la gestión, o para la ejecución de trabajos artísticos que sólo puedan encomendarse a determinadas personas naturales; | H36: PRESTAR LOS SERVICIOS PROFESIONALES DE APOYO AL ÁREA DE GESTIÓN DEL DESARROLLO, ADMINISTRATIVA Y FINANZAS LOCAL EN LA EJECUCIÓN DE ACTIVIDADES QUE SE REQUIERAN, ADEMÁS DEL MANEJO DE LOS APLICATIVOS PREDIS, OPGET, PAC, SI CAPITAL, SIPSE Y BOG DATA. | I36: Inversión | J36: Un Nuevo Contrato Social y Ambiental para la Bogotá del Siglo XXI | K36: 3 | L36: =IF(ISERROR(VLOOKUP(K36,Proposito_programa!$C$2:$E$59,2,FALSE))," ",VLOOKUP(K36,Proposito_programa!$C$2:$E$59,2,FALSE)) -> Movilidad social integral | M36: =IF(ISERROR(VLOOKUP(K36,Proposito_programa!$C$2:$E$59,3,FALSE))," ",VLOOKUP(K36,Proposito_programa!$C$2:$E$59,3,FALSE)) -> Propósito 1: Hacer un nuevo contrato social para incrementar la inclusión social, productiva y política | N36: 133011605570000002099 | O36: 0 | P36: 1013603935 | Q36: CATHERINE DIAZ LOZANO | R36: Persona Natural | S36: N/A | T36: N/A | U36: N/A | V36: 44240000 | Y36: 0 | Z36: 44240000 | AA36: 44240000 | AB36: 2021-02-03 | AC36: 2021-02-08 | AD36: 2021-10-07 | AE36: 8 MESES | AG36: N/A | AN36: X | AP36: 1
A37: 025-2021 | B37: 2021 | C37: FDLM-CD-025-2021 | D37: https://community.secop.gov.co/Public/Tendering/OpportunityDetail/Index?noticeUID=CO1.NTC.1734830&isFromPublicArea=True&isModal=False | E37: Contratos de prestación de servicios profesionales y de apoyo a la gestión | F37: Contratación directa | G37: Prestación de servicios profesionales y de apoyo a la gestión, o para la ejecución de trabajos artísticos que sólo puedan encomendarse a determinadas personas naturales; | H37: PRESTAR SUS SERVICIOS PARA APOYAR EL CENTRO DE DOCUMENTACIÓN E INFORMACIÓN - CDI - EN EL PROCESO DE RADICACIÓN, NOTIFICACIÓN Y ENTREGA DE LA CORRESPONDENCIA INTERNA Y EXTERNA DE LA ALCALDÍA LOCAL DE LOS MÁRTIRES Y CONTROL DE LOS DERECHOS DE PETICIÓN. | I37: Inversión | J37: Un Nuevo Contrato Social y Ambiental para la Bogotá del Siglo XXI | K37: 3 | L37: =IF(ISERROR(VLOOKUP(K37,Proposito_programa!$C$2:$E$59,2,FALSE))," ",VLOOKUP(K37,Proposito_programa!$C$2:$E$59,2,FALSE)) -> Movilidad social integral | M37: =IF(ISERROR(VLOOKUP(K37,Proposito_programa!$C$2:$E$59,3,FALSE))," ",VLOOKUP(K37,Proposito_programa!$C$2:$E$59,3,FALSE)) -> Propósito 1: Hacer un nuevo contrato social para incrementar la inclusión social, productiva y política | N37: 133011605570000002099 | O37: 0 | P37: 1032505874 | Q37: MARIA ALEJANDRA MARTINEZ DE LA PEÑA | R37: Persona Natural | S37: N/A | T37: N/A | U37: N/A | V37: 21072000 | Y37: 0 | Z37: 21072000 | AA37: 21072000 | AB37: 2021-02-04 | AC37: 2021-02-05 | AD37: 2021-10-04 | AE37: 8 MESES | AG37: N/A | AN37: X | AP37: 1
A38: 026-2021 | B38: 2021 | C38: FDLM-CD-026-2021 | D38: https://community.secop.gov.co/Public/Tendering/OpportunityDetail/Index?noticeUID=CO1.NTC.1739606&isFromPublicArea=True&isModal=False | E38: Contratos de prestación de servicios profesionales y de apoyo a la gestión | F38: Contratación directa | G38: Prestación de servicios profesionales y de apoyo a la gestión, o para la ejecución de trabajos artísticos que sólo puedan encomendarse a determinadas personas naturales; | H38: PRESTAR SUS SERVICIOS PARA APOYAR EL CENTRO DE DOCUMENTACIÓN E INFORMACIÓN - CDI - EN EL PROCESO DE RADICACIÓN, NOTIFICACIÓN Y ENTREGA DE LA CORRESPONDENCIA INTERNA Y EXTERNA DE LA ALCALDÍA LOCAL DE LOS MÁRTIRES Y CONTROL DE LOS DERECHOS DE PETICIÓN. | I38: Inversión | J38: Un Nuevo Contrato Social y Ambiental para la Bogotá del Siglo XXI | K38: 3 | L38: =IF(ISERROR(VLOOKUP(K38,Proposito_programa!$C$2:$E$59,2,FALSE))," ",VLOOKUP(K38,Proposito_programa!$C$2:$E$59,2,FALSE)) -> Movilidad social integral | M38: =IF(ISERROR(VLOOKUP(K38,Proposito_programa!$C$2:$E$59,3,FALSE))," ",VLOOKUP(K38,Proposito_programa!$C$2:$E$59,3,FALSE)) -> Propósito 1: Hacer un nuevo contrato social para incrementar la inclusión social, productiva y política | N38: 133011605570000002099 | O38: 0 | P38: 1019088888 | Q38: HANS SNEIDER CABARCAS TOROS | R38: Persona Natural | S38: N/A | T38: N/A | U38: N/A | V38: 21072000 | Y38: 0 | Z38: 21072000 | AA38: 21072000 | AB38: 2021-02-10 | AC38: 2021-02-11 | AD38: 2021-10-10 | AE38: 8 MESES | AG38: N/A | AN38: X | AP38: 1
A39: 027-2021 | B39: 2021 | C39: FDLM-CD-027-2021 | D39: https://community.secop.gov.co/Public/Tendering/OpportunityDetail/Index?noticeUID=CO1.NTC.1735159&isFromPublicArea=True&isModal=False | E39: Contratos de prestación de servicios profesionales y de apoyo a la gestión | F39: Contratación directa | G39: Prestación de servicios profesionales y de apoyo a la gestión, o para la ejecución de trabajos artísticos que sólo puedan encomendarse a determinadas personas naturales; | H39: PRESTAR SUS SERVICIOS PARA APOYAR EL CENTRO DE DOCUMENTACIÓN E INFORMACIÓN - CDI - EN EL PROCESO DE RADICACIÓN, NOTIFICACIÓN Y ENTREGA DE LA CORRESPONDENCIA INTERNA Y EXTERNA DE LA ALCALDÍA LOCAL DE LOS MÁRTIRES Y CONTROL DE LOS DERECHOS DE PETICIÓN. | I39: Inversión | J39: Un Nuevo Contrato Social y Ambiental para la Bogotá del Siglo XXI | K39: 3 | L39: =IF(ISERROR(VLOOKUP(K39,Proposito_programa!$C$2:$E$59,2,FALSE))," ",VLOOKUP(K39,Proposito_programa!$C$2:$E$59,2,FALSE)) -> Movilidad social integral | M39: =IF(ISERROR(VLOOKUP(K39,Proposito_programa!$C$2:$E$59,3,FALSE))," ",VLOOKUP(K39,Proposito_programa!$C$2:$E$59,3,FALSE)) -> Propósito 1: Hacer un nuevo contrato social para incrementar la inclusión social, productiva y política | N39: 133011605570000002099 | O39: 0 | P39: 1110555965 | Q39: EDISSON DAVID HERNÁNDEZ RAMÍREZ | R39: Persona Natural | S39: N/A | T39: N/A | U39: N/A | V39: 21072000 | Y39: 0 | Z39: 21072000 | AA39: 2985200 | AB39: 2021-02-04 | AC39: 2021-02-05 | AD39: 2021-10-04 | AE39: 8 MESES | AG39: N/A | AN39: X | AP39: 0.1416666667
A40: 028-2021 | B40: 2021 | C40: FDLM-CD-028-2021 | D40: https://community.secop.gov.co/Public/Tendering/OpportunityDetail/Index?noticeUID=CO1.NTC.1789545&isFromPublicArea=True&isModal=False | E40: Contratos de prestación de servicios profesionales y de apoyo a la gestión | F40: Contratación directa | G40: Prestación de servicios profesionales y de apoyo a la gestión, o para la ejecución de trabajos artísticos que sólo puedan encomendarse a determinadas personas naturales; | H40: APOYAR JURÍDICAMENTE LA EJECUCIÓN DE ACCIONES REQUERIDAS PARA EL TRÁMITE E IMPULSO PROCESAL DE LAS ACTUACIONES CONTRAVENCIONALES Y/O QUERELLAS QUE CURSEN EN LAS INSPECCIONES DE POLICÍA DE LA LOCALIDAD DE LOS MÁRTIRES. | I40: Inversión | J40: Un Nuevo Contrato Social y Ambiental para la Bogotá del Siglo XXI | K40: 3 | L40: =IF(ISERROR(VLOOKUP(K40,Proposito_programa!$C$2:$E$59,2,FALSE))," ",VLOOKUP(K40,Proposito_programa!$C$2:$E$59,2,FALSE)) -> Movilidad social integral | M40: =IF(ISERROR(VLOOKUP(K40,Proposito_programa!$C$2:$E$59,3,FALSE))," ",VLOOKUP(K40,Proposito_programa!$C$2:$E$59,3,FALSE)) -> Propósito 1: Hacer un nuevo contrato social para incrementar la inclusión social, productiva y política | N40: 133011605570000002099 | O40: 0 | P40: 1010197465 | Q40: MANUEL ALEJANDRO GRISALES LOAIZA | R40: Persona Natural | S40: N/A | T40: N/A | U40: N/A | V40: 19600000 | X40: 1 | Y40: 9800000 | Z40: 29400000 | AA40: 17600000 | AB40: 2021-02-23 | AC40: 2021-02-26 | AD40: 2021-08-25 | AE40: 4 MESES | AF40: 1 | AG40: 2 MESES | AN40: X | AP40: 0.5986394558
A41: 029-2021 | B41: 2021 | C41: FDLM-CD-029-2021 | D41: https://community.secop.gov.co/Public/Tendering/OpportunityDetail/Index?noticeUID=CO1.NTC.1738373&isFromPublicArea=True&isModal=False | E41: Contratos de prestación de servicios profesionales y de apoyo a la gestión | F41: Contratación directa | G41: Prestación de servicios profesionales y de apoyo a la gestión, o para la ejecución de trabajos artísticos que sólo puedan encomendarse a determinadas personas naturales; | H41: PRESTAR SERVICIOS PROFESIONALES AL ÁREA DE GESTIÓN PARA EL DESARROLLO ADMINISTRATIVO Y FINANCIERO, EN LAS ACTIVIDADES DE SEGUIMIENTO A LA INVERSIÓN, SOLICITUDES DE INFORMACIÓN A PROVEEDORES Y APOYO EN LA PROYECCIÓN DE INFORMES REQUERIDOS POR EL PROFESIONAL ESPECIALIZADO DEL ÁREA DE GESTIÓN DEL FONDO DE DESARROLLO LOCAL DE LOS MÁRTIRES. | I41: Inversión | J41: Un Nuevo Contrato Social y Ambiental para la Bogotá del Siglo XXI | K41: 3 | L41: =IF(ISERROR(VLOOKUP(K41,Proposito_programa!$C$2:$E$59,2,FALSE))," ",VLOOKUP(K41,Proposito_programa!$C$2:$E$59,2,FALSE)) -> Movilidad social integral | M41: =IF(ISERROR(VLOOKUP(K41,Proposito_programa!$C$2:$E$59,3,FALSE))," ",VLOOKUP(K41,Proposito_programa!$C$2:$E$59,3,FALSE)) -> Propósito 1: Hacer un nuevo contrato social para incrementar la inclusión social, productiva y política | N41: 133011605570000002099 | O41: 0 | P41: 37844642 | Q41: LUZ ANGELA PINTO POSADA | R41: Persona Natural | S41: N/A | T41: N/A | U41: N/A | V41: 39200000 | Y41: 0 | Z41: 39200000 | AA41: 39200000 | AB41: 2021-02-06 | AC41: 2021-02-08 | AD41: 2021-10-07 | AE41: 8 MESES | AG41: N/A | AN41: X | AP41: 1
A42: 030-2021 | B42: 2021 | C42: FDLM-CD-030-2021 | D42: https://community.secop.gov.co/Public/Tendering/OpportunityDetail/Index?noticeUID=CO1.NTC.1753956&isFromPublicArea=True&isModal=False | E42: Contratos de prestación de servicios profesionales y de apoyo a la gestión | F42: Contratación directa | G42: Prestación de servicios profesionales y de apoyo a la gestión, o para la ejecución de trabajos artísticos que sólo puedan encomendarse a determinadas personas naturales; | H42: PRESTAR SUS SERVICIOS PROFESIONALES AL FONDO DE DESARROLLO LOCAL DE LOS MÁRTIRES PARA LA APOYAR Y EL ACOMPAÑAMIENTO DE LAS INSTANCIAS DE COORDINACIÓN INTERINSTITUCIONALES E INSTANCIAS DE PARTICIPACIÓN LOCALES, ASÍ COMO EN LA FORMULACIÓN PRE CONTRACTUAL, APOYO A LA SUPERVISIÓN, SEGUIMIENTO AL PLAN DE DESARROLLO LOCAL Y EVALUACIÓN DE PROYECTOS, ASÍ COMO LAS DEMÁS ACTIVIDADES RELACIONADAS CON EL ÁREA DE GESTIÓN DEL DESARROLLO, ADMINISTRATIVO Y FINANZAS DE LA LOCALIDAD DE LOS MÁRTIRES, EN CUMPLIMIE. | I42: Inversión | J42: Un Nuevo Contrato Social y Ambiental para la Bogotá del Siglo XXI | K42: 3 | L42: =IF(ISERROR(VLOOKUP(K42,Proposito_programa!$C$2:$E$59,2,FALSE))," ",VLOOKUP(K42,Proposito_programa!$C$2:$E$59,2,FALSE)) -> Movilidad social integral | M42: =IF(ISERROR(VLOOKUP(K42,Proposito_programa!$C$2:$E$59,3,FALSE))," ",VLOOKUP(K42,Proposito_programa!$C$2:$E$59,3,FALSE)) -> Propósito 1: Hacer un nuevo contrato social para incrementar la inclusión social, productiva y política | N42: 133011605570000002099 | O42: 0 | P42: 1013639613 | Q42: MILLER OSWALDO DIAZ VALDERRAMA | R42: Persona Natural | S42: N/A | T42: N/A | U42: N/A | V42: 40800000 | Y42: 0 | Z42: 40800000 | AA42: 40800000 | AB42: 2021-02-10 | AC42: 2021-02-15 | AD42: 2021-10-14 | AE42: 8 MESES | AG42: N/A | AN42: X | AP42: 1
A43: 031-2021 | B43: 2021 | C43: FDLM-CD-031-2021 | D43: https://community.secop.gov.co/Public/Tendering/OpportunityDetail/Index?noticeUID=CO1.NTC.1737073&isFromPublicArea=True&isModal=False | E43: Contratos de prestación de servicios profesionales y de apoyo a la gestión | F43: Contratación directa | G43: Prestación de servicios profesionales y de apoyo a la gestión, o para la ejecución de trabajos artísticos que sólo puedan encomendarse a determinadas personas naturales; | H43: PRESTAR SUS SERVICIOS PROFESIONALES AL FONDO DE DESARROLLO LOCAL DE LOS MÁRTIRES PARA LA APOYAR Y EL ACOMPAÑAMIENTO DE LAS INSTANCIAS DE COORDINACIÓN INTERINSTITUCIONALES E INSTANCIAS DE PARTICIPACIÓN LOCALES, ASÍ COMO EN LA FORMULACIÓN PRE CONTRACTUAL, APOYO A LA SUPERVISIÓN, SEGUIMIENTO AL PLAN DE DESARROLLO LOCAL Y EVALUACIÓN DE PROYECTOS, ASÍ COMO LAS DEMÁS ACTIVIDADES RELACIONADAS CON EL ÁREA DE GESTIÓN DEL DESARROLLO, ADMINISTRATIVO Y FINANZAS DE LA LOCALIDAD DE LOS MÁRTIRES, EN CUMPLIMIE | I43: Inversión | J43: Un Nuevo Contrato Social y Ambiental para la Bogotá del Siglo XXI | K43: 3 | L43: =IF(ISERROR(VLOOKUP(K43,Proposito_programa!$C$2:$E$59,2,FALSE))," ",VLOOKUP(K43,Proposito_programa!$C$2:$E$59,2,FALSE)) -> Movilidad social integral | M43: =IF(ISERROR(VLOOKUP(K43,Proposito_programa!$C$2:$E$59,3,FALSE))," ",VLOOKUP(K43,Proposito_programa!$C$2:$E$59,3,FALSE)) -> Propósito 1: Hacer un nuevo contrato social para incrementar la inclusión social, productiva y política | N43: 133011605570000002099 | O43: 0 | P43: 1014187761 | Q43: MARIA DEL PILAR VARGAS TALERO | R43: Persona Natural | S43: N/A | T43: N/A | U43: N/A | V43: 30600000 | Y43: 0 | Z43: 30600000 | AA43: 30600000 | AB43: 2021-02-06 | AC43: 2021-02-09 | AD43: 2021-10-08 | AE43: 6 MESES | AG43: N/A | AN43: X | AP43: 1
A44: 032-2021 | B44: 2021 | C44: FDLM-CD-032-2021 | D44: https://community.secop.gov.co/Public/Tendering/OpportunityDetail/Index?noticeUID=CO1.NTC.1739945&isFromPublicArea=True&isModal=False | E44: Contratos de prestación de servicios profesionales y de apoyo a la gestión | F44: Contratación directa | G44: Prestación de servicios profesionales y de apoyo a la gestión, o para la ejecución de trabajos artísticos que sólo puedan encomendarse a determinadas personas naturales; | H44: PRESTAR SUS SERVICIOS PROFESIONALES AL FONDO DE DESARROLLO LOCAL DE LOS MÁRTIRES PARA LA APOYAR Y EL ACOMPAÑAMIENTO DE LAS INSTANCIAS DE COORDINACIÓN INTERINSTITUCIONALES E INSTANCIAS DE PARTICIPACIÓN LOCALES, ASÍ COMO EN LA FORMULACIÓN PRE CONTRACTUAL, APOYO A LA SUPERVISIÓN, SEGUIMIENTO AL PLAN DE DESARROLLO LOCAL Y EVALUACIÓN DE PROYECTOS, ASÍ COMO LAS DEMÁS ACTIVIDADES RELACIONADAS CON EL ÁREA DE GESTIÓN DEL DESARROLLO, ADMINISTRATIVO Y FINANZAS DE LA LOCALIDAD DE LOS MÁRTIRES, EN CUMPLIMIE | I44: Inversión | J44: Un Nuevo Contrato Social y Ambiental para la Bogotá del Siglo XXI | K44: 3 | L44: =IF(ISERROR(VLOOKUP(K44,Proposito_programa!$C$2:$E$59,2,FALSE))," ",VLOOKUP(K44,Proposito_programa!$C$2:$E$59,2,FALSE)) -> Movilidad social integral | M44: =IF(ISERROR(VLOOKUP(K44,Proposito_programa!$C$2:$E$59,3,FALSE))," ",VLOOKUP(K44,Proposito_programa!$C$2:$E$59,3,FALSE)) -> Propósito 1: Hacer un nuevo contrato social para incrementar la inclusión social, productiva y política | N44: 133011605570000002099 | O44: 0 | P44: 52844341 | Q44: CARMEN ANDREA AVELLANEDA SANTOYA | R44: Persona Natural | S44: N/A | T44: N/A | U44: N/A | V44: 40800000 | Y44: 0 | Z44: 40800000 | AA44: 40800000 | AB44: 2021-02-05 | AC44: 2021-02-11 | AD44: 2021-10-10 | AE44: 8 MESES | AG44: N/A | AN44: X | AP44: 1
A45: 033-2021 | B45: 2021 | C45: FDLM-CD-033-2021 | D45: Presentación de oferta https://community.secop.gov.co/Public/Tendering/OpportunityDetail/Index?noticeUID=CO1.NTC.1753524&isFromPublicArea=True&isModal=False | E45: Contratos de prestación de servicios profesionales y de apoyo a la gestión | F45: Contratación directa | G45: Prestación de servicios profesionales y de apoyo a la gestión, o para la ejecución de trabajos artísticos que sólo puedan encomendarse a determinadas personas naturales; | H45: PRESTAR SUS SERVICIOS PROFESIONALES AL FONDO DE DESARROLLO LOCAL DE LOS MÁRTIRES PARA LA APOYAR Y EL ACOMPAÑAMIENTO DE LAS INSTANCIAS DE COORDINACIÓN INTERINSTITUCIONALES E INSTANCIAS DE PARTICIPACIÓN LOCALES, ASÍ COMO EN LA FORMULACIÓN PRE CONTRACTUAL, APOYO A LA SUPERVISIÓN, SEGUIMIENTO AL PLAN DE DESARROLLO LOCAL Y EVALUACIÓN DE PROYECTOS, ASÍ COMO LAS DEMÁS ACTIVIDADES RELACIONADAS CON EL ÁREA DE GESTIÓN DEL DESARROLLO, ADMINISTRATIVO Y FINANZAS DE LA LOCALIDAD DE LOS MÁRTIRES, EN CUMPLIMIE | I45: Inversión | J45: Un Nuevo Contrato Social y Ambiental para la Bogotá del Siglo XXI | K45: 3 | L45: =IF(ISERROR(VLOOKUP(K45,Proposito_programa!$C$2:$E$59,2,FALSE))," ",VLOOKUP(K45,Proposito_programa!$C$2:$E$59,2,FALSE)) -> Movilidad social integral | M45: =IF(ISERROR(VLOOKUP(K45,Proposito_programa!$C$2:$E$59,3,FALSE))," ",VLOOKUP(K45,Proposito_programa!$C$2:$E$59,3,FALSE)) -> Propósito 1: Hacer un nuevo contrato social para incrementar la inclusión social, productiva y política | N45: 133011605570000002099 | O45: 0 | P45: 53051848 | Q45: NELCY ORHUELA HERRERA | R45: Persona Natural | S45: N/A | T45: N/A | U45: N/A | V45: 40800000 | Y45: 0 | Z45: 40800000 | AA45: 40800000 | AB45: 2021-02-11 | AC45: 2021-02-16 | AD45: 2021-10-15 | AE45: 8 MESES | AG45: N/A | AN45: X | AP45: 1
A46: 034-2021 | B46: 2021 | C46: FDLM-CD-034-2021 | D46: https://community.secop.gov.co/Public/Tendering/OpportunityDetail/Index?noticeUID=CO1.NTC.1739555&isFromPublicArea=True&isModal=False | E46: Contratos de prestación de servicios profesionales y de apoyo a la gestión | F46: Contratación directa | G46: Prestación de servicios profesionales y de apoyo a la gestión, o para la ejecución de trabajos artísticos que sólo puedan encomendarse a determinadas personas naturales; | H46: PRESTAR SERVICIOS PROFESIONALES ESPECIALIZADOS PARA GESTIÓN DE LOS ASUNTOS CONCERNIENTES CON LA SEGURIDAD CIUDADANA, CONVIVENCIA Y PREVENCIÓN DE CONFLICTOS, VIOLENCIAS Y DELITOS EN LA LOCALIDAD DE LOS MÁRTIRES, DE CONFORMIDAD CON EL MARCO NORMATIVO APLICABLE EN LA MATERIA. | I46: Inversión | J46: Un Nuevo Contrato Social y Ambiental para la Bogotá del Siglo XXI | K46: 3 | L46: =IF(ISERROR(VLOOKUP(K46,Proposito_programa!$C$2:$E$59,2,FALSE))," ",VLOOKUP(K46,Proposito_programa!$C$2:$E$59,2,FALSE)) -> Movilidad social integral | M46: =IF(ISERROR(VLOOKUP(K46,Proposito_programa!$C$2:$E$59,3,FALSE))," ",VLOOKUP(K46,Proposito_programa!$C$2:$E$59,3,FALSE)) -> Propósito 1: Hacer un nuevo contrato social para incrementar la inclusión social, productiva y política | N46: 133011605570000002099 | O46: 0 | P46: 80577593 | Q46: JAIRO CARDENAS SILVA | R46: Persona Natural | S46: N/A | T46: N/A | U46: N/A | V46: 64000000 | Z46: 64000000 | AA46: 86133333 | AB46: 2021-02-06 | AC46: 2021-02-08 | AD46: 2021-12-30 | AE46: 8 MESES | AF46: 1 | AG46: 2 MESES | AN46: X | AP46: 1.345833328
A47: 035-2021 | B47: 2021 | C47: FDLM-CD-035-2021 | D47: https://community.secop.gov.co/Public/Tendering/OpportunityDetail/Index?noticeUID=CO1.NTC.1739607&isFromPublicArea=True&isModal=False | E47: Contratos de prestación de servicios profesionales y de apoyo a la gestión | F47: Contratación directa | G47: Prestación de servicios profesionales y de apoyo a la gestión, o para la ejecución de trabajos artísticos que sólo puedan encomendarse a determinadas personas naturales; | H47: PRESTAR SUS SERVICIOS PARA APOYAR TÉCNICAMENTE AL ÁREA DE GESTIÓN DE DESARROLLO LOCAL DE LA ALCALDÍA LOCAL DE LOS MÁRTIRES | I47: Inversión | J47: Un Nuevo Contrato Social y Ambiental para la Bogotá del Siglo XXI | K47: 3 | L47: =IF(ISERROR(VLOOKUP(K47,Proposito_programa!$C$2:$E$59,2,FALSE))," ",VLOOKUP(K47,Proposito_programa!$C$2:$E$59,2,FALSE)) -> Movilidad social integral | M47: =IF(ISERROR(VLOOKUP(K47,Proposito_programa!$C$2:$E$59,3,FALSE))," ",VLOOKUP(K47,Proposito_programa!$C$2:$E$59,3,FALSE)) -> Propósito 1: Hacer un nuevo contrato social para incrementar la inclusión social, productiva y política | N47: 133011605570000002099 | O47: 0 | P47: 19396517 | Q47: HECTOR ALFONSO DELGADO RODRIGUEZ | R47: Persona Natural | S47: N/A | T47: N/A | U47: N/A | V47: 26680000 | Y47: 0 | Z47: 26680000 | AA47: 26680000 | AB47: 2021-02-08 | AC47: 2021-02-10 | AD47: 2021-10-09 | AE47: 8 MESES | AG47: N/A | AN47: X | AP47: 1
A48: 036-2021 | B48: 2021 | C48: FDLM-CD-036-2021 | D48: https://community.secop.gov.co/Public/Tendering/OpportunityDetail/Index?noticeUID=CO1.NTC.1739120&isFromPublicArea=True&isModal=False | E48: Contratos de prestación de servicios profesionales y de apoyo a la gestión | F48: Contratación directa | G48: Prestación de servicios profesionales y de apoyo a la gestión, o para la ejecución de trabajos artísticos que sólo puedan encomendarse a determinadas personas naturales; | H48: PRESTAR LOS SERVICIOS DE APOYO A LA GESTIÓN PARA EL PROCESO DE RADICACIÓN, NOTIFICACIÓN Y ENTREGA DE LA CORRESPONDENCIA INTERNA Y EXTERNA DE LA ALCALDÍA LOCAL DE LOS MÁRTIRES. | I48: Inversión | J48: Un Nuevo Contrato Social y Ambiental para la Bogotá del Siglo XXI | K48: 3 | L48: =IF(ISERROR(VLOOKUP(K48,Proposito_programa!$C$2:$E$59,2,FALSE))," ",VLOOKUP(K48,Proposito_programa!$C$2:$E$59,2,FALSE)) -> Movilidad social integral | M48: =IF(ISERROR(VLOOKUP(K48,Proposito_programa!$C$2:$E$59,3,FALSE))," ",VLOOKUP(K48,Proposito_programa!$C$2:$E$59,3,FALSE)) -> Propósito 1: Hacer un nuevo contrato social para incrementar la inclusión social, productiva y política | N48: 133011605570000002099 | O48: 0 | P48: 79611892 | Q48: JAVIER CRUZ VALBUENA | R48: Persona Natural | S48: N/A | T48: N/A | U48: N/A | V48: 18960000 | Y48: 0 | Z48: 18960000 | AA48: 18960000 | AB48: 2021-02-06 | AC48: 2021-02-09 | AD48: 2021-10-08 | AE48: 8 MESES | AG48: N/A | AN48: X | AP48: 1
A49: 037-2021 | B49: 2021 | C49: FDLM-CD-037-2021 | D49: https://community.secop.gov.co/Public/Tendering/OpportunityDetail/Index?noticeUID=CO1.NTC.1740891&isFromPublicArea=True&isModal=False | E49: Contratos de prestación de servicios profesionales y de apoyo a la gestión | F49: Contratación directa | G49: Prestación de servicios profesionales y de apoyo a la gestión, o para la ejecución de trabajos artísticos que sólo puedan encomendarse a determinadas personas naturales; | H49: APOYAR AL EQUIPO DE PRENSA Y COMUNICACIONES DE LA ALCALDÍA LOCAL EN LA REALIZACIÓN DE PRODUCTOS Y PIEZAS DIGITALES, IMPRESAS Y PUBLICITARIAS DE GRAN FORMATO Y DE ANIMACIÓN GRÁFICA, ASÍ COMO APOYAR LA PRODUCCIÓN Y MONTAJE DE EVENTOS | I49: Inversión | J49: Un Nuevo Contrato Social y Ambiental para la Bogotá del Siglo XXI | K49: 3 | L49: =IF(ISERROR(VLOOKUP(K49,Proposito_programa!$C$2:$E$59,2,FALSE))," ",VLOOKUP(K49,Proposito_programa!$C$2:$E$59,2,FALSE)) -> Movilidad social integral | M49: =IF(ISERROR(VLOOKUP(K49,Proposito_programa!$C$2:$E$59,3,FALSE))," ",VLOOKUP(K49,Proposito_programa!$C$2:$E$59,3,FALSE)) -> Propósito 1: Hacer un nuevo contrato social para incrementar la inclusión social, productiva y política | N49: 133011605570000002099 | O49: 0 | P49: 1026283071 | Q49: JUAN FELIPE BOCANEGRA LEON | R49: Persona Natural | S49: N/A | T49: N/A | U49: N/A | V49: 34800000 | Y49: 0 | Z49: 34800000 | AA49: 34800000 | AB49: 2021-02-08 | AC49: 2021-02-09 | AD49: 2021-10-08 | AE49: 8 MESES | AG49: N/A | AN49: X | AP49: 1
A50: 038-2021 | B50: 2021 | C50: FDLM-CD-038-2021 | D50: https://community.secop.gov.co/Public/Tendering/OpportunityDetail/Index?noticeUID=CO1.NTC.1757820&isFromPublicArea=True&isModal=False | E50: Contratos de prestación de servicios profesionales y de apoyo a la gestión | F50: Contratación directa | G50: Prestación de servicios profesionales y de apoyo a la gestión, o para la ejecución de trabajos artísticos que sólo puedan encomendarse a determinadas personas naturales; | H50: PRESTAR LOS SERVICIOS PROFESIONALES ADMINISTRATIVOS AL FONDO DE DESARROLLO LOCAL DE LA LOCALIDAD DE LOS MÁRTIRES | I50: Inversión | J50: Un Nuevo Contrato Social y Ambiental para la Bogotá del Siglo XXI | K50: 3 | L50: =IF(ISERROR(VLOOKUP(K50,Proposito_programa!$C$2:$E$59,2,FALSE))," ",VLOOKUP(K50,Proposito_programa!$C$2:$E$59,2,FALSE)) -> Movilidad social integral | M50: =IF(ISERROR(VLOOKUP(K50,Proposito_programa!$C$2:$E$59,3,FALSE))," ",VLOOKUP(K50,Proposito_programa!$C$2:$E$59,3,FALSE)) -> Propósito 1: Hacer un nuevo contrato social para incrementar la inclusión social, productiva y política | N50: 133011605570000002099 | O50: 0 | P50: 1012399674 | Q50: GINNA LIZETH SERNA GARCIA | R50: Persona Natural | S50: N/A | T50: N/A | U50: N/A | V50: 34888000 | Y50: 0 | Z50: 34888000 | AA50: 34888000 | AB50: 2021-02-11 | AC50: 2021-02-15 | AD50: 2021-10-14 | AE50: 8 MESES | AG50: N/A | AN50: X | AP50: 1
A51: 039-2021 | B51: 2021 | C51: FDLM-CD-039-2021 | D51: https://community.secop.gov.co/Public/Tendering/OpportunityDetail/Index?noticeUID=CO1.NTC.1749700&isFromPublicArea=True&isModal=False | E51: Contratos de prestación de servicios profesionales y de apoyo a la gestión | F51: Contratación directa | G51: Prestación de servicios profesionales y de apoyo a la gestión, o para la ejecución de trabajos artísticos que sólo puedan encomendarse a determinadas personas naturales; | H51: PRESTAR SERVICIOS PROFESIONALES COMO ENLACE INTERINSTITUCIONAL EN TEMAS DE GESTIÓN DE RIESGO Y AGLOMERACIONES, A CARGO DE LA LOCALIDAD DE LOS MÁRTIRES DE CONFORMIDAD CON EL MARCO NORMATIVO APLICABLE PARA LA MATERIA. | I51: Inversión | J51: Un Nuevo Contrato Social y Ambiental para la Bogotá del Siglo XXI | K51: 3 | L51: =IF(ISERROR(VLOOKUP(K51,Proposito_programa!$C$2:$E$59,2,FALSE))," ",VLOOKUP(K51,Proposito_programa!$C$2:$E$59,2,FALSE)) -> Movilidad social integral | M51: =IF(ISERROR(VLOOKUP(K51,Proposito_programa!$C$2:$E$59,3,FALSE))," ",VLOOKUP(K51,Proposito_programa!$C$2:$E$59,3,FALSE)) -> Propósito 1: Hacer un nuevo contrato social para incrementar la inclusión social, productiva y política | N51: 133011605570000002099 | O51: 0 | P51: 79967824 | Q51: VICTOR FERNANDO ENCISO CONTRERAS | R51: Persona Natural | S51: N/A | T51: N/A | U51: N/A | V51: 42128000 | Y51: 0 | Z51: 42128000 | AA51: 42128000 | AB51: 2021-02-10 | AC51: 2021-02-17 | AD51: 2021-10-16 | AE51: 8 MESES | AG51: N/A | AN51: X | AP51: 1
A52: 040-2021 | B52: 2021 | C52: FDLM-CD-040-2021 | D52: https://community.secop.gov.co/Public/Tendering/OpportunityDetail/Index?noticeUID=CO1.NTC.1746898&isFromPublicArea=True&isModal=False | E52: Contratos de prestación de servicios profesionales y de apoyo a la gestión | F52: Contratación directa | G52: Prestación de servicios profesionales y de apoyo a la gestión, o para la ejecución de trabajos artísticos que sólo puedan encomendarse a determinadas personas naturales; | H52: APOYAR LA FORMULACIÓN, GESTIÓN Y SEGUIMIENTO DE ACTIVIDADES ENFOCADAS A LA GESTIÓN AMBIENTAL EXTERNA, ENCAMINADAS A LA MITIGACIÓN DE LOS DIFERENTES IMPACTOS AMBIENTALES Y LA CONSERVACIÓN DE LOS RECURSOS NATURALES DE LA LOCALIDAD. | I52: Inversión | J52: Un Nuevo Contrato Social y Ambiental para la Bogotá del Siglo XXI | K52: 3 | L52: =IF(ISERROR(VLOOKUP(K52,Proposito_programa!$C$2:$E$59,2,FALSE))," ",VLOOKUP(K52,Proposito_programa!$C$2:$E$59,2,FALSE)) -> Movilidad social integral | M52: =IF(ISERROR(VLOOKUP(K52,Proposito_programa!$C$2:$E$59,3,FALSE))," ",VLOOKUP(K52,Proposito_programa!$C$2:$E$59,3,FALSE)) -> Propósito 1: Hacer un nuevo contrato social para incrementar la inclusión social, productiva y política | N52: 133011605570000002099 | O52: 0 | P52: 1019115093 | Q52: WILLINTON ALDEMAR TOLOSA ALBA | R52: Persona Natural | S52: N/A | T52: N/A | U52: N/A | V52: 39200000 | Y52: 0 | Z52: 39200000 | AA52: 39200000 | AB52: 2021-02-09 | AC52: 2021-02-10 | AD52: 2021-10-09 | AE52: 8 MESES | AG52: N/A | AN52: X | AP52: 1
A53: 041-2021 | B53: 2021 | C53: FDLM-CD-041-2021 | D53: https://community.secop.gov.co/Public/Tendering/OpportunityDetail/Index?noticeUID=CO1.NTC.1756860&isFromPublicArea=True&isModal=False | E53: Contratos de prestación de servicios profesionales y de apoyo a la gestión | F53: Contratación directa | G53: Prestación de servicios profesionales y de apoyo a la gestión, o para la ejecución de trabajos artísticos que sólo puedan encomendarse a determinadas personas naturales; | H53: PRESTAR SUS SERVICIOS DE APOYO ASISTENCIAL PARA CON EL DESPACHO DE LA LOCAL DE LOS MÁRTIRES, ESPECIALMENTE EN DISTRIBUCIÓN Y CUSTODIA DE LA CORRESPONDENCIA, ATENCIÓN TELEFÓNICA Y FOTOCOPIADO DE DOCUMENTOS. | I53: Inversión | J53: Un Nuevo Contrato Social y Ambiental para la Bogotá del Siglo XXI | K53: 3 | L53: =IF(ISERROR(VLOOKUP(K53,Proposito_programa!$C$2:$E$59,2,FALSE))," ",VLOOKUP(K53,Proposito_programa!$C$2:$E$59,2,FALSE)) -> Movilidad social integral | M53: =IF(ISERROR(VLOOKUP(K53,Proposito_programa!$C$2:$E$59,3,FALSE))," ",VLOOKUP(K53,Proposito_programa!$C$2:$E$59,3,FALSE)) -> Propósito 1: Hacer un nuevo contrato social para incrementar la inclusión social, productiva y política | N53: 133011605570000002099 | O53: 0 | P53: 52456192 | Q53: PATRICIA BUCURU MORALES | R53: Persona Natural | S53: N/A | T53: N/A | U53: N/A | V53: 19680000 | Y53: 0 | Z53: 19680000 | AA53: 19680000 | AB53: 2021-02-12 | AC53: 2021-02-15 | AD53: 2021-10-14 | AE53: 8 MESES | AG53: N/A | AN53: X | AP53: 1
A54: 042-2021 | B54: 2021 | C54: FDLM-CD-042-2021 | D54: https://community.secop.gov.co/Public/Tendering/OpportunityDetail/Index?noticeUID=CO1.NTC.1758434&isFromPublicArea=True&isModal=False | E54: Contratos de prestación de servicios profesionales y de apoyo a la gestión | F54: Contratación directa | G54: Prestación de servicios profesionales y de apoyo a la gestión, o para la ejecución de trabajos artísticos que sólo puedan encomendarse a determinadas personas naturales; | H54: APOYAR JURÍDICAMENTE LA EJECUCIÓN DE LAS ACCIONES REQUERIDAS PARA LA DEPURACIÓN DE LAS ACTUACIONES ADMINISTRATIVAS QUE CURSAN EN LA ALCALDÍA LOCAL. | I54: Inversión | J54: Un Nuevo Contrato Social y Ambiental para la Bogotá del Siglo XXI | K54: 3 | L54: =IF(ISERROR(VLOOKUP(K54,Proposito_programa!$C$2:$E$59,2,FALSE))," ",VLOOKUP(K54,Proposito_programa!$C$2:$E$59,2,FALSE)) -> Movilidad social integral | M54: =IF(ISERROR(VLOOKUP(K54,Proposito_programa!$C$2:$E$59,3,FALSE))," ",VLOOKUP(K54,Proposito_programa!$C$2:$E$59,3,FALSE)) -> Propósito 1: Hacer un nuevo contrato social para incrementar la inclusión social, productiva y política | N54: 133011605570000002099 | O54: 0 | P54: 1026274713 | Q54: RICARDO ERNESTO SANCHEZ MENESES | R54: Persona Natural | S54: N/A | T54: N/A | U54: N/A | V54: 29490000 | Y54: 0 | Z54: 29490000 | AA54: 29490000 | AB54: 2021-02-11 | AC54: 2021-02-16 | AD54: 2021-08-15 | AE54: 6 MESES | AG54: N/A | AN54: X | AP54: 1
A55: 043-2021 | B55: 2021 | C55: FDLM-CD-043-2021 | D55: https://community.secop.gov.co/Public/Tendering/OpportunityDetail/Index?noticeUID=CO1.NTC.1751649&isFromPublicArea=True&isModal=False | E55: Contratos de prestación de servicios profesionales y de apoyo a la gestión | F55: Contratación directa | G55: Prestación de servicios profesionales y de apoyo a la gestión, o para la ejecución de trabajos artísticos que sólo puedan encomendarse a determinadas personas naturales; | H55: PRESTAR LOS SERVICIOS PROFESIONALES DE ABOGADO AL ÁREA DE GESTIÓN POLICIVA Y JURÍDICA DE LA LOCALIDAD DE LOS MÁRTIRES, PARA EL SEGUIMIENTO AL COBRO COACTIVO, PERSUASIVO, INFORMES MENSUALES DE SIVICOF, MANEJO DEL SISTEMA SICO Y RESPUESTA A LOS DERECHOS DE PETICIÓN Y TUTELAS QUE LE SEAN ASIGNADOS. | I55: Inversión | J55: Un Nuevo Contrato Social y Ambiental para la Bogotá del Siglo XXI | K55: 3 | L55: =IF(ISERROR(VLOOKUP(K55,Proposito_programa!$C$2:$E$59,2,FALSE))," ",VLOOKUP(K55,Proposito_programa!$C$2:$E$59,2,FALSE)) -> Movilidad social integral | M55: =IF(ISERROR(VLOOKUP(K55,Proposito_programa!$C$2:$E$59,3,FALSE))," ",VLOOKUP(K55,Proposito_programa!$C$2:$E$59,3,FALSE)) -> Propósito 1: Hacer un nuevo contrato social para incrementar la inclusión social, productiva y política | N55: 133011605570000002099 | O55: 0 | P55: 53115231 | Q55: LAURA JANNETH RICO BELTRAN | R55: Persona Natural | S55: N/A | T55: N/A | U55: N/A | V55: 39200000 | Y55: 0 | Z55: 39200000 | AA55: 39200000 | AB55: 2021-02-10 | AC55: 2021-02-11 | AD55: 2021-10-10 | AE55: 8 MESES | AG55: N/A | AN55: X | AP55: 1
A56: 044-2021 | B56: 2021 | C56: FDLM-CD-044-2021 | D56: Presentación de oferta https://community.secop.gov.co/Public/Tendering/OpportunityDetail/Index?noticeUID=CO1.NTC.1749952&isFromPublicArea=True&isModal=False | E56: Contratos de prestación de servicios profesionales y de apoyo a la gestión | F56: Contratación directa | G56: Prestación de servicios profesionales y de apoyo a la gestión, o para la ejecución de trabajos artísticos que sólo puedan encomendarse a determinadas personas naturales; | H56: PRESTAR LOS SERVICIOS TÉCNICOS DE APOYO AL DESPACHO DE LA ALCALDÍA LOCAL DE LOS MÁRTIRES, ESPECIALMENTE ASISTENCIA A REUNIONES, ELABORACIÓN DE LAS ACTAS QUE CORRESPONDAN, COORDINACIÓN DE LA AGENDA, CONTROL Y SEGUIMIENTO DE DOCUMENTOS, | I56: Inversión | J56: Un Nuevo Contrato Social y Ambiental para la Bogotá del Siglo XXI | K56: 3 | L56: =IF(ISERROR(VLOOKUP(K56,Proposito_programa!$C$2:$E$59,2,FALSE))," ",VLOOKUP(K56,Proposito_programa!$C$2:$E$59,2,FALSE)) -> Movilidad social integral | M56: =IF(ISERROR(VLOOKUP(K56,Proposito_programa!$C$2:$E$59,3,FALSE))," ",VLOOKUP(K56,Proposito_programa!$C$2:$E$59,3,FALSE)) -> Propósito 1: Hacer un nuevo contrato social para incrementar la inclusión social, productiva y política | N56: 133011605570000002099 | O56: 0 | P56: 52118985 | Q56: MARTHA INES BERNAL ALVAREZ | R56: Persona Natural | S56: N/A | T56: N/A | U56: N/A | V56: 26680000 | Y56: 0 | Z56: 26680000 | AA56: 26680000 | AB56: 2021-02-09 | AC56: 2021-02-11 | AD56: 2021-10-10 | AE56: 8 MESES | AG56: N/A | AN56: X | AP56: 1
A57: 045-2021 | B57: 2021 | C57: FDLM-CD-045-2021 | D57: https://community.secop.gov.co/Public/Tendering/OpportunityDetail/Index?noticeUID=CO1.NTC.1750017&isFromPublicArea=True&isModal=False | E57: Contratos de prestación de servicios profesionales y de apoyo a la gestión | F57: Contratación directa | G57: Prestación de servicios profesionales y de apoyo a la gestión, o para la ejecución de trabajos artísticos que sólo puedan encomendarse a determinadas personas naturales; | H57: PRESTAR LOS SERVICIOS DE APOYO A GESTIÓN EN LAS DIFERENTES LABORES ADMINISTRATIVAS QUE SURJAN DE LAS ACTIVIDADES DE LA JUNTA ADMINISTRADORA LOCAL DE LOS MÁRTIRES | I57: Inversión | J57: Un Nuevo Contrato Social y Ambiental para la Bogotá del Siglo XXI | K57: 3 | L57: =IF(ISERROR(VLOOKUP(K57,Proposito_programa!$C$2:$E$59,2,FALSE))," ",VLOOKUP(K57,Proposito_programa!$C$2:$E$59,2,FALSE)) -> Movilidad social integral | M57: =IF(ISERROR(VLOOKUP(K57,Proposito_programa!$C$2:$E$59,3,FALSE))," ",VLOOKUP(K57,Proposito_programa!$C$2:$E$59,3,FALSE)) -> Propósito 1: Hacer un nuevo contrato social para incrementar la inclusión social, productiva y política | N57: 133011605570000002099 | O57: 0 | P57: 51880973 | Q57: ARIS SEDITH CABARCAS MARTINEZ | R57: Persona Natural | S57: N/A | T57: N/A | U57: N/A | V57: 18960000 | Y57: 0 | Z57: 18960000 | AA57: 18960000 | AB57: 2021-02-10 | AC57: 2021-02-10 | AD57: 2021-10-09 | AE57: 8 MESES | AG57: N/A | AN57: X | AP57: 1
A58: 046-2021 | B58: 2021 | C58: FDLM-CD-046-2021 | D58: https://community.secop.gov.co/Public/Tendering/OpportunityDetail/Index?noticeUID=CO1.NTC.1759107&isFromPublicArea=True&isModal=False | E58: Contratos de prestación de servicios profesionales y de apoyo a la gestión | F58: Contratación directa | G58: Prestación de servicios profesionales y de apoyo a la gestión, o para la ejecución de trabajos artísticos que sólo puedan encomendarse a determinadas personas naturales; | H58: APOYAR AL EQUIPO DE PRENSA Y COMUNICACIONES DE LA ALCALDÍA LOCAL EN LA CREACIÓN, REALIZACIÓN, PRODUCCIÓN Y EDICIÓN DE VÍDEOS, ASÍ COMO EL REGISTRO, EDICIÓN Y LA PRESENTACIÓN DE FOTOGRAFÍAS DE LOS ACONTECIMIENTOS, HECHOS Y EVENTOS EXTERNOS E INTERNOS DE LA ALCALDÍA LOCAL, PARA SER UTILIZADOS COMO INSUMOS DE COMUNICACIÓN EN LOS MEDIOS, ESPECIALMENTE ESCRITOS, DIGITALES Y AUDIOVISUALES. | I58: Inversión | J58: Un Nuevo Contrato Social y Ambiental para la Bogotá del Siglo XXI | K58: 3 | L58: =IF(ISERROR(VLOOKUP(K58,Proposito_programa!$C$2:$E$59,2,FALSE))," ",VLOOKUP(K58,Proposito_programa!$C$2:$E$59,2,FALSE)) -> Movilidad social integral | M58: =IF(ISERROR(VLOOKUP(K58,Proposito_programa!$C$2:$E$59,3,FALSE))," ",VLOOKUP(K58,Proposito_programa!$C$2:$E$59,3,FALSE)) -> Propósito 1: Hacer un nuevo contrato social para incrementar la inclusión social, productiva y política | N58: 133011605570000002099 | O58: 0 | P58: 1015433078 | Q58: NATALIA STEPHANY DURAN CAMARGO | R58: Persona Natural | S58: N/A | T58: N/A | U58: N/A | V58: 34800000 | X58: 1 | Y58: 10875000 | Z58: 45675000 | AA58: 34600000 | AB58: 2021-02-11 | AC58: 2021-02-16 | AD58: 2021-12-31 | AE58: 8 MESES | AF58: 2 | AG58: 2 MESES Y 16 DIAS | AN58: X | AP58: 0.7575259989
A59: 047-2021 | B59: 2021 | C59: FDLM-CD-047-2021 | D59: https://community.secop.gov.co/Public/Tendering/OpportunityDetail/Index?noticeUID=CO1.NTC.1753330&isFromPublicArea=True&isModal=False | E59: Contratos de prestación de servicios profesionales y de apoyo a la gestión | F59: Contratación directa | G59: Prestación de servicios profesionales y de apoyo a la gestión, o para la ejecución de trabajos artísticos que sólo puedan encomendarse a determinadas personas naturales; | H59: PRESTAR SUS SERVICIOS PROFESIONALES PARA LA FORMULACIÓN PRE CONTRACTUAL PARTICIPATIVA, APOYO A LA SUPERVISIÓN, SEGUIMIENTO, ACOMPAÑAMIENTO, ATENCIÓN Y EVALUACIÓN DE LOS PROYECTOS E INSTANCIAS DE ARTICULACIÓN INTERINSTITUCIONAL Y PARTICIPACIÓN LOCAL ASIGNADAS, ASÍ COMO LAS DEMÁS ACTIVIDADES RELACIONADAS CON EL ÁREA DE PLANEACIÓN Y PARTICIPACIÓN DE LA LOCALIDAD DE LOS MÁRTIRES, EN CUMPLIMIENTO DEL PLAN DE DESARROLLO LOCAL VIGENTE. | I59: Inversión | J59: Un Nuevo Contrato Social y Ambiental para la Bogotá del Siglo XXI | K59: 3 | L59: =IF(ISERROR(VLOOKUP(K59,Proposito_programa!$C$2:$E$59,2,FALSE))," ",VLOOKUP(K59,Proposito_programa!$C$2:$E$59,2,FALSE)) -> Movilidad social integral | M59: =IF(ISERROR(VLOOKUP(K59,Proposito_programa!$C$2:$E$59,3,FALSE))," ",VLOOKUP(K59,Proposito_programa!$C$2:$E$59,3,FALSE)) -> Propósito 1: Hacer un nuevo contrato social para incrementar la inclusión social, productiva y política | N59: 133011605570000002099 | O59: 0 | P59: 1013591512 | Q59: SERGIO NARAYAN JIUSEPPE ARMANDO BERNAL RUIZ | R59: Persona Natural | S59: N/A | T59: N/A | U59: N/A | V59: 44000000 | Y59: 0 | Z59: 44000000 | AA59: 44000000 | AB59: 2021-02-11 | AC59: 2021-02-15 | AD59: 2021-10-14 | AE59: 8 MESES | AG59: N/A | AN59: X | AP59: 1
A60: 048-2021 | B60: 2021 | C60: FDLM-CD-048-2021 | D60: https://community.secop.gov.co/Public/Tendering/OpportunityDetail/Index?noticeUID=CO1.NTC.1754341&isFromPublicArea=True&isModal=False | E60: Contratos de prestación de servicios profesionales y de apoyo a la gestión | F60: Contratación directa | G60: Prestación de servicios profesionales y de apoyo a la gestión, o para la ejecución de trabajos artísticos que sólo puedan encomendarse a determinadas personas naturales; | H60: PRESTAR SUS SERVICIOS PROFESIONALES PARA LA FORMULACIÓN PRE CONTRACTUAL PARTICIPATIVA, APOYO A LA SUPERVISIÓN, SEGUIMIENTO, ACOMPAÑAMIENTO, ATENCIÓN Y EVALUACIÓN DE LOS PROYECTOS E INSTANCIAS DE ARTICULACIÓN INTERINSTITUCIONAL Y PARTICIPACIÓN LOCAL ASIGNADAS, ASÍ COMO LAS DEMÁS ACTIVIDADES RELACIONADAS CON EL ÁREA DE PLANEACIÓN Y PARTICIPACIÓN DE LA LOCALIDAD DE LOS MÁRTIRES, EN CUMPLIMIENTO DEL PLAN DE DESARROLLO LOCAL VIGENTE | I60: Inversión | J60: Un Nuevo Contrato Social y Ambiental para la Bogotá del Siglo XXI | K60: 3 | L60: =IF(ISERROR(VLOOKUP(K60,Proposito_programa!$C$2:$E$59,2,FALSE))," ",VLOOKUP(K60,Proposito_programa!$C$2:$E$59,2,FALSE)) -> Movilidad social integral | M60: =IF(ISERROR(VLOOKUP(K60,Proposito_programa!$C$2:$E$59,3,FALSE))," ",VLOOKUP(K60,Proposito_programa!$C$2:$E$59,3,FALSE)) -> Propósito 1: Hacer un nuevo contrato social para incrementar la inclusión social, productiva y política | N60: 133011605570000002099 | O60: 0 | P60: 1032366275 | Q60: LILIANA PARDO MONTENEGRO | R60: Persona Natural | S60: N/A | T60: N/A | U60: N/A | V60: 44000000 | Y60: 0 | Z60: 44000000 | AA60: 44000000 | AB60: 2021-02-10 | AC60: 2021-02-15 | AD60: 2021-10-14 | AE60: 8 MESES | AG60: N/A | AN60: X | AP60: 1
A61: 049-2021 | B61: 2021 | C61: FDLM-CD-049-2021 | D61: https://community.secop.gov.co/Public/Tendering/OpportunityDetail/Index?noticeUID=CO1.NTC.1756103&isFromPublicArea=True&isModal=False | E61: Contratos de prestación de servicios profesionales y de apoyo a la gestión | F61: Contratación directa | G61: Prestación de servicios profesionales y de apoyo a la gestión, o para la ejecución de trabajos artísticos que sólo puedan encomendarse a determinadas personas naturales; | H61: PRESTAR SUS SERVICIOS PROFESIONALES PARA LA FORMULACIÓN PRE CONTRACTUAL PARTICIPATIVA, APOYO A LA SUPERVISIÓN, SEGUIMIENTO, ACOMPAÑAMIENTO, ATENCIÓN Y EVALUACIÓN DE LOS PROYECTOS E INSTANCIAS DE ARTICULACIÓN INTERINSTITUCIONAL Y PARTICIPACIÓN LOCAL ASIGNADAS, ASÍ COMO LAS DEMÁS ACTIVIDADES RELACIONADAS CON EL ÁREA DE PLANEACIÓN Y PARTICIPACIÓN DE LA LOCALIDAD DE LOS MÁRTIRES, EN CUMPLIMIENTO DEL PLAN DE DESARROLLO LOCAL VIGENTE. | I61: Inversión | J61: Un Nuevo Contrato Social y Ambiental para la Bogotá del Siglo XXI | K61: 3 | L61: =IF(ISERROR(VLOOKUP(K61,Proposito_programa!$C$2:$E$59,2,FALSE))," ",VLOOKUP(K61,Proposito_programa!$C$2:$E$59,2,FALSE)) -> Movilidad social integral | M61: =IF(ISERROR(VLOOKUP(K61,Proposito_programa!$C$2:$E$59,3,FALSE))," ",VLOOKUP(K61,Proposito_programa!$C$2:$E$59,3,FALSE)) -> Propósito 1: Hacer un nuevo contrato social para incrementar la inclusión social, productiva y política | N61: 133011605570000002099 | O61: 0 | P61: 1019028211 | Q61: LAURA CATALINA MARTINEZ CASTILLO | R61: Persona Natural | S61: N/A | T61: N/A | U61: N/A | V61: 44000000 | Y61: 0 | Z61: 44000000 | AA61: 44000000 | AB61: 2021-02-12 | AC61: 2021-02-15 | AD61: 2021-10-14 | AE61: 8 MESES | AG61: N/A | AN61: X | AP61: 1
A62: 051-2021 | B62: 2021 | C62: FDLM-CD-051-2021 | D62: https://community.secop.gov.co/Public/Tendering/OpportunityDetail/Index?noticeUID=CO1.NTC.1754614&isFromPublicArea=True&isModal=False | E62: Contratos de prestación de servicios profesionales y de apoyo a la gestión | F62: Contratación directa | G62: Prestación de servicios profesionales y de apoyo a la gestión, o para la ejecución de trabajos artísticos que sólo puedan encomendarse a determinadas personas naturales; | H62: PRESTAR LOS SERVICIOS DE APOYO ADMINISTRATIVO AL ÁREA DE GESTIÓN POLICIVA Y JURÍDICA DE LA ALCALDÍA LOCAL DE LOS MÁRTIRES. | I62: Inversión | J62: Un Nuevo Contrato Social y Ambiental para la Bogotá del Siglo XXI | K62: 3 | L62: =IF(ISERROR(VLOOKUP(K62,Proposito_programa!$C$2:$E$59,2,FALSE))," ",VLOOKUP(K62,Proposito_programa!$C$2:$E$59,2,FALSE)) -> Movilidad social integral | M62: =IF(ISERROR(VLOOKUP(K62,Proposito_programa!$C$2:$E$59,3,FALSE))," ",VLOOKUP(K62,Proposito_programa!$C$2:$E$59,3,FALSE)) -> Propósito 1: Hacer un nuevo contrato social para incrementar la inclusión social, productiva y política | N62: 133011605570000002099 | O62: 0 | P62: 79863965 | Q62: FREDY ALONSO SANCHEZ RAMIREZ | R62: Persona Natural | S62: N/A | T62: N/A | U62: N/A | V62: 21040000 | Y62: 0 | Z62: 21040000 | AA62: 876667 | AB62: 2021-02-10 | AC62: 2021-02-12 | AD62: 2021-10-11 | AE62: 8 MESES | AG62: N/A | AN62: X | AP62: 0.04166668251
A63: 052-2021 | B63: 2021 | C63: FDLM-CD-052-2021 | D63: https://community.secop.gov.co/Public/Tendering/OpportunityDetail/Index?noticeUID=CO1.NTC.1754438&isFromPublicArea=True&isModal=False | E63: Contratos de prestación de servicios profesionales y de apoyo a la gestión | F63: Contratación directa | G63: Prestación de servicios profesionales y de apoyo a la gestión, o para la ejecución de trabajos artísticos que sólo puedan encomendarse a determinadas personas naturales; | H63: PRESTAR LOS SERVICIOS DE APOYO ADMINISTRATIVO AL ÁREA DE GESTIÓN POLICIVA Y JURÍDICA DE LA ALCALDÍA LOCAL DE LOS MÁRTIRES. | I63: Inversión | J63: Un Nuevo Contrato Social y Ambiental para la Bogotá del Siglo XXI | K63: 3 | L63: =IF(ISERROR(VLOOKUP(K63,Proposito_programa!$C$2:$E$59,2,FALSE))," ",VLOOKUP(K63,Proposito_programa!$C$2:$E$59,2,FALSE)) -> Movilidad social integral | M63: =IF(ISERROR(VLOOKUP(K63,Proposito_programa!$C$2:$E$59,3,FALSE))," ",VLOOKUP(K63,Proposito_programa!$C$2:$E$59,3,FALSE)) -> Propósito 1: Hacer un nuevo contrato social para incrementar la inclusión social, productiva y política | N63: 133011605570000002099 | O63: 0 | P63: 1121914746 | Q63: GINA PAOLA ALBARRACIN FAJARDO | R63: Persona Natural | S63: N/A | T63: N/A | U63: N/A | V63: 21040000 | Y63: 0 | Z63: 21040000 | AA63: 21040000 | AB63: 2021-02-10 | AC63: 2021-02-12 | AD63: 2021-10-11 | AE63: 8 MESES | AG63: N/A | AN63: X | AP63: 1
A64: 053-2021 | B64: 2021 | C64: FDLM-CD-053-2021 | D64: https://community.secop.gov.co/Public/Tendering/OpportunityDetail/Index?noticeUID=CO1.NTC.1766707&isFromPublicArea=True&isModal=False | E64: Contratos de prestación de servicios profesionales y de apoyo a la gestión | F64: Contratación directa | G64: Prestación de servicios profesionales y de apoyo a la gestión, o para la ejecución de trabajos artísticos que sólo puedan encomendarse a determinadas personas naturales; | H64: APOYAR EL CUBRIMIENTO DE LAS ACTIVIDADES, CRONOGRAMAS Y AGENDA DE LA ALCALDÍA LOCAL A NIVEL INTERNO Y EXTERNO, ASÍ COMO LA GENERACIÓN DE CONTENIDOS PERIODÍSTICOS. | I64: Inversión | J64: Un Nuevo Contrato Social y Ambiental para la Bogotá del Siglo XXI | K64: 3 | L64: =IF(ISERROR(VLOOKUP(K64,Proposito_programa!$C$2:$E$59,2,FALSE))," ",VLOOKUP(K64,Proposito_programa!$C$2:$E$59,2,FALSE)) -> Movilidad social integral | M64: =IF(ISERROR(VLOOKUP(K64,Proposito_programa!$C$2:$E$59,3,FALSE))," ",VLOOKUP(K64,Proposito_programa!$C$2:$E$59,3,FALSE)) -> Propósito 1: Hacer un nuevo contrato social para incrementar la inclusión social, productiva y política | N64: 133011605570000002099 | O64: 0 | P64: 52992926 | Q64: MONICA VARGAS LEON | R64: Persona Natural | S64: N/A | T64: N/A | U64: N/A | V64: 39200000 | Y64: 0 | Z64: 39200000 | AA64: 39200000 | AB64: 2021-02-15 | AC64: 2021-02-19 | AD64: 2021-10-18 | AE64: 8 MESES | AG64: N/A | AN64: X | AP64: 1
A65: 054-2021 | B65: 2021 | C65: FDLM-CD-054-2021 | D65: https://community.secop.gov.co/Public/Tendering/OpportunityDetail/Index?noticeUID=CO1.NTC.1752996&isFromPublicArea=True&isModal=False | E65: Contratos de prestación de servicios profesionales y de apoyo a la gestión | F65: Contratación directa | G65: Prestación de servicios profesionales y de apoyo a la gestión, o para la ejecución de trabajos artísticos que sólo puedan encomendarse a determinadas personas naturales; | H65: APOYAR EL CUBRIMIENTO DE LAS ACTIVIDADES, CRONOGRAMAS Y AGENDA DE LA ALCALDÍA LOCAL A NIVEL INTERNO Y EXTERNO, ASÍ COMO LA GENERACIÓN DE CONTENIDOS PERIODÍSTICOS. | I65: Inversión | J65: Un Nuevo Contrato Social y Ambiental para la Bogotá del Siglo XXI | K65: 3 | L65: =IF(ISERROR(VLOOKUP(K65,Proposito_programa!$C$2:$E$59,2,FALSE))," ",VLOOKUP(K65,Proposito_programa!$C$2:$E$59,2,FALSE)) -> Movilidad social integral | M65: =IF(ISERROR(VLOOKUP(K65,Proposito_programa!$C$2:$E$59,3,FALSE))," ",VLOOKUP(K65,Proposito_programa!$C$2:$E$59,3,FALSE)) -> Propósito 1: Hacer un nuevo contrato social para incrementar la inclusión social, productiva y política | N65: 133011605570000002099 | O65: 0 | P65: 1018469710 | Q65: MARIA ALEJANDRA ARIZA ROBELTO | R65: Persona Natural | S65: N/A | T65: N/A | U65: N/A | V65: 39200000 | Y65: 0 | Z65: 39200000 | AA65: 39200000 | AB65: 2021-02-10 | AC65: 2021-02-11 | AD65: 2021-10-10 | AE65: 8 MESES | AG65: N/A | AN65: X | AP65: 1
A66: 055-2021 | B66: 2021 | C66: FDLM-CD-055-2021 | D66: https://community.secop.gov.co/Public/Tendering/OpportunityDetail/Index?noticeUID=CO1.NTC.1756343&isFromPublicArea=True&isModal=False | E66: Contratos de prestación de servicios profesionales y de apoyo a la gestión | F66: Contratación directa | G66: Prestación de servicios profesionales y de apoyo a la gestión, o para la ejecución de trabajos artísticos que sólo puedan encomendarse a determinadas personas naturales; | H66: PRESTAR LOS SERVICIOS PROFESIONALES COMO ABOGADO PARA APOYAR LAS DIFERENTES ETAPAS CONTRACTUALES, Y DEMÁS LABORES PROPIAS DE LA OFICINA DE CONTRATACIÓN DEL FONDO DE DESARROLLO LOCAL DE LOS MÁRTIRES, | I66: Inversión | J66: Un Nuevo Contrato Social y Ambiental para la Bogotá del Siglo XXI | K66: 3 | L66: =IF(ISERROR(VLOOKUP(K66,Proposito_programa!$C$2:$E$59,2,FALSE))," ",VLOOKUP(K66,Proposito_programa!$C$2:$E$59,2,FALSE)) -> Movilidad social integral | M66: =IF(ISERROR(VLOOKUP(K66,Proposito_programa!$C$2:$E$59,3,FALSE))," ",VLOOKUP(K66,Proposito_programa!$C$2:$E$59,3,FALSE)) -> Propósito 1: Hacer un nuevo contrato social para incrementar la inclusión social, productiva y política | N66: 133011605570000002099 | O66: 0 | P66: 53119341 | Q66: MARIA CAMILA LOPEZ FERNANDEZ | R66: Persona Natural | S66: N/A | T66: N/A | U66: N/A | V66: 48000000 | Y66: 0 | Z66: 48000000 | AA66: 48000000 | AB66: 2021-02-11 | AC66: 2021-02-15 | AD66: 2021-10-14 | AE66: 8 MESES | AG66: N/A | AN66: X | AP66: 1
A67: 057-2021 | B67: 2021 | C67: FDLM-CD-057-2021 | D67: https://community.secop.gov.co/Public/Tendering/OpportunityDetail/Index?noticeUID=CO1.NTC.1766708&isFromPublicArea=True&isModal=False | E67: Contratos de prestación de servicios profesionales y de apoyo a la gestión | F67: Contratación directa | G67: Prestación de servicios profesionales y de apoyo a la gestión, o para la ejecución de trabajos artísticos que sólo puedan encomendarse a determinadas personas naturales; | H67: PRESTAR LOS SERVICIOS DE APOYO A LA GESTIÓN PARA EL PROCESO DE RADICACIÓN, NOTIFICACIÓN Y ENTREGA DE LA CORRESPONDENCIA INTERNA Y EXTERNA DE LA ALCALDÍA LOCAL DE LOS MÁRTIRES. | I67: Inversión | J67: Un Nuevo Contrato Social y Ambiental para la Bogotá del Siglo XXI | K67: 3 | L67: =IF(ISERROR(VLOOKUP(K67,Proposito_programa!$C$2:$E$59,2,FALSE))," ",VLOOKUP(K67,Proposito_programa!$C$2:$E$59,2,FALSE)) -> Movilidad social integral | M67: =IF(ISERROR(VLOOKUP(K67,Proposito_programa!$C$2:$E$59,3,FALSE))," ",VLOOKUP(K67,Proposito_programa!$C$2:$E$59,3,FALSE)) -> Propósito 1: Hacer un nuevo contrato social para incrementar la inclusión social, productiva y política | N67: 133011605570000002099 | O67: 0 | P67: 80927834 | Q67: PEDRO DAVID GALEANO MARTINEZ | R67: Persona Natural | S67: N/A | T67: N/A | U67: N/A | V67: 18960000 | Y67: 0 | Z67: 18960000 | AA67: 18960000 | AB67: 2021-02-15 | AC67: 2021-02-24 | AD67: 2021-10-23 | AE67: 8 MESES | AG67: N/A | AN67: X | AP67: 1
A68: 058-2021 | B68: 2021 | C68: FDLM-CD-058-2021 | D68: Abajo puede ver el enlace para cada fase del procedimiento. Nota: Para compartir el enlace, hay que seleccionarlo, copiar y después pegar en la herramienta donde va a transmitir la información. Presentación de oferta https://community.secop.gov.co/Public/Tendering/OpportunityDetail/Index?noticeUID=CO1.NTC.1773427&isFromPublicArea=True&isModal=False | E68: Contratos de prestación de servicios profesionales y de apoyo a la gestión | F68: Contratación directa | G68: Prestación de servicios profesionales y de apoyo a la gestión, o para la ejecución de trabajos artísticos que sólo puedan encomendarse a determinadas personas naturales; | H68: PRESTAR SERVICIOS PROFESIONALES EN LOS PROYECTOS QUE TIENEN POR OBJETO LA CONSTRUCCIÓN, MANTENIMIENTO Y DOTACIÓN DE PARQUES VECINALES Y/O DE BOLSILLO DE LA LOCALIDAD DE LOS MÁRTIRES. | I68: Inversión | J68: Un Nuevo Contrato Social y Ambiental para la Bogotá del Siglo XXI | K68: 3 | L68: =IF(ISERROR(VLOOKUP(K68,Proposito_programa!$C$2:$E$59,2,FALSE))," ",VLOOKUP(K68,Proposito_programa!$C$2:$E$59,2,FALSE)) -> Movilidad social integral | M68: =IF(ISERROR(VLOOKUP(K68,Proposito_programa!$C$2:$E$59,3,FALSE))," ",VLOOKUP(K68,Proposito_programa!$C$2:$E$59,3,FALSE)) -> Propósito 1: Hacer un nuevo contrato social para incrementar la inclusión social, productiva y política | N68: 133011602330000002092 | O68: 0 | P68: 52384481 | Q68: MARYORI PASACHOVA SANCHEZ | R68: Persona Natural | S68: N/A | T68: N/A | U68: N/A | V68: 47680000 | Y68: 0 | Z68: 47680000 | AA68: 47680000 | AB68: 2021-02-17 | AC68: 2021-02-18 | AD68: 2021-10-17 | AE68: 8 MESES | AG68: N/A | AN68: X | AP68: 1
A69: 059-2021 | B69: 2021 | C69: FDLM-059-2021 (56388) | D69: https://community.secop.gov.co/Public/Tendering/OpportunityDetail/Index?noticeUID=CO1.NTC.1882612&isFromPublicArea=True&isModal=False | E69: Contratos de prestación de servicios profesionales y de apoyo a la gestión | F69: Contratación directa | G69: Prestación de servicios profesionales y de apoyo a la gestión, o para la ejecución de trabajos artísticos que sólo puedan encomendarse a determinadas personas naturales; | H69: PRESTAR LOS SERVICIOS PROFESIONALES PARA ADMINISTRAR LA RED DE VOZ Y DATOS Y EL MANEJO DE LA PLATAFORMA INFORMÁTICA DE LAS DIFERENTES DEPENDENCIAS DE LA ENTIDAD. | I69: Inversión | J69: Un Nuevo Contrato Social y Ambiental para la Bogotá del Siglo XXI | K69: 3 | L69: =IF(ISERROR(VLOOKUP(K69,Proposito_programa!$C$2:$E$59,2,FALSE))," ",VLOOKUP(K69,Proposito_programa!$C$2:$E$59,2,FALSE)) -> Movilidad social integral | M69: =IF(ISERROR(VLOOKUP(K69,Proposito_programa!$C$2:$E$59,3,FALSE))," ",VLOOKUP(K69,Proposito_programa!$C$2:$E$59,3,FALSE)) -> Propósito 1: Hacer un nuevo contrato social para incrementar la inclusión social, productiva y política | N69: 133011605570000002099 | O69: 0 | P69: 80166441 | Q69: LUIS MIGUEL LÓPEZ RODRÍGUEZ | R69: Persona Natural | S69: N/A | T69: N/A | U69: N/A | V69: 22120000 | Y69: 0 | Z69: 22120000 | AA69: 22120000 | AB69: 2021-03-30 | AC69: 2021-04-06 | AD69: 2021-08-05 | AE69: 4 MESES | AG69: N/A | AN69: X | AP69: 1
A70: 060-2021 | B70: 2021 | C70: FDLM-CD-060-2021 | D70: https://community.secop.gov.co/Public/Tendering/OpportunityDetail/Index?noticeUID=CO1.NTC.1788695&isFromPublicArea=True&isModal=False | E70: Contratos de prestación de servicios profesionales y de apoyo a la gestión | F70: Contratación directa | G70: Prestación de servicios profesionales y de apoyo a la gestión, o para la ejecución de trabajos artísticos que sólo puedan encomendarse a determinadas personas naturales; | H70: PRESTAR LOS SERVICIOS TÉCNICOS PARA LA OPERACIÓN, SEGUIMIENTO Y CUMPLIMIENTO DE LOS PROCESOS Y PROCEDIMIENTOS DEL SERVICIO SOCIAL APOYOS PARA LA SEGURIDAD ECONÓMICA TIPO C, REQUERIDOS PARA EL OPORTUNO Y ADECUADO REGISTRO, CRUCE Y REPORTE DE LOS DATOS EN EL SISTEMA DE INFORMACIÓN Y REGISTRO DE BENEFICIARIOS, QUE CONTRIBUYAN A LA GARANTÍA DE LOS DERECHOS DE LA POBLACIÓN MAYOR EN EL MARCO DE LA POLÍTICA PÚBLICA SOCIAL PARA EL ENVEJECIMIENTO Y LA VEJEZ EN EL DISTRITO CAPITAL A CARGO DE LA ALCALDÍA. | I70: Inversión | J70: Un Nuevo Contrato Social y Ambiental para la Bogotá del Siglo XXI | K70: 3 | L70: =IF(ISERROR(VLOOKUP(K70,Proposito_programa!$C$2:$E$59,2,FALSE))," ",VLOOKUP(K70,Proposito_programa!$C$2:$E$59,2,FALSE)) -> Movilidad social integral | M70: =IF(ISERROR(VLOOKUP(K70,Proposito_programa!$C$2:$E$59,3,FALSE))," ",VLOOKUP(K70,Proposito_programa!$C$2:$E$59,3,FALSE)) -> Propósito 1: Hacer un nuevo contrato social para incrementar la inclusión social, productiva y política | N70: 133011601010000002068 | O70: 0 | P70: 1026587358 | Q70: CRISTIAN ENRIQUE CARPETA RAMIREZ | R70: Persona Natural | S70: N/A | T70: N/A | U70: N/A | V70: 25600000 | Y70: 0 | Z70: 25600000 | AA70: 25600000 | AB70: 2021-02-22 | AC70: 2021-02-23 | AD70: 2021-10-22 | AE70: 8 MESES | AG70: N/A | AN70: X | AP70: 1
A71: 061-2021 | B71: 2021 | C71: 061-2021 CPS-P (56378) | D71: https://community.secop.gov.co/Public/Tendering/OpportunityDetail/Index?noticeUID=CO1.NTC.1819254&isFromPublicArea=True&isModal=False | E71: Contratos de prestación de servicios profesionales y de apoyo a la gestión | F71: Contratación directa | G71: Prestación de servicios profesionales y de apoyo a la gestión, o para la ejecución de trabajos artísticos que sólo puedan encomendarse a determinadas personas naturales; | H71: PRESTAR LOS SERVICIOS PROFESIONALES PARA LA OPERACIÓN, PRESTACIÓN, SEGUIMIENTO Y CUMPLIMIENTO DE LOS PROCEDIMIENTOS ADMINISTRATIVOS, OPERATIVOS Y PROGRAMÁTICOS DEL SERVICIO SOCIAL APOYO ECONÓMICO TIPO C, QUE CONTRIBUYAN A LA GARANTÍA DE LOS DERECHOS DE LA POBLACIÓN MAYOR EN EL MARCO DE LA POLÍTICA PÚBLICA SOCIAL PARA EL ENVEJECIMIENTO Y LA VEJEZ EN EL DISTRITO CAPITAL A CARGO DE LA ALCALDÍA LOCAL. | I71: Inversión | J71: Un Nuevo Contrato Social y Ambiental para la Bogotá del Siglo XXI | K71: 3 | L71: =IF(ISERROR(VLOOKUP(K71,Proposito_programa!$C$2:$E$59,2,FALSE))," ",VLOOKUP(K71,Proposito_programa!$C$2:$E$59,2,FALSE)) -> Movilidad social integral | M71: =IF(ISERROR(VLOOKUP(K71,Proposito_programa!$C$2:$E$59,3,FALSE))," ",VLOOKUP(K71,Proposito_programa!$C$2:$E$59,3,FALSE)) -> Propósito 1: Hacer un nuevo contrato social para incrementar la inclusión social, productiva y política | N71: 133011601010000002068 | O71: 0 | P71: 1072654515 | Q71: ALEJANDRA JARAMILLO GONZALEZ | R71: Persona Natural | S71: N/A | T71: N/A | U71: N/A | V71: 32000000 | X71: 1 | Y71: 6933333 | Z71: 38933333 | AA71: 38933333 | AB71: 2021-03-05 | AC71: 2021-03-09 | AD71: 2021-12-31 | AE71: 8 MESES | AF71: 1 | AG71: 1 MES Y 23 DIAS | AN71: X | AP71: 1
A72: 062-2021 | B72: 2021 | C72: FDLM-CD-062-2021 | D72: https://community.secop.gov.co/Public/Tendering/OpportunityDetail/Index?noticeUID=CO1.NTC.1784811&isFromPublicArea=True&isModal=False | E72: Contratos de prestación de servicios profesionales y de apoyo a la gestión | F72: Contratación directa | G72: Prestación de servicios profesionales y de apoyo a la gestión, o para la ejecución de trabajos artísticos que sólo puedan encomendarse a determinadas personas naturales; | H72: PRESTAR LOS SERVICIOS PROFESIONALES PARA LA OPERACIÓN, PRESTACIÓN, SEGUIMIENTO Y CUMPLIMIENTO DE LOS PROCEDIMIENTOS ADMINISTRATIVOS, OPERATIVOS Y PROGRAMÁTICOS DEL SERVICIO SOCIAL APOYO ECONÓMICO TIPO C, QUE CONTRIBUYAN A LA GARANTÍA DE LOS DERECHOS DE LA POBLACIÓN MAYOR EN EL MARCO DE LA POLÍTICA PÚBLICA SOCIAL PARA EL ENVEJECIMIENTO Y LA VEJEZ EN EL DISTRITO CAPITAL A CARGO DE LA ALCALDÍA LOCAL. | I72: Inversión | J72: Un Nuevo Contrato Social y Ambiental para la Bogotá del Siglo XXI | K72: 3 | L72: =IF(ISERROR(VLOOKUP(K72,Proposito_programa!$C$2:$E$59,2,FALSE))," ",VLOOKUP(K72,Proposito_programa!$C$2:$E$59,2,FALSE)) -> Movilidad social integral | M72: =IF(ISERROR(VLOOKUP(K72,Proposito_programa!$C$2:$E$59,3,FALSE))," ",VLOOKUP(K72,Proposito_programa!$C$2:$E$59,3,FALSE)) -> Propósito 1: Hacer un nuevo contrato social para incrementar la inclusión social, productiva y política | N72: 133011601010000002068 | O72: 0 | P72: 1032385912 | Q72: CINDY JULIETH NIÑO SABOGAL | R72: Persona Natural | S72: N/A | T72: N/A | U72: N/A | V72: 32000000 | Y72: 0 | Z72: 32000000 | AA72: 32000000 | AB72: 2021-02-22 | AC72: 2021-02-24 | AD72: 2021-10-23 | AE72: 8 MESES | AG72: N/A | AN72: X | AP72: 1
A73: 063-2021 | B73: 2021 | C73: FDLM-CD-063-2021 | D73: https://community.secop.gov.co/Public/Tendering/OpportunityDetail/Index?noticeUID=CO1.NTC.1783117&isFromPublicArea=True&isModal=False | E73: Contratos de prestación de servicios profesionales y de apoyo a la gestión | F73: Contratación directa | G73: Prestación de servicios profesionales y de apoyo a la gestión, o para la ejecución de trabajos artísticos que sólo puedan encomendarse a determinadas personas naturales; | H73: PRESTAR LOS SERVICIOS PROFESIONALES PARA LA OPERACIÓN, PRESTACIÓN, SEGUIMIENTO Y CUMPLIMIENTO DE LOS PROCEDIMIENTOS ADMINISTRATIVOS, OPERATIVOS Y PROGRAMÁTICOS DEL SERVICIO SOCIAL APOYO ECONÓMICO TIPO C, QUE CONTRIBUYAN A LA GARANTÍA DE LOS DERECHOS DE LA POBLACIÓN MAYOR EN EL MARCO DE LA POLÍTICA PÚBLICA SOCIAL PARA EL ENVEJECIMIENTO Y LA VEJEZ EN EL DISTRITO CAPITAL A CARGO DE LA ALCALDÍA LOCAL. | I73: Inversión | J73: Un Nuevo Contrato Social y Ambiental para la Bogotá del Siglo XXI | K73: 3 | L73: =IF(ISERROR(VLOOKUP(K73,Proposito_programa!$C$2:$E$59,2,FALSE))," ",VLOOKUP(K73,Proposito_programa!$C$2:$E$59,2,FALSE)) -> Movilidad social integral | M73: =IF(ISERROR(VLOOKUP(K73,Proposito_programa!$C$2:$E$59,3,FALSE))," ",VLOOKUP(K73,Proposito_programa!$C$2:$E$59,3,FALSE)) -> Propósito 1: Hacer un nuevo contrato social para incrementar la inclusión social, productiva y política | N73: 133011601010000002068 | O73: 0 | P73: 35586873 | Q73: LUZ ESTUARD HURTADO LEMUS | R73: Persona Natural | S73: N/A | T73: N/A | U73: N/A | V73: 32000000 | Y73: 0 | Z73: 32000000 | AA73: 32000000 | AB73: 2021-02-19 | AC73: 2021-02-23 | AD73: 2021-10-22 | AE73: 8 MESES | AG73: N/A | AH73: 1032441350 | AI73: SELENE GUERRERO MEDINA | AJ73: 2021-08-23 | AK73: 32000000 | AN73: X | AP73: 1
A74: 064-2021 | B74: 2021 | C74: FDLM-CD-064-2021 (55191) | D74: https://community.secop.gov.co/Public/Tendering/OpportunityDetail/Index?noticeUID=CO1.NTC.1801504&isFromPublicArea=True&isModal=False | E74: Contratos de prestación de servicios profesionales y de apoyo a la gestión | F74: Contratación directa | G74: Prestación de servicios profesionales y de apoyo a la gestión, o para la ejecución de trabajos artísticos que sólo puedan encomendarse a determinadas personas naturales; | H74: APOYAR JURÍDICAMENTE LA EJECUCIÓN DE LAS ACCIONES REQUERIDAS PARA LA DEPURACIÓN DE LAS ACTUACIONES ADMINISTRATIVAS QUE CURSAN EN LA ALCALDÍA LOCAL. | I74: Inversión | J74: Un Nuevo Contrato Social y Ambiental para la Bogotá del Siglo XXI | K74: 3 | L74: =IF(ISERROR(VLOOKUP(K74,Proposito_programa!$C$2:$E$59,2,FALSE))," ",VLOOKUP(K74,Proposito_programa!$C$2:$E$59,2,FALSE)) -> Movilidad social integral | M74: =IF(ISERROR(VLOOKUP(K74,Proposito_programa!$C$2:$E$59,3,FALSE))," ",VLOOKUP(K74,Proposito_programa!$C$2:$E$59,3,FALSE)) -> Propósito 1: Hacer un nuevo contrato social para incrementar la inclusión social, productiva y política | N74: 133011605570000002099 | O74: 0 | P74: 51744634 | Q74: CLAUDIA PATRICIA LORENZO MEJÍA | R74: Persona Natural | S74: N/A | T74: N/A | U74: N/A | V74: 19660000 | Y74: 0 | Z74: 19660000 | AA74: 19660000 | AB74: 2021-02-25 | AC74: 2021-03-01 | AD74: 2021-06-30 | AE74: 4 MESES | AG74: N/A | AN74: X | AP74: 1
A75: 065-2021 | B75: 2021 | C75: FDLM-CD-065-2021 (56953) | D75: https://community.secop.gov.co/Public/Tendering/OpportunityDetail/Index?noticeUID=CO1.NTC.1801392&isFromPublicArea=True&isModal=False | E75: Contratos de prestación de servicios profesionales y de apoyo a la gestión | F75: Contratación directa | G75: Prestación de servicios profesionales y de apoyo a la gestión, o para la ejecución de trabajos artísticos que sólo puedan encomendarse a determinadas personas naturales; | H75: PRESTAR LOS SERVICIOS PROFESIONALES PARA LIDERAR LOS ASUNTOS REFERENTES AL ESPACIO PÚBLICO, VENDEDORES INFORMALES EN LA LOCALIDAD DE LOS MÁRTIRES Y ACOMPAÑAMIENTO EN OPERATIVOS IVC. | I75: Inversión | J75: Un Nuevo Contrato Social y Ambiental para la Bogotá del Siglo XXI | K75: 3 | L75: =IF(ISERROR(VLOOKUP(K75,Proposito_programa!$C$2:$E$59,2,FALSE))," ",VLOOKUP(K75,Proposito_programa!$C$2:$E$59,2,FALSE)) -> Movilidad social integral | M75: =IF(ISERROR(VLOOKUP(K75,Proposito_programa!$C$2:$E$59,3,FALSE))," ",VLOOKUP(K75,Proposito_programa!$C$2:$E$59,3,FALSE)) -> Propósito 1: Hacer un nuevo contrato social para incrementar la inclusión social, productiva y política | N75: 133011605570000002099 | O75: 0 | P75: 1102807537 | Q75: JOSE MARIA CONDE AREVALO | R75: Persona Natural | S75: N/A | T75: N/A | U75: N/A | V75: 20360000 | X75: 1 | Y75: 10180000 | Z75: 30540000 | AA75: 30540000 | AB75: 2021-02-25 | AC75: 2021-02-26 | AD75: 2021-08-24 | AE75: 4 MESES | AF75: 1 | AG75: 2 MESES | AN75: X | AP75: 1
A76: 066-2021 | B76: 2021 | C76: FDLM-CD-066-2021 | D76: https://community.secop.gov.co/Public/Tendering/OpportunityDetail/Index?noticeUID=CO1.NTC.1789616&isFromPublicArea=True&isModal=False | E76: Contratos de prestación de servicios profesionales y de apoyo a la gestión | F76: Contratación directa | G76: Prestación de servicios profesionales y de apoyo a la gestión, o para la ejecución de trabajos artísticos que sólo puedan encomendarse a determinadas personas naturales; | H76: APOYAR Y DAR SOPORTE TÉCNICO AL ADMINISTRADOR Y USUARIO FINAL DE LA RED DE SISTEMAS Y TECNOLOGÍA E INFORMACIÓN DE LA ALCALDÍA LOCAL. | I76: Inversión | J76: Un Nuevo Contrato Social y Ambiental para la Bogotá del Siglo XXI | K76: 3 | L76: =IF(ISERROR(VLOOKUP(K76,Proposito_programa!$C$2:$E$59,2,FALSE))," ",VLOOKUP(K76,Proposito_programa!$C$2:$E$59,2,FALSE)) -> Movilidad social integral | M76: =IF(ISERROR(VLOOKUP(K76,Proposito_programa!$C$2:$E$59,3,FALSE))," ",VLOOKUP(K76,Proposito_programa!$C$2:$E$59,3,FALSE)) -> Propósito 1: Hacer un nuevo contrato social para incrementar la inclusión social, productiva y política | N76: 133011605570000002099 | O76: 0 | P76: 79595741 | Q76: ALEJANDRO VELASQUEZ LARA | R76: Persona Natural | S76: N/A | T76: N/A | U76: N/A | V76: 13340000 | Y76: 0 | Z76: 13340000 | AA76: 13340000 | AB76: 2021-02-23 | AC76: 2021-02-25 | AD76: 2021-06-24 | AE76: 4 MESES | AG76: N/A | AN76: X | AP76: 1
A77: 067-2021 | B77: 2021 | C77: 067-2021 CPS-P (56947) | D77: https://community.secop.gov.co/Public/Tendering/OpportunityDetail/Index?noticeUID=CO1.NTC.1819235&isFromPublicArea=True&isModal=False | E77: Contratos de prestación de servicios profesionales y de apoyo a la gestión | F77: Contratación directa | G77: Prestación de servicios profesionales y de apoyo a la gestión, o para la ejecución de trabajos artísticos que sólo puedan encomendarse a determinadas personas naturales; | H77: APOYAR JURÍDICAMENTE LA EJECUCIÓN DE ACCIONES REQUERIDAS PARA EL TRÁMITE E IMPULSO PROCESAL DE LAS ACTUACIONES CONTRAVENCIONALES Y/O QUERELLAS QUE CURSEN EN LAS INSPECCIONES DE POLICÍA DE LA LOCALIDAD DE LOS MÁRTIRES. | I77: Inversión | J77: Un Nuevo Contrato Social y Ambiental para la Bogotá del Siglo XXI | K77: 3 | L77: =IF(ISERROR(VLOOKUP(K77,Proposito_programa!$C$2:$E$59,2,FALSE))," ",VLOOKUP(K77,Proposito_programa!$C$2:$E$59,2,FALSE)) -> Movilidad social integral | M77: =IF(ISERROR(VLOOKUP(K77,Proposito_programa!$C$2:$E$59,3,FALSE))," ",VLOOKUP(K77,Proposito_programa!$C$2:$E$59,3,FALSE)) -> Propósito 1: Hacer un nuevo contrato social para incrementar la inclusión social, productiva y política | N77: 133011605570000002099 | O77: 0 | P77: 51921603 | Q77: AURA ALICIA INFANTE GARCIA | R77: Persona Natural | S77: N/A | T77: N/A | U77: N/A | V77: 19600000 | X77: 1 | Y77: 9800000 | Z77: 29400000 | AA77: 29400000 | AB77: 2021-03-04 | AC77: 2021-03-08 | AD77: 2021-09-07 | AE77: 4 MESES | AF77: 1 | AG77: 2 MESES | AN77: X | AP77: 1
A78: 068-2021 | B78: 2021 | C78: FDLM-CD-068-2021 (57117) | D78: https://community.secop.gov.co/Public/Tendering/OpportunityDetail/Index?noticeUID=CO1.NTC.1800039&isFromPublicArea=True&isModal=False | E78: Contratos de prestación de servicios profesionales y de apoyo a la gestión | F78: Contratación directa | G78: Prestación de servicios profesionales y de apoyo a la gestión, o para la ejecución de trabajos artísticos que sólo puedan encomendarse a determinadas personas naturales; | H78: PRESTAR SUS SERVICIOS PROFESIONALES ESPECIALIZADOS PARA COORDINAR, LIDERAR Y ASESORAR LOS PLANES Y ESTRATEGIAS DE COMUNICACIONES INTERNAS Y EXTERNAS PARA LA DIVULGACIÓN DE LOS PROGRAMAS, PROYECTOS Y ACTIVIDADES DE LA ALCALDÍA LOCAL. | I78: Inversión | J78: Un Nuevo Contrato Social y Ambiental para la Bogotá del Siglo XXI | K78: 3 | L78: =IF(ISERROR(VLOOKUP(K78,Proposito_programa!$C$2:$E$59,2,FALSE))," ",VLOOKUP(K78,Proposito_programa!$C$2:$E$59,2,FALSE)) -> Movilidad social integral | M78: =IF(ISERROR(VLOOKUP(K78,Proposito_programa!$C$2:$E$59,3,FALSE))," ",VLOOKUP(K78,Proposito_programa!$C$2:$E$59,3,FALSE)) -> Propósito 1: Hacer un nuevo contrato social para incrementar la inclusión social, productiva y política | N78: 133011605570000002099 | O78: 0 | P78: 80032090 | Q78: MAURICIO ALEXIS RIVEROS QUINTERO | R78: Persona Natural | S78: N/A | T78: N/A | U78: N/A | V78: 32000000 | X78: 1 | Y78: 16000000 | Z78: 48000000 | AA78: 32800000 | AB78: 2021-02-25 | AC78: 2021-02-25 | AD78: 2021-08-25 | AE78: 4 MESES | AF78: 1 | AG78: 2 MESES | AN78: X | AP78: 0.6833333333
A79: 069-2021 | B79: 2021 | C79: FDMLCD-069-2021 (57223) | D79: https://community.secop.gov.co/Public/Tendering/OpportunityDetail/Index?noticeUID=CO1.NTC.1804917&isFromPublicArea=True&isModal=False | E79: Arrendamiento de bienes inmuebles | F79: Contratación directa | G79: El arrendamiento o adquisición de inmuebles | H79: ENTREGAR AL FONDO DE DESARROLLO LOCAL DE LOS MÁRTIRES A TÍTULO DE ARRENDAMIENTO, EL USO Y GOCE DEL INMUEBLE UBICADO EN EL PISO 06 TORRE PARQUEADEROS DEL CENTRO COMERCIAL MALLPLAZA, PARA EL FUNCIONAMIENTO DE LA SEDE ADMINISTRATIVA DE LA ALCALDÍA LOCAL. | I79: Funcionamiento | J79: Un Nuevo Contrato Social y Ambiental para la Bogotá del Siglo XXI | K79: No aplica | L79: =IF(ISERROR(VLOOKUP(K79,Proposito_programa!$C$2:$E$59,2,FALSE))," ",VLOOKUP(K79,Proposito_programa!$C$2:$E$59,2,FALSE)) ->  | M79: =IF(ISERROR(VLOOKUP(K79,Proposito_programa!$C$2:$E$59,3,FALSE))," ",VLOOKUP(K79,Proposito_programa!$C$2:$E$59,3,FALSE)) ->  | N79: 131020202020203 | O79: 0 | P79: 901120943 | Q79: MALLPLAZA SERVICIOS S A S | R79: Persona Jurídica | S79: N/A | T79: N/A | U79: N/A | V79: 401259936 | Z79: 401259936 | AA79: 401259936 | AB79: 2021-02-25 | AC79: 2021-02-25 | AD79: 2021-08-25 | AE79: 4 MESES | AN79: X | AP79: 1
A80: 070-2021 | B80: 2021 | C80: FDLM-CD-070-2021 | D80: https://community.secop.gov.co/Public/Tendering/OpportunityDetail/Index?noticeUID=CO1.NTC.1804479&isFromPublicArea=True&isModal=False | E80: Contratos de prestación de servicios profesionales y de apoyo a la gestión | F80: Contratación directa | G80: El arrendamiento o adquisición de inmuebles | H80: CONTRATAR EL ARRENDAMIENTO DE UN BIEN INMUEBLE (BODEGA) PARA EL ALMACENAMIENTO Y SALVAGUARDA DE LOS BIENES DE PROPIEDAD DEL FONDO DE DESARROLLO LOCAL DE LOS MÁRTIRES; Y AQUELLOS QUE LLEGASE A SER LEGALMENTE RESPONSABLE. | I80: Funcionamiento | J80: Un Nuevo Contrato Social y Ambiental para la Bogotá del Siglo XXI | K80: No aplica | L80: =IF(ISERROR(VLOOKUP(K80,Proposito_programa!$C$2:$E$59,2,FALSE))," ",VLOOKUP(K80,Proposito_programa!$C$2:$E$59,2,FALSE)) ->  | M80: =IF(ISERROR(VLOOKUP(K80,Proposito_programa!$C$2:$E$59,3,FALSE))," ",VLOOKUP(K80,Proposito_programa!$C$2:$E$59,3,FALSE)) ->  | N80: 131020202020201 | O80: 0 | P80: 21527954 | Q80: JULIANA ZAPATA ZULUETA | R80: Persona Natural | S80: N/A | T80: N/A | U80: N/A | V80: 23859936 | Z80: =+V80+W80+Y80 -> 23859936 | AA80: 73000000 | AB80: 2021-02-27 | AC80: 2021-03-02 | AD80: 2022-03-01 | AE80: 12 MESES | AM80: X | AP80: =IF(ISERROR(AA80/Z80),"-",(AA80/Z80)) -> 3.059522037
A81: 070-2021 | B81: 2021 | C81: FDLM-CD-070-2021 | D81: https://community.secop.gov.co/Public/Tendering/OpportunityDetail/Index?noticeUID=CO1.NTC.1804479&isFromPublicArea=True&isModal=False | E81: Contratos de prestación de servicios profesionales y de apoyo a la gestión | F81: Contratación directa | G81: El arrendamiento o adquisición de inmuebles | H81: CONTRATAR EL ARRENDAMIENTO DE UN BIEN INMUEBLE (BODEGA) PARA EL ALMACENAMIENTO Y SALVAGUARDA DE LOS BIENES DE PROPIEDAD DEL FONDO DE DESARROLLO LOCAL DE LOS MÁRTIRES; Y AQUELLOS QUE LLEGASE A SER LEGALMENTE RESPONSABLE. | I81: Funcionamiento | J81: Un Nuevo Contrato Social y Ambiental para la Bogotá del Siglo XXI | K81: No aplica | L81: =IF(ISERROR(VLOOKUP(K81,Proposito_programa!$C$2:$E$59,2,FALSE))," ",VLOOKUP(K81,Proposito_programa!$C$2:$E$59,2,FALSE)) ->  | M81: =IF(ISERROR(VLOOKUP(K81,Proposito_programa!$C$2:$E$59,3,FALSE))," ",VLOOKUP(K81,Proposito_programa!$C$2:$E$59,3,FALSE)) ->  | N81: 131020202020203 | O81: 0 | P81: 21527954 | Q81: JULIANA ZAPATA ZULUETA | R81: Persona Natural | S81: N/A | T81: N/A | U81: N/A | V81: 63740064 | Z81: =+V81+W81+Y81 -> 63740064 | AA81: 73000000 | AB81: 2021-02-27 | AC81: 2021-03-02 | AD81: 2022-03-01 | AE81: 12 MESES | AM81: X | AP81: =IF(ISERROR(AA81/Z81),"-",(AA81/Z81)) -> 1.145276541
A82: 071-2021 | B82: 2021 | C82: FDLM-PMIC-002-2021 | D82: ttps://community.secop.gov.co/Public/Tendering/OpportunityDetail/Index?noticeUID=CO1.NTC.1143122&isFromPublicArea=True&isModal=False | E82: Contratos de prestación de servicios profesionales y de apoyo a la gestión | F82: Contratación mínima cuantia | G82: No aplica | H82: CONTRATAR LA PRESTACIÓN DEL SERVICIO PARA LA COMPRA, MANTENIMIENTO Y RE-CARGA DE EXTINTORES DE PROPIEDAD DEL FONDO DE DESARROLLO LOCAL DE LOS MÁRTIRES | I82: Funcionamiento | J82: Un Nuevo Contrato Social y Ambiental para la Bogotá del Siglo XXI | K82: No aplica | L82: =IF(ISERROR(VLOOKUP(K82,Proposito_programa!$C$2:$E$59,2,FALSE))," ",VLOOKUP(K82,Proposito_programa!$C$2:$E$59,2,FALSE)) ->  | M82: =IF(ISERROR(VLOOKUP(K82,Proposito_programa!$C$2:$E$59,3,FALSE))," ",VLOOKUP(K82,Proposito_programa!$C$2:$E$59,3,FALSE)) ->  | N82: 1310201010103 | O82: 0 | P82: 900276396 | Q82: MEGASERVICE GVM LTDA | R82: Persona Jurídica | S82: N/A | T82: N/A | U82: N/A | V82: 1027565 | Z82: 1027565 | AA82: 1027565 | AB82: 2021-03-03 | AC82: 2021-03-25 | AD82: 2021-04-22 | AE82: 1 MES | AN82: X | AP82: 1
A83: 072-2021 | B83: 2021 | C83: FDLM-PMIC-001-2021 | D83: https://community.secop.gov.co/Public/Tendering/OpportunityDetail/Index?noticeUID=CO1.NTC.1779000&isFromPublicArea=True&isModal=False | E83: Suministro | F83: Contratación mínima cuantia | G83: No aplica | H83: SUMINISTRO DE ELEMENTOS DE PAPELERÍA Y ÚTILES DE OFICINA PARA ATENDER LAS NECESIDADES DE LOS DI-FERENTES GRUPOS DE TRABAJO QUE CONFORMAN LA ALCALDÍA LOCAL DE LOS MARTIRES, A MONTO AGOTABLE Y PRECIOS UNITARIOS CONFORME LA PROPUESTA PRE-SENTADA Y LAS CARACTERÍSTICAS Y ESPECIFICACIONES SEÑALADAS EN LOS ESTUDIOS PREVIOS Y ANEXO TECNICO | I83: Funcionamiento | J83: Un Nuevo Contrato Social y Ambiental para la Bogotá del Siglo XXI | K83: No aplica | L83: =IF(ISERROR(VLOOKUP(K83,Proposito_programa!$C$2:$E$59,2,FALSE))," ",VLOOKUP(K83,Proposito_programa!$C$2:$E$59,2,FALSE)) ->  | M83: =IF(ISERROR(VLOOKUP(K83,Proposito_programa!$C$2:$E$59,3,FALSE))," ",VLOOKUP(K83,Proposito_programa!$C$2:$E$59,3,FALSE)) ->  | N83: 1310202010202 | O83: 0 | P83: 830006800 | Q83: SISTEMAS Y DISTRIBUCIONES FORMACON SAS | R83: Persona Jurídica | S83: N/A | T83: N/A | U83: N/A | V83: 20000000 | Z83: 20000000 | AA83: 20000000 | AB83: 2021-03-02 | AC83: 2021-03-12 | AD83: 2021-09-11 | AE83: 6 MESES | AN83: X | AP83: 1
A84: 073-2021 | B84: 2021 | C84: FDLM-CD-073-2021 (56947) | D84: https://community.secop.gov.co/Public/Tendering/OpportunityDetail/Index?noticeUID=CO1.NTC.1825122&isFromPublicArea=True&isModal=False | E84: Contratos de prestación de servicios profesionales y de apoyo a la gestión | F84: Contratación directa | G84: Prestación de servicios profesionales y de apoyo a la gestión, o para la ejecución de trabajos artísticos que sólo puedan encomendarse a determinadas personas naturales; | H84: APOYAR JURÍDICAMENTE LA EJECUCIÓN DE ACCIONES REQUERIDAS PARA EL TRÁMITE E IMPULSO PROCESAL DE LAS ACTUACIONES CONTRAVENCIONALES Y/O QUERELLAS QUE CURSEN EN LAS INSPECCIONES DE POLICÍA DE LA LOCALIDAD DE LOS MÁRTIRES. | I84: Inversión | J84: Un Nuevo Contrato Social y Ambiental para la Bogotá del Siglo XXI | K84: 3 | L84: =IF(ISERROR(VLOOKUP(K84,Proposito_programa!$C$2:$E$59,2,FALSE))," ",VLOOKUP(K84,Proposito_programa!$C$2:$E$59,2,FALSE)) -> Movilidad social integral | M84: =IF(ISERROR(VLOOKUP(K84,Proposito_programa!$C$2:$E$59,3,FALSE))," ",VLOOKUP(K84,Proposito_programa!$C$2:$E$59,3,FALSE)) -> Propósito 1: Hacer un nuevo contrato social para incrementar la inclusión social, productiva y política | N84: 133011605570000002099 | O84: 0 | P84: 1007539578 | Q84: JUAN PABLO TORRES ALVAREZ | R84: Persona Natural | S84: N/A | T84: N/A | U84: N/A | V84: 19600000 | X84: 1 | Y84: 9800000 | Z84: 29400000 | AA84: 12900000 | AB84: 2021-03-06 | AC84: 2021-03-10 | AD84: 2021-09-09 | AE84: 4 MESES | AF84: 1 | AG84: 2 MESES | AN84: X | AP84: 0.4387755102
A85: 074-2021 | B85: 2021 | C85: 074-2021 CPS-P (57422) | D85: https://community.secop.gov.co/Public/Tendering/OpportunityDetail/Index?noticeUID=CO1.NTC.1817546&isFromPublicArea=True&isModal=Fals | E85: Contratos de prestación de servicios profesionales y de apoyo a la gestión | F85: Contratación directa | G85: Prestación de servicios profesionales y de apoyo a la gestión, o para la ejecución de trabajos artísticos que sólo puedan encomendarse a determinadas personas naturales; | H85: PRESTAR SERVICIOS PROFESIONALES EN LOS PROYECTOS QUE TIENEN POR OBJETO LA CONSTRUCCIÓN, REHABILITACIÓN Y MANTENIMIENTO DE LA INFRAESTRUCTURA VIAL Y ESPACIO PÚBLICO DE LA LOCALIDAD DE LOS MÁRTIRES. | I85: Inversión | J85: Un Nuevo Contrato Social y Ambiental para la Bogotá del Siglo XXI | K85: 3 | L85: =IF(ISERROR(VLOOKUP(K85,Proposito_programa!$C$2:$E$59,2,FALSE))," ",VLOOKUP(K85,Proposito_programa!$C$2:$E$59,2,FALSE)) -> Movilidad social integral | M85: =IF(ISERROR(VLOOKUP(K85,Proposito_programa!$C$2:$E$59,3,FALSE))," ",VLOOKUP(K85,Proposito_programa!$C$2:$E$59,3,FALSE)) -> Propósito 1: Hacer un nuevo contrato social para incrementar la inclusión social, productiva y política | N85: 133011604490000002097 | O85: 0 | P85: 79785438 | Q85: JAIME HERNAN VILLALBA VARGAS | R85: Persona Natural | S85: N/A | T85: N/A | U85: N/A | V85: 47680000 | Y85: 0 | Z85: 47680000 | AA85: 46885333 | AB85: 2021-03-03 | AC85: 2021-03-05 | AD85: 2021-11-04 | AE85: 8 MESES | AG85: N/A | AN85: X | AP85: 0.9833333263
A86: 075-2021 | B86: 2021 | C86: FDLM-CD-075-2021 (57608) | D86: https://community.secop.gov.co/Public/Tendering/OpportunityDetail/Index?noticeUID=CO1.NTC.1825412&isFromPublicArea=True&isModal=False | E86: Contratos de prestación de servicios profesionales y de apoyo a la gestión | F86: Contratación directa | G86: Prestación de servicios profesionales y de apoyo a la gestión, o para la ejecución de trabajos artísticos que sólo puedan encomendarse a determinadas personas naturales; | H86: APOYAR ASISTENCIALMENTE A EL (LA) ALCALDE(SA) LOCAL EN RELACIÓN CON SEGURIDAD CIUDADANA, CONVIVENCIA Y PREVENCIÓN DE CONFLICTIVIDADES, VIOLENCIAS Y DELITOS EN LA LOCALIDAD. | I86: Inversión | J86: Un Nuevo Contrato Social y Ambiental para la Bogotá del Siglo XXI | K86: 3 | L86: =IF(ISERROR(VLOOKUP(K86,Proposito_programa!$C$2:$E$59,2,FALSE))," ",VLOOKUP(K86,Proposito_programa!$C$2:$E$59,2,FALSE)) -> Movilidad social integral | M86: =IF(ISERROR(VLOOKUP(K86,Proposito_programa!$C$2:$E$59,3,FALSE))," ",VLOOKUP(K86,Proposito_programa!$C$2:$E$59,3,FALSE)) -> Propósito 1: Hacer un nuevo contrato social para incrementar la inclusión social, productiva y política | N86: 133011603430000002083 | O86: 0 | P86: 1014291719 | Q86: JESSICA LORENA GOMEZ PARDO | R86: Persona Natural | S86: N/A | T86: N/A | U86: N/A | V86: 18960000 | Y86: 0 | Z86: 18960000 | AA86: 18960000 | AB86: 2021-03-08 | AC86: 2021-03-10 | AD86: 2021-11-09 | AE86: 8 MESES | AG86: N/A | AN86: X | AP86: 1
A87: 076-2021 | B87: 2021 | C87: FDLM-CD-076-2021 (57606) | D87: https://community.secop.gov.co/Public/Tendering/OpportunityDetail/Index?noticeUID=CO1.NTC.1825558&isFromPublicArea=True&isModal=False | E87: Contratos de prestación de servicios profesionales y de apoyo a la gestión | F87: Contratación directa | G87: Prestación de servicios profesionales y de apoyo a la gestión, o para la ejecución de trabajos artísticos que sólo puedan encomendarse a determinadas personas naturales; | H87: PRESTAR LOS SERVICIOS COMO APOYO ADMINISTRATIVO Y ASISTENCIAL EN EL ÁREA GESTIÓN DEL DESARROLLO, ADMINISTRATIVA Y FINANZAS, A LOS PROFESIONALES QUE DESARROLLAN OBLIGACIONES DE OBRAS DE INFRAESTRUCTURA (MALLA VIAL, PARQUES Y ESTABILIDAD). | I87: Inversión | J87: Un Nuevo Contrato Social y Ambiental para la Bogotá del Siglo XXI | K87: 3 | L87: =IF(ISERROR(VLOOKUP(K87,Proposito_programa!$C$2:$E$59,2,FALSE))," ",VLOOKUP(K87,Proposito_programa!$C$2:$E$59,2,FALSE)) -> Movilidad social integral | M87: =IF(ISERROR(VLOOKUP(K87,Proposito_programa!$C$2:$E$59,3,FALSE))," ",VLOOKUP(K87,Proposito_programa!$C$2:$E$59,3,FALSE)) -> Propósito 1: Hacer un nuevo contrato social para incrementar la inclusión social, productiva y política | N87: 133011604490000002097 | O87: 0 | P87: 1026297121 | Q87: PAULA ANDREA RODRÍGUEZ BURGOS. | R87: Persona Natural | S87: N/A | T87: N/A | U87: N/A | V87: 15000000 | Y87: 0 | Z87: 15000000 | AA87: 15000000 | AB87: 2021-03-08 | AC87: 2021-03-12 | AD87: 2021-09-11 | AE87: 6 MESES | AG87: N/A | AN87: X | AP87: 1
A88: 077-2021 | B88: 2021 | C88: FDLM-SABMC-0001-2021 | D88: https://community.secop.gov.co/Public/Tendering/OpportunityDetail/Index?noticeUID=CO1.NTC.1837845&isFromPublicArea=True&isModal=False | E88: Contratos de prestación de servicios profesionales y de apoyo a la gestión | F88: Contratación directa | G88: No aplica | H88: LA PRESTACIÓN DEL SERVICIO DE VIGILANCIA Y SEGURIDAD PRIVADA INCLUIDO MEDIOS TECNOLOGICOS, PARA LOS PREDIOS DE PROPIEDAD Y/O TENENCIA DE LA ALCALDÍA LOCAL DE LOS MÁRTIRES, DE CONFORMIDAD CON LAS ESPECIFICACIONES ESTABLECIDAS EN EL DOCUMENTO DE CONDICIONES ESPECIALES, SEGÚN EL PROCEDIMIENTO ESTABLECIDO EN EL REGLAMENTO DE FUNCIONAMIENTO Y OPERACIÓN DE LA BOLSA PARA EL MERCADO DE COMPRAS PÚBLICAS – MCP- DE LA BOLSA MERCANTIL DE COLOMBIA S.A. | I88: Funcionamiento | J88: Un Nuevo Contrato Social y Ambiental para la Bogotá del Siglo XXI | K88: No aplica | L88: =IF(ISERROR(VLOOKUP(K88,Proposito_programa!$C$2:$E$59,2,FALSE))," ",VLOOKUP(K88,Proposito_programa!$C$2:$E$59,2,FALSE)) ->  | M88: =IF(ISERROR(VLOOKUP(K88,Proposito_programa!$C$2:$E$59,3,FALSE))," ",VLOOKUP(K88,Proposito_programa!$C$2:$E$59,3,FALSE)) ->  | N88: 131020202030501 | O88: 0 | P88: 805000867 | Q88: CORREAGRO S.A. | R88: Persona Jurídica | S88: N/A | T88: N/A | U88: N/A | V88: 204835071 | X88: 1 | Y88: 83769651 | Z88: 288604722 | AA88: 174835071 | AB88: 2021-03-11 | AC88: 2021-03-23 | AD88: 2022-02-07 | AE88: 7 MESES Y 15 DIAS HASTA AGOTAR RECURSOS | AF88: 1 | AG88: 3 MESES | AM88: X | AP88: 0.605794215
A89: 078-2021 | B89: 2021 | C89: FDLM-096-2021 (57758) | D89: https://community.secop.gov.co/Public/Tendering/OpportunityDetail/Index?noticeUID=CO1.NTC.1900796&isFromPublicArea=True&isModal=False | E89: Contratos de prestación de servicios profesionales y de apoyo a la gestión | F89: Contratación directa | G89: Prestación de servicios profesionales y de apoyo a la gestión, o para la ejecución de trabajos artísticos que sólo puedan encomendarse a determinadas personas naturales; | H89: PRESTAR SUS SERVICIOS PROFESIONALES AL FONDO DE DESARROLLO LOCAL DE LOS MÁRTIRES PARA EL DISEÑO, LA IMPLEMENTACIÓN, APOYO AL SEGUIMIENTO Y EVALUACIÓN DE LOS PROYECTOS DE INVERSIÓN, PROYECTOS ESTRATEGICOS Y PROYECTOS PARTICIPATIVOS PARA LA REACTIVACIÓN ECÓNOMICA Y EL EMPRENDIMIENTO DE LA LOCALIDAD EN CUMPLIMIENTO DEL PLAN DE DESARROLLO DISTRITAL Y LOCAL | I89: Inversión | J89: Un Nuevo Contrato Social y Ambiental para la Bogotá del Siglo XXI | K89: 3 | L89: =IF(ISERROR(VLOOKUP(K89,Proposito_programa!$C$2:$E$59,2,FALSE))," ",VLOOKUP(K89,Proposito_programa!$C$2:$E$59,2,FALSE)) -> Movilidad social integral | M89: =IF(ISERROR(VLOOKUP(K89,Proposito_programa!$C$2:$E$59,3,FALSE))," ",VLOOKUP(K89,Proposito_programa!$C$2:$E$59,3,FALSE)) -> Propósito 1: Hacer un nuevo contrato social para incrementar la inclusión social, productiva y política | N89: 133011601060000002060 | O89: 0 | P89: 53009898 | Q89: LADY ANDREA FEO MAHECHA | R89: Persona Natural | S89: N/A | T89: N/A | U89: N/A | V89: 36000000 | Y89: 0 | Z89: 36000000 | AA89: 36000000 | AB89: 2021-03-18 | AC89: 2021-03-26 | AD89: 2022-01-25 | AE89: 10 MESES | AG89: N/A | AN89: X | AP89: 1
A90: 079-2021 | B90: 2021 | C90: FDLM-079-2021 (57480) | D90: https://community.secop.gov.co/Public/Tendering/OpportunityDetail/Index?noticeUID=CO1.NTC.1851917&isFromPublicArea=True&isModal=False | E90: Contratos de prestación de servicios profesionales y de apoyo a la gestión | F90: Contratación directa | G90: Prestación de servicios profesionales y de apoyo a la gestión, o para la ejecución de trabajos artísticos que sólo puedan encomendarse a determinadas personas naturales; | H90: EL CONTRATISTA SE OBLIGA CON EL FONDO DE DESARROLLO LOCAL DE LOS MÁRTIRES A PRESTAR SUS SERVICIOS DE APOYO A LA GESTION TERRITORIAL EN LOS TEMAS DE SEGURIDAD Y CONVIVENCIA CIUDADANA; EN EL MARCO DEL PROYECTO 2083 “ATENCIÓN A MOVILIZACIONES Y AGLOMERACIONES”. | I90: Inversión | J90: Un Nuevo Contrato Social y Ambiental para la Bogotá del Siglo XXI | K90: 3 | L90: =IF(ISERROR(VLOOKUP(K90,Proposito_programa!$C$2:$E$59,2,FALSE))," ",VLOOKUP(K90,Proposito_programa!$C$2:$E$59,2,FALSE)) -> Movilidad social integral | M90: =IF(ISERROR(VLOOKUP(K90,Proposito_programa!$C$2:$E$59,3,FALSE))," ",VLOOKUP(K90,Proposito_programa!$C$2:$E$59,3,FALSE)) -> Propósito 1: Hacer un nuevo contrato social para incrementar la inclusión social, productiva y política | N90: 133011603430000002083 | O90: 0 | P90: 72140467 | Q90: JAVIER ENRIQUE GUZMAN CAMARGO | R90: Persona Natural | S90: N/A | T90: N/A | U90: N/A | V90: 25000000 | Y90: 0 | Z90: 25000000 | AA90: 22083333 | AB90: 2021-03-16 | AC90: 2021-03-23 | AD90: 2022-01-22 | AE90: 10 MESES | AG90: N/A | AN90: X | AP90: 0.88333332
A91: 080-2021 | B91: 2021 | C91: 080-2021 CPS-AG (57480) | D91: https://community.secop.gov.co/Public/Tendering/OpportunityDetail/Index?noticeUID=CO1.NTC.1846643&isFromPublicArea=True&isModal=False | E91: Contratos de prestación de servicios profesionales y de apoyo a la gestión | F91: Contratación directa | G91: Prestación de servicios profesionales y de apoyo a la gestión, o para la ejecución de trabajos artísticos que sólo puedan encomendarse a determinadas personas naturales; | H91: EL CONTRATISTA SE OBLIGA CON EL FONDO DE DESARROLLO LOCAL DE LOS MÁRTIRES A PRESTAR SUS SERVICIOS DE APOYO A LA GESTION TERRITORIAL EN LOS TEMAS DE SEGURIDAD Y CONVIVENCIA CIUDADANA; EN EL MARCO DEL PROYECTO 2083 “ATENCIÓN A MOVILIZACIONES Y AGLOMERACIONES | I91: Inversión | J91: Un Nuevo Contrato Social y Ambiental para la Bogotá del Siglo XXI | K91: 3 | L91: =IF(ISERROR(VLOOKUP(K91,Proposito_programa!$C$2:$E$59,2,FALSE))," ",VLOOKUP(K91,Proposito_programa!$C$2:$E$59,2,FALSE)) -> Movilidad social integral | M91: =IF(ISERROR(VLOOKUP(K91,Proposito_programa!$C$2:$E$59,3,FALSE))," ",VLOOKUP(K91,Proposito_programa!$C$2:$E$59,3,FALSE)) -> Propósito 1: Hacer un nuevo contrato social para incrementar la inclusión social, productiva y política | N91: 133011603430000002083 | O91: 0 | P91: 1022341132 | Q91: JEFFREY DARIO GOMEZ GALVAN | R91: Persona Natural | S91: N/A | T91: N/A | U91: N/A | V91: 25000000 | Y91: 0 | Z91: 25000000 | AA91: 22333332 | AB91: 2021-03-16 | AC91: 2021-03-26 | AD91: 2022-01-25 | AE91: 10 MESES | AG91: N/A | AN91: X | AP91: 0.89333328
A92: 081-2021 | B92: 2021 | C92: FDLM-CD-081-2021 (57480) | D92: https://community.secop.gov.co/Public/Tendering/OpportunityDetail/Index?noticeUID=CO1.NTC.1845940&isFromPublicArea=True&isModal=False | E92: Contratos de prestación de servicios profesionales y de apoyo a la gestión | F92: Contratación directa | G92: Prestación de servicios profesionales y de apoyo a la gestión, o para la ejecución de trabajos artísticos que sólo puedan encomendarse a determinadas personas naturales; | H92: EL CONTRATISTA SE OBLIGA CON EL FONDO DE DESARROLLO LOCAL DE LOS MÁRTIRES A PRESTAR SUS SERVICIOS DE APOYO A LA GESTIÓN TERRITORIAL EN LOS TEMAS DE SEGURIDAD Y CONVIVENCIA CIUDADANA; EN EL MARCO DEL PROYECTO 2083 “ATENCIÓN A MOVILIZACIONES Y AGLOMERACIONES” | I92: Inversión | J92: Un Nuevo Contrato Social y Ambiental para la Bogotá del Siglo XXI | K92: 3 | L92: =IF(ISERROR(VLOOKUP(K92,Proposito_programa!$C$2:$E$59,2,FALSE))," ",VLOOKUP(K92,Proposito_programa!$C$2:$E$59,2,FALSE)) -> Movilidad social integral | M92: =IF(ISERROR(VLOOKUP(K92,Proposito_programa!$C$2:$E$59,3,FALSE))," ",VLOOKUP(K92,Proposito_programa!$C$2:$E$59,3,FALSE)) -> Propósito 1: Hacer un nuevo contrato social para incrementar la inclusión social, productiva y política | N92: 133011603430000002083 | O92: 0 | P92: 1013618655 | Q92: FABIO ANDRES SOLORZA CORRALES | R92: Persona Natural | S92: N/A | T92: N/A | U92: N/A | V92: 25000000 | Y92: 0 | Z92: 25000000 | AA92: 22083333 | AB92: 2021-03-16 | AC92: 2021-03-23 | AD92: 2022-01-22 | AE92: 10 MESES | AG92: N/A | AN92: X | AP92: 0.88333332
A93: 082-2021 | B93: 2021 | C93: 082-2021 CPS-AG (57480) | D93: https://community.secop.gov.co/Public/Tendering/OpportunityDetail/Index?noticeUID=CO1.NTC.1846971&isFromPublicArea=True&isModal=False | E93: Contratos de prestación de servicios profesionales y de apoyo a la gestión | F93: Contratación directa | G93: Prestación de servicios profesionales y de apoyo a la gestión, o para la ejecución de trabajos artísticos que sólo puedan encomendarse a determinadas personas naturales; | H93: EL CONTRATISTA SE OBLIGA CON EL FONDO DE DESARROLLO LOCAL DE LOS MARTIRES A PRESTAR SUS SERVICIOS DE APOYO A LA GESTION TERRITORIAL EN LOS TEMAS DE SEGURIDAD Y CONVIVENCIA CIUDADANA EN EL MARCO DEL PROYECTO 2083 ATENCIÓN A MOVILIZACIONES Y AGLOMERACIONES | I93: Inversión | J93: Un Nuevo Contrato Social y Ambiental para la Bogotá del Siglo XXI | K93: 3 | L93: =IF(ISERROR(VLOOKUP(K93,Proposito_programa!$C$2:$E$59,2,FALSE))," ",VLOOKUP(K93,Proposito_programa!$C$2:$E$59,2,FALSE)) -> Movilidad social integral | M93: =IF(ISERROR(VLOOKUP(K93,Proposito_programa!$C$2:$E$59,3,FALSE))," ",VLOOKUP(K93,Proposito_programa!$C$2:$E$59,3,FALSE)) -> Propósito 1: Hacer un nuevo contrato social para incrementar la inclusión social, productiva y política | N93: 133011603430000002083 | O93: 0 | P93: 1018429480 | Q93: GINNA MARCELA CISNEROS PÁEZ | R93: Persona Natural | S93: N/A | T93: N/A | U93: N/A | V93: 25000000 | Y93: 0 | Z93: 25000000 | AA93: 22333332 | AB93: 2021-03-16 | AC93: 2021-03-26 | AD93: 2022-01-25 | AE93: 10 MESES | AG93: N/A | AN93: X | AP93: 0.89333328
A94: 083-2021 | B94: 2021 | C94: FDLMCD-083-2021 (57480) | D94: https://community.secop.gov.co/Public/Tendering/OpportunityDetail/Index?noticeUID=CO1.NTC.1855651&isFromPublicArea=True&isModal=False | E94: Contratos de prestación de servicios profesionales y de apoyo a la gestión | F94: Contratación directa | G94: Prestación de servicios profesionales y de apoyo a la gestión, o para la ejecución de trabajos artísticos que sólo puedan encomendarse a determinadas personas naturales; | H94: EL CONTRATISTA SE OBLIGA CON EL FONDO DE DESARROLLO LOCAL DE LOS MÁRTIRES A PRESTAR SUS SERVICIOS DE APOYO A LA GESTION TERRITORIAL EN LOS TEMAS DE SEGURIDAD Y CONVIVENCIA CIUDADANA; EN EL MARCO DEL PROYECTO 2083 “ATENCIÓN A MOVILIZACIONES Y AGLOMERACIONES | I94: Inversión | J94: Un Nuevo Contrato Social y Ambiental para la Bogotá del Siglo XXI | K94: 3 | L94: =IF(ISERROR(VLOOKUP(K94,Proposito_programa!$C$2:$E$59,2,FALSE))," ",VLOOKUP(K94,Proposito_programa!$C$2:$E$59,2,FALSE)) -> Movilidad social integral | M94: =IF(ISERROR(VLOOKUP(K94,Proposito_programa!$C$2:$E$59,3,FALSE))," ",VLOOKUP(K94,Proposito_programa!$C$2:$E$59,3,FALSE)) -> Propósito 1: Hacer un nuevo contrato social para incrementar la inclusión social, productiva y política | N94: 133011603430000002083 | O94: 0 | P94: 1022428142 | Q94: ANDRES MATEO GOMEZ RAMOS | R94: Persona Natural | S94: N/A | T94: N/A | U94: N/A | V94: 25000000 | Y94: 0 | Z94: 25000000 | AA94: 22083333 | AB94: 2021-03-30 | AC94: 2021-04-07 | AD94: 2022-02-06 | AE94: 10 MESES | AG94: N/A | AN94: X | AP94: 0.88333332
A95: 084-2021 | B95: 2021 | C95: FDLM-CD-084-2021 (57480) | D95: https://community.secop.gov.co/Public/Tendering/OpportunityDetail/Index?noticeUID=CO1.NTC.1872097&isFromPublicArea=True&isModal=False | E95: Contratos de prestación de servicios profesionales y de apoyo a la gestión | F95: Contratación directa | G95: Prestación de servicios profesionales y de apoyo a la gestión, o para la ejecución de trabajos artísticos que sólo puedan encomendarse a determinadas personas naturales; | H95: EL CONTRATISTA SE OBLIGA CON EL FONDO DE DESARROLLO LOCAL DE LOS MÁRTIRES A PRESTAR SUS SERVICIOS DE APOYO A LA GESTION TERRITORIAL EN LOS TEMAS DE SEGURIDAD Y CONVIVENCIA CIUDADANA; EN EL MARCO DEL PROYECTO 2083 “ATENCIÓN A MOVILIZACIONES Y AGLOMERACIONES | I95: Inversión | J95: Un Nuevo Contrato Social y Ambiental para la Bogotá del Siglo XXI | K95: 3 | L95: =IF(ISERROR(VLOOKUP(K95,Proposito_programa!$C$2:$E$59,2,FALSE))," ",VLOOKUP(K95,Proposito_programa!$C$2:$E$59,2,FALSE)) -> Movilidad social integral | M95: =IF(ISERROR(VLOOKUP(K95,Proposito_programa!$C$2:$E$59,3,FALSE))," ",VLOOKUP(K95,Proposito_programa!$C$2:$E$59,3,FALSE)) -> Propósito 1: Hacer un nuevo contrato social para incrementar la inclusión social, productiva y política | N95: 133011603430000002083 | O95: 0 | P95: 1017240452 | Q95: JULIANA LONDOÑO BOTERO | R95: Persona Natural | S95: N/A | T95: N/A | U95: N/A | V95: 25000000 | Y95: 0 | Z95: 25000000 | AA95: 21166666 | AB95: 2021-03-17 | AC95: 2021-03-24 | AD95: 2021-07-23 | AE95: 4 MESES | AG95: N/A | AN95: X | AP95: 0.84666664
A96: 085-2021 | B96: 2021 | C96: FDLMCD-085-2021 (55191) | D96: https://community.secop.gov.co/Public/Tendering/OpportunityDetail/Index?noticeUID=CO1.NTC.1850278&isFromPublicArea=True&isModal=False | E96: Contratos de prestación de servicios profesionales y de apoyo a la gestión | F96: Contratación directa | G96: Prestación de servicios profesionales y de apoyo a la gestión, o para la ejecución de trabajos artísticos que sólo puedan encomendarse a determinadas personas naturales; | H96: APOYAR JURÍDICAMENTE LA EJECUCIÓN DE LAS ACCIONES REQUERIDAS PARA LA DEPURACIÓN DE LAS ACTUACIONES ADMINISTRATIVAS QUE CURSAN EN LA ALCALDÍA LOCAL. | I96: Inversión | J96: Un Nuevo Contrato Social y Ambiental para la Bogotá del Siglo XXI | K96: 3 | L96: =IF(ISERROR(VLOOKUP(K96,Proposito_programa!$C$2:$E$59,2,FALSE))," ",VLOOKUP(K96,Proposito_programa!$C$2:$E$59,2,FALSE)) -> Movilidad social integral | M96: =IF(ISERROR(VLOOKUP(K96,Proposito_programa!$C$2:$E$59,3,FALSE))," ",VLOOKUP(K96,Proposito_programa!$C$2:$E$59,3,FALSE)) -> Propósito 1: Hacer un nuevo contrato social para incrementar la inclusión social, productiva y política | N96: 133011605570000002099 | O96: 0 | P96: 1014263010 | Q96: KAREN JIMENA BURBANO MORENO | R96: Persona Natural | S96: N/A | T96: N/A | U96: N/A | V96: 19660000 | X96: 1 | Y96: =8722000 -> 8722000 | Z96: 28382000 | AA96: 19500000 | AB96: 2021-03-16 | AC96: 2021-03-18 | AD96: 2021-09-17 | AE96: 4 MESES | AF96: 1 | AG96: 2 MESES | AN96: X | AP96: 0.6870551758
A97: 086-2021 | B97: 2021 | C97: DFLMCD-086-2021 (57191) | D97: https://community.secop.gov.co/Public/Tendering/OpportunityDetail/Index?noticeUID=CO1.NTC.1849758&isFromPublicArea=True&isModal=False | E97: Contratos de prestación de servicios profesionales y de apoyo a la gestión | F97: Contratación directa | G97: Prestación de servicios profesionales y de apoyo a la gestión, o para la ejecución de trabajos artísticos que sólo puedan encomendarse a determinadas personas naturales; | H97: APOYAR JURÍDICAMENTE LA EJECUCIÓN DE LAS ACCIONES REQUERIDAS PARA LA DEPURACIÓN DE LAS ACTUACIONES ADMINISTRATIVAS QUE CURSAN EN LA ALCALDÍA LOCAL. | I97: Inversión | J97: Un Nuevo Contrato Social y Ambiental para la Bogotá del Siglo XXI | K97: 3 | L97: =IF(ISERROR(VLOOKUP(K97,Proposito_programa!$C$2:$E$59,2,FALSE))," ",VLOOKUP(K97,Proposito_programa!$C$2:$E$59,2,FALSE)) -> Movilidad social integral | M97: =IF(ISERROR(VLOOKUP(K97,Proposito_programa!$C$2:$E$59,3,FALSE))," ",VLOOKUP(K97,Proposito_programa!$C$2:$E$59,3,FALSE)) -> Propósito 1: Hacer un nuevo contrato social para incrementar la inclusión social, productiva y política | N97: 133011605570000002099 | O97: 0 | P97: 1022380775 | Q97: SHARON PAULETT BERNAL AGUDELO | R97: Persona Natural | S97: N/A | T97: N/A | U97: N/A | V97: 17444000 | Y97: 0 | Z97: 17444000 | AA97: 17444000 | AB97: 2021-03-24 | AC97: 2021-03-26 | AD97: 2022-01-25 | AE97: 10 MESES | AG97: N/A | AN97: X | AP97: 1
A98: 087-2021 | B98: 2021 | C98: FDLM-087-2021 (57480) | D98: https://community.secop.gov.co/Public/Tendering/OpportunityDetail/Index?noticeUID=CO1.NTC.1851784&isFromPublicArea=True&isModal=False | E98: Contratos de prestación de servicios profesionales y de apoyo a la gestión | F98: Contratación directa | G98: Prestación de servicios profesionales y de apoyo a la gestión, o para la ejecución de trabajos artísticos que sólo puedan encomendarse a determinadas personas naturales; | H98: EL CONTRATISTA SE OBLIGA CON EL FONDO DE DESARROLLO LOCAL DE LOS MÁRTIRES A PRESTAR SUS SERVICIOS DE APOYO A LA GESTION TERRITORIAL EN LOS TEMAS DE SEGURIDAD Y CONVIVENCIA CIUDADANA; EN EL MARCO DEL PROYECTO 2083 “ATENCIÓN A MOVILIZACIONES Y AGLOMERACIONES”. | I98: Inversión | J98: Un Nuevo Contrato Social y Ambiental para la Bogotá del Siglo XXI | K98: 3 | L98: =IF(ISERROR(VLOOKUP(K98,Proposito_programa!$C$2:$E$59,2,FALSE))," ",VLOOKUP(K98,Proposito_programa!$C$2:$E$59,2,FALSE)) -> Movilidad social integral | M98: =IF(ISERROR(VLOOKUP(K98,Proposito_programa!$C$2:$E$59,3,FALSE))," ",VLOOKUP(K98,Proposito_programa!$C$2:$E$59,3,FALSE)) -> Propósito 1: Hacer un nuevo contrato social para incrementar la inclusión social, productiva y política | N98: 133011603430000002083 | O98: 0 | P98: 1030689971 | Q98: MIGUEL ALEXANDER CELY HERNNADEZ | R98: Persona Natural | S98: N/A | T98: N/A | U98: N/A | V98: 25000000 | X98: 1 | Y98: 7350000 | Z98: 32350000 | AA98: 22083333 | AB98: 2021-03-19 | AC98: 2021-03-25 | AD98: 2021-08-09 | AE98: 3 MESES | AF98: 1 | AG98: 45 DIAS | AN98: X | AP98: 0.6826378053
A99: 088-2021 | B99: 2021 | C99: FDLM-088-2021 CPS-P (56949) | D99: https://community.secop.gov.co/Public/Tendering/OpportunityDetail/Index?noticeUID=CO1.NTC.1856386&isFromPublicArea=True&isModal=False | E99: Contratos de prestación de servicios profesionales y de apoyo a la gestión | F99: Contratación directa | G99: Prestación de servicios profesionales y de apoyo a la gestión, o para la ejecución de trabajos artísticos que sólo puedan encomendarse a determinadas personas naturales; | H99: APOYAR TÉCNICAMENTE LAS DISTINTAS ETAPAS DE LOS PROCESOS DE COMPETENCIA DE LAS INSPECCIONES DE POLICÍA DE LA LOCALIDAD, SEGÚN REPARTO. | I99: Inversión | J99: Un Nuevo Contrato Social y Ambiental para la Bogotá del Siglo XXI | K99: 3 | L99: =IF(ISERROR(VLOOKUP(K99,Proposito_programa!$C$2:$E$59,2,FALSE))," ",VLOOKUP(K99,Proposito_programa!$C$2:$E$59,2,FALSE)) -> Movilidad social integral | M99: =IF(ISERROR(VLOOKUP(K99,Proposito_programa!$C$2:$E$59,3,FALSE))," ",VLOOKUP(K99,Proposito_programa!$C$2:$E$59,3,FALSE)) -> Propósito 1: Hacer un nuevo contrato social para incrementar la inclusión social, productiva y política | N99: 133011605570000002099 | O99: 0 | P99: 79487850 | Q99: CARLOS ALBERTO OLARTE AVILA | R99: Persona Natural | S99: N/A | T99: N/A | U99: N/A | V99: 14700000 | Y99: 0 | Z99: 14700000 | AA99: 9800000 | AB99: 2021-03-18 | AC99: 2021-03-23 | AD99: 2021-09-23 | AE99: 6 MESES | AG99: N/A | AN99: X | AP99: 0.6666666667
A100: 089-2021 | B100: 2021 | C100: FDLM-CD-089-2021 (57193) | D100: https://community.secop.gov.co/Public/Tendering/OpportunityDetail/Index?noticeUID=CO1.NTC.1856423&isFromPublicArea=True&isModal=False | E100: Contratos de prestación de servicios profesionales y de apoyo a la gestión | F100: Contratación directa | G100: Prestación de servicios profesionales y de apoyo a la gestión, o para la ejecución de trabajos artísticos que sólo puedan encomendarse a determinadas personas naturales; | H100: PRESTAR LOS SERVICIOS DE APOYO ADMINISTRATIVO AL ÁREA DE GESTIÓN POLICIVA Y JURÍDICA DE LA ALCALDÍA LOCAL DE LOS MÁRTIRES. | I100: Inversión | J100: Un Nuevo Contrato Social y Ambiental para la Bogotá del Siglo XXI | K100: 3 | L100: =IF(ISERROR(VLOOKUP(K100,Proposito_programa!$C$2:$E$59,2,FALSE))," ",VLOOKUP(K100,Proposito_programa!$C$2:$E$59,2,FALSE)) -> Movilidad social integral | M100: =IF(ISERROR(VLOOKUP(K100,Proposito_programa!$C$2:$E$59,3,FALSE))," ",VLOOKUP(K100,Proposito_programa!$C$2:$E$59,3,FALSE)) -> Propósito 1: Hacer un nuevo contrato social para incrementar la inclusión social, productiva y política | N100: 133011605570000002099 | O100: 0 | P100: 1127356929 | Q100: PAULA ANDREA PEÑALOZA CAMARGO | R100: Persona Natural | S100: N/A | T100: N/A | U100: N/A | V100: 15300000 | Y100: 0 | Z100: 15300000 | AA100: 980000 | AB100: 2021-03-23 | AC100: 2021-03-24 | AD100: 2021-09-23 | AE100: 6 MESES | AG100: N/A | AN100: X | AP100: 0.06405228758
A101: 090-2021 | B101: 2021 | C101: FDLM-CD-AG 090-2021 (57193) | D101: https://community.secop.gov.co/Public/Tendering/OpportunityDetail/Index?noticeUID=CO1.NTC.1860445&isFromPublicArea=True&isModal=False | E101: Contratos de prestación de servicios profesionales y de apoyo a la gestión | F101: Contratación directa | G101: Prestación de servicios profesionales y de apoyo a la gestión, o para la ejecución de trabajos artísticos que sólo puedan encomendarse a determinadas personas naturales; | H101: PRESTAR SERVICIOS DE APOYO ADMINISTRATIVO AL ÁREA DE GESTIÓN POLICIVA Y JURÍDICA DE LA ALCALDÍA LOCAL DE LOS MÁRTIRES. | I101: Inversión | J101: Un Nuevo Contrato Social y Ambiental para la Bogotá del Siglo XXI | K101: 3 | L101: =IF(ISERROR(VLOOKUP(K101,Proposito_programa!$C$2:$E$59,2,FALSE))," ",VLOOKUP(K101,Proposito_programa!$C$2:$E$59,2,FALSE)) -> Movilidad social integral | M101: =IF(ISERROR(VLOOKUP(K101,Proposito_programa!$C$2:$E$59,3,FALSE))," ",VLOOKUP(K101,Proposito_programa!$C$2:$E$59,3,FALSE)) -> Propósito 1: Hacer un nuevo contrato social para incrementar la inclusión social, productiva y política | N101: 133011605570000002099 | O101: 0 | P101: 51716306 | Q101: ROSALBA TOLEDO | R101: Persona Natural | S101: N/A | T101: N/A | U101: N/A | V101: 15300000 | Y101: 0 | Z101: 15300000 | AA101: 7600000 | AB101: 2021-03-23 | AC101: 2021-03-24 | AD101: 2021-09-23 | AE101: 6 MESES | AG101: N/A | AN101: X | AP101: 0.4967320261
A102: 091-2021 | B102: 2021 | C102: FDLM-PMIC-003-2021 | D102: https://community.secop.gov.co/Public/Tendering/OpportunityDetail/Index?noticeUID=CO1.NTC.1839652&isFromPublicArea=True&isModal=False | E102: Contratos de prestación de servicios | F102: Contratación mínima cuantia | G102: No aplica | H102: PRESTACIÓN DEL SERVICIO PARA EL MANTENIMIENTO PREVENTIVO Y CORRECTIVO INCLUIDA MANO DE OBRA Y EL SUMINISTRO DE REPUESTOS Y ACCESORIOS, PARA LOS VEHÍCULOS QUE INTEGRAN EL PARQUE AUTOMOTOR DEL FONDO DE DESARROLLO LOCAL DE MÁRTIRES, ASÍ COMO DE LOS VEHÍCULOS POR LOS CUÁLES LLEGARE A SER RESPONSABLE DURANTE LA VIGENCIA DEL CONTRATO | I102: Funcionamiento | J102: Un Nuevo Contrato Social y Ambiental para la Bogotá del Siglo XXI | K102: No aplica | L102: =IF(ISERROR(VLOOKUP(K102,Proposito_programa!$C$2:$E$59,2,FALSE))," ",VLOOKUP(K102,Proposito_programa!$C$2:$E$59,2,FALSE)) ->  | M102: =IF(ISERROR(VLOOKUP(K102,Proposito_programa!$C$2:$E$59,3,FALSE))," ",VLOOKUP(K102,Proposito_programa!$C$2:$E$59,3,FALSE)) ->  | N102: 131020202030604 | O102: 0 | P102: 900274811 | Q102: EYM COMPANY SAS | R102: Persona Natural | S102: N/A | T102: N/A | U102: N/A | V102: 25000000 | Z102: 25000000 | AA102: 25000000 | AB102: 2021-03-29 | AC102: 2021-02-07 | AD102: 2022-02-07 | AE102: 10 MESES | AN102: X | AP102: 1
A103: 092-2021 | B103: 2021 | C103: FDLM-CD-092-2021 (57193) | D103: https://community.secop.gov.co/Public/Tendering/OpportunityDetail/Index?noticeUID=CO1.NTC.1872324&isFromPublicArea=True&isModal=False | E103: Contratos de prestación de servicios profesionales y de apoyo a la gestión | F103: Contratación directa | G103: Prestación de servicios profesionales y de apoyo a la gestión, o para la ejecución de trabajos artísticos que sólo puedan encomendarse a determinadas personas naturales; | H103: PRESTAR SERVICIOS DE APOYO ADMINISTRATIVO AL ÁREA DE GESTIÓN POLICIVA Y JURÍDICA DE LA ALCALDÍA LOCAL DE LOS MÁRTIRES. | I103: Inversión | J103: Un Nuevo Contrato Social y Ambiental para la Bogotá del Siglo XXI | K103: 3 | L103: =IF(ISERROR(VLOOKUP(K103,Proposito_programa!$C$2:$E$59,2,FALSE))," ",VLOOKUP(K103,Proposito_programa!$C$2:$E$59,2,FALSE)) -> Movilidad social integral | M103: =IF(ISERROR(VLOOKUP(K103,Proposito_programa!$C$2:$E$59,3,FALSE))," ",VLOOKUP(K103,Proposito_programa!$C$2:$E$59,3,FALSE)) -> Propósito 1: Hacer un nuevo contrato social para incrementar la inclusión social, productiva y política | N103: 133011605570000002099 | O103: 0 | P103: 52466772 | Q103: LUX MARINELA FORERO CHIGUAZUQUE | R103: Persona Natural | S103: N/A | T103: N/A | U103: N/A | V103: 15300000 | Y103: 0 | Z103: 15300000 | AA103: 9300000 | AB103: 2021-03-26 | AC103: 2021-04-05 | AD103: 2021-10-04 | AE103: 6 MESES | AG103: N/A | AN103: X | AP103: 0.6078431373
A104: 093-2021 | B104: 2021 | C104: FDLM-_CD-093-2021 (57040) | D104: https://community.secop.gov.co/Public/Tendering/OpportunityDetail/Index?noticeUID=CO1.NTC.1898877&isFromPublicArea=True&isModal=False | E104: Contratos de prestación de servicios profesionales y de apoyo a la gestión | F104: Contratación directa | G104: Prestación de servicios profesionales y de apoyo a la gestión, o para la ejecución de trabajos artísticos que sólo puedan encomendarse a determinadas personas naturales; | H104: EL CONTRATO QUE SE PRETENDE CELEBRAR, TENDRÁ POR OBJETO “APOYAR LA FORMULACIÓN, EJECUCIÓN, SEGUIMIENTO Y MEJORA CONTINUA DE LAS HERRAMIENTAS QUE CONFORMAN LA GESTIÓN AMBIENTAL INSTITUCIONAL DE LA ALCALDÍA LOCAL. | I104: Inversión | J104: Un Nuevo Contrato Social y Ambiental para la Bogotá del Siglo XXI | K104: 3 | L104: =IF(ISERROR(VLOOKUP(K104,Proposito_programa!$C$2:$E$59,2,FALSE))," ",VLOOKUP(K104,Proposito_programa!$C$2:$E$59,2,FALSE)) -> Movilidad social integral | M104: =IF(ISERROR(VLOOKUP(K104,Proposito_programa!$C$2:$E$59,3,FALSE))," ",VLOOKUP(K104,Proposito_programa!$C$2:$E$59,3,FALSE)) -> Propósito 1: Hacer un nuevo contrato social para incrementar la inclusión social, productiva y política | N104: 133011605570000002099 | O104: 0 | P104: 1030526489 | Q104: DIEGO JAVIER FORERO ORTIZ | R104: Persona Natural | S104: N/A | T104: N/A | U104: N/A | V104: 19600000 | Y104: 0 | Z104: 19600000 | AA104: 19600000 | AB104: 2021-04-09 | AC104: 2021-04-19 | AD104: 2021-10-18 | AE104: 4 MESES | AG104: N/A | AN104: X | AP104: 1
A105: 094-2021 | B105: 2021 | C105: FDLM-CD-094-2021 (57213) | D105: https://community.secop.gov.co/Public/Tendering/OpportunityDetail/Index?noticeUID=CO1.NTC.1898666&isFromPublicArea=True&isModal=False | E105: Contratos de prestación de servicios profesionales y de apoyo a la gestión | F105: Contratación directa | G105: Prestación de servicios profesionales y de apoyo a la gestión, o para la ejecución de trabajos artísticos que sólo puedan encomendarse a determinadas personas naturales; | H105: PRESTAR SUS SERVICIOS PROFESIONALES AL FONDO DE DESARROLLO LOCAL DE LOS MÁRTIRES PARA EL ACOMPAÑAMIENTO A LA ESTRATEGIA CONSTRUCTORES LOCALES, DISEÑO, LA IMPLEMENTACIÓN, APOYO AL SEGUIMIENTO Y EVALUACIÓN DE LOS PROYECTOS DE INVERSIÓN, PROYECTOS ESTRATÉGICOS Y PROYECTOS PARTICIPATIVOS PARA LA REACTIVACIÓN ECONÓMICA Y EL EMPRENDIMIENTO DE LA LOCALIDAD EN CUMPLIMIENTO DEL PLAN DE DESARROLLO DISTRITAL Y LOCAL. | I105: Inversión | J105: Un Nuevo Contrato Social y Ambiental para la Bogotá del Siglo XXI | K105: 3 | L105: =IF(ISERROR(VLOOKUP(K105,Proposito_programa!$C$2:$E$59,2,FALSE))," ",VLOOKUP(K105,Proposito_programa!$C$2:$E$59,2,FALSE)) -> Movilidad social integral | M105: =IF(ISERROR(VLOOKUP(K105,Proposito_programa!$C$2:$E$59,3,FALSE))," ",VLOOKUP(K105,Proposito_programa!$C$2:$E$59,3,FALSE)) -> Propósito 1: Hacer un nuevo contrato social para incrementar la inclusión social, productiva y política | N105: 133011605570000002099 | O105: 0 | P105: 79443949 | Q105: JORGE ERNESTO MONTOYA URIBE | R105: Persona Natural | S105: N/A | T105: N/A | U105: N/A | V105: 30000000 | Y105: 0 | Z105: 30000000 | AA105: 24000000 | AB105: 2021-04-08 | AC105: 2021-04-12 | AD105: 2021-10-11 | AE105: 6 MESES | AG105: N/A | AH105: 37549001 | AI105: ANA MARIA SERRANO ZAMORA | AJ105: 2021-05-06 | AK105: 30000000 | AN105: X | AP105: 0.8
A106: 095-2021 OC 69234 | B106: 2021 | C106: OC 69234 | D106: https://www.colombiacompra.gov.co/tienda-virtual-del-estado-colombiano/ordenes-compra/69234 | E106: Compraventa de bienes muebles | F106: Selección abreviada | G106: No aplica | H106: COMPRAVENTA DE LICENCIAS A TRAVÉS DE LA PLATAFORMA DE LA TIENDA VIRTUAL DEL ESTADO COLOMBIANO POR INSTRUMENTO DE AGREGACIÓN DE DEMANDA PARA LA ADQUISICIÓN DE SOFTWARE POR CATÁLOGO QUE REQUIERAN LAS ENTIDADES ESTATALES CCE 139-IAD-2020 | I106: Funcionamiento | J106: Un Nuevo Contrato Social y Ambiental para la Bogotá del Siglo XXI | K106: No aplica | L106: =IF(ISERROR(VLOOKUP(K106,Proposito_programa!$C$2:$E$59,2,FALSE))," ",VLOOKUP(K106,Proposito_programa!$C$2:$E$59,2,FALSE)) ->  | M106: =IF(ISERROR(VLOOKUP(K106,Proposito_programa!$C$2:$E$59,3,FALSE))," ",VLOOKUP(K106,Proposito_programa!$C$2:$E$59,3,FALSE)) ->  | N106: 1310201010105 | O106: 0 | P106: 901374618 | Q106: UNION TEMPORAL NIMBIT | R106: Unión Temporal | S106: 901356559 | T106: COMERCIALIZADORA F.F. SAS | U106: 90 | V106: 35959000 | Y106: 0 | Z106: 35959000 | AA106: 35959000 | AB106: 2021-05-18 | AC106: N/A | AD106: 2021-07-18 | AE106: 2 MESES | AG106: N/A | AN106: X | AP106: 1
A107: 096-2021 | B107: 2021 | C107: FDLM-PMIC-004-2021 | D107: https://community.secop.gov.co/Public/Tendering/OpportunityDetail/Index?noticeUID=CO1.NTC.1890483&isFromPublicArea=True&isModal=False | E107: Contratos de prestación de servicios | F107: Contratación mínima cuantia | G107: No aplica | H107: PRESTACIÓN DEL SERVICIO INTEGRAL DE ALQUILER DE IMPRESORAS LÁSER MULTIFUNCIONALES PARA EL FUNCIONAMIENTO DE JUNTA ADMINISTRADORA LOCAL Y DE LAS DISTINTAS ÁREAS DE LA ALCALDÍA LOCAL DE LOS MÁRTIRES. | I107: Funcionamiento | J107: Un Nuevo Contrato Social y Ambiental para la Bogotá del Siglo XXI | K107: No aplica | L107: =IF(ISERROR(VLOOKUP(K107,Proposito_programa!$C$2:$E$59,2,FALSE))," ",VLOOKUP(K107,Proposito_programa!$C$2:$E$59,2,FALSE)) ->  | M107: =IF(ISERROR(VLOOKUP(K107,Proposito_programa!$C$2:$E$59,3,FALSE))," ",VLOOKUP(K107,Proposito_programa!$C$2:$E$59,3,FALSE)) ->  | N107: 131020202030501 | O107: 0 | P107: 830053669 | Q107: SOLUTION COPY LTDA | R107: Persona Jurídica | S107: N/A | T107: N/A | U107: N/A | V107: 25000000 | Y107: 0 | Z107: 25000000 | AA107: 25000000 | AB107: 2021-04-08 | AC107: 2021-04-13 | AD107: 2021-12-12 | AE107: 8 MESES | AG107: N/A | AN107: X | AP107: 1
A108: 097-2021 | B108: 2021 | C108: FDLM-PMIC-005-2021 | D108: https://community.secop.gov.co/Public/Tendering/OpportunityDetail/Index?noticeUID=CO1.NTC.1894507&isFromPublicArea=True&isModal=False | E108: Contratos de prestación de servicios | F108: Contratación mínima cuantia | G108: No aplica | H108: PRESTAR LOS SERVICIOS LOGÍSTICOS PARA LA REALIZACIÓN DE LA AUDIENCIA PÚBLICA DE RENDICIÓN DE CUENTAS DE LA VIGENCIA 2020 PARA LA LOCALIDAD DE LOS MÁRTIRES. | I108: Funcionamiento | J108: Un Nuevo Contrato Social y Ambiental para la Bogotá del Siglo XXI | K108: No aplica | L108: =IF(ISERROR(VLOOKUP(K108,Proposito_programa!$C$2:$E$59,2,FALSE))," ",VLOOKUP(K108,Proposito_programa!$C$2:$E$59,2,FALSE)) ->  | M108: =IF(ISERROR(VLOOKUP(K108,Proposito_programa!$C$2:$E$59,3,FALSE))," ",VLOOKUP(K108,Proposito_programa!$C$2:$E$59,3,FALSE)) ->  | N108: 133011605570000002099 | O108: 0 | P108: 80085650 | Q108: JORGE AURELIO MONTERROZA BARRIOS | R108: Persona Natural | S108: N/A | T108: N/A | U108: N/A | V108: 6679748 | Y108: 0 | Z108: 6679748 | AA108: 5800000 | AB108: 2021-04-14 | AC108: 2021-05-12 | AD108: 2021-06-11 | AE108: 30 DIAS | AG108: N/A | AN108: X | AP108: 0.8682962291
A109: OC 65912 | B109: 2021 | C109: OC 65912 | D109: https://www.colombiacompra.gov.co/tienda-virtual-del-estado-colombiano/ordenes-compra/?number_order=65912&state=&entity=&tool=&date_to&date_from | E109: Compraventa de bienes muebles | F109: Contratación directa | G109: No aplica | H109: ORDEN DE COMPRA POR ACUERDO MARCO DE PRECIOS PARA ADQUIRIR LOS SERVICIOS DE ASEO Y CAFETERIA FDLM. | I109: Funcionamiento | J109: Un Nuevo Contrato Social y Ambiental para la Bogotá del Siglo XXI | K109: No aplica | L109: =IF(ISERROR(VLOOKUP(K109,Proposito_programa!$C$2:$E$59,2,FALSE))," ",VLOOKUP(K109,Proposito_programa!$C$2:$E$59,2,FALSE)) ->  | M109: =IF(ISERROR(VLOOKUP(K109,Proposito_programa!$C$2:$E$59,3,FALSE))," ",VLOOKUP(K109,Proposito_programa!$C$2:$E$59,3,FALSE)) ->  | N109: 131020202030501 | O109: 0 | P109: 830068543 | Q109: MUNDOLIMPIEZA LTDA | R109: Persona Jurídica | S109: N/A | T109: N/A | U109: N/A | V109: 73765489 | X109: 1 | Y109: 14234511 | Z109: 88000000 | AA109: 88000000 | AB109: 2021-03-19 | AC109: 2021-03-19 | AD109: 2022-03-22 | AE109: 10 MESES | AF109: 1 | AG109: 2 MESES | AN109: X | AP109: 1
A110: CI-098-2021 | B110: 2021 | C110: FDLM-PMIC-007-2021 | D110: https://community.secop.gov.co/Public/Tendering/OpportunityDetail/Index?noticeUID=CO1.NTC.1971295&isFromPublicArea=True&isModal=False | E110: Interventoría | F110: Contratación mínima cuantia | G110: No aplica | H110: CONTRATAR LA INTERVENTORÍA ADMINISTRATIVA, TÉCNICA Y FINANCIERA A LA EJECUCIÓN DEL CONVENIO INTERADMINISTRATIVO QUE SE SUSCRIBA ENTRE EL FONDO DE DESARROLLO LOCAL DE LOS MÁRTIRES Y LA SUBRED INTEGRADA DE SERVICIOS DE SALUD CENTRO ORIENTE E.S.E. | I110: Funcionamiento | J110: Un Nuevo Contrato Social y Ambiental para la Bogotá del Siglo XXI | K110: No aplica | L110: =IF(ISERROR(VLOOKUP(K110,Proposito_programa!$C$2:$E$59,2,FALSE))," ",VLOOKUP(K110,Proposito_programa!$C$2:$E$59,2,FALSE)) ->  | M110: =IF(ISERROR(VLOOKUP(K110,Proposito_programa!$C$2:$E$59,3,FALSE))," ",VLOOKUP(K110,Proposito_programa!$C$2:$E$59,3,FALSE)) ->  | N110: 133011601060000002043 | O110: 0 | P110: 39576229 | Q110: MONICA NATALIA BASTIDAS CUENCA | R110: Persona Natural | S110: N/A | T110: N/A | U110: N/A | V110: 20000000 | Z110: 20000000 | AA110: 12000000 | AB110: 2021-05-25 | AC110: 2021-06-01 | AD110: 2022-01-31 | AE110: 8 MESES | AN110: X | AP110: 0.6
A111: 099-2021 | B111: 2021 | C111: FDLM-CD-P-099-2021 (58771) | D111: https://community.secop.gov.co/Public/Tendering/OpportunityDetail/Index?noticeUID=CO1.NTC.2008140&isFromPublicArea=True&isModal=False | E111: Contratos de prestación de servicios profesionales y de apoyo a la gestión | F111: Contratación directa | G111: Prestación de servicios profesionales y de apoyo a la gestión, o para la ejecución de trabajos artísticos que sólo puedan encomendarse a determinadas personas naturales; | H111: PRESTAR LOS SERVICIOS PROFESIONALES COMO APOYO EN LA REALIZACIÓN DE ACUERDOS QUE PROMUEVAN LA CONVIVENCIA ARMÓNICA ENTRE LA CIUDADANÍA Y LOS VENDEDORES INFORMALES Y ESTACIONARIOS, LA PARTICIPACIÓN DE LA POBLACIÓN VULNERABLE GENERANDO EMPRENDIMIENTOS FORMALIZADOS QUE COADYUVEN AL DESARROLLO ECONÓMICO Y PRODUCTIVO DE ESTA POBLACIÓN Y LOGRAR LA VINCULACIÓN DE LOS HABITANTES DE LA LOCALIDAD EN PROGRAMAS QUE MOTIVEN EL USO DEL ESPACIO PÚBLICO CON FINES CULTURALES, DEPORTIVOS, RECREACIONALES O DE MERC. | I111: Inversión | J111: Un Nuevo Contrato Social y Ambiental para la Bogotá del Siglo XXI | K111: 3 | L111: =IF(ISERROR(VLOOKUP(K111,Proposito_programa!$C$2:$E$59,2,FALSE))," ",VLOOKUP(K111,Proposito_programa!$C$2:$E$59,2,FALSE)) -> Movilidad social integral | M111: =IF(ISERROR(VLOOKUP(K111,Proposito_programa!$C$2:$E$59,3,FALSE))," ",VLOOKUP(K111,Proposito_programa!$C$2:$E$59,3,FALSE)) -> Propósito 1: Hacer un nuevo contrato social para incrementar la inclusión social, productiva y política | N111: 133011603450000002080 | O111: 0 | P111: 1014187715 | Q111: DIANA KATHERINE CANCINO NIÑO | R111: Persona Natural | S111: N/A | T111: N/A | U111: N/A | V111: 35000000 | Y111: 0 | Z111: 35000000 | AA111: 17833333 | AB111: 2021-06-01 | AC111: 2021-07-01 | AD111: 2022-01-30 | AE111: 7 MESES | AG111: N/A | AH111: 1033716552 | AI111: JHON FREDY MENDEZ SOLAQUE | AJ111: 2021-09-10 | AK111: 35000000 | AN111: X | AP111: 0.5095238
A112: 100-2021 | B112: 2021 | C112: FDLM-CD-P-100-2021 (58772) | D112: https://community.secop.gov.co/Public/Tendering/OpportunityDetail/Index?noticeUID=CO1.NTC.2012326&isFromPublicArea=True&isModal=False | E112: Contratos de prestación de servicios profesionales y de apoyo a la gestión | F112: Contratación directa | G112: Prestación de servicios profesionales y de apoyo a la gestión, o para la ejecución de trabajos artísticos que sólo puedan encomendarse a determinadas personas naturales; | H112: PRESTAR LOS SERVICIOS PROFESIONALES COMO APOYO EN LA REALIZACIÓN DE ACUERDOS QUE PROMUEVAN LA CONVIVENCIA ARMÓNICA ENTRE LA CIUDADANÍA Y LOS VENDEDORES INFORMALES Y ESTACIONARIOS, LA PARTICIPACIÓN DE LA POBLACIÓN VULNERABLE GENERANDO EMPRENDIMIENTOS FORMALIZADOS QUE COADYUVEN AL DESARROLLO ECONÓMICO Y PRODUCTIVO DE ESTA POBLACIÓN Y LOGRAR LA VINCULACIÓN DE LOS HABITANTES DE LA LOCALIDAD EN PROGRAMAS QUE MOTIVEN EL USO ADECUADO DE LOS MEDIOS DE TRANSPORTE NO MOTORIZADOS, POR MEDIO DE LA PROMOCIÓN. | I112: Inversión | J112: Un Nuevo Contrato Social y Ambiental para la Bogotá del Siglo XXI | K112: 3 | L112: =IF(ISERROR(VLOOKUP(K112,Proposito_programa!$C$2:$E$59,2,FALSE))," ",VLOOKUP(K112,Proposito_programa!$C$2:$E$59,2,FALSE)) -> Movilidad social integral | M112: =IF(ISERROR(VLOOKUP(K112,Proposito_programa!$C$2:$E$59,3,FALSE))," ",VLOOKUP(K112,Proposito_programa!$C$2:$E$59,3,FALSE)) -> Propósito 1: Hacer un nuevo contrato social para incrementar la inclusión social, productiva y política | N112: 133011603450000002080 | O112: 0 | P112: 1136885879 | Q112: ALVARO ERNESTO MORENO CASTILLEJO | R112: Persona Natural | S112: N/A | T112: N/A | U112: N/A | V112: 35000000 | Y112: 0 | Z112: 35000000 | AA112: 17833333 | AB112: 2021-06-02 | AC112: 2021-07-01 | AD112: 2022-01-30 | AE112: 7 MESES | AG112: N/A | AN112: X | AP112: 0.5095238
A113: 101-2021 | B113: 2021 | C113: FDLM-CD-101-2021 (58771) | D113: https://community.secop.gov.co/Public/Tendering/OpportunityDetail/Index?noticeUID=CO1.NTC.2012371&isFromPublicArea=True&isModal=False | E113: Contratos de prestación de servicios profesionales y de apoyo a la gestión | F113: Contratación directa | G113: Prestación de servicios profesionales y de apoyo a la gestión, o para la ejecución de trabajos artísticos que sólo puedan encomendarse a determinadas personas naturales; | H113: PRESTAR LOS SERVICIOS PROFESIONALES COMO APOYO EN LA REALIZACIÓN DE ACUERDOS QUE PROMUEVAN LA CONVIVENCIA ARMÓNICA ENTRE LA CIUDADANÍA Y LOS VENDEDORES INFORMALES Y ESTACIONARIOS, LA PARTICIPACIÓN DE LA POBLACIÓN VULNERABLE GENERANDO EMPRENDIMIENTOS FORMALIZADOS QUE COADYUVEN AL DESARROLLO ECONÓMICO Y PRODUCTIVO DE ESTA POBLACIÓN Y LOGRAR LA VINCULACIÓN DE LOS HABITANTES DE LA LOCALIDAD EN PROGRAMAS QUE MOTIVEN EL USO DEL ESPACIO PÚBLICO CON FINES CULTURALES, DEPORTIVOS, RECREACIONALES O DE MERC | I113: Inversión | J113: Un Nuevo Contrato Social y Ambiental para la Bogotá del Siglo XXI | K113: 3 | L113: =IF(ISERROR(VLOOKUP(K113,Proposito_programa!$C$2:$E$59,2,FALSE))," ",VLOOKUP(K113,Proposito_programa!$C$2:$E$59,2,FALSE)) -> Movilidad social integral | M113: =IF(ISERROR(VLOOKUP(K113,Proposito_programa!$C$2:$E$59,3,FALSE))," ",VLOOKUP(K113,Proposito_programa!$C$2:$E$59,3,FALSE)) -> Propósito 1: Hacer un nuevo contrato social para incrementar la inclusión social, productiva y política | N113: 133011603450000002080 | O113: 0 | P113: 1022338424 | Q113: DIANA PILAR PARADA ESPINOSA | R113: Persona Natural | S113: N/A | T113: N/A | U113: N/A | V113: 35000000 | Y113: 0 | Z113: 35000000 | AA113: 25000000 | AB113: 2021-06-02 | AC113: 2021-07-01 | AD113: 2022-01-30 | AE113: 7 MESES | AG113: N/A | AN113: X | AP113: 0.7142857143
A114: 102-2021 | B114: 2021 | C114: FDLM-CD-102-2021 (58771) | D114: https://community.secop.gov.co/Public/Tendering/OpportunityDetail/Index?noticeUID=CO1.NTC.2036188&isFromPublicArea=True&isModal=False | E114: Contratos de prestación de servicios profesionales y de apoyo a la gestión | F114: Contratación directa | G114: Prestación de servicios profesionales y de apoyo a la gestión, o para la ejecución de trabajos artísticos que sólo puedan encomendarse a determinadas personas naturales; | H114: PRESTAR LOS SERVICIOS PROFESIONALES COMO APOYO EN LA REALIZACIÓN DE ACUERDOS QUE PROMUEVAN LA CONVIVENCIA ARMÓNICA ENTRE LA CIUDADANÍA Y LOS VENDEDORES INFORMALES Y ESTACIONARIOS, LA PARTICIPACIÓN DE LA POBLACIÓN VULNERABLE GENERANDO EMPRENDIMIENTOS FORMALIZADOS QUE COADYUVEN AL DESARROLLO ECONÓMICO Y PRODUCTIVO DE ESTA POBLACIÓN Y LOGRAR LA VINCULACIÓN DE LOS HABITANTES DE LA LOCALIDAD EN PROGRAMAS QUE MOTIVEN EL USO DEL ESPACIO PÚBLICO CON FINES CULTURALES, DEPORTIVOS, RECREACIONALES O DE MERC | I114: Inversión | J114: Un Nuevo Contrato Social y Ambiental para la Bogotá del Siglo XXI | K114: 3 | L114: =IF(ISERROR(VLOOKUP(K114,Proposito_programa!$C$2:$E$59,2,FALSE))," ",VLOOKUP(K114,Proposito_programa!$C$2:$E$59,2,FALSE)) -> Movilidad social integral | M114: =IF(ISERROR(VLOOKUP(K114,Proposito_programa!$C$2:$E$59,3,FALSE))," ",VLOOKUP(K114,Proposito_programa!$C$2:$E$59,3,FALSE)) -> Propósito 1: Hacer un nuevo contrato social para incrementar la inclusión social, productiva y política | N114: 133011603450000002080 | O114: 0 | P114: 52855391 | Q114: SANDRA PATRICIA LADINO CLAVIJO | R114: Persona Natural | S114: N/A | T114: N/A | U114: N/A | V114: 35000000 | Y114: 0 | Z114: 35000000 | AA114: 25000000 | AB114: 2021-06-29 | AC114: 2021-07-01 | AD114: 2022-01-30 | AE114: 7 MESES | AG114: N/A | AN114: X | AP114: 0.7142857143
A115: 103-2021 | B115: 2021 | C115: FDLM-CD-103-2021 (58772) | D115: https://community.secop.gov.co/Public/Tendering/OpportunityDetail/Index?noticeUID=CO1.NTC.2037140&isFromPublicArea=True&isModal=False | E115: Contratos de prestación de servicios profesionales y de apoyo a la gestión | F115: Contratación directa | G115: Prestación de servicios profesionales y de apoyo a la gestión, o para la ejecución de trabajos artísticos que sólo puedan encomendarse a determinadas personas naturales; | H115: PRESTAR LOS SERVICIOS PROFESIONALES COMO APOYO EN LA REALIZACIÓN DE ACUERDOS QUE PROMUEVAN LA CONVIVENCIA ARMÓNICA ENTRE LA CIUDADANÍA Y LOS VENDEDORES INFORMALES Y ESTACIONARIOS, LA PARTICIPACIÓN DE LA POBLACIÓN VULNERABLE GENERANDO EMPRENDIMIENTOS FORMALIZADOS QUE COADYUVEN AL DESARROLLO ECONÓMICO Y PRODUCTIVO DE ESTA POBLACIÓN Y LOGRAR LA VINCULACIÓN DE LOS HABITANTES DE LA LOCALIDAD EN PROGRAMAS QUE MOTIVEN EL USO ADECUADO DE LOS MEDIOS DE TRANSPORTE NO MOTORIZADOS, POR MEDIO DE LA PROMOCIÓN. | I115: Inversión | J115: Un Nuevo Contrato Social y Ambiental para la Bogotá del Siglo XXI | K115: 3 | L115: =IF(ISERROR(VLOOKUP(K115,Proposito_programa!$C$2:$E$59,2,FALSE))," ",VLOOKUP(K115,Proposito_programa!$C$2:$E$59,2,FALSE)) -> Movilidad social integral | M115: =IF(ISERROR(VLOOKUP(K115,Proposito_programa!$C$2:$E$59,3,FALSE))," ",VLOOKUP(K115,Proposito_programa!$C$2:$E$59,3,FALSE)) -> Propósito 1: Hacer un nuevo contrato social para incrementar la inclusión social, productiva y política | N115: 133011603450000002080 | O115: 0 | P115: 1023934492 | Q115: ANA CATALINA MEDINA SALAMANCA | R115: Persona Natural | S115: N/A | T115: N/A | U115: N/A | V115: 35000000 | Y115: 0 | Z115: 35000000 | AA115: 25000000 | AB115: 2021-06-21 | AC115: 2021-07-01 | AD115: 2022-01-30 | AE115: 7 MESES | AG115: N/A | AN115: X | AP115: 0.7142857143
A116: 104-2021 | B116: 2021 | C116: FDLM-CD-104-2021 (58772) | D116: https://community.secop.gov.co/Public/Tendering/OpportunityDetail/Index?noticeUID=CO1.NTC.2044800&isFromPublicArea=True&isModal=False | E116: Contratos de prestación de servicios profesionales y de apoyo a la gestión | F116: Contratación directa | G116: Prestación de servicios profesionales y de apoyo a la gestión, o para la ejecución de trabajos artísticos que sólo puedan encomendarse a determinadas personas naturales; | H116: PRESTAR LOS SERVICIOS PROFESIONALES COMO APOYO EN LA REALIZACIÓN DE ACUERDOS QUE PROMUEVAN LA CONVIVENCIA ARMÓNICA ENTRE LA CIUDADANÍA Y LOS VENDEDORES INFORMALES Y ESTACIONARIOS, LA PARTICIPACIÓN DE LA POBLACIÓN VULNERABLE GENERANDO EMPRENDIMIENTOS FORMALIZADOS QUE COADYUVEN AL DESARROLLO ECONÓMICO Y PRODUCTIVO DE ESTA POBLACIÓN Y LOGRAR LA VINCULACIÓN DE LOS HABITANTES DE LA LOCALIDAD EN PROGRAMAS QUE MOTIVEN EL USO ADECUADO DE LOS MEDIOS DE TRANSPORTE NO MOTORIZADOS, POR MEDIO DE LA PROMOCIÓN. | I116: Inversión | J116: Un Nuevo Contrato Social y Ambiental para la Bogotá del Siglo XXI | K116: 3 | L116: =IF(ISERROR(VLOOKUP(K116,Proposito_programa!$C$2:$E$59,2,FALSE))," ",VLOOKUP(K116,Proposito_programa!$C$2:$E$59,2,FALSE)) -> Movilidad social integral | M116: =IF(ISERROR(VLOOKUP(K116,Proposito_programa!$C$2:$E$59,3,FALSE))," ",VLOOKUP(K116,Proposito_programa!$C$2:$E$59,3,FALSE)) -> Propósito 1: Hacer un nuevo contrato social para incrementar la inclusión social, productiva y política | N116: 133011603450000002080 | O116: 0 | P116: 38286243 | Q116: EGNA MARIA CORREA DIAZ | R116: Persona Natural | S116: N/A | T116: N/A | U116: N/A | V116: 35000000 | Y116: 0 | Z116: 35000000 | AA116: 25000000 | AB116: 2021-06-22 | AC116: 2021-07-01 | AD116: 2022-01-30 | AE116: 7 MESES | AG116: N/A | AN116: X | AP116: 0.7142857143
A117: CI-02-2021 | B117: 2021 | C117: FDLM-CI-002-2021 | D117: 21-22-27594 (SECOP I) | E117: Convenios de apoyo y/o convenios de asociación | F117: Contratación directa | G117: Prestación de servicios profesionales y de apoyo a la gestión, o para la ejecución de trabajos artísticos que sólo puedan encomendarse a determinadas personas naturales; | H117: EL CONVENIO QUE SE PRETENDE CELEBRAR TENDRÁ POR OBJETO “AUNAR ESFUERZOS TÉCNICOS, ADMINISTRATIVOS Y FINANCIEROS CON EL FIN DE DESARROLLAR ACCIONES ARTICULADAS ENTRE LAS PARTES ORIENTADAS A FOMENTAR LA GENERACIÓN Y CIRCULACIÓN DE BIENES Y SERVICIOS CULTURALES, ARTÍSTICOS Y PATRIMONIALES, ASÍ COMO AL FORTALECIMIENTO DE LOS AGENTES DE ESTOS SECTORES EN LAS LOCALIDADES DEL DISTRITO CAPITAL DE ACUERDO CON LOS PROYECTOS PRESENTADOS A LOS FONDOS DE DESARROLLO LOCAL DE MÁRTIRES Y DE SANTAFÉ EN EL MARCO DEL PROGRAMA "ES CULTURA LOCAL 2021. | I117: Inversión | J117: Un Nuevo Contrato Social y Ambiental para la Bogotá del Siglo XXI | K117: 3 | L117: =IF(ISERROR(VLOOKUP(K117,Proposito_programa!$C$2:$E$59,2,FALSE))," ",VLOOKUP(K117,Proposito_programa!$C$2:$E$59,2,FALSE)) -> Movilidad social integral | M117: =IF(ISERROR(VLOOKUP(K117,Proposito_programa!$C$2:$E$59,3,FALSE))," ",VLOOKUP(K117,Proposito_programa!$C$2:$E$59,3,FALSE)) -> Propósito 1: Hacer un nuevo contrato social para incrementar la inclusión social, productiva y política | N117: 133011601210000002070 | O117: 0 | P117: 899999061 | Q117: SECRETARIA DE EDUCACION DEL DISTRITO | R117: Persona Jurídica | S117: N/A | T117: N/A | U117: N/A | V117: 211100000 | Z117: 211100000 | AA117: 211100000 | AB117: 2021-07-02 | AC117: 2021-07-02 | AD117: 2021-12-31 | AE117: 179 DIAS | AN117: X | AP117: 1
A118: CI-02-2021 | B118: 2021 | C118: FDLM-CI-002-2021 | D118: 21-22-27594 (SECOP I) | E118: Convenios de apoyo y/o convenios de asociación | F118: Contratación directa | G118: Prestación de servicios profesionales y de apoyo a la gestión, o para la ejecución de trabajos artísticos que sólo puedan encomendarse a determinadas personas naturales; | H118: EL CONVENIO QUE SE PRETENDE CELEBRAR TENDRÁ POR OBJETO “AUNAR ESFUERZOS TÉCNICOS, ADMINISTRATIVOS Y FINANCIEROS CON EL FIN DE DESARROLLAR ACCIONES ARTICULADAS ENTRE LAS PARTES ORIENTADAS A FOMENTAR LA GENERACIÓN Y CIRCULACIÓN DE BIENES Y SERVICIOS CULTURALES, ARTÍSTICOS Y PATRIMONIALES, ASÍ COMO AL FORTALECIMIENTO DE LOS AGENTES DE ESTOS SECTORES EN LAS LOCALIDADES DEL DISTRITO CAPITAL DE ACUERDO CON LOS PROYECTOS PRESENTADOS A LOS FONDOS DE DESARROLLO LOCAL DE MÁRTIRES Y DE SANTAFÉ EN EL MARCO DEL PROGRAMA "ES CULTURA LOCAL 2021. | I118: Inversión | J118: Un Nuevo Contrato Social y Ambiental para la Bogotá del Siglo XXI | K118: 3 | L118: =IF(ISERROR(VLOOKUP(K118,Proposito_programa!$C$2:$E$59,2,FALSE))," ",VLOOKUP(K118,Proposito_programa!$C$2:$E$59,2,FALSE)) -> Movilidad social integral | M118: =IF(ISERROR(VLOOKUP(K118,Proposito_programa!$C$2:$E$59,3,FALSE))," ",VLOOKUP(K118,Proposito_programa!$C$2:$E$59,3,FALSE)) -> Propósito 1: Hacer un nuevo contrato social para incrementar la inclusión social, productiva y política | N118: 133011601210000002070 | O118: 0 | P118: 899999061 | Q118: SECRETARIA DE EDUCACION DEL DISTRITO | R118: Persona Jurídica | S118: N/A | T118: N/A | U118: N/A | V118: 8900000 | Z118: =+V118+W118+Y118 -> 8900000 | AB118: 2021-07-02 | AC118: 2021-07-02 | AD118: 2021-12-31 | AE118: 179 DIAS | AN118: X | AP118: =IF(ISERROR(AA118/Z118),"-",(AA118/Z118)) -> 0
A119: CI-02-2021 | B119: 2021 | C119: FDLM-CI-002-2021 | D119: 21-22-27594 (SECOP I) | E119: Convenios de apoyo y/o convenios de asociación | F119: Contratación directa | G119: Prestación de servicios profesionales y de apoyo a la gestión, o para la ejecución de trabajos artísticos que sólo puedan encomendarse a determinadas personas naturales; | H119: EL CONVENIO QUE SE PRETENDE CELEBRAR TENDRÁ POR OBJETO “AUNAR ESFUERZOS TÉCNICOS, ADMINISTRATIVOS Y FINANCIEROS CON EL FIN DE DESARROLLAR ACCIONES ARTICULADAS ENTRE LAS PARTES ORIENTADAS A FOMENTAR LA GENERACIÓN Y CIRCULACIÓN DE BIENES Y SERVICIOS CULTURALES, ARTÍSTICOS Y PATRIMONIALES, ASÍ COMO AL FORTALECIMIENTO DE LOS AGENTES DE ESTOS SECTORES EN LAS LOCALIDADES DEL DISTRITO CAPITAL DE ACUERDO CON LOS PROYECTOS PRESENTADOS A LOS FONDOS DE DESARROLLO LOCAL DE MÁRTIRES Y DE SANTAFÉ EN EL MARCO DEL PROGRAMA "ES CULTURA LOCAL 2021. | I119: Inversión | J119: Un Nuevo Contrato Social y Ambiental para la Bogotá del Siglo XXI | K119: 3 | L119: =IF(ISERROR(VLOOKUP(K119,Proposito_programa!$C$2:$E$59,2,FALSE))," ",VLOOKUP(K119,Proposito_programa!$C$2:$E$59,2,FALSE)) -> Movilidad social integral | M119: =IF(ISERROR(VLOOKUP(K119,Proposito_programa!$C$2:$E$59,3,FALSE))," ",VLOOKUP(K119,Proposito_programa!$C$2:$E$59,3,FALSE)) -> Propósito 1: Hacer un nuevo contrato social para incrementar la inclusión social, productiva y política | N119: 133011601240000002093 | O119: 0 | P119: 899999061 | Q119: SECRETARIA DE EDUCACION DEL DISTRITO | R119: Persona Jurídica | S119: N/A | T119: N/A | U119: N/A | V119: 218995000 | Z119: =+V119+W119+Y119 -> 218995000 | AA119: 438995000 | AB119: 2021-07-02 | AC119: 2021-07-02 | AD119: 2021-12-31 | AE119: 179 DIAS | AN119: X | AP119: =IF(ISERROR(AA119/Z119),"-",(AA119/Z119)) -> 2.004589146
A120: CI-03-2021 | B120: 2021 | C120: FDL - CI-03-2021 | D120: 21-22-27595 (SECOP I) | E120: Convenios de apoyo y/o convenios de asociación | F120: Contratación directa | G120: Prestación de servicios profesionales y de apoyo a la gestión, o para la ejecución de trabajos artísticos que sólo puedan encomendarse a determinadas personas naturales; | H120: EL CONVENIO QUE SE PRETENDE CELEBRAR TENDRÁ POR OBJETO “AUNAR ESFUERZOS TÉCNICOS, ADMINISTRATIVOS, JURÍDICOS Y FINANCIEROS ENTRE LA SECRETARÍA DE EDUCACIÓN DEL DISTRITO Y LOS FONDOS DE DESARROLLO LOCAL QUE HACEN PARTE DEL DISTRITO CAPITAL, PARA LA IMPLEMENTACIÓN DE UN NUEVO MODELO INCLUSIVO, EFICIENTE Y FLEXIBLE PARA EL ACCESO Y LA PERMANENCIA DE LAS Y LOS JÓVENES EGRESADOS DE INSTITUCIONES DE EDUCACIÓN MEDIA A PROGRAMAS DE EDUCACIÓN SUPERIOR. | I120: Inversión | J120: Un Nuevo Contrato Social y Ambiental para la Bogotá del Siglo XXI | K120: 3 | L120: =IF(ISERROR(VLOOKUP(K120,Proposito_programa!$C$2:$E$59,2,FALSE))," ",VLOOKUP(K120,Proposito_programa!$C$2:$E$59,2,FALSE)) -> Movilidad social integral | M120: =IF(ISERROR(VLOOKUP(K120,Proposito_programa!$C$2:$E$59,3,FALSE))," ",VLOOKUP(K120,Proposito_programa!$C$2:$E$59,3,FALSE)) -> Propósito 1: Hacer un nuevo contrato social para incrementar la inclusión social, productiva y política | N120: 133011601170000002056 | O120: 0 | P120: 899999061 | Q120: SECRETARIA DISTRITAL DE CULTURA RECREACION Y DEPORTE | R120: Persona Jurídica | S120: N/A | T120: N/A | U120: N/A | V120: 1119049419 | Z120: 1119049419 | AA120: 1119049419 | AB120: 2021-07-02 | AC120: 2021-07-02 | AD120: 2027-06-30 | AE120: 72 MESES | AN120: X | AP120: 1
A121: 105-2021 | B121: 2021 | C121: FDLM-CD-105-2021 (59616) | D121: https://community.secop.gov.co/Public/Tendering/OpportunityDetail/Index?noticeUID=CO1.NTC.2129082&isFromPublicArea=True&isModal=False | E121: Contratos de prestación de servicios profesionales y de apoyo a la gestión | F121: Contratación directa | G121: Prestación de servicios profesionales y de apoyo a la gestión, o para la ejecución de trabajos artísticos que sólo puedan encomendarse a determinadas personas naturales; | H121: PRESTACIÓN DE SERVICIOS DE APOYO A LA GESTIÓN EN LA EJECUCIÓN DE LABORES ADMINISTRATIVAS DEL PROYECTO DE PREVENCIÓN DE VIOLENCIA INTRAFAMILIAR EN LA LOCALIDAD DE LOS MÁRTIRES | I121: Inversión | J121: Un Nuevo Contrato Social y Ambiental para la Bogotá del Siglo XXI | K121: 3 | L121: =IF(ISERROR(VLOOKUP(K121,Proposito_programa!$C$2:$E$59,2,FALSE))," ",VLOOKUP(K121,Proposito_programa!$C$2:$E$59,2,FALSE)) -> Movilidad social integral | M121: =IF(ISERROR(VLOOKUP(K121,Proposito_programa!$C$2:$E$59,3,FALSE))," ",VLOOKUP(K121,Proposito_programa!$C$2:$E$59,3,FALSE)) -> Propósito 1: Hacer un nuevo contrato social para incrementar la inclusión social, productiva y política | N121: 133011601060000002077 | O121: 0 | P121: 80920065 | Q121: DIEGO ALEJANDRO SILVA ZAPATA | R121: Persona Natural | S121: N/A | T121: N/A | U121: N/A | V121: 10800000 | Z121: 10800000 | AA121: 10800000 | AB121: 2021-07-28 | AC121: 2021-08-03 | AD121: 2022-02-02 | AE121: 6 MESES | AN121: X | AP121: 1
A122: 106-2021 | B122: 2021 | C122: FDLM-CD-106-2021 (59852) | D122: https://community.secop.gov.co/Public/Tendering/OpportunityDetail/Index?noticeUID=CO1.NTC.2142459&isFromPublicArea=True&isModal=False | E122: Contratos de prestación de servicios profesionales y de apoyo a la gestión | F122: Contratación directa | G122: Prestación de servicios profesionales y de apoyo a la gestión, o para la ejecución de trabajos artísticos que sólo puedan encomendarse a determinadas personas naturales; | H122: RESTACIÓN DE SERVICIOS DE APOYO A LA GESTION COMO TECNOLOGO EN LA IMPLEMENTACION DE ESTRATEGIAS DE INTERVENCION QUE PROPENDAN POR LA REDUCCION DEL RIESGO Y ADAPTACION AL CAMBIO CLIMATICO EN LA LOCALIDAD DE LOS MÁRTIRES, EN EL MARCO DEL PROYECTO NO. 2088 | I122: Inversión | J122: Un Nuevo Contrato Social y Ambiental para la Bogotá del Siglo XXI | K122: 3 | L122: =IF(ISERROR(VLOOKUP(K122,Proposito_programa!$C$2:$E$59,2,FALSE))," ",VLOOKUP(K122,Proposito_programa!$C$2:$E$59,2,FALSE)) -> Movilidad social integral | M122: =IF(ISERROR(VLOOKUP(K122,Proposito_programa!$C$2:$E$59,3,FALSE))," ",VLOOKUP(K122,Proposito_programa!$C$2:$E$59,3,FALSE)) -> Propósito 1: Hacer un nuevo contrato social para incrementar la inclusión social, productiva y política | N122: 133011602380000002088 | O122: 0 | P122: 1022349639 | Q122: CRISTIAN CAMILO MONTAÑEZ CAMACHO | R122: Persona Natural | S122: N/A | T122: N/A | U122: N/A | V122: 15340000 | Z122: 15340000 | AA122: 15340000 | AB122: 2021-08-02 | AC122: 2021-08-03 | AD122: 2022-02-02 | AE122: 6 MESES | AN122: X | AP122: 1
A123: 107-2021 | B123: 2021 | C123: FDLM-107-2021 (59851) | D123: https://community.secop.gov.co/Public/Tendering/OpportunityDetail/Index?noticeUID=CO1.NTC.2142179&isFromPublicArea=True&isModal=False | E123: Contratos de prestación de servicios profesionales y de apoyo a la gestión | F123: Contratación directa | G123: Prestación de servicios profesionales y de apoyo a la gestión, o para la ejecución de trabajos artísticos que sólo puedan encomendarse a determinadas personas naturales; | H123: PRESTACIÓN DE SERVICIOS DE APOYO A LA GESTION EN LA IMPLEMENTACION DE ESTRATEGIAS DE INTERVENCION QUE PROPENDAN POR LA REDUCCION DEL RIESGO Y ADAPTACION AL CAMBIO CLIMATICO EN LA LOCALIDAD DE LOS MÁRTIRES, EN EL MARCO DEL PROYECTO NO. 2088 | I123: Inversión | J123: Un Nuevo Contrato Social y Ambiental para la Bogotá del Siglo XXI | K123: 3 | L123: =IF(ISERROR(VLOOKUP(K123,Proposito_programa!$C$2:$E$59,2,FALSE))," ",VLOOKUP(K123,Proposito_programa!$C$2:$E$59,2,FALSE)) -> Movilidad social integral | M123: =IF(ISERROR(VLOOKUP(K123,Proposito_programa!$C$2:$E$59,3,FALSE))," ",VLOOKUP(K123,Proposito_programa!$C$2:$E$59,3,FALSE)) -> Propósito 1: Hacer un nuevo contrato social para incrementar la inclusión social, productiva y política | N123: 133011602380000002088 | O123: 0 | P123: 1000934947 | Q123: NICOOLE JANETH OROZCO GONZALEZ | R123: Persona Natural | S123: N/A | T123: N/A | U123: N/A | V123: 11416667 | Z123: 11416667 | AA123: 11416667 | AB123: 2021-08-02 | AC123: 2021-08-04 | AD123: 2022-02-03 | AE123: 6 MESES | AN123: X | AP123: 1
A124: 108-2021 | B124: 2021 | C124: FDLM-CD-108-2021 (60595) | D124: https://community.secop.gov.co/Public/Tendering/OpportunityDetail/Index?noticeUID=CO1.NTC.2143207&isFromPublicArea=True&isModal=False | E124: Contratos de prestación de servicios profesionales y de apoyo a la gestión | F124: Contratación directa | G124: Prestación de servicios profesionales y de apoyo a la gestión, o para la ejecución de trabajos artísticos que sólo puedan encomendarse a determinadas personas naturales; | H124: APOYAR JURIDICAMENTE LA EJECUCIÓN DE ACCIONES REQUERIDAS PARA EL TRÁMITE E IMPULSO PROCESAL DE LAS ACTUACIONES CONTRAVENCIONALES Y/O QUERELLAS QUE CURSEN EN LAS INSPECCIONES DE POLICÍA DE LA LOCALIDAD DE LOS MÁRTIRES | I124: Inversión | J124: Un Nuevo Contrato Social y Ambiental para la Bogotá del Siglo XXI | K124: 3 | L124: =IF(ISERROR(VLOOKUP(K124,Proposito_programa!$C$2:$E$59,2,FALSE))," ",VLOOKUP(K124,Proposito_programa!$C$2:$E$59,2,FALSE)) -> Movilidad social integral | M124: =IF(ISERROR(VLOOKUP(K124,Proposito_programa!$C$2:$E$59,3,FALSE))," ",VLOOKUP(K124,Proposito_programa!$C$2:$E$59,3,FALSE)) -> Propósito 1: Hacer un nuevo contrato social para incrementar la inclusión social, productiva y política | N124: 133011605570000002099 | O124: 0 | P124: 51921603 | Q124: AURA ALICIA INFANTE GARCIA | R124: Persona Natural | S124: N/A | T124: N/A | U124: N/A | V124: 9800000 | Z124: 9800000 | AA124: 7000000 | AB124: 2021-08-06 | AC124: 2021-08-10 | AD124: 2021-10-09 | AE124: 2 MESES | AN124: X | AP124: 0.7142857143
A125: 109-2021 | B125: 2021 | C125: FDLM-CD-109-2021 (60595) | D125: https://community.secop.gov.co/Public/Tendering/ContractNoticePhases/View?PPI=CO1.PPI.14467508&isFromPublicArea=True&isModal=False | E125: Contratos de prestación de servicios profesionales y de apoyo a la gestión | F125: Contratación directa | G125: Prestación de servicios profesionales y de apoyo a la gestión, o para la ejecución de trabajos artísticos que sólo puedan encomendarse a determinadas personas naturales; | H125: APOYAR JURÍDICAMENTE LA EJECUCIÓN DE ACCIONES REQUERIDAS PARA EL TRÁMITE E IMPULSO PROCESAL DE LAS ACTUACIONES CONTRAVENCIONALES Y/O QUERELLAS QUE CURSEN EN LAS INSPECCIONES DE POLICÍA DE LA LOCALIDAD DE LOS MÁRTIRES. | I125: Inversión | J125: Un Nuevo Contrato Social y Ambiental para la Bogotá del Siglo XXI | K125: 3 | L125: =IF(ISERROR(VLOOKUP(K125,Proposito_programa!$C$2:$E$59,2,FALSE))," ",VLOOKUP(K125,Proposito_programa!$C$2:$E$59,2,FALSE)) -> Movilidad social integral | M125: =IF(ISERROR(VLOOKUP(K125,Proposito_programa!$C$2:$E$59,3,FALSE))," ",VLOOKUP(K125,Proposito_programa!$C$2:$E$59,3,FALSE)) -> Propósito 1: Hacer un nuevo contrato social para incrementar la inclusión social, productiva y política | N125: 133011605570000002099 | O125: 0 | P125: 1007539578 | Q125: JUAN PABLO TORRES ALVAREZ | R125: Persona Natural | S125: N/A | T125: N/A | U125: N/A | V125: 9800000 | Z125: 9800000 | AA125: 8600000 | AB125: 2021-08-05 | AC125: 2021-08-06 | AD125: 2021-10-05 | AE125: 2 MESES | AN125: X | AP125: 0.8775510204
A126: 110-2021 | B126: 2021 | C126: FDLM-CD-110-2021 (59620) | D126: https://community.secop.gov.co/Public/Tendering/OpportunityDetail/Index?noticeUID=CO1.NTC.2163156&isFromPublicArea=True&isModal=False | E126: Contratos de prestación de servicios profesionales y de apoyo a la gestión | F126: Contratación directa | G126: Prestación de servicios profesionales y de apoyo a la gestión, o para la ejecución de trabajos artísticos que sólo puedan encomendarse a determinadas personas naturales; | H126: CONTRATAR LA PRESTACIÓN DE SERVICIOS PROFESIONALES COMO PSICÓLOGO(A) EN LA EJECUCIÓN DEL PROYECTO DE PREVENCIÓN DE VIOLENCIA INTRAFAMILIAR, VIOLENCIA SEXUAL EN EL CONTEXTO FAMILIAR Y PROMOCIÓN DEL BUEN TRATO Y ENTORNO PROTECTORES PARA POBLACIONES EN SITUACIÓN DE RIESGO Y DE POSIBLES VULNERACIONES DE DERECHOS EN LA LOCALIDAD DE LOS MÁRTIRES | I126: Inversión | J126: Un Nuevo Contrato Social y Ambiental para la Bogotá del Siglo XXI | K126: 3 | L126: =IF(ISERROR(VLOOKUP(K126,Proposito_programa!$C$2:$E$59,2,FALSE))," ",VLOOKUP(K126,Proposito_programa!$C$2:$E$59,2,FALSE)) -> Movilidad social integral | M126: =IF(ISERROR(VLOOKUP(K126,Proposito_programa!$C$2:$E$59,3,FALSE))," ",VLOOKUP(K126,Proposito_programa!$C$2:$E$59,3,FALSE)) -> Propósito 1: Hacer un nuevo contrato social para incrementar la inclusión social, productiva y política | N126: 133011601060000002077 | O126: 0 | P126: 19234991 | Q126: EDUARDO VEGA GARCIA | R126: Persona Natural | S126: N/A | T126: N/A | U126: N/A | V126: 21750000 | Z126: 21750000 | AA126: 21750000 | AB126: 2021-08-11 | AC126: 2021-08-12 | AD126: 2022-01-12 | AE126: 5 MESES | AN126: X | AP126: 1
A127: 111-2021 | B127: 2021 | C127: FDLM-CD-111-2021 (59997) | D127: https://community.secop.gov.co/Public/Tendering/OpportunityDetail/Index?noticeUID=CO1.NTC.2164685&isFromPublicArea=True&isModal=False | E127: Contratos de prestación de servicios profesionales y de apoyo a la gestión | F127: Contratación directa | G127: Prestación de servicios profesionales y de apoyo a la gestión, o para la ejecución de trabajos artísticos que sólo puedan encomendarse a determinadas personas naturales; | H127: PRESTACIÓN DE SERVICIOS DE APOYO A LA GESTION EN LA IMPLEMENTACION DE ESTRATEGIAS DE INTERVENCION QUE PROPENDAN POR LA REDUCCION DEL RIESGO Y ADAPTACION AL CAMBIO CLIMATICO EN LA LOCALIDAD DE LOS MÁRTIRES, EN EL MARCO DEL PROYECTO NO. 2088 | I127: Inversión | J127: Un Nuevo Contrato Social y Ambiental para la Bogotá del Siglo XXI | K127: 3 | L127: =IF(ISERROR(VLOOKUP(K127,Proposito_programa!$C$2:$E$59,2,FALSE))," ",VLOOKUP(K127,Proposito_programa!$C$2:$E$59,2,FALSE)) -> Movilidad social integral | M127: =IF(ISERROR(VLOOKUP(K127,Proposito_programa!$C$2:$E$59,3,FALSE))," ",VLOOKUP(K127,Proposito_programa!$C$2:$E$59,3,FALSE)) -> Propósito 1: Hacer un nuevo contrato social para incrementar la inclusión social, productiva y política | N127: 133011602380000002088 | O127: 0 | P127: 79863965 | Q127: FREDY ALONSO SANCHEZ RAMIREZ | R127: Persona Natural | S127: N/A | T127: N/A | U127: N/A | V127: 10750000 | Z127: 10750000 | AA127: 10750000 | AB127: 2021-08-12 | AC127: 2021-08-12 | AD127: 2022-02-09 | AE127: 178 DIAS | AN127: X | AP127: 1
A128: 112-2021 | B128: 2021 | C128: FDLM-CD-112-2021 (59621) | D128: https://community.secop.gov.co/Public/Tendering/OpportunityDetail/Index?noticeUID=CO1.NTC.2170466&isFromPublicArea=True&isModal=False | E128: Contratos de prestación de servicios profesionales y de apoyo a la gestión | F128: Contratación directa | G128: Prestación de servicios profesionales y de apoyo a la gestión, o para la ejecución de trabajos artísticos que sólo puedan encomendarse a determinadas personas naturales; | H128: CONTRATAR LA PRESTACIÓN DE SERVICIOS PROFESIONALES COMO TRABAJADOR(A) SOCIAL EN LA EJECUCIÓN DEL PROYECTO DE PREVENCIÓN DE VIOLENCIA INTRAFAMILIAR, VIOLENCIA SEXUAL EN EL CONTEXTO FAMILIAR Y PROMOCIÓN DEL BUEN TRATO Y ENTORNO PROTECTORES PARA POBLACIONES EN SITUACIÓN DE RIESGO Y DE POSIBLES VULNERACIONES DE DERECHOS EN LA LOCALIDAD DE LOS MÁRTIRES. | I128: Inversión | J128: Un Nuevo Contrato Social y Ambiental para la Bogotá del Siglo XXI | K128: 3 | L128: =IF(ISERROR(VLOOKUP(K128,Proposito_programa!$C$2:$E$59,2,FALSE))," ",VLOOKUP(K128,Proposito_programa!$C$2:$E$59,2,FALSE)) -> Movilidad social integral | M128: =IF(ISERROR(VLOOKUP(K128,Proposito_programa!$C$2:$E$59,3,FALSE))," ",VLOOKUP(K128,Proposito_programa!$C$2:$E$59,3,FALSE)) -> Propósito 1: Hacer un nuevo contrato social para incrementar la inclusión social, productiva y política | N128: 133011601060000002077 | O128: 0 | P128: 52907964 | Q128: ZULY ANDREA DUARTE | R128: Persona Natural | S128: N/A | T128: N/A | U128: N/A | V128: 21750000 | Z128: 21750000 | AA128: 21750000 | AB128: 2021-08-12 | AC128: 2021-08-17 | AD128: 2022-01-16 | AE128: 5 MESES | AN128: X | AP128: 1
A129: 113-2021 | B129: 2021 | C129: FDLM-CD-113-2021 (60229) | D129: https://community.secop.gov.co/Public/Tendering/OpportunityDetail/Index?noticeUID=CO1.NTC.2192686&isFromPublicArea=True&isModal=False | E129: Contratos de prestación de servicios profesionales y de apoyo a la gestión | F129: Contratación directa | G129: Prestación de servicios profesionales y de apoyo a la gestión, o para la ejecución de trabajos artísticos que sólo puedan encomendarse a determinadas personas naturales; | H129: PRESTACIÓN DE SERVICIOS PROFESIONALES PARA APOYAR A LA ALCALDÍA LOCAL DE LOS MÁRTIRES EN LA PROMOCIÓN, ARTICULACIÓN, ACOMPAÑAMIENTO Y SEGUIMIENTO PARA LA ATENCIÓN Y PROTECCIÓN DE LOS ANIMALES DOMÉSTICOS Y SILVESTRES DE LA LOCALIDAD. | I129: Inversión | J129: Un Nuevo Contrato Social y Ambiental para la Bogotá del Siglo XXI | K129: 3 | L129: =IF(ISERROR(VLOOKUP(K129,Proposito_programa!$C$2:$E$59,2,FALSE))," ",VLOOKUP(K129,Proposito_programa!$C$2:$E$59,2,FALSE)) -> Movilidad social integral | M129: =IF(ISERROR(VLOOKUP(K129,Proposito_programa!$C$2:$E$59,3,FALSE))," ",VLOOKUP(K129,Proposito_programa!$C$2:$E$59,3,FALSE)) -> Propósito 1: Hacer un nuevo contrato social para incrementar la inclusión social, productiva y política | N129: 133011602340000002085 | O129: 0 | P129: 52867935 | Q129: ELSA MARGARITA FLOREZ LOPEZ | R129: Persona Natural | S129: N/A | T129: N/A | U129: N/A | V129: 17614900 | Z129: 17614900 | AA129: 4942467 | AB129: 2021-08-24 | AC129: 2021-08-27 | AD129: 2021-12-31 | AE129: 127 DIAS | AN129: X | AP129: 0.2805844484
A130: 114-2021 | B130: 2021 | C130: FDLM-CD-114-2021 (59617) | D130: https://community.secop.gov.co/Public/Tendering/OpportunityDetail/Index?noticeUID=CO1.NTC.2192326&isFromPublicArea=True&isModal=False | E130: Contratos de prestación de servicios profesionales y de apoyo a la gestión | F130: Contratación directa | G130: Prestación de servicios profesionales y de apoyo a la gestión, o para la ejecución de trabajos artísticos que sólo puedan encomendarse a determinadas personas naturales; | H130: CONTRATAR LA PRESTACIÓN DE SERVICIOS PROFESIONALES EN LA COORDINACIÓN PARA LA EJECUCIÓN DEL PROYECTO DE PREVENCIÓN DE VIOLENCIA INTRAFAMILIAR, VIOLENCIA SEXUAL EN EL CONTEXTO FAMILIAR Y PROMOCIÓN DEL BUEN TRATO Y ENTORNO PROTECTORES PARA POBLACIONES EN SITUACIÓN DE RIESGO Y DE POSIBLES VULNERACIONES DE DERECHOS EN LA LOCALIDAD DE LOS MÁRTIRES. | I130: Inversión | J130: Un Nuevo Contrato Social y Ambiental para la Bogotá del Siglo XXI | K130: 3 | L130: =IF(ISERROR(VLOOKUP(K130,Proposito_programa!$C$2:$E$59,2,FALSE))," ",VLOOKUP(K130,Proposito_programa!$C$2:$E$59,2,FALSE)) -> Movilidad social integral | M130: =IF(ISERROR(VLOOKUP(K130,Proposito_programa!$C$2:$E$59,3,FALSE))," ",VLOOKUP(K130,Proposito_programa!$C$2:$E$59,3,FALSE)) -> Propósito 1: Hacer un nuevo contrato social para incrementar la inclusión social, productiva y política | N130: 133011601060000002077 | O130: 0 | P130: 79987860 | Q130: DANIEL MAURICIO GARCÍA LAMUS | R130: Persona Natural | S130: N/A | T130: N/A | U130: N/A | V130: 30000000 | Z130: 30000000 | AA130: 24000000 | AB130: 2021-08-24 | AC130: 2021-08-25 | AD130: 2022-02-24 | AE130: 6 MESES | AM130: X | AP130: 0.8
A131: 115-2021 | B131: 2021 | C131: FDLM-CD-115-2021 (61134) | D131: https://community.secop.gov.co/Public/Tendering/OpportunityDetail/Index?noticeUID=CO1.NTC.2218273&isFromPublicArea=True&isModal=False | E131: Contratos de prestación de servicios profesionales y de apoyo a la gestión | F131: Contratación directa | G131: Prestación de servicios profesionales y de apoyo a la gestión, o para la ejecución de trabajos artísticos que sólo puedan encomendarse a determinadas personas naturales; | H131: PRESTAR LOS SERVICIOS PROFESIONALES COMO ABOGADO PARA APOYAR LOS ASUNTOS JURÍDICOS QUE SE REQUIERAN EN EL PROYECTO 2084 TERRITORIO EFICIENTE EN EL MANEJO Y DISPOSICIÓN DE RESIDUOS Y DEMÁS PROYECTOS DE INVERSIÓN DE LA LOCALIDAD, ASÍ COMO EN LAS ACTIVIDADES RELACIONADAS CON LA GESTIÓN CONTRACTUAL DEL FONDO DE DESARROLLO LOCAL DE LOS MÁRTIRES | I131: Inversión | J131: Un Nuevo Contrato Social y Ambiental para la Bogotá del Siglo XXI | K131: 3 | L131: =IF(ISERROR(VLOOKUP(K131,Proposito_programa!$C$2:$E$59,2,FALSE))," ",VLOOKUP(K131,Proposito_programa!$C$2:$E$59,2,FALSE)) -> Movilidad social integral | M131: =IF(ISERROR(VLOOKUP(K131,Proposito_programa!$C$2:$E$59,3,FALSE))," ",VLOOKUP(K131,Proposito_programa!$C$2:$E$59,3,FALSE)) -> Propósito 1: Hacer un nuevo contrato social para incrementar la inclusión social, productiva y política | N131: 133011602380000002088 | O131: 0 | P131: 53119341 | Q131: MARIA CAMILA LOPEZ FERNANDEZ | R131: Persona Natural | S131: N/A | T131: N/A | U131: N/A | V131: 16526666 | Z131: 16526666 | AA131: 8416667 | AB131: 2021-09-01 | AC131: 2021-09-03 | AD131: 2022-01-02 | AE131: 4 MESES | AN131: X | AP131: 0.5092779754
A132: 116-2021 | B132: 2021 | C132: FDLM-CD-116-2021 (61128) | D132: https://community.secop.gov.co/Public/Tendering/OpportunityDetail/Index?noticeUID=CO1.NTC.2218092&isFromPublicArea=True&isModal=False | E132: Contratos de prestación de servicios profesionales y de apoyo a la gestión | F132: Contratación directa | G132: Prestación de servicios profesionales y de apoyo a la gestión, o para la ejecución de trabajos artísticos que sólo puedan encomendarse a determinadas personas naturales; | H132: PRESTAR LOS SERVICIOS PROFESIONALES COMO ABOGADO PARA APOYAR LOS ASUNTOS JURÍDICOS QUE SE REQUIERAN EN EL PROYECTO 2075 RECREACIÓN Y DEPORTE PARA UNA VIDA MÁS SANA Y DEMÁS PROYECTOS DE INVERSIÓN DE LA LOCALIDAD, ASÍ COMO EN LAS ACTIVIDADES RELACIONADAS CON LA GESTIÓN CONTRACTUAL DEL FONDO DE DESARROLLO LOCAL DE LOS MÁRTIRES | I132: Inversión | J132: Un Nuevo Contrato Social y Ambiental para la Bogotá del Siglo XXI | K132: 3 | L132: =IF(ISERROR(VLOOKUP(K132,Proposito_programa!$C$2:$E$59,2,FALSE))," ",VLOOKUP(K132,Proposito_programa!$C$2:$E$59,2,FALSE)) -> Movilidad social integral | M132: =IF(ISERROR(VLOOKUP(K132,Proposito_programa!$C$2:$E$59,3,FALSE))," ",VLOOKUP(K132,Proposito_programa!$C$2:$E$59,3,FALSE)) -> Propósito 1: Hacer un nuevo contrato social para incrementar la inclusión social, productiva y política | N132: 133011601200000002075 | O132: 0 | P132: 79991580 | Q132: RENNE ROMERO HERNANDEZ | R132: Persona Natural | S132: N/A | T132: N/A | U132: N/A | V132: 22000000 | Y132: 0 | Z132: 22000000 | AA132: 19799998 | AB132: 2021-09-01 | AC132: 2021-09-03 | AD132: 2022-01-02 | AE132: 4 MESES | AH132: 1022419985 | AI132: ERIK ASDRUBAL SALAZAR ROJAS | AJ132: 2021-11-23 | AK132: 22000000 | AN132: X | AP132: 0.8999999091
A133: 117-2021 | B133: 2021 | C133: FDLM-CD-117-2021 (61172) | D133: https://community.secop.gov.co/Public/Tendering/OpportunityDetail/Index?noticeUID=CO1.NTC.2218192&isFromPublicArea=True&isModal=False | E133: Contratos de prestación de servicios profesionales y de apoyo a la gestión | F133: Contratación directa | G133: Prestación de servicios profesionales y de apoyo a la gestión, o para la ejecución de trabajos artísticos que sólo puedan encomendarse a determinadas personas naturales; | H133: PRESTAR LOS SERVICIOS PROFESIONALES COMO ABOGADO PARA APOYAR LOS ASUNTOS JURÍDICOS QUE SE REQUIERAN EN EL PROYECTO 2098 SEGURIDAD Y JUSTICIA COMUNITARIA Y DEMÁS PROYECTOS DE INVERSIÓN DE LA LOCALIDAD, ASÍ COMO EN LAS ACTIVIDADES RELACIONADAS CON LA GESTIÓN CONTRACTUAL DEL FONDO DE DESARROLLO LOCAL DE LOS MÁRTIRES | I133: Inversión | J133: Un Nuevo Contrato Social y Ambiental para la Bogotá del Siglo XXI | K133: 3 | L133: =IF(ISERROR(VLOOKUP(K133,Proposito_programa!$C$2:$E$59,2,FALSE))," ",VLOOKUP(K133,Proposito_programa!$C$2:$E$59,2,FALSE)) -> Movilidad social integral | M133: =IF(ISERROR(VLOOKUP(K133,Proposito_programa!$C$2:$E$59,3,FALSE))," ",VLOOKUP(K133,Proposito_programa!$C$2:$E$59,3,FALSE)) -> Propósito 1: Hacer un nuevo contrato social para incrementar la inclusión social, productiva y política | N133: 133011603480000002098 | O133: 0 | P133: 80770210 | Q133: SERGIO DANIEL BORBON TORRES | R133: Persona Natural | S133: N/A | T133: N/A | U133: N/A | V133: 22000000 | Z133: 22000000 | AA133: 19800000 | AB133: 2021-09-01 | AC133: 2021-09-03 | AD133: 2022-01-02 | AE133: 4 MESES | AN133: X | AP133: 0.9
A134: 118-2021 | B134: 2021 | C134: FDLM-CD-118-2021 (61139) | D134: https://community.secop.gov.co/Public/Tendering/OpportunityDetail/Index?noticeUID=CO1.NTC.2218907&isFromPublicArea=True&isModal=False | E134: Contratos de prestación de servicios profesionales y de apoyo a la gestión | F134: Contratación directa | G134: Prestación de servicios profesionales y de apoyo a la gestión, o para la ejecución de trabajos artísticos que sólo puedan encomendarse a determinadas personas naturales; | H134: PRESTAR LOS SERVICIOS PROFESIONALES PARA APOYAR LA FORMULACIÓN, GESTIÓN Y SEGUIMIENTO DE LAS ACTIVIDADES DEL FONDO ENFOCADAS A LA GESTIÓN ADMINISTRATIVA Y AMBIENTAL INTERNA Y EXTERNA, EN PRO DE LA MITIGACIÓN DE LOS DIFERENTES IMPACTOS AMBIENTALES DE LA CONSERVACIÓN LOCALIZACIÓN | I134: Inversión | J134: Un Nuevo Contrato Social y Ambiental para la Bogotá del Siglo XXI | K134: 3 | L134: =IF(ISERROR(VLOOKUP(K134,Proposito_programa!$C$2:$E$59,2,FALSE))," ",VLOOKUP(K134,Proposito_programa!$C$2:$E$59,2,FALSE)) -> Movilidad social integral | M134: =IF(ISERROR(VLOOKUP(K134,Proposito_programa!$C$2:$E$59,3,FALSE))," ",VLOOKUP(K134,Proposito_programa!$C$2:$E$59,3,FALSE)) -> Propósito 1: Hacer un nuevo contrato social para incrementar la inclusión social, productiva y política | N134: 133011602270000002086 | O134: 0 | P134: 1012399674 | Q134: GINNA LIZETH SERNA GARCIA | R134: Persona Natural | S134: N/A | T134: N/A | U134: N/A | V134: 17444000 | Z134: 17444000 | AA134: 17444000 | AB134: 2021-09-02 | AC134: 2021-09-03 | AD134: 2022-01-02 | AE134: 4 MESES | AN134: X | AP134: 1
A135: 119-2021 | B135: 2021 | C135: FDLM-CD-119-2021 (61149) | D135: https://community.secop.gov.co/Public/Tendering/OpportunityDetail/Index?noticeUID=CO1.NTC.2218709&isFromPublicArea=True&isModal=False | E135: Contratos de prestación de servicios profesionales y de apoyo a la gestión | F135: Contratación directa | G135: Prestación de servicios profesionales y de apoyo a la gestión, o para la ejecución de trabajos artísticos que sólo puedan encomendarse a determinadas personas naturales; | H135: PRESTAR LOS SERVICIOS PROFESIONALES PARA LA FORMULACIÓN PRECONTRACTUAL PARTICIPATIVA, APOYO A LA SUPERVISIÓN, SEGUIMIENTO, ACOMPAÑAMIENTO, ATENCIÓN Y EVALUACIÓN DE LOS PROYECTOS E INSTANCIAS DE ARTICULACIÓN INTERINSTITUCIONAL Y PARTICIPACIÓN LOCAL QUE SE REQUIERAN EN EL PROYECTO 2077 TERRITORIOS DIVERSOS Y LIBRES DE VIOLENCIA | I135: Inversión | J135: Un Nuevo Contrato Social y Ambiental para la Bogotá del Siglo XXI | K135: 3 | L135: =IF(ISERROR(VLOOKUP(K135,Proposito_programa!$C$2:$E$59,2,FALSE))," ",VLOOKUP(K135,Proposito_programa!$C$2:$E$59,2,FALSE)) -> Movilidad social integral | M135: =IF(ISERROR(VLOOKUP(K135,Proposito_programa!$C$2:$E$59,3,FALSE))," ",VLOOKUP(K135,Proposito_programa!$C$2:$E$59,3,FALSE)) -> Propósito 1: Hacer un nuevo contrato social para incrementar la inclusión social, productiva y política | N135: 133011601060000002077 | O135: 0 | P135: 1019028211 | Q135: LAURA CATALINA MARTINEZ CASTILLO | R135: Persona Natural | S135: N/A | T135: N/A | U135: N/A | V135: 22000000 | Z135: 22000000 | AA135: 7464999 | AB135: 2021-09-02 | AC135: 2021-09-03 | AD135: 2022-01-02 | AE135: 4 MESES | AN135: X | AP135: 0.3393181364
A136: 120-2021 | B136: 2021 | C136: FDLM-CD-120-2021 (61125) | D136: https://community.secop.gov.co/Public/Tendering/OpportunityDetail/Index?noticeUID=CO1.NTC.2218912&isFromPublicArea=True&isModal=False | E136: Contratos de prestación de servicios profesionales y de apoyo a la gestión | F136: Contratación directa | G136: Prestación de servicios profesionales y de apoyo a la gestión, o para la ejecución de trabajos artísticos que sólo puedan encomendarse a determinadas personas naturales; | H136: PRESTAR LOS SERVICIOS PROFESIONALES COMO ABOGADO PARA APOYAR LOS ASUNTOS JURÍDICOS DEL ESPACIO PÚBLICO Y OTRAS MATERIAS QUE SE REQUIERAN EN EL MARCO DEL PROYECTO 2080 PAISAJE URBANO AMIGABLE Y SEGURO | I136: Inversión | J136: Un Nuevo Contrato Social y Ambiental para la Bogotá del Siglo XXI | K136: 3 | L136: =IF(ISERROR(VLOOKUP(K136,Proposito_programa!$C$2:$E$59,2,FALSE))," ",VLOOKUP(K136,Proposito_programa!$C$2:$E$59,2,FALSE)) -> Movilidad social integral | M136: =IF(ISERROR(VLOOKUP(K136,Proposito_programa!$C$2:$E$59,3,FALSE))," ",VLOOKUP(K136,Proposito_programa!$C$2:$E$59,3,FALSE)) -> Propósito 1: Hacer un nuevo contrato social para incrementar la inclusión social, productiva y política | N136: 133011603450000002080 | O136: 0 | P136: 53115231 | Q136: LAURA JANNETH RICO BELTRAN | R136: Persona Natural | S136: N/A | T136: N/A | U136: N/A | V136: 20000000 | Z136: 20000000 | AA136: 12500000 | AB136: 2021-09-02 | AC136: 2021-09-03 | AD136: 2022-01-02 | AE136: 4 MESES | AN136: X | AP136: 0.625
A137: 121-2021 | B137: 2021 | C137: FDLM-CD-121-2021 (61141) | D137: https://community.secop.gov.co/Public/Tendering/OpportunityDetail/Index?noticeUID=CO1.NTC.2219098&isFromPublicArea=True&isModal=False | E137: Contratos de prestación de servicios profesionales y de apoyo a la gestión | F137: Contratación directa | G137: Prestación de servicios profesionales y de apoyo a la gestión, o para la ejecución de trabajos artísticos que sólo puedan encomendarse a determinadas personas naturales; | H137: PRESTAR LOS SERVICIOS PROFESIONALES CON EL FONDO PARA LA FORMULACIÓN, GESTIÓN, FORTALECIMIENTO, SOSTENIBILIDAD Y MEJORA DE LAS ACTIVIDADES AMBIENTALES ORIENTADAS A LA MITIGACIÓN DE LOS DIFERENTES IMPACTOS Y LA CONSERVACIÓN DE LOS RECURSOS NATURALES DE LA LOCALIDAD | I137: Inversión | J137: Un Nuevo Contrato Social y Ambiental para la Bogotá del Siglo XXI | K137: 3 | L137: =IF(ISERROR(VLOOKUP(K137,Proposito_programa!$C$2:$E$59,2,FALSE))," ",VLOOKUP(K137,Proposito_programa!$C$2:$E$59,2,FALSE)) -> Movilidad social integral | M137: =IF(ISERROR(VLOOKUP(K137,Proposito_programa!$C$2:$E$59,3,FALSE))," ",VLOOKUP(K137,Proposito_programa!$C$2:$E$59,3,FALSE)) -> Propósito 1: Hacer un nuevo contrato social para incrementar la inclusión social, productiva y política | N137: 133011602270000002086 | O137: 0 | P137: 1019115093 | Q137: WILLINTON ALDEMAR TOLOSA ALBA | R137: Persona Natural | S137: N/A | T137: N/A | U137: N/A | V137: 20000000 | Z137: 20000000 | AA137: 20000000 | AB137: 2021-09-02 | AC137: 2021-09-06 | AD137: 2022-01-05 | AE137: 4 MESES | AN137: X | AP137: 1
A138: 122-2021 | B138: 2021 | C138: FDLM-CD-122-2021 (61174) | D138: https://community.secop.gov.co/Public/Tendering/OpportunityDetail/Index?noticeUID=CO1.NTC.2219097&isFromPublicArea=True&isModal=False | E138: Contratos de prestación de servicios profesionales y de apoyo a la gestión | F138: Contratación directa | G138: Prestación de servicios profesionales y de apoyo a la gestión, o para la ejecución de trabajos artísticos que sólo puedan encomendarse a determinadas personas naturales; | H138: PRESTAR SUS SERVICIOS PROFESIONALES PARA FORTALECER LOS MEDIOS DE REPRESENTACIÓN LOCAL Y DIVULGACIÓN DE CONTENIDOS RELACIONADOS CON LA PROTECCIÓN Y EL BIENESTAR ANIMAL EN EL TERRITORIO, EN EL MARCO DEL PROYECTO 2085 | I138: Inversión | J138: Un Nuevo Contrato Social y Ambiental para la Bogotá del Siglo XXI | K138: 3 | L138: =IF(ISERROR(VLOOKUP(K138,Proposito_programa!$C$2:$E$59,2,FALSE))," ",VLOOKUP(K138,Proposito_programa!$C$2:$E$59,2,FALSE)) -> Movilidad social integral | M138: =IF(ISERROR(VLOOKUP(K138,Proposito_programa!$C$2:$E$59,3,FALSE))," ",VLOOKUP(K138,Proposito_programa!$C$2:$E$59,3,FALSE)) -> Propósito 1: Hacer un nuevo contrato social para incrementar la inclusión social, productiva y política | N138: 133011602340000002085 | O138: 0 | P138: 1018469710 | Q138: MARIA ALEJANDRA ARIZA ROBELTO | R138: Persona Natural | S138: N/A | T138: N/A | U138: N/A | V138: 20000000 | Z138: 20000000 | AA138: 17500000 | AB138: 2021-09-02 | AC138: 2021-09-06 | AD138: 2022-01-05 | AE138: 4 MESES | AN138: X | AP138: 0.875
A139: 123-2021 | B139: 2021 | C139: FDLM-CD-123-2021 (61178) | D139: https://community.secop.gov.co/Public/Tendering/OpportunityDetail/Index?noticeUID=CO1.NTC.2220527&isFromPublicArea=True&isModal=False | E139: Contratos de prestación de servicios profesionales y de apoyo a la gestión | F139: Contratación directa | G139: Prestación de servicios profesionales y de apoyo a la gestión, o para la ejecución de trabajos artísticos que sólo puedan encomendarse a determinadas personas naturales; | H139: PRESTAR SUS SERVICIOS PROFESIONALES PARA FORTALECER LOS MEDIOS DE REPRESENTACIÓN LOCAL Y DIVULGACIÓN DE CONTENIDOS RELACIONADOS CON ACCIONES DE EMPODERAMIENTO Y DESARROLLO DE CAPACIDADES QUE FORTALEZCAN LA CONSTRUCCIÓN DE CIUDADANÍA Y LA PREVENCIÓN DE LOS CASOS DE FEMINICIDIOS YESTICIAS OTRAS MARCO DEL PROYECTO 2089. | I139: Inversión | J139: Un Nuevo Contrato Social y Ambiental para la Bogotá del Siglo XXI | K139: 3 | L139: =IF(ISERROR(VLOOKUP(K139,Proposito_programa!$C$2:$E$59,2,FALSE))," ",VLOOKUP(K139,Proposito_programa!$C$2:$E$59,2,FALSE)) -> Movilidad social integral | M139: =IF(ISERROR(VLOOKUP(K139,Proposito_programa!$C$2:$E$59,3,FALSE))," ",VLOOKUP(K139,Proposito_programa!$C$2:$E$59,3,FALSE)) -> Propósito 1: Hacer un nuevo contrato social para incrementar la inclusión social, productiva y política | N139: 133011603400000002089 | O139: 0 | P139: 79943624 | Q139: FRANCISCO ARTURO TAFUR LOPEZ | R139: Persona Natural | S139: N/A | T139: N/A | U139: N/A | V139: 20000000 | Y139: 0 | Z139: 20000000 | AA139: 17166333 | AB139: 2021-09-02 | AC139: 2021-09-06 | AD139: 2022-01-05 | AE139: 4 MESES | AH139: 1233499200 | AI139: LAURA MELISSA GUEVARA | AJ139: 2021-09-13 | AK139: 20000000 | AN139: X | AP139: 0.85831665
A140: 124-2021 | B140: 2021 | C140: FDLM-CD-124-2021 (61169) | D140: https://community.secop.gov.co/Public/Tendering/OpportunityDetail/Index?noticeUID=CO1.NTC.2219392&isFromPublicArea=True&isModal=False | E140: Contratos de prestación de servicios profesionales y de apoyo a la gestión | F140: Contratación directa | G140: Prestación de servicios profesionales y de apoyo a la gestión, o para la ejecución de trabajos artísticos que sólo puedan encomendarse a determinadas personas naturales; | H140: PRESTAR SUS SERVICIOS PROFESIONALES PARA FORTALECER LOS MEDIOS DE REPRESENTACIÓN LOCAL Y DIVULGACIÓN DE CONTENIDOS RELACIONADOS CON ACCIONES QUE PERMITAN FOMENTAR Y PROMOVER CAMBIOS EN LA CULTURA CIUDADANA EN TEMAS DE SEPARACIÓN EN LA FUENTE EN LA LOCALIDAD DE LOS PROYECTO MARCORTIRES 20. | I140: Inversión | J140: Un Nuevo Contrato Social y Ambiental para la Bogotá del Siglo XXI | K140: 3 | L140: =IF(ISERROR(VLOOKUP(K140,Proposito_programa!$C$2:$E$59,2,FALSE))," ",VLOOKUP(K140,Proposito_programa!$C$2:$E$59,2,FALSE)) -> Movilidad social integral | M140: =IF(ISERROR(VLOOKUP(K140,Proposito_programa!$C$2:$E$59,3,FALSE))," ",VLOOKUP(K140,Proposito_programa!$C$2:$E$59,3,FALSE)) -> Propósito 1: Hacer un nuevo contrato social para incrementar la inclusión social, productiva y política | N140: 133011602380000002084 | O140: 0 | P140: 1026283071 | Q140: JUAN FELIPE BOCANEGRA LEON | R140: Persona Natural | S140: N/A | T140: N/A | U140: N/A | V140: 20000000 | Z140: 20000000 | AA140: 14166667 | AB140: 2021-09-03 | AC140: 2021-09-06 | AD140: 2022-01-05 | AE140: 4 MESES | AN140: X | AP140: 0.70833335
A141: 125-2021 | B141: 2021 | C141: FDLM-CD-125-2021(61170) | D141: https://community.secop.gov.co/Public/Tendering/OpportunityDetail/Index?noticeUID=CO1.NTC.2219731&isFromPublicArea=True&isModal=False | E141: Contratos de prestación de servicios profesionales y de apoyo a la gestión | F141: Contratación directa | G141: Prestación de servicios profesionales y de apoyo a la gestión, o para la ejecución de trabajos artísticos que sólo puedan encomendarse a determinadas personas naturales; | H141: PRESTAR LOS SERVICIOS PROFESIONALES PARA APOYAR Y ACOMPAÑAR LAS INSTANCIAS DE COORDINACIÓN INTERINSTITUCIONALES E INSTANCIAS DE PARTICIPACIÓN LOCALES, ASÍ COMO EN LA FORMULACIÓN PRE CONTRACTUAL, APOYO A LA QUE SE REQUIERAN EN EL PROYECTO 2089 "MÁRTIRES LIBRE DE VIOLENCIAS" Y DEMÁS PROYECTOS DE INVERSIÓN DE LA LOCALIDAD,, ASÍ COMO LAS DEMÁS ACTIVIDADES RELACIONADAS CON LA PLANEACIÓN Y PARTICIPACIÓN DE LA LOCALIDAD DE LOS MÁRTIRES, EN CUMPLIMIENTO DEL PLAN DE DESARROLLO LOCAL VIGENTE | I141: Inversión | J141: Un Nuevo Contrato Social y Ambiental para la Bogotá del Siglo XXI | K141: 3 | L141: =IF(ISERROR(VLOOKUP(K141,Proposito_programa!$C$2:$E$59,2,FALSE))," ",VLOOKUP(K141,Proposito_programa!$C$2:$E$59,2,FALSE)) -> Movilidad social integral | M141: =IF(ISERROR(VLOOKUP(K141,Proposito_programa!$C$2:$E$59,3,FALSE))," ",VLOOKUP(K141,Proposito_programa!$C$2:$E$59,3,FALSE)) -> Propósito 1: Hacer un nuevo contrato social para incrementar la inclusión social, productiva y política | N141: 133011603400000002089 | O141: 0 | P141: 53051848 | Q141: NELCY ORHUELA HERRERA | R141: Persona Natural | S141: N/A | T141: N/A | U141: N/A | V141: 20000000 | Z141: 20000000 | AA141: 14166666 | AB141: 2021-09-02 | AC141: 2021-09-06 | AD141: 2021-12-31 | AE141: 4 MESES | AN141: X | AP141: 0.7083333
A142: 126-2021 | B142: 2021 | C142: FDLM-CD-126-2021 (59997) | D142: https://community.secop.gov.co/Public/Tendering/OpportunityDetail/Index?noticeUID=CO1.NTC.2218265&isFromPublicArea=True&isModal=False | E142: Contratos de prestación de servicios profesionales y de apoyo a la gestión | F142: Contratación directa | G142: Prestación de servicios profesionales y de apoyo a la gestión, o para la ejecución de trabajos artísticos que sólo puedan encomendarse a determinadas personas naturales; | H142: PRESTACIÓN DE SERVICIOS DE APOYO A LA GESTION EN LA IMPLEMENTACION DE ESTRATEGIAS DE INTERVENCION QUE PROPENDAN POR LA REDUCCION DEL RIESGO Y ADAPTACION AL CAMBIO CLIMATICO EN LA LOCALIDAD DE LOS MÁRTIRES, EN EL MARCO DEL PROYECTO NO. 2088. | I142: Inversión | J142: Un Nuevo Contrato Social y Ambiental para la Bogotá del Siglo XXI | K142: 3 | L142: =IF(ISERROR(VLOOKUP(K142,Proposito_programa!$C$2:$E$59,2,FALSE))," ",VLOOKUP(K142,Proposito_programa!$C$2:$E$59,2,FALSE)) -> Movilidad social integral | M142: =IF(ISERROR(VLOOKUP(K142,Proposito_programa!$C$2:$E$59,3,FALSE))," ",VLOOKUP(K142,Proposito_programa!$C$2:$E$59,3,FALSE)) -> Propósito 1: Hacer un nuevo contrato social para incrementar la inclusión social, productiva y política | N142: 133011602380000002088 | O142: 0 | P142: 51638228 | Q142: MAIRA ISABEL ISAZA ARAUJO | R142: Persona Natural | S142: N/A | T142: N/A | U142: N/A | V142: 14833333 | Z142: 14833333 | AA142: 7916667 | AB142: 2021-09-02 | AC142: 2021-09-10 | AD142: 2022-03-10 | AE142: 178 DIAS | AM142: X | AP142: 0.5337078996
A143: 127-2021 | B143: 2021 | C143: FDLM-127-2021 (61133) | D143: https://community.secop.gov.co/Public/Tendering/OpportunityDetail/Index?noticeUID=CO1.NTC.2219974&isFromPublicArea=True&isModal=False | E143: Contratos de prestación de servicios profesionales y de apoyo a la gestión | F143: Contratación directa | G143: Prestación de servicios profesionales y de apoyo a la gestión, o para la ejecución de trabajos artísticos que sólo puedan encomendarse a determinadas personas naturales; | H143: CONTRATAR LA PRESTACIÓN DE SERVICIOS PROFESIONALES PARA LIDERAR EL EQUIPO QUE TIENE A SU CARGO LA EJECUCIÓN DEL PROYECTO DE PREVENCIÓN DE VIOLENCIA INTRAFAMILIAR, VIOLENCIA SEXUAL EN EL CONTEXTO FAMILIAR Y PROMOCIÓN DEL BUEN TRATO Y ENTORNO PROTECTORES PARA POBLACIONES EN SITUACIÓN DE RIESGO EN CUMPLIMIENTO DEL PLAN DE DESARROLLO LOCAL | I143: Inversión | J143: Un Nuevo Contrato Social y Ambiental para la Bogotá del Siglo XXI | K143: 3 | L143: =IF(ISERROR(VLOOKUP(K143,Proposito_programa!$C$2:$E$59,2,FALSE))," ",VLOOKUP(K143,Proposito_programa!$C$2:$E$59,2,FALSE)) -> Movilidad social integral | M143: =IF(ISERROR(VLOOKUP(K143,Proposito_programa!$C$2:$E$59,3,FALSE))," ",VLOOKUP(K143,Proposito_programa!$C$2:$E$59,3,FALSE)) -> Propósito 1: Hacer un nuevo contrato social para incrementar la inclusión social, productiva y política | N143: 133011603400000002089 | O143: 0 | P143: 52085298 | Q143: ADRIANA INES PIRAQUIVE BAUTISTA | R143: Persona Natural | S143: N/A | T143: N/A | U143: N/A | V143: 24000000 | Y143: 0 | Z143: 24000000 | AA143: 17000000 | AB143: 2021-09-02 | AC143: 2021-09-06 | AD143: 2022-01-05 | AE143: 4 MESES | AH143: 1013643257 | AI143: MONICA STEFFANY CONSUEGRA AVENDAÑO | AJ143: 2021-12-01 | AK143: 24000000 | AN143: X | AP143: 0.7083333333
A144: 128-2021 | B144: 2021 | C144: FDLM-CD-128-2021 (61181) | D144: https://community.secop.gov.co/Public/Tendering/OpportunityDetail/Index?noticeUID=CO1.NTC.2220493&isFromPublicArea=True&isModal=False | E144: Contratos de prestación de servicios profesionales y de apoyo a la gestión | F144: Contratación directa | G144: Prestación de servicios profesionales y de apoyo a la gestión, o para la ejecución de trabajos artísticos que sólo puedan encomendarse a determinadas personas naturales; | H144: CONTRATAR LA PRESTACIÓN DE SERVICIOS PROFESIONALES PARA COORDINAR, LIDERAR Y VISIBILIZAR LOS PLANES Y ESTRATEGIAS DE COMUNICACIONES INTERNAS Y EXTERNAS PARA LA DIVULGACIÓN DEL PROYECTO 2080 Y DEMÁS PROYECTOS DE INVERSIÓN, ASÍ COMO LAS ACTIVIDADES DE LA ALCALDÍA LOCAL DE LOS MÁRTIRES EN CUMPLIMIENTO DEL PLAN DE DESARROLLO LOCAL Y DISTRITAL | I144: Inversión | J144: Un Nuevo Contrato Social y Ambiental para la Bogotá del Siglo XXI | K144: 3 | L144: =IF(ISERROR(VLOOKUP(K144,Proposito_programa!$C$2:$E$59,2,FALSE))," ",VLOOKUP(K144,Proposito_programa!$C$2:$E$59,2,FALSE)) -> Movilidad social integral | M144: =IF(ISERROR(VLOOKUP(K144,Proposito_programa!$C$2:$E$59,3,FALSE))," ",VLOOKUP(K144,Proposito_programa!$C$2:$E$59,3,FALSE)) -> Propósito 1: Hacer un nuevo contrato social para incrementar la inclusión social, productiva y política | N144: 133011603450000002080 | O144: 0 | P144: 80032090 | Q144: MAURICIO ALEXIS RIVEROS QUINTERO | R144: Persona Natural | S144: N/A | T144: N/A | U144: N/A | V144: 24000000 | Z144: 24000000 | AA144: 21000000 | AB144: 2021-09-02 | AC144: 2021-09-06 | AD144: 2022-01-05 | AE144: 4 MESES | AN144: X | AP144: 0.875
A145: 129-2021 | B145: 2021 | C145: FDLM-CD-127-2021 (61137) | D145: https://community.secop.gov.co/Public/Tendering/OpportunityDetail/Index?noticeUID=CO1.NTC.2220543&isFromPublicArea=True&isModal=False | E145: Contratos de prestación de servicios profesionales y de apoyo a la gestión | F145: Contratación directa | G145: Prestación de servicios profesionales y de apoyo a la gestión, o para la ejecución de trabajos artísticos que sólo puedan encomendarse a determinadas personas naturales; | H145: PRESTAR LOS SERVICIOS PROFESIONALES PARA LIDERAR EL EQUIPO QUE TIENE A SU CARGO EL APOYO EN LA FORMULACIÓN, PROYECCIÓN, CONCERTACIÓN, FOMENTO A LA PARTICIPACIÓN Y PUESTA EN MARCHA DE LOS ACUERDOS LOCALES DE ESPACIO PÚBLICO CONTENIDOS EN EL MARCO DEL PROYECTO 2080 DENOMINADO PAISAJE URBANO AMIGABLE Y SEGURO, EN CUMPLIMIENTO DEL PLAN DE DESARROLLO LOCAL Y DISTRITAL | I145: Inversión | J145: Un Nuevo Contrato Social y Ambiental para la Bogotá del Siglo XXI | K145: 3 | L145: =IF(ISERROR(VLOOKUP(K145,Proposito_programa!$C$2:$E$59,2,FALSE))," ",VLOOKUP(K145,Proposito_programa!$C$2:$E$59,2,FALSE)) -> Movilidad social integral | M145: =IF(ISERROR(VLOOKUP(K145,Proposito_programa!$C$2:$E$59,3,FALSE))," ",VLOOKUP(K145,Proposito_programa!$C$2:$E$59,3,FALSE)) -> Propósito 1: Hacer un nuevo contrato social para incrementar la inclusión social, productiva y política | N145: 133011603450000002080 | O145: 0 | P145: 31152253 | Q145: MARIA DEL ROSARIO VALDERRUTEN BUENO | R145: Persona Natural | S145: N/A | T145: N/A | U145: N/A | V145: 24000000 | Z145: =+V145+W145+Y145 -> 24000000 | AA145: 17000000 | AB145: 2021-09-03 | AC145: 2021-09-06 | AD145: 2022-01-05 | AE145: 4 MESES | AN145: X | AP145: =IF(ISERROR(AA145/Z145),"-",(AA145/Z145)) -> 0.7083333333
A146: 130-2021 | B146: 2021 | C146: FDLM-CD-130-2021 (61140) | D146: https://community.secop.gov.co/Public/Tendering/OpportunityDetail/Index?noticeUID=CO1.NTC.2220947&isFromPublicArea=True&isModal=False | E146: Contratos de prestación de servicios profesionales y de apoyo a la gestión | F146: Contratación directa | G146: Prestación de servicios profesionales y de apoyo a la gestión, o para la ejecución de trabajos artísticos que sólo puedan encomendarse a determinadas personas naturales; | H146: CONTRATAR LA PRESTACIÓN DE SERVICIOS PROFESIONALES PARA EL SEGUIMIENTO ADMINISTRATIVO Y FINANCIERO DEL PROYECTO 2085 Y DEMÁS PROYECTOS DE INVERSIÓN DE LA ALCALDÍA LOCAL DE LOS MÁRTIRES, EN CUMPLIMIENTO DEL PLAN DE DESARROLLO LOCAL Y DISTRITAL. | I146: Inversión | J146: Un Nuevo Contrato Social y Ambiental para la Bogotá del Siglo XXI | K146: 3 | L146: =IF(ISERROR(VLOOKUP(K146,Proposito_programa!$C$2:$E$59,2,FALSE))," ",VLOOKUP(K146,Proposito_programa!$C$2:$E$59,2,FALSE)) -> Movilidad social integral | M146: =IF(ISERROR(VLOOKUP(K146,Proposito_programa!$C$2:$E$59,3,FALSE))," ",VLOOKUP(K146,Proposito_programa!$C$2:$E$59,3,FALSE)) -> Propósito 1: Hacer un nuevo contrato social para incrementar la inclusión social, productiva y política | N146: 133011602340000002085 | O146: 0 | P146: 1016026075 | Q146: DANNA SALOME MARTINEZ RAMIREZ | R146: Persona Natural | S146: N/A | T146: N/A | U146: N/A | V146: 24000000 | Z146: 24000000 | AA146: 17000000 | AB146: 2021-09-02 | AC146: 2021-09-06 | AD146: 2022-01-05 | AE146: 4 MESES | AN146: X | AP146: 0.7083333333
A147: 131-2021 | B147: 2021 | C147: FDLM-MC-009-2021 | D147: https://community.secop.gov.co/Public/Tendering/OpportunityDetail/Index?noticeUID=CO1.NTC.2206251&isFromPublicArea=True&isModal=False | E147: Seguros | F147: Contratación directa | G147: No aplica | H147: CONTRATAR EL SEGURO DE VIDA GRUPO PARA LOS EDILES DEL FONDO DE DESA-RROLLO LOCAL DE LOS MARTIRES | I147: Funcionamiento | J147: Un Nuevo Contrato Social y Ambiental para la Bogotá del Siglo XXI | K147: No aplica | L147: =IF(ISERROR(VLOOKUP(K147,Proposito_programa!$C$2:$E$59,2,FALSE))," ",VLOOKUP(K147,Proposito_programa!$C$2:$E$59,2,FALSE)) ->  | M147: =IF(ISERROR(VLOOKUP(K147,Proposito_programa!$C$2:$E$59,3,FALSE))," ",VLOOKUP(K147,Proposito_programa!$C$2:$E$59,3,FALSE)) ->  | N147: 131020202030501 | O147: 0 | P147: 860037013 | Q147: COMPAÑIA MUNDIAL DE SEGUROS S.A. | R147: Persona Jurídica | S147: N/A | T147: N/A | U147: N/A | V147: 4183800 | Z147: 4183800 | AA147: 4183800 | AB147: 2021-09-06 | AC147: 2021-09-06 | AD147: 2022-06-11 | AE147: 276 DIAS | AM147: X | AP147: 1
A148: 132-2021 | B148: 2021 | C148: FDLM-MC-008-2021. | D148: https://community.secop.gov.co/Public/Tendering/OpportunityDetail/Index?noticeUID=CO1.NTC.2206526&isFromPublicArea=True&isModal=False | E148: Suministro | F148: Contratación mínima cuantia | G148: No aplica | H148: CONTRATAR EL SUMINISTRO DE RE-FRIGERIOS Y/O ALIMENTOS PREPA-RADOS A PRECIOS UNITARIOS Y A MONTO AGOTABLE, NECESARIOS EN LAS DIFERENTES ACTIVIDADES QUE REALIZA LA ADMINISTRACIÓN LOCAL DE LOS MÁRTIRES | I148: Funcionamiento | J148: Un Nuevo Contrato Social y Ambiental para la Bogotá del Siglo XXI | K148: No aplica | L148: =IF(ISERROR(VLOOKUP(K148,Proposito_programa!$C$2:$E$59,2,FALSE))," ",VLOOKUP(K148,Proposito_programa!$C$2:$E$59,2,FALSE)) ->  | M148: =IF(ISERROR(VLOOKUP(K148,Proposito_programa!$C$2:$E$59,3,FALSE))," ",VLOOKUP(K148,Proposito_programa!$C$2:$E$59,3,FALSE)) ->  | N148: 1310202020101 | O148: 0 | P148: 901461046 | Q148: ALFA LOGISTIC SG SAS | R148: Persona Jurídica | S148: N/A | T148: N/A | U148: N/A | V148: 25438728 | Z148: 25438728 | AA148: 25438728 | AB148: 2021-09-06 | AC148: 2021-09-15 | AD148: 2022-03-14 | AE148: 6 MESES | AN148: X | AP148: 1
A149: 133-2021 | B149: 2021 | C149: FDLM-PSAMC-01-2021 | D149: https://community.secop.gov.co/Public/Tendering/OpportunityDetail/Index?noticeUID=CO1.NTC.2179751&isFromPublicArea=True&isModal=False | E149: Contratos de prestación de servicios | F149: Contratación directa | G149: No aplica | H149: PRESTAR LOS SERVICIOS PROFESIONALES, TÉCNICOS Y LOGÍSTICOS PARA REALIZAR ACCIONES QUE PROMUEVAN EL EMPODERAMIENTO Y DESARROLLO DE ESTRATEGIAS DE CUIDADO PARA LAS MUJERES CUIDADORAS EN TODAS SUS CONDICIONES Y DIVERSIDADES DE LA LOCALIDAD DE LOS MÁRTIRES, EN EL MARCO DEL PROYECTO NO. 2065 | I149: Inversión | J149: Un Nuevo Contrato Social y Ambiental para la Bogotá del Siglo XXI | K149: 3 | L149: =IF(ISERROR(VLOOKUP(K149,Proposito_programa!$C$2:$E$59,2,FALSE))," ",VLOOKUP(K149,Proposito_programa!$C$2:$E$59,2,FALSE)) -> Movilidad social integral | M149: =IF(ISERROR(VLOOKUP(K149,Proposito_programa!$C$2:$E$59,3,FALSE))," ",VLOOKUP(K149,Proposito_programa!$C$2:$E$59,3,FALSE)) -> Propósito 1: Hacer un nuevo contrato social para incrementar la inclusión social, productiva y política | N149: 133011601060000002065 | O149: 0 | P149: 830133329 | Q149: FUNDACION PARA EL DESARROLLO SOCIOCULTURAL DEPORTIVO Y COMUNITARIO FUNDESCO | R149: Persona Jurídica | S149: N/A | T149: N/A | U149: N/A | V149: 206179984 | Z149: 206179984 | AA149: 35123612 | AB149: 2021-09-07 | AC149: 2021-09-13 | AD149: 2022-02-12 | AE149: 5 MESES | AN149: X | AP149: 0.170354131
A150: 134-2021 | B150: 2021 | C150: FDLM-LP-01-2021 | D150: https://community.secop.gov.co/Public/Tendering/OpportunityDetail/Index?noticeUID=CO1.NTC.2126646&isFromPublicArea=True&isModal=False | E150: Contratos de prestación de servicios | F150: Contratación directa | G150: Prestación de servicios profesionales y de apoyo a la gestión, o para la ejecución de trabajos artísticos que sólo puedan encomendarse a determinadas personas naturales; | H150: PRESTAR LOS SERVICIOS PROFESIONALES, TÉCNICOS Y LOGÍSTICOS PARA REALIZAR ACCIONES DE EMPODERAMIENTO Y DESARROLLO DE CAPACIDADES QUE FORTALEZCAN LA CONSTRUCCIÓN DE CIUDADANÍA, LA PROMOCION DE LOS DERECHOS DE LAS MUJERES Y LA PREVENCIÓN DEL FEMINICIDIO Y OTRAS VIOLENCIAS EN CONTRA DE LAS MUJERES EN TODAS SUS DIVERSIDADES Y CONDICIONES DE LA LOCALIDAD DE LOS MÁRTIRES | I150: Inversión | J150: Un Nuevo Contrato Social y Ambiental para la Bogotá del Siglo XXI | K150: 3 | L150: =IF(ISERROR(VLOOKUP(K150,Proposito_programa!$C$2:$E$59,2,FALSE))," ",VLOOKUP(K150,Proposito_programa!$C$2:$E$59,2,FALSE)) -> Movilidad social integral | M150: =IF(ISERROR(VLOOKUP(K150,Proposito_programa!$C$2:$E$59,3,FALSE))," ",VLOOKUP(K150,Proposito_programa!$C$2:$E$59,3,FALSE)) -> Propósito 1: Hacer un nuevo contrato social para incrementar la inclusión social, productiva y política | N150: 133011603400000002089 | O150: 0 | P150: 830145974 | Q150: CORPORACION ACADEMICA Y DE INVESTIGACION PARA EL DESARROLLO LA COMUNICACION Y LA CULTURA | R150: Persona Jurídica | S150: N/A | T150: N/A | U150: N/A | V150: 288530018 | Z150: 288530018 | AA150: 11900000 | AB150: 2021-09-07 | AC150: 2021-11-02 | AD150: 2022-05-01 | AE150: 6 MESES | AN150: X | AP150: 0.04124354229
A151: 135-2021 | B151: 2021 | C151: FDLM-135-2021 | D151: https://community.secop.gov.co/Public/Tendering/OpportunityDetail/Index?noticeUID=CO1.NTC.2241172&isFromPublicArea=True&isModal=False | E151: Contratos de prestación de servicios profesionales y de apoyo a la gestión | F151: Contratación directa | G151: Prestación de servicios profesionales y de apoyo a la gestión, o para la ejecución de trabajos artísticos que sólo puedan encomendarse a determinadas personas naturales; | H151: PRESTAR LOS SERVICIOS PROFESIONALES PARA APOYAR LA FORMULACIÓN, GESTIÓN Y SEGUIMIENTO DE LAS ACTIVIDADES DEL FONDO DE DESARROLLO LOCAL ENFOCADA A LA GESTIÓN ADMINISTRATIVA DE LOS ACUERDOS PARA LA VINCULACIÓN DE LA CIUDADANÍA EN LOS PROGRAMAS ADELANTADOS POR EL IDRD Y ACUERDOS CON VENDEDORES INFORMALES O ESTACIONARIOS DE LA LOCALIDAD DE LOS MÁRTIRES. | I151: Inversión | J151: Un Nuevo Contrato Social y Ambiental para la Bogotá del Siglo XXI | K151: 3 | L151: =IF(ISERROR(VLOOKUP(K151,Proposito_programa!$C$2:$E$59,2,FALSE))," ",VLOOKUP(K151,Proposito_programa!$C$2:$E$59,2,FALSE)) -> Movilidad social integral | M151: =IF(ISERROR(VLOOKUP(K151,Proposito_programa!$C$2:$E$59,3,FALSE))," ",VLOOKUP(K151,Proposito_programa!$C$2:$E$59,3,FALSE)) -> Propósito 1: Hacer un nuevo contrato social para incrementar la inclusión social, productiva y política | N151: 133011603450000002080 | O151: 0 | P151: 19396517 | Q151: HECTOR ALFONSO DELGADO RODRIGUEZ | R151: Persona Natural | S151: N/A | T151: N/A | U151: N/A | V151: 15263500 | Z151: 15263500 | AA151: 10902500 | AB151: 2021-09-10 | AC151: 2021-09-14 | AD151: 2021-12-28 | AE151: 105 DIAS | AN151: X | AP151: 0.7142857143
A152: 136-2021 | B152: 2021 | C152: FDLM-CD-136-2021 (61558) | D152: https://community.secop.gov.co/Public/Tendering/OpportunityDetail/Index?noticeUID=CO1.NTC.2234088&isFromPublicArea=True&isModal=False | E152: Contratos de prestación de servicios profesionales y de apoyo a la gestión | F152: Contratación directa | G152: Prestación de servicios profesionales y de apoyo a la gestión, o para la ejecución de trabajos artísticos que sólo puedan encomendarse a determinadas personas naturales; | H152: PRESTAR SERVICIOS PROFESIONALES A LA ALCALDÍA LOCAL DE MÁRTIRES, PARA APOYAR EL DISEÑO E IMPLEMENTACIÓN DEL PROGRAMA PEDAGOGICO DE RESOLUCION EN CONFLICTOS, ENFOCADA EN LA RESOLUCIÓN DE CONFLICTOS ESCOLARES, DE ACUERDO CON LOS LINEAMIENTOS DADOS POR EL DISTRITO, EN PROYECTO NO. 2098 | I152: Inversión | J152: Un Nuevo Contrato Social y Ambiental para la Bogotá del Siglo XXI | K152: 3 | L152: =IF(ISERROR(VLOOKUP(K152,Proposito_programa!$C$2:$E$59,2,FALSE))," ",VLOOKUP(K152,Proposito_programa!$C$2:$E$59,2,FALSE)) -> Movilidad social integral | M152: =IF(ISERROR(VLOOKUP(K152,Proposito_programa!$C$2:$E$59,3,FALSE))," ",VLOOKUP(K152,Proposito_programa!$C$2:$E$59,3,FALSE)) -> Propósito 1: Hacer un nuevo contrato social para incrementar la inclusión social, productiva y política | N152: 133011603480000002098 | O152: 0 | P152: 1026572572 | Q152: JUAN CARLOS SANCHEZ SOLANO | R152: Persona Natural | S152: N/A | T152: N/A | U152: N/A | V152: 15750000 | Z152: 15750000 | AA152: 14700000 | AB152: 2021-09-09 | AC152: 2021-06-13 | AD152: 2021-12-28 | AE152: 105 DIAS | AN152: X | AP152: 0.9333333333
A153: 137-2021 | B153: 2021 | C153: FDLM-CD-137-2021 (27782) | D153: https://community.secop.gov.co/Public/Tendering/OpportunityDetail/Index?noticeUID=CO1.NTC.2238110&isFromPublicArea=True&isModal=False | E153: Contratos de prestación de servicios profesionales y de apoyo a la gestión | F153: Contratación directa | G153: Prestación de servicios profesionales y de apoyo a la gestión, o para la ejecución de trabajos artísticos que sólo puedan encomendarse a determinadas personas naturales; | H153: PRESTAR SERVICIOS PROFESIONALES A LA ALCALDÍA LOCAL DE MÁRTIRES, PARA APOYAR EL DISEÑO E IMPLEMENTACIÓN DEL PROGRAMA PEDAGOGICO DE RESOLUCION EN CONFLICTOS, ENFOCADA EN LA RESOLUCIÓN DE CONFLICTOS ESCOLARES, DE ACUERDO CON LOS LINEAMIENTOS DADOS POR EL DISTRITO, EN PROYECTO NO. 2098 | I153: Inversión | J153: Un Nuevo Contrato Social y Ambiental para la Bogotá del Siglo XXI | K153: 3 | L153: =IF(ISERROR(VLOOKUP(K153,Proposito_programa!$C$2:$E$59,2,FALSE))," ",VLOOKUP(K153,Proposito_programa!$C$2:$E$59,2,FALSE)) -> Movilidad social integral | M153: =IF(ISERROR(VLOOKUP(K153,Proposito_programa!$C$2:$E$59,3,FALSE))," ",VLOOKUP(K153,Proposito_programa!$C$2:$E$59,3,FALSE)) -> Propósito 1: Hacer un nuevo contrato social para incrementar la inclusión social, productiva y política | N153: 133011603480000002098 | O153: 0 | P153: 52774562 | Q153: LINDAKATHERINE HERNANDEZ GUZMAN | R153: Persona Natural | S153: N/A | T153: N/A | U153: N/A | V153: 15750000 | Z153: 15750000 | AA153: 14250000 | AB153: 2021-09-09 | AC153: 2021-09-16 | AD153: 2021-12-30 | AE153: 105 DIAS | AN153: X | AP153: 0.9047619048
A154: 138-2021 | B154: 2021 | C154: FDLM- CD - 138-2021 P (61125) | D154: https://community.secop.gov.co/Public/Tendering/OpportunityDetail/Index?noticeUID=CO1.NTC.2238232&isFromPublicArea=True&isModal=False | E154: Contratos de prestación de servicios profesionales y de apoyo a la gestión | F154: Contratación directa | G154: Prestación de servicios profesionales y de apoyo a la gestión, o para la ejecución de trabajos artísticos que sólo puedan encomendarse a determinadas personas naturales; | H154: PRESTAR LOS SERVICIOS PROFESIONALES COMO ABOGADO PARA APOYAR LOS ASUNTOS JURÍDICOS DEL ESPACIO PÚBLICO Y OTRAS MATERIAS QUE SE REQUIERAN EN EL MARCO DEL PROYECTO 2080 PAISAJE URBANO AMIGABLE Y SEGURO | I154: Inversión | J154: Un Nuevo Contrato Social y Ambiental para la Bogotá del Siglo XXI | K154: 3 | L154: =IF(ISERROR(VLOOKUP(K154,Proposito_programa!$C$2:$E$59,2,FALSE))," ",VLOOKUP(K154,Proposito_programa!$C$2:$E$59,2,FALSE)) -> Movilidad social integral | M154: =IF(ISERROR(VLOOKUP(K154,Proposito_programa!$C$2:$E$59,3,FALSE))," ",VLOOKUP(K154,Proposito_programa!$C$2:$E$59,3,FALSE)) -> Propósito 1: Hacer un nuevo contrato social para incrementar la inclusión social, productiva y política | N154: 133011603450000002080 | O154: 0 | P154: 1026274713 | Q154: RICARDO ERNESTO SANCHEZ MENESES | R154: Persona Natural | S154: N/A | T154: N/A | U154: N/A | V154: 20000000 | Z154: 20000000 | AA154: 12500000 | AB154: 2021-09-10 | AC154: 2021-09-16 | AD154: 2022-01-15 | AE154: 4 MESES | AN154: X | AP154: 0.625
A155: 139-2021 | B155: 2021 | C155: FDLM-139-2021 CONV-INT (62243) | D155: https://community.secop.gov.co/Public/Tendering/OpportunityDetail/Index?noticeUID=CO1.NTC.2241075&isFromPublicArea=True&isModal=False | E155: Convenios de apoyo y/o convenios de asociación | F155: Contratación directa | G155: Prestación de servicios profesionales y de apoyo a la gestión, o para la ejecución de trabajos artísticos que sólo puedan encomendarse a determinadas personas naturales; | H155: AUNAR ESFUERZOS TÉCNICOS, ADMINISTRATIVOS Y FINANCIEROS PARA LA GENERACIÓN DE PROCESOS DE FORTALECIMIENTO DE LAS MIPYMES, FOMENTO Y PROMOCIÓN DE CAMBIOS EN CULTURA CIUDADANA EN SEPARACIÓN EN LA FUENTE Y EL DISEÑO Y EJECUCIÓN DE TRES (3) PROCESOS COMUNITARIOS DE EDUCACIÓN AMBIENTAL PROCEDA, EN LA LOCALIDAD DE LOS MÁRTIRES | I155: Inversión | J155: Un Nuevo Contrato Social y Ambiental para la Bogotá del Siglo XXI | K155: 3 | L155: =IF(ISERROR(VLOOKUP(K155,Proposito_programa!$C$2:$E$59,2,FALSE))," ",VLOOKUP(K155,Proposito_programa!$C$2:$E$59,2,FALSE)) -> Movilidad social integral | M155: =IF(ISERROR(VLOOKUP(K155,Proposito_programa!$C$2:$E$59,3,FALSE))," ",VLOOKUP(K155,Proposito_programa!$C$2:$E$59,3,FALSE)) -> Propósito 1: Hacer un nuevo contrato social para incrementar la inclusión social, productiva y política | N155: 133011601060000002060 | O155: 0 | P155: 900068796 | Q155: INFOTIC S.A. | R155: Persona Jurídica | S155: N/A | T155: N/A | U155: N/A | V155: 967107000 | Z155: 967107000 | AA155: 216621400 | AB155: 2021-09-10 | AC155: 2021-09-20 | AD155: 2022-03-19 | AE155: 6 MESES | AN155: X | AP155: 0.2239890726
A156: 139-2021 | B156: 2021 | C156: FDLM-139-2021 CONV-INT (62243) | D156: https://community.secop.gov.co/Public/Tendering/OpportunityDetail/Index?noticeUID=CO1.NTC.2241075&isFromPublicArea=True&isModal=False | E156: Convenios de apoyo y/o convenios de asociación | F156: Contratación directa | G156: Prestación de servicios profesionales y de apoyo a la gestión, o para la ejecución de trabajos artísticos que sólo puedan encomendarse a determinadas personas naturales; | H156: AUNAR ESFUERZOS TÉCNICOS, ADMINISTRATIVOS Y FINANCIEROS PARA LA GENERACIÓN DE PROCESOS DE FORTALECIMIENTO DE LAS MIPYMES, FOMENTO Y PROMOCIÓN DE CAMBIOS EN CULTURA CIUDADANA EN SEPARACIÓN EN LA FUENTE Y EL DISEÑO Y EJECUCIÓN DE TRES (3) PROCESOS COMUNITARIOS DE EDUCACIÓN AMBIENTAL PROCEDA, EN LA LOCALIDAD DE LOS MÁRTIRES | I156: Inversión | J156: Un Nuevo Contrato Social y Ambiental para la Bogotá del Siglo XXI | K156: 3 | L156: =IF(ISERROR(VLOOKUP(K156,Proposito_programa!$C$2:$E$59,2,FALSE))," ",VLOOKUP(K156,Proposito_programa!$C$2:$E$59,2,FALSE)) -> Movilidad social integral | M156: =IF(ISERROR(VLOOKUP(K156,Proposito_programa!$C$2:$E$59,3,FALSE))," ",VLOOKUP(K156,Proposito_programa!$C$2:$E$59,3,FALSE)) -> Propósito 1: Hacer un nuevo contrato social para incrementar la inclusión social, productiva y política | N156: 133011602270000002086 | O156: 0 | P156: 900068796 | Q156: INFOTIC S.A. | R156: Persona Jurídica | S156: N/A | T156: N/A | U156: N/A | V156: 149108000 | Z156: =+V156+W156+Y156 -> 149108000 | AA156: 25577200 | AB156: 2021-09-10 | AC156: 2021-09-20 | AD156: 2022-03-19 | AE156: 6 MESES | AN156: X | AP156: =IF(ISERROR(AA156/Z156),"-",(AA156/Z156)) -> 0.1715347265
A157: 139-2021 | B157: 2021 | C157: FDLM-139-2021 CONV-INT (62243) | D157: https://community.secop.gov.co/Public/Tendering/OpportunityDetail/Index?noticeUID=CO1.NTC.2241075&isFromPublicArea=True&isModal=False | E157: Convenios de apoyo y/o convenios de asociación | F157: Contratación directa | G157: Prestación de servicios profesionales y de apoyo a la gestión, o para la ejecución de trabajos artísticos que sólo puedan encomendarse a determinadas personas naturales; | H157: AUNAR ESFUERZOS TÉCNICOS, ADMINISTRATIVOS Y FINANCIEROS PARA LA GENERACIÓN DE PROCESOS DE FORTALECIMIENTO DE LAS MIPYMES, FOMENTO Y PROMOCIÓN DE CAMBIOS EN CULTURA CIUDADANA EN SEPARACIÓN EN LA FUENTE Y EL DISEÑO Y EJECUCIÓN DE TRES (3) PROCESOS COMUNITARIOS DE EDUCACIÓN AMBIENTAL PROCEDA, EN LA LOCALIDAD DE LOS MÁRTIRES | I157: Inversión | J157: Un Nuevo Contrato Social y Ambiental para la Bogotá del Siglo XXI | K157: 3 | L157: =IF(ISERROR(VLOOKUP(K157,Proposito_programa!$C$2:$E$59,2,FALSE))," ",VLOOKUP(K157,Proposito_programa!$C$2:$E$59,2,FALSE)) -> Movilidad social integral | M157: =IF(ISERROR(VLOOKUP(K157,Proposito_programa!$C$2:$E$59,3,FALSE))," ",VLOOKUP(K157,Proposito_programa!$C$2:$E$59,3,FALSE)) -> Propósito 1: Hacer un nuevo contrato social para incrementar la inclusión social, productiva y política | N157: 133011602380000002084 | O157: 0 | P157: 900068796 | Q157: INFOTIC S.A. | R157: Persona Jurídica | S157: N/A | T157: N/A | U157: N/A | V157: 280000000 | Z157: 280000000 | AA157: 71400000 | AB157: 2021-09-10 | AC157: 2021-09-20 | AD157: 2022-03-19 | AE157: 6 MESES | AN157: X | AP157: 0.255
A158: 140-2021 | B158: 2021 | C158: FDLM-CD-140-2021 (61558) | D158: https://community.secop.gov.co/Public/Tendering/OpportunityDetail/Index?noticeUID=CO1.NTC.2241005&isFromPublicArea=True&isModal=False | E158: Contratos de prestación de servicios profesionales y de apoyo a la gestión | F158: Contratación directa | G158: Prestación de servicios profesionales y de apoyo a la gestión, o para la ejecución de trabajos artísticos que sólo puedan encomendarse a determinadas personas naturales; | H158: PRESTAR SERVICIOS PROFESIONALES A LA ALCALDÍA LOCAL DE MÁRTIRES, PARA APOYAR EL DISEÑO E IMPLEMENTACIÓN DEL PROGRAMA PEDAGÓGICO DE RESOLUCIÓN EN CONFLICTOS, ENFOCADA EN LA RESOLUCIÓN DE CONFLICTOS ESCOLARES, DE ACUERDO CON LOS LINEAMIENTOS DADOS POR EL DISTRITO, EN PROYECTO NO. 2098. | I158: Inversión | J158: Un Nuevo Contrato Social y Ambiental para la Bogotá del Siglo XXI | K158: 3 | L158: =IF(ISERROR(VLOOKUP(K158,Proposito_programa!$C$2:$E$59,2,FALSE))," ",VLOOKUP(K158,Proposito_programa!$C$2:$E$59,2,FALSE)) -> Movilidad social integral | M158: =IF(ISERROR(VLOOKUP(K158,Proposito_programa!$C$2:$E$59,3,FALSE))," ",VLOOKUP(K158,Proposito_programa!$C$2:$E$59,3,FALSE)) -> Propósito 1: Hacer un nuevo contrato social para incrementar la inclusión social, productiva y política | N158: 133011603480000002098 | O158: 0 | P158: 80000689 | Q158: WILLIAM DONALDO ALVAREZ CABALLERO | R158: Persona Natural | S158: N/A | T158: N/A | U158: N/A | V158: 15750000 | Z158: 15750000 | AA158: 14400000 | AB158: 2021-09-10 | AC158: 2021-09-15 | AD158: 2021-12-30 | AE158: 105 DIAS | AN158: X | AP158: 0.9142857143
A159: 141-2021 | B159: 2021 | C159: FDLM-CD-141-2021 (61558) | D159: https://community.secop.gov.co/Public/Tendering/OpportunityDetail/Index?noticeUID=CO1.NTC.2240986&isFromPublicArea=True&isModal=False | E159: Contratos de prestación de servicios profesionales y de apoyo a la gestión | F159: Contratación directa | G159: Prestación de servicios profesionales y de apoyo a la gestión, o para la ejecución de trabajos artísticos que sólo puedan encomendarse a determinadas personas naturales; | H159: PRESTAR SERVICIOS PROFESIONALES A LA ALCALDÍA LOCAL DE MÁRTIRES, PARA APOYAR EL DISEÑO E IMPLEMENTACIÓN DEL PROGRAMA PEDAGÓGICO DE RESOLUCIÓN EN CONFLICTOS, ENFOCADA EN LA RESOLUCIÓN DE CONFLICTOS ESCOLARES, DE ACUERDO CON LOS LINEAMIENTOS DADOS POR EL DISTRITO, EN PROYECTO NO. 2098. | I159: Inversión | J159: Un Nuevo Contrato Social y Ambiental para la Bogotá del Siglo XXI | K159: 3 | L159: =IF(ISERROR(VLOOKUP(K159,Proposito_programa!$C$2:$E$59,2,FALSE))," ",VLOOKUP(K159,Proposito_programa!$C$2:$E$59,2,FALSE)) -> Movilidad social integral | M159: =IF(ISERROR(VLOOKUP(K159,Proposito_programa!$C$2:$E$59,3,FALSE))," ",VLOOKUP(K159,Proposito_programa!$C$2:$E$59,3,FALSE)) -> Propósito 1: Hacer un nuevo contrato social para incrementar la inclusión social, productiva y política | N159: 133011603480000002098 | O159: 0 | P159: 51877535 | Q159: AMANDA LUCIA GALINDO PEÑALOSA | R159: Persona Natural | S159: N/A | T159: N/A | U159: N/A | V159: 15750000 | Z159: 15750000 | AA159: 14400000 | AB159: 2021-09-10 | AC159: 2021-09-15 | AD159: 2021-12-30 | AE159: 105 DIAS | AN159: X | AP159: 0.9142857143
A160: 142-2021 | B160: 2021 | C160: FDLM-CD-142-2021 (27927) | D160: https://community.secop.gov.co/Public/Tendering/OpportunityDetail/Index?noticeUID=CO1.NTC.2241074&isFromPublicArea=True&isModal=False | E160: Contratos de prestación de servicios profesionales y de apoyo a la gestión | F160: Contratación directa | G160: Prestación de servicios profesionales y de apoyo a la gestión, o para la ejecución de trabajos artísticos que sólo puedan encomendarse a determinadas personas naturales; | H160: APOYAR JURIDICAMENTE LA EJECUCIÓN DE ACCIONES REQUERIDAS PARA EL TRÁMITE E IMPULSO PROCESAL DE LAS ACTUACIONES CONTRAVENCIONALES Y/O QUERELLAS QUE CURSEN EN LAS INSPECCIONES DE POLICÍA DE LA LOCALIDAD DE LOS MÁRTIRES. | I160: Inversión | J160: Un Nuevo Contrato Social y Ambiental para la Bogotá del Siglo XXI | K160: 3 | L160: =IF(ISERROR(VLOOKUP(K160,Proposito_programa!$C$2:$E$59,2,FALSE))," ",VLOOKUP(K160,Proposito_programa!$C$2:$E$59,2,FALSE)) -> Movilidad social integral | M160: =IF(ISERROR(VLOOKUP(K160,Proposito_programa!$C$2:$E$59,3,FALSE))," ",VLOOKUP(K160,Proposito_programa!$C$2:$E$59,3,FALSE)) -> Propósito 1: Hacer un nuevo contrato social para incrementar la inclusión social, productiva y política | N160: 133011605570000002099 | O160: 0 | P160: 1010197465 | Q160: MANUEL ALEJANDRO GRISALES LOAIZA | R160: Persona Natural | S160: N/A | T160: N/A | U160: N/A | V160: 17150000 | Z160: 17150000 | AA160: 17150000 | AB160: 2021-09-10 | AC160: 2021-09-16 | AD160: 2021-12-30 | AE160: 105 DIAS | AN160: X | AP160: 1
A161: 143-2021 | B161: 2021 | C161: DFLM-CD-P-143-2021 (61782) | D161: https://community.secop.gov.co/Public/Tendering/OpportunityDetail/Index?noticeUID=CO1.NTC.2246328&isFromPublicArea=True&isModal=False | E161: Contratos de prestación de servicios profesionales y de apoyo a la gestión | F161: Contratación directa | G161: Prestación de servicios profesionales y de apoyo a la gestión, o para la ejecución de trabajos artísticos que sólo puedan encomendarse a determinadas personas naturales; | H161: APOYAR TÉCNICAMENTE LAS DISTINTAS ETAPAS DE LOS PROCESOS DE COMPETENCIA DE LA ALCALDÍA LOCAL PARA LA DEPURACIÓN DE ACTUACIONES ADMINISTRATIVAS | I161: Inversión | J161: Un Nuevo Contrato Social y Ambiental para la Bogotá del Siglo XXI | K161: 3 | L161: =IF(ISERROR(VLOOKUP(K161,Proposito_programa!$C$2:$E$59,2,FALSE))," ",VLOOKUP(K161,Proposito_programa!$C$2:$E$59,2,FALSE)) -> Movilidad social integral | M161: =IF(ISERROR(VLOOKUP(K161,Proposito_programa!$C$2:$E$59,3,FALSE))," ",VLOOKUP(K161,Proposito_programa!$C$2:$E$59,3,FALSE)) -> Propósito 1: Hacer un nuevo contrato social para incrementar la inclusión social, productiva y política | N161: 133011605570000002099 | O161: 0 | P161: 79749022 | Q161: FREDDY RICARDO BRIÑEZ MONTOYA | R161: Persona Natural | S161: N/A | T161: N/A | U161: N/A | V161: 12492500 | Z161: 12492500 | AA161: 12492500 | AB161: 2021-09-13 | AC161: 2021-09-17 | AD161: 2021-12-01 | AE161: 75 DIAS | AN161: X | AP161: 1
A162: 144-2021 | B162: 2021 | C162: FDLM-CD-144-2021 (61320) | D162: https://community.secop.gov.co/Public/Tendering/OpportunityDetail/Index?noticeUID=CO1.NTC.2246156&isFromPublicArea=True&isModal=False | E162: Contratos de prestación de servicios profesionales y de apoyo a la gestión | F162: Contratación directa | G162: Prestación de servicios profesionales y de apoyo a la gestión, o para la ejecución de trabajos artísticos que sólo puedan encomendarse a determinadas personas naturales; | H162: PRESTACIÓN DE SERVICIOS DE APOYO A LA GESTION EN LA IMPLEMENTACION DE ESTRATEGIAS DE INTERVENCION QUE PROPENDAN POR LA REDUCCION DEL RIESGO Y ADAPTACION AL CAMBIO CLIMATICO EN LA LOCALIDAD DE LOS MÁRTIRES, EN EL MARCO DEL PROYECTO NO. 2088 | I162: Inversión | J162: Un Nuevo Contrato Social y Ambiental para la Bogotá del Siglo XXI | K162: 3 | L162: =IF(ISERROR(VLOOKUP(K162,Proposito_programa!$C$2:$E$59,2,FALSE))," ",VLOOKUP(K162,Proposito_programa!$C$2:$E$59,2,FALSE)) -> Movilidad social integral | M162: =IF(ISERROR(VLOOKUP(K162,Proposito_programa!$C$2:$E$59,3,FALSE))," ",VLOOKUP(K162,Proposito_programa!$C$2:$E$59,3,FALSE)) -> Propósito 1: Hacer un nuevo contrato social para incrementar la inclusión social, productiva y política | N162: 133011602380000002088 | O162: 0 | P162: 1121914746 | Q162: GINA PAOLA ALBARRACIN FAJARDO | R162: Persona Natural | S162: N/A | T162: N/A | U162: N/A | V162: 8750000 | Z162: 8750000 | AA162: 735500 | AB162: 2021-09-14 | AC162: 2021-09-16 | AD162: 2021-12-30 | AE162: 105 DIAS | AN162: X | AP162: 0.08405714286
A163: 145-2021 | B163: 2021 | C163: FDLM-CD-145-2021 (61782) | D163: https://community.secop.gov.co/Public/Tendering/OpportunityDetail/Index?noticeUID=CO1.NTC.2246608&isFromPublicArea=True&isModal=False | E163: Contratos de prestación de servicios profesionales y de apoyo a la gestión | F163: Contratación directa | G163: Prestación de servicios profesionales y de apoyo a la gestión, o para la ejecución de trabajos artísticos que sólo puedan encomendarse a determinadas personas naturales; | H163: APOYAR TÉCNICAMENTE LAS DISTINTAS ETAPAS DE LOS PROCESOS DE COMPETENCIA DE LA ALCALDÍA LOCAL PARA LA DEPURACIÓN DE ACTUACIONES ADMINISTRATIVAS | I163: Inversión | J163: Un Nuevo Contrato Social y Ambiental para la Bogotá del Siglo XXI | K163: 3 | L163: =IF(ISERROR(VLOOKUP(K163,Proposito_programa!$C$2:$E$59,2,FALSE))," ",VLOOKUP(K163,Proposito_programa!$C$2:$E$59,2,FALSE)) -> Movilidad social integral | M163: =IF(ISERROR(VLOOKUP(K163,Proposito_programa!$C$2:$E$59,3,FALSE))," ",VLOOKUP(K163,Proposito_programa!$C$2:$E$59,3,FALSE)) -> Propósito 1: Hacer un nuevo contrato social para incrementar la inclusión social, productiva y política | N163: 133011605570000002099 | O163: 0 | P163: 79996671 | Q163: CARLOS ANDRES SERRANO GARZON | R163: Persona Natural | S163: N/A | T163: N/A | U163: N/A | V163: 12492500 | Z163: 12492500 | AA163: 12492500 | AB163: 2021-09-13 | AC163: 2021-09-17 | AD163: 2021-12-02 | AE163: 75 DIAS | AN163: X | AP163: 1
A164: 146-2021 | B164: 2021 | C164: FDLM-CD-146-2021 (62028) | D164: https://community.secop.gov.co/Public/Tendering/OpportunityDetail/Index?noticeUID=CO1.NTC.2248874&isFromPublicArea=True&isModal=False | E164: Contratos de prestación de servicios profesionales y de apoyo a la gestión | F164: Contratación directa | G164: Prestación de servicios profesionales y de apoyo a la gestión, o para la ejecución de trabajos artísticos que sólo puedan encomendarse a determinadas personas naturales; | H164: PRESTAR LOS SERVICIOS PROFESIONALES PARA APOYAR LA FORMULACIÓN, GESTIÓN Y SEGUIMIENTO DE LAS ACTIVIDADES DEL FONDO DE DESARROLLO LOCAL ENFOCADA A LA GESTIÓN ADMINISTRATIVA DE LOS ACUERDOS PARA LA VINCULACIÓN DE LA CIUDADANÍA EN LOS PROGRAMAS ADELANTADOS POR EL IDRD Y ACUERDOS CON VENDEDORES INFORMALES O ESTACIONARIOS DE LA LOCALIDAD DE LOS MÁRTIRES. | I164: Inversión | J164: Un Nuevo Contrato Social y Ambiental para la Bogotá del Siglo XXI | K164: 3 | L164: =IF(ISERROR(VLOOKUP(K164,Proposito_programa!$C$2:$E$59,2,FALSE))," ",VLOOKUP(K164,Proposito_programa!$C$2:$E$59,2,FALSE)) -> Movilidad social integral | M164: =IF(ISERROR(VLOOKUP(K164,Proposito_programa!$C$2:$E$59,3,FALSE))," ",VLOOKUP(K164,Proposito_programa!$C$2:$E$59,3,FALSE)) -> Propósito 1: Hacer un nuevo contrato social para incrementar la inclusión social, productiva y política | N164: 133011603450000002080 | O164: 0 | P164: 16187576 | Q164: JULIO CABRERA ZAPATA | R164: Persona Natural | S164: N/A | T164: N/A | U164: N/A | V164: 15263500 | Z164: 15263500 | AA164: 10902500 | AB164: 2021-09-14 | AC164: 2021-09-16 | AD164: 2021-12-31 | AE164: 105 DIAS | AN164: X | AP164: 0.7142857143
A165: 147-2021 | B165: 2021 | C165: FDLM-CD-147-2021 (61794) | D165: https://community.secop.gov.co/Public/Tendering/OpportunityDetail/Index?noticeUID=CO1.NTC.2249547&isFromPublicArea=True&isModal=False | E165: Contratos de prestación de servicios profesionales y de apoyo a la gestión | F165: Contratación directa | G165: Prestación de servicios profesionales y de apoyo a la gestión, o para la ejecución de trabajos artísticos que sólo puedan encomendarse a determinadas personas naturales; | H165: EL CONTRATO QUE SE PRETENDE CELEBRAR, TENDRÁ POR OBJETO APOYAR TÉCNICAMENTE LAS DISTINTAS ETAPAS DE LOS PROCESOS DE COMPETENCIA DE LAS INSPECCIONES DE POLICÍA DE LA LOCALIDAD, SEGÚN REPARTO | I165: Inversión | J165: Un Nuevo Contrato Social y Ambiental para la Bogotá del Siglo XXI | K165: 3 | L165: =IF(ISERROR(VLOOKUP(K165,Proposito_programa!$C$2:$E$59,2,FALSE))," ",VLOOKUP(K165,Proposito_programa!$C$2:$E$59,2,FALSE)) -> Movilidad social integral | M165: =IF(ISERROR(VLOOKUP(K165,Proposito_programa!$C$2:$E$59,3,FALSE))," ",VLOOKUP(K165,Proposito_programa!$C$2:$E$59,3,FALSE)) -> Propósito 1: Hacer un nuevo contrato social para incrementar la inclusión social, productiva y política | N165: 133011605570000002099 | O165: 0 | P165: 79487850 | Q165: CARLOS ALBERTO OLARTE AVILA | R165: Persona Natural | S165: N/A | T165: N/A | U165: N/A | V165: 17489500 | Z165: 17489500 | AA165: 17489500 | AB165: 2021-09-15 | AC165: 2021-09-16 | AD165: 2021-12-31 | AE165: 105 DIAS | AN165: X | AP165: 1
A166: 148-2021 | B166: 2021 | C166: FDLM-CD-P-148-2021 (61125) | D166: https://community.secop.gov.co/Public/Tendering/OpportunityDetail/Index?noticeUID=CO1.NTC.2255007&isFromPublicArea=True&isModal=False | E166: Contratos de prestación de servicios profesionales y de apoyo a la gestión | F166: Contratación directa | G166: Prestación de servicios profesionales y de apoyo a la gestión, o para la ejecución de trabajos artísticos que sólo puedan encomendarse a determinadas personas naturales; | H166: PRESTAR LOS SERVICIOS PROFESIONALES COMO ABOGADO PARA APOYAR LOS ASUNTOS JURÍDICOS DEL ESPACIO PÚBLICO Y OTRAS MATERIAS QUE SE REQUIERAN EN EL MARCO DEL PROYECTO 2080 PAISAJE URBANO AMIGABLE Y SEGURO. | I166: Inversión | J166: Un Nuevo Contrato Social y Ambiental para la Bogotá del Siglo XXI | K166: 3 | L166: =IF(ISERROR(VLOOKUP(K166,Proposito_programa!$C$2:$E$59,2,FALSE))," ",VLOOKUP(K166,Proposito_programa!$C$2:$E$59,2,FALSE)) -> Movilidad social integral | M166: =IF(ISERROR(VLOOKUP(K166,Proposito_programa!$C$2:$E$59,3,FALSE))," ",VLOOKUP(K166,Proposito_programa!$C$2:$E$59,3,FALSE)) -> Propósito 1: Hacer un nuevo contrato social para incrementar la inclusión social, productiva y política | N166: 133011603450000002080 | O166: 0 | P166: 1018440410 | Q166: RICHARD ALEJANDRO MARÍN ZIPACÓN | R166: Persona Natural | S166: N/A | T166: N/A | U166: N/A | V166: 20000000 | Z166: 20000000 | AA166: 10855500 | AB166: 2021-09-17 | AC166: 2021-10-20 | AD166: 2022-02-19 | AE166: 4 MESES | AN166: X | AP166: 0.542775
A167: 149-2021 | B167: 2021 | C167: FDLM-CD-149-2021 (61961) | D167: https://community.secop.gov.co/Public/Tendering/OpportunityDetail/Index?noticeUID=CO1.NTC.2261677&isFromPublicArea=True&isModal=False | E167: Contratos de prestación de servicios profesionales y de apoyo a la gestión | F167: Contratación directa | G167: Prestación de servicios profesionales y de apoyo a la gestión, o para la ejecución de trabajos artísticos que sólo puedan encomendarse a determinadas personas naturales; | H167: APOYAR JURÍDICAMENTE LA EJECUCIÓN DE LAS ACCIONES REQUERIDAS PARA LA DEPURACIÓN DE LAS ACTUACIONES ADMINISTRATIVAS QUE CURSAN EN LA ALCALDÍA LOCAL. | I167: Inversión | J167: Un Nuevo Contrato Social y Ambiental para la Bogotá del Siglo XXI | K167: 3 | L167: =IF(ISERROR(VLOOKUP(K167,Proposito_programa!$C$2:$E$59,2,FALSE))," ",VLOOKUP(K167,Proposito_programa!$C$2:$E$59,2,FALSE)) -> Movilidad social integral | M167: =IF(ISERROR(VLOOKUP(K167,Proposito_programa!$C$2:$E$59,3,FALSE))," ",VLOOKUP(K167,Proposito_programa!$C$2:$E$59,3,FALSE)) -> Propósito 1: Hacer un nuevo contrato social para incrementar la inclusión social, productiva y política | N167: 133011605570000002099 | O167: 0 | P167: 1022380775 | Q167: SHARON PAULETT BERNAL AGUDELO | R167: Persona Natural | S167: N/A | T167: N/A | U167: N/A | V167: 13083000 | Z167: 13083000 | AA167: 13083000 | AB167: 2021-09-20 | AC167: 2021-09-21 | AD167: 2021-12-20 | AE167: 3 MESES | AN167: X | AP167: 1
A168: 150-2021 | B168: 2021 | C168: FDLM-CD-P-150-2021 (62960) | D168: https://community.secop.gov.co/Public/Tendering/OpportunityDetail/Index?noticeUID=CO1.NTC.2322646&isFromPublicArea=True&isModal=False | E168: Contratos de prestación de servicios profesionales y de apoyo a la gestión | F168: Contratación directa | G168: Prestación de servicios profesionales y de apoyo a la gestión, o para la ejecución de trabajos artísticos que sólo puedan encomendarse a determinadas personas naturales; | H168: PRESTAR SERVICIOS PROFESIONALES AL ÁREA POLICIVA DE LA ALCALDÍA LOCAL DE LOS MÁRTIRES, PARA ADELANTAR TRÁMITES, PROCEDIMIENTOS Y LINEAMIENTOS EN MATERIA JURÍDICA QUE PERMITAN GARANTIZAR EL CUMPLIMIENTO DE LAS METAS ESTABLECIDAS EN EL PLAN DE DESARROLLO LOCAL VIGENTE | I168: Inversión | J168: Un Nuevo Contrato Social y Ambiental para la Bogotá del Siglo XXI | K168: 3 | L168: =IF(ISERROR(VLOOKUP(K168,Proposito_programa!$C$2:$E$59,2,FALSE))," ",VLOOKUP(K168,Proposito_programa!$C$2:$E$59,2,FALSE)) -> Movilidad social integral | M168: =IF(ISERROR(VLOOKUP(K168,Proposito_programa!$C$2:$E$59,3,FALSE))," ",VLOOKUP(K168,Proposito_programa!$C$2:$E$59,3,FALSE)) -> Propósito 1: Hacer un nuevo contrato social para incrementar la inclusión social, productiva y política | N168: 133011605570000002099 | O168: 0 | P168: 1032418847 | Q168: DIEGO FERNANDO PULIDO CHICA | R168: Persona Natural | S168: N/A | T168: N/A | U168: N/A | V168: 15600000 | X168: 1 | Y168: 3250000 | Z168: 18850000 | AA168: 18850000 | AB168: 2021-10-15 | AC168: 2021-10-19 | AD168: 2022-01-14 | AE168: 2 MESES Y 13 DIAS | AF168: 1 | AG168: 3250000 | AN168: X | AP168: 1
A169: 151-2021 | B169: 2021 | C169: FDLM-CD-P-151-2021 (62975) | D169: https://community.secop.gov.co/Public/Tendering/OpportunityDetail/Index?noticeUID=CO1.NTC.2328261&isFromPublicArea=True&isModal=False | E169: Contratos de prestación de servicios profesionales y de apoyo a la gestión | F169: Contratación directa | G169: Prestación de servicios profesionales y de apoyo a la gestión, o para la ejecución de trabajos artísticos que sólo puedan encomendarse a determinadas personas naturales; | H169: PRESTAR LOS SERVICIOS PROFESIONALES ESPECIALIZADOS AL FONDO DE DESARROLLO LOCAL DE LOS MÁRTIRES, PARA ESTABLECER LOS LINEAMIENTOS DEL EQUIPO DE PLANEACIÓN E INFRASTRUCTURA, PARA LA FORMULACIÓN, EJECUCIÓN, SEGUIMIENTO TÉCNICO, ADMINISTRATIVO, FINANCIERO YAS CON EL ÁREA DE GESTIÓN DEL DESARROLLO LOCAL, EN CUMPLIMIENTO DEL PLAN DE DESARROLLO LOCAL VIGENTE | I169: Inversión | J169: Un Nuevo Contrato Social y Ambiental para la Bogotá del Siglo XXI | K169: 3 | L169: =IF(ISERROR(VLOOKUP(K169,Proposito_programa!$C$2:$E$59,2,FALSE))," ",VLOOKUP(K169,Proposito_programa!$C$2:$E$59,2,FALSE)) -> Movilidad social integral | M169: =IF(ISERROR(VLOOKUP(K169,Proposito_programa!$C$2:$E$59,3,FALSE))," ",VLOOKUP(K169,Proposito_programa!$C$2:$E$59,3,FALSE)) -> Propósito 1: Hacer un nuevo contrato social para incrementar la inclusión social, productiva y política | N169: 133011605570000002099 | O169: 0 | P169: 1140845417 | Q169: HANS DIETER VAN STRAHLEN BARTEL | R169: Persona Natural | S169: N/A | T169: N/A | U169: N/A | V169: 18933333 | X169: 1 | Y169: 4000000 | Z169: 22933333 | AA169: 17600000 | AB169: 2021-10-19 | AC169: 2021-10-20 | AD169: 2021-12-31 | AE169: 2 MESES 12 DIAS | AF169: 1 | AG169: 4000000 | AN169: X | AP169: 0.7674418716
A170: 152-2021 | B170: 2021 | C170: FDLM-CD-152-2021 (62970) | D170: https://community.secop.gov.co/Public/Tendering/OpportunityDetail/Index?noticeUID=CO1.NTC.2328414&isFromPublicArea=True&isModal=False | E170: Contratos de prestación de servicios profesionales y de apoyo a la gestión | F170: Contratación directa | G170: Prestación de servicios profesionales y de apoyo a la gestión, o para la ejecución de trabajos artísticos que sólo puedan encomendarse a determinadas personas naturales; | H170: PRESTACIÓN DE SERVICIOS COMO PROFESIONAL ESPECIALIZADO AL DESPACHO DEL ALCALDE EN LA GESTIÓN PÚBLICA PRECONTRACTUAL, CONTRACTUAL Y POST CONTRACTUAL QUE SE REQUIERA EN CUMPLIMIENTO DEL PLAN DE DESARROLLO LOCAL. | I170: Inversión | J170: Un Nuevo Contrato Social y Ambiental para la Bogotá del Siglo XXI | K170: 3 | L170: =IF(ISERROR(VLOOKUP(K170,Proposito_programa!$C$2:$E$59,2,FALSE))," ",VLOOKUP(K170,Proposito_programa!$C$2:$E$59,2,FALSE)) -> Movilidad social integral | M170: =IF(ISERROR(VLOOKUP(K170,Proposito_programa!$C$2:$E$59,3,FALSE))," ",VLOOKUP(K170,Proposito_programa!$C$2:$E$59,3,FALSE)) -> Propósito 1: Hacer un nuevo contrato social para incrementar la inclusión social, productiva y política | N170: 133011605570000002099 | O170: 0 | P170: 1140843788 | Q170: FREDY ANDRES PAUTT BARCELO | R170: Persona Natural | S170: N/A | T170: N/A | U170: N/A | V170: 18933333 | X170: 1 | Y170: 4000000 | Z170: 22933333 | AA170: 15300000 | AB170: 2021-10-19 | AC170: 2021-10-20 | AD170: 2022-01-15 | AE170: 2 MESES 12 DIAS | AF170: 1 | AG170: 4000000 | AN170: X | AP170: 0.6671511725
A171: 153-2021 | B171: 2021 | C171: FDLM-P-153-2021 (62968) | D171: https://community.secop.gov.co/Public/Tendering/OpportunityDetail/Index?noticeUID=CO1.NTC.2322843&isFromPublicArea=True&isModal=False | E171: Contratos de prestación de servicios profesionales y de apoyo a la gestión | F171: Contratación directa | G171: Prestación de servicios profesionales y de apoyo a la gestión, o para la ejecución de trabajos artísticos que sólo puedan encomendarse a determinadas personas naturales; | H171: PRESTAR LOS SERVICIOS PROFESIONALES COMO ABOGADO, PARA APOYAR LA GESTIÓN DEL DESPACHO DEL ALCALDE DE LA LOCALIDAD DE LOS MÁRTIRES, EN LA IMPLEMENTACIÓN DEL PLAN DE DESARROLLO LOCAL Y EL ACOMPAÑAMIENTO TRANSVERSAL DE SUS FUNCIONES | I171: Inversión | J171: Un Nuevo Contrato Social y Ambiental para la Bogotá del Siglo XXI | K171: 3 | L171: =IF(ISERROR(VLOOKUP(K171,Proposito_programa!$C$2:$E$59,2,FALSE))," ",VLOOKUP(K171,Proposito_programa!$C$2:$E$59,2,FALSE)) -> Movilidad social integral | M171: =IF(ISERROR(VLOOKUP(K171,Proposito_programa!$C$2:$E$59,3,FALSE))," ",VLOOKUP(K171,Proposito_programa!$C$2:$E$59,3,FALSE)) -> Propósito 1: Hacer un nuevo contrato social para incrementar la inclusión social, productiva y política | N171: 133011605570000002099 | O171: 0 | P171: 1140872699 | Q171: ALBERTO MARIO OROZCO RAVELO | R171: Persona Natural | S171: N/A | T171: N/A | U171: N/A | V171: 16320000 | X171: 1 | Y171: 3400000 | Z171: 19720000 | AA171: 12600000 | AB171: 2021-10-15 | AC171: 2021-10-19 | AD171: 2022-01-14 | AE171: 2 MESES 13 DIAS | AF171: 1 | AG171: 3400000 | AN171: X | AP171: 0.6389452333
A172: 154-2021 | B172: 2021 | C172: FDLM-CD-P-154-2021 (63849) | D172: https://community.secop.gov.co/Public/Tendering/OpportunityDetail/Index?noticeUID=CO1.NTC.2373257&isFromPublicArea=True&isModal=False | E172: Contratos de prestación de servicios profesionales y de apoyo a la gestión | F172: Contratación directa | G172: Prestación de servicios profesionales y de apoyo a la gestión, o para la ejecución de trabajos artísticos que sólo puedan encomendarse a determinadas personas naturales; | H172: PRESTAR SUS SERVICIOS PROFESIONALES PARA LA FORMULACIÓN PRECONTRACTUAL PARTICIPATIVA, APOYO A LA SUPERVISIÓN, SEGUIMIENTO, ACOMPAÑAMIENTO, ATENCIÓN Y EVALUACIÓN DE LOS PROYECTOS E INSTANCIAS DE ARTICULACIÓN INTERINSTITUCIONAL Y PARTICIPACIÓN LOCAL EN CUMPLIMIENTO DEL PLAN DE DESARROLLO LOCAL VIGENTE. | I172: Inversión | J172: Un Nuevo Contrato Social y Ambiental para la Bogotá del Siglo XXI | K172: 3 | L172: =IF(ISERROR(VLOOKUP(K172,Proposito_programa!$C$2:$E$59,2,FALSE))," ",VLOOKUP(K172,Proposito_programa!$C$2:$E$59,2,FALSE)) -> Movilidad social integral | M172: =IF(ISERROR(VLOOKUP(K172,Proposito_programa!$C$2:$E$59,3,FALSE))," ",VLOOKUP(K172,Proposito_programa!$C$2:$E$59,3,FALSE)) -> Propósito 1: Hacer un nuevo contrato social para incrementar la inclusión social, productiva y política | N172: 133011605570000002099 | O172: 0 | P172: 80849721 | Q172: JACK CRISTOPHER REINA RODRIGUEZ | R172: Persona Natural | S172: N/A | T172: N/A | U172: N/A | V172: 9533333 | Y172: 0 | Z172: 9533333 | AA172: 9533333 | AB172: 2021-11-08 | AC172: 2021-11-09 | AD172: 2022-01-01 | AE172: 1 MES 23 DIAS | AG172: 0 | AN172: X | AP172: 1
A173: 155-2021 | B173: 2021 | C173: FDLM-CD-155-2021 (63847) | D173: https://community.secop.gov.co/Public/Tendering/OpportunityDetail/Index?noticeUID=CO1.NTC.2373464&isFromPublicArea=True&isModal=False | E173: Contratos de prestación de servicios profesionales y de apoyo a la gestión | F173: Contratación directa | G173: Prestación de servicios profesionales y de apoyo a la gestión, o para la ejecución de trabajos artísticos que sólo puedan encomendarse a determinadas personas naturales; | H173: PRESTAR SUS SERVICIOS PROFESIONALES PARA LA FORMULACIÓN PRE CONTRACTUAL PARTICIPATIVA, APOYO A LA SUPERVISIÓN, SEGUIMIENTO, ACOMPAÑAMIENTO, ATENCIÓN Y EVALUACIÓN DE LOS PROYECTOS E INSTANCIAS DE ARTICULACIÓN INTERINSTITUCIONAL Y PARTICIPACIÓN LOCAL EN CUMPLIMIENTO DEL PLAN DE DESIGARENTE. | I173: Inversión | J173: Un Nuevo Contrato Social y Ambiental para la Bogotá del Siglo XXI | K173: 3 | L173: =IF(ISERROR(VLOOKUP(K173,Proposito_programa!$C$2:$E$59,2,FALSE))," ",VLOOKUP(K173,Proposito_programa!$C$2:$E$59,2,FALSE)) -> Movilidad social integral | M173: =IF(ISERROR(VLOOKUP(K173,Proposito_programa!$C$2:$E$59,3,FALSE))," ",VLOOKUP(K173,Proposito_programa!$C$2:$E$59,3,FALSE)) -> Propósito 1: Hacer un nuevo contrato social para incrementar la inclusión social, productiva y política | N173: 133011605570000002099 | O173: 0 | P173: 1129518741 | Q173: ANDREA CAROLINA CARDENAS CAYON | R173: Persona Natural | S173: N/A | T173: N/A | U173: N/A | V173: 9533333 | Y173: 0 | Z173: 9533333 | AA173: 9533333 | AB173: 2021-11-08 | AC173: 2021-11-10 | AD173: 2022-01-02 | AE173: 1 MES 23 DIAS | AG173: 0 | AN173: X | AP173: 1
A174: 156-2021 | B174: 2021 | C174: FDLM-CD-P-156-2021 (63846) | D174: https://community.secop.gov.co/Public/Tendering/OpportunityDetail/Index?noticeUID=CO1.NTC.2373824&isFromPublicArea=True&isModal=False | E174: Contratos de prestación de servicios profesionales y de apoyo a la gestión | F174: Contratación directa | G174: Prestación de servicios profesionales y de apoyo a la gestión, o para la ejecución de trabajos artísticos que sólo puedan encomendarse a determinadas personas naturales; | H174: PRESTAR SUS SERVICIOS PROFESIONALES PARA LA FORMULACIÓN PRE CONTRACTUAL PARTICIPATIVA, APOYO A LA SUPERVISIÓN, SEGUIMIENTO, ACOMPAÑAMIENTO, ATENCIÓN Y EVALUACIÓN DE LOS PROYECTOS E INSTANCIAS DE ARTICULACIÓN INTERINSTITUCIONAL Y PARTICIPACIÓN LOCAL EN CUMPLIMIENTO DEL PLAN DE DESARROLLO LOCAL VIGENTE. | I174: Inversión | J174: Un Nuevo Contrato Social y Ambiental para la Bogotá del Siglo XXI | K174: 3 | L174: =IF(ISERROR(VLOOKUP(K174,Proposito_programa!$C$2:$E$59,2,FALSE))," ",VLOOKUP(K174,Proposito_programa!$C$2:$E$59,2,FALSE)) -> Movilidad social integral | M174: =IF(ISERROR(VLOOKUP(K174,Proposito_programa!$C$2:$E$59,3,FALSE))," ",VLOOKUP(K174,Proposito_programa!$C$2:$E$59,3,FALSE)) -> Propósito 1: Hacer un nuevo contrato social para incrementar la inclusión social, productiva y política | N174: 133011605570000002099 | O174: 0 | P174: 1094933233 | Q174: STEFANNY ALONSO MUÑOZ | R174: Persona Natural | S174: N/A | T174: N/A | U174: N/A | V174: 9533333 | Y174: 0 | Z174: 9533333 | AA174: 9533333 | AB174: 2021-11-08 | AC174: 2021-11-10 | AD174: 2022-01-02 | AE174: 1 MES 23 DIAS | AG174: 0 | AN174: X | AP174: 1
A175: 157-2021 | B175: 2021 | C175: FDLM-CD-AP-157-2021 (63670) | D175: https://community.secop.gov.co/Public/Tendering/OpportunityDetail/Index?noticeUID=CO1.NTC.2377268&isFromPublicArea=True&isModal=False | E175: Contratos de prestación de servicios profesionales y de apoyo a la gestión | F175: Contratación directa | G175: Prestación de servicios profesionales y de apoyo a la gestión, o para la ejecución de trabajos artísticos que sólo puedan encomendarse a determinadas personas naturales; | H175: PRESTAR LOS SERVICIOS TÉCNICOS DE APOYO AL DESPACHO DE LA ALCALDÍA LOCAL DE LOS MÁRTIRES, ESPECIALMENTE ASISTENCIA A REUNIONES, ELABORACIÓN DE LAS ACTAS QUE CORRESPONDAN, COORDINACIÓN DE LA AGENDA, CONTROL Y SEGUIMIENTO DE DOCUMENTOS. | I175: Inversión | J175: Un Nuevo Contrato Social y Ambiental para la Bogotá del Siglo XXI | K175: 3 | L175: =IF(ISERROR(VLOOKUP(K175,Proposito_programa!$C$2:$E$59,2,FALSE))," ",VLOOKUP(K175,Proposito_programa!$C$2:$E$59,2,FALSE)) -> Movilidad social integral | M175: =IF(ISERROR(VLOOKUP(K175,Proposito_programa!$C$2:$E$59,3,FALSE))," ",VLOOKUP(K175,Proposito_programa!$C$2:$E$59,3,FALSE)) -> Propósito 1: Hacer un nuevo contrato social para incrementar la inclusión social, productiva y política | N175: 133011605570000002099 | O175: 0 | P175: 52118985 | Q175: MARTHA INES BERNAL ALVAREZ | R175: Persona Natural | S175: N/A | T175: N/A | U175: N/A | V175: 5669500 | Y175: 0 | Z175: 5669500 | AA175: 5669500 | AB175: 2021-11-09 | AC175: 2021-11-11 | AD175: 2022-01-02 | AE175: 1 MES 22 DIAS | AG175: 0 | AN175: X | AP175: 1
A176: 158-2021 | B176: 2021 | C176: FDLM-CD-158-2021 (63983) | D176: https://community.secop.gov.co/Public/Tendering/OpportunityDetail/Index?noticeUID=CO1.NTC.2379370&isFromPublicArea=True&isModal=False | E176: Contratos de prestación de servicios profesionales y de apoyo a la gestión | F176: Contratación directa | G176: Prestación de servicios profesionales y de apoyo a la gestión, o para la ejecución de trabajos artísticos que sólo puedan encomendarse a determinadas personas naturales; | H176: PRESTAR SUS SERVICIOS PROFESIONALES AL FONDO DE DESARROLLO LOCAL DE LOS MÁRTIRES PARA EL ACOMPAÑAMIENTO A LA ESTRATEGIA CONSTRUCTORES LOCALES, DISEÑO, LA IMPLEMENTACIÓN, APOYO AL SEGUIMIENTO Y EVALUACIÓN DE LOS PROYECTOS DE INVERSIÓN, PROYECTOS ESTRATÉGICOS Y PROYECTOS PARTICIPATIVOS PARA LA REACTIVACIÓN ECONÓMICA Y EL EMPRENDIMIENTO DE LA LOCALIDAD EN CUMPLIMIENTO DEL PLAN DE DESARROLLO DISTRITAL Y LOCAL. | I176: Inversión | J176: Un Nuevo Contrato Social y Ambiental para la Bogotá del Siglo XXI | K176: 3 | L176: =IF(ISERROR(VLOOKUP(K176,Proposito_programa!$C$2:$E$59,2,FALSE))," ",VLOOKUP(K176,Proposito_programa!$C$2:$E$59,2,FALSE)) -> Movilidad social integral | M176: =IF(ISERROR(VLOOKUP(K176,Proposito_programa!$C$2:$E$59,3,FALSE))," ",VLOOKUP(K176,Proposito_programa!$C$2:$E$59,3,FALSE)) -> Propósito 1: Hacer un nuevo contrato social para incrementar la inclusión social, productiva y política | N176: 133011605570000002099 | O176: 0 | P176: 79980371 | Q176: JUAN CARLOS TOLOSA BUITRAGO | R176: Persona Natural | S176: N/A | T176: N/A | U176: N/A | V176: 10000000 | X176: 1 | Y176: 1800000 | Z176: 11800000 | AA176: 9600000 | AB176: 2021-11-10 | AC176: 2021-11-16 | AD176: 2022-01-15 | AE176: 1 MES 21 DIAS | AF176: 1 | AG176: 1800000 | AN176: X | AP176: 0.813559322
A177: 159-2021 | B177: 2021 | C177: FDLM-CD-P-159-2021 (63683) | D177: https://community.secop.gov.co/Public/Tendering/OpportunityDetail/Index?noticeUID=CO1.NTC.2380845&isFromPublicArea=True&isModal=False | E177: Contratos de prestación de servicios profesionales y de apoyo a la gestión | F177: Contratación directa | G177: Prestación de servicios profesionales y de apoyo a la gestión, o para la ejecución de trabajos artísticos que sólo puedan encomendarse a determinadas personas naturales; | H177: PRESTAR SUS SERVICIOS PROFESIONALES AL FONDO DE DESARROLLO LOCAL DE LOS MÁRTIRES PARA EL APOYO Y ACOMPAÑAMIENTO DE LAS INSTANCIAS DE COORDINACIÓN INTERINSTITUCIONALES E INSTANCIAS DE PARTICIPACIÓN LOCALES, APOYO A LA SUPERVISIÓN Y SEGUIMIENTO AL PLAN DE DESARROLLO LOCAL Y EVALUACIÓN DE PROYECTOS. | I177: Inversión | J177: Un Nuevo Contrato Social y Ambiental para la Bogotá del Siglo XXI | K177: 3 | L177: =IF(ISERROR(VLOOKUP(K177,Proposito_programa!$C$2:$E$59,2,FALSE))," ",VLOOKUP(K177,Proposito_programa!$C$2:$E$59,2,FALSE)) -> Movilidad social integral | M177: =IF(ISERROR(VLOOKUP(K177,Proposito_programa!$C$2:$E$59,3,FALSE))," ",VLOOKUP(K177,Proposito_programa!$C$2:$E$59,3,FALSE)) -> Propósito 1: Hacer un nuevo contrato social para incrementar la inclusión social, productiva y política | N177: 133011605570000002099 | O177: 0 | P177: 52844341 | Q177: CARMEN ANDREA AVELLANEDA SANTOYA | R177: Persona Natural | S177: N/A | T177: N/A | U177: N/A | V177: 8500000 | Y177: 0 | Z177: 8500000 | AA177: 8500000 | AB177: 2021-11-10 | AC177: 2021-11-16 | AD177: 2022-01-06 | AE177: 1 MES 21 DIAS | AG177: 0 | AN177: X | AP177: 1
A178: 160-2021 | B178: 2021 | C178: FDLM-CD-P-160-2021 (62743) | D178: https://community.secop.gov.co/Public/Tendering/OpportunityDetail/Index?noticeUID=CO1.NTC.2380459&isFromPublicArea=True&isModal=False | E178: Contratos de prestación de servicios profesionales y de apoyo a la gestión | F178: Contratación directa | G178: Prestación de servicios profesionales y de apoyo a la gestión, o para la ejecución de trabajos artísticos que sólo puedan encomendarse a determinadas personas naturales; | H178: LIDERAR Y GARANTIZAR LA IMPLEMENTACIÓN Y SEGUIMIENTO DE LOS PROCESOS Y PROCEDIMIENTOS DEL SERVICIO SOCIAL. | I178: Inversión | J178: Un Nuevo Contrato Social y Ambiental para la Bogotá del Siglo XXI | K178: 3 | L178: =IF(ISERROR(VLOOKUP(K178,Proposito_programa!$C$2:$E$59,2,FALSE))," ",VLOOKUP(K178,Proposito_programa!$C$2:$E$59,2,FALSE)) -> Movilidad social integral | M178: =IF(ISERROR(VLOOKUP(K178,Proposito_programa!$C$2:$E$59,3,FALSE))," ",VLOOKUP(K178,Proposito_programa!$C$2:$E$59,3,FALSE)) -> Propósito 1: Hacer un nuevo contrato social para incrementar la inclusión social, productiva y política | N178: 133011601010000002068 | O178: 0 | P178: 1032385912 | Q178: CINDY JULIETH NIÑO SABOGAL | R178: Persona Natural | S178: N/A | T178: N/A | U178: N/A | V178: 9166667 | Y178: 0 | Z178: 9166667 | AA178: 9166667 | AB178: 2021-11-10 | AC178: 2021-11-16 | AD178: 2022-01-06 | AE178: 1 MES 21 DIAS | AG178: 0 | AN178: X | AP178: 1
A179: 161-2021 | B179: 2021 | C179: FDLM-CD-161-2021 (63686) | D179: https://community.secop.gov.co/Public/Tendering/OpportunityDetail/Index?noticeUID=CO1.NTC.2380850&isFromPublicArea=True&isModal=False | E179: Contratos de prestación de servicios profesionales y de apoyo a la gestión | F179: Contratación directa | G179: Prestación de servicios profesionales y de apoyo a la gestión, o para la ejecución de trabajos artísticos que sólo puedan encomendarse a determinadas personas naturales; | H179: PRESTAR SUS SERVICIOS COMO PERSONAL DE APOYO EN LA CONDUCCIÓN DE LOS VEHICULOS LIVIANOS O PESADOS DE PROPIEDAD DEL FONDO DE DESARROLLO LOCAL DE LOS MÁRTIRES, DE CONFORMIDAD CON LOS LINEAMIENTOS DEL DESPACHO | I179: Inversión | J179: Un Nuevo Contrato Social y Ambiental para la Bogotá del Siglo XXI | K179: 3 | L179: =IF(ISERROR(VLOOKUP(K179,Proposito_programa!$C$2:$E$59,2,FALSE))," ",VLOOKUP(K179,Proposito_programa!$C$2:$E$59,2,FALSE)) -> Movilidad social integral | M179: =IF(ISERROR(VLOOKUP(K179,Proposito_programa!$C$2:$E$59,3,FALSE))," ",VLOOKUP(K179,Proposito_programa!$C$2:$E$59,3,FALSE)) -> Propósito 1: Hacer un nuevo contrato social para incrementar la inclusión social, productiva y política | N179: 133011605570000002099 | O179: 0 | P179: 9140998 | Q179: JHONY ENRIQUE RAMOS ALVAREZ | R179: Persona Natural | S179: N/A | T179: N/A | U179: N/A | V179: 4391208 | Z179: 4391208 | AA179: 4391208 | AB179: 2021-11-10 | AC179: 2021-11-16 | AD179: 2022-01-06 | AE179: 1 MES 21 DIAS | AN179: X | AP179: 1
A180: 162-2021 | B180: 2021 | C180: FDLM-CD-162-2021 (63684) | D180: https://community.secop.gov.co/Public/Tendering/OpportunityDetail/Index?noticeUID=CO1.NTC.2380853&isFromPublicArea=True&isModal=False | E180: Contratos de prestación de servicios profesionales y de apoyo a la gestión | F180: Contratación directa | G180: Prestación de servicios profesionales y de apoyo a la gestión, o para la ejecución de trabajos artísticos que sólo puedan encomendarse a determinadas personas naturales; | H180: PRESTAR LOS SERVICIOS DE APOYO A GESTIÓN EN LAS DIFERENTES LABORES ADMINISTRATIVAS QUE SURJAN DE LAS ACTIVIDADES DE LA JUNTA ADMINISTRADORA LOCAL DE LOS MÁRTIRES | I180: Inversión | J180: Un Nuevo Contrato Social y Ambiental para la Bogotá del Siglo XXI | K180: 3 | L180: =IF(ISERROR(VLOOKUP(K180,Proposito_programa!$C$2:$E$59,2,FALSE))," ",VLOOKUP(K180,Proposito_programa!$C$2:$E$59,2,FALSE)) -> Movilidad social integral | M180: =IF(ISERROR(VLOOKUP(K180,Proposito_programa!$C$2:$E$59,3,FALSE))," ",VLOOKUP(K180,Proposito_programa!$C$2:$E$59,3,FALSE)) -> Propósito 1: Hacer un nuevo contrato social para incrementar la inclusión social, productiva y política | N180: 133011605570000002099 | O180: 0 | P180: 51880973 | Q180: ARIS SEDITH CABARCAS MARTINEZ | R180: Persona Natural | S180: N/A | T180: N/A | U180: N/A | V180: 3950000 | Z180: 3950000 | AA180: 3950000 | AB180: 2021-11-10 | AC180: 2021-11-16 | AD180: 2022-01-06 | AE180: 1 MES 21 DIAS | AN180: X | AP180: 1
A181: 163-2021 | B181: 2021 | C181: FDLM-CD-P-163-2021 (63689) | D181: https://community.secop.gov.co/Public/Tendering/OpportunityDetail/Index?noticeUID=CO1.NTC.2384260&isFromPublicArea=True&isModal=False | E181: Contratos de prestación de servicios profesionales y de apoyo a la gestión | F181: Contratación directa | G181: Prestación de servicios profesionales y de apoyo a la gestión, o para la ejecución de trabajos artísticos que sólo puedan encomendarse a determinadas personas naturales; | H181: PRESTAR SERVICIOS PROFESIONALES AL ÁREA DE GESTIÓN PARA EL DESARROLLO ADMINISTRATIVO Y FINANCIERO, EN LAS ACTIVIDADES DE SEGUIMIENTO A LA INVERSIÓN, SOLICITUDES DE INFORMACIÓN A PROVEEDORES Y APOYO EN LA PROYECCIÓN DE INFORMES REQUERIDOS EN EL ÁREA DE GESTIÓN DEL FONDO DE DESARROLLO LOCAL DE LOS MÁRTIRES. | I181: Inversión | J181: Un Nuevo Contrato Social y Ambiental para la Bogotá del Siglo XXI | K181: 3 | L181: =IF(ISERROR(VLOOKUP(K181,Proposito_programa!$C$2:$E$59,2,FALSE))," ",VLOOKUP(K181,Proposito_programa!$C$2:$E$59,2,FALSE)) -> Movilidad social integral | M181: =IF(ISERROR(VLOOKUP(K181,Proposito_programa!$C$2:$E$59,3,FALSE))," ",VLOOKUP(K181,Proposito_programa!$C$2:$E$59,3,FALSE)) -> Propósito 1: Hacer un nuevo contrato social para incrementar la inclusión social, productiva y política | N181: 133011605570000002099 | O181: 0 | P181: 37844642 | Q181: LUZ ANGELA PINTO POSADA | R181: Persona Natural | S181: N/A | T181: N/A | U181: N/A | V181: 7840000 | Z181: 7840000 | AA181: 7840000 | AB181: 2021-11-11 | AC181: 2021-11-16 | AD181: 2022-01-03 | AE181: 1 MES 18 DIAS | AN181: X | AP181: 1
A182: 164-2021 | B182: 2021 | C182: FDLM-CD-P-164-2021 (63688) | D182: https://community.secop.gov.co/Public/Tendering/OpportunityDetail/Index?noticeUID=CO1.NTC.2407626&isFromPublicArea=True&isModal=False | E182: Contratos de prestación de servicios profesionales y de apoyo a la gestión | F182: Contratación directa | G182: Prestación de servicios profesionales y de apoyo a la gestión, o para la ejecución de trabajos artísticos que sólo puedan encomendarse a determinadas personas naturales; | H182: PRESTAR SERVICIOS PROFESIONALES COMO ENLACE EN TEMAS DE GESTIÓN DE RIESGO Y AGLOMERACIONES, A CARGO DE LA LOCALIDAD DE LOS MÁRTIRES DE CONFORMIDAD CON EL MARCO NORMATIVO APLICABLE PARA LA MATERIA. | I182: Inversión | J182: Un Nuevo Contrato Social y Ambiental para la Bogotá del Siglo XXI | K182: 3 | L182: =IF(ISERROR(VLOOKUP(K182,Proposito_programa!$C$2:$E$59,2,FALSE))," ",VLOOKUP(K182,Proposito_programa!$C$2:$E$59,2,FALSE)) -> Movilidad social integral | M182: =IF(ISERROR(VLOOKUP(K182,Proposito_programa!$C$2:$E$59,3,FALSE))," ",VLOOKUP(K182,Proposito_programa!$C$2:$E$59,3,FALSE)) -> Propósito 1: Hacer un nuevo contrato social para incrementar la inclusión social, productiva y política | N182: 133011605570000002099 | O182: 0 | P182: 79967824 | Q182: VICTOR FERNANDO ENCISO CONTRERAS | R182: Persona Natural | S182: N/A | T182: N/A | U182: N/A | V182: 6845800 | Z182: 6845800 | AA182: 5800000 | AB182: 2021-11-19 | AC182: 2021-11-23 | AD182: 2022-01-01 | AE182: 1 MES 9 DIAS | AN182: X | AP182: 0.8472348009
A183: 165-2021 | B183: 2021 | C183: FDLM-CD-165-2021 | D183: https://community.secop.gov.co/Public/Tendering/OpportunityDetail/Index?noticeUID=CO1.NTC.2385807&isFromPublicArea=True&isModal=False | E183: Contratos de prestación de servicios profesionales y de apoyo a la gestión | F183: Contratación directa | G183: Prestación de servicios profesionales y de apoyo a la gestión, o para la ejecución de trabajos artísticos que sólo puedan encomendarse a determinadas personas naturales; | H183: PRESTAR SUS SERVICIOS PARA APOYAR EL CENTRO DE DOCUMENTACIÓN E INFORMACIÓN - CDI - EN EL PROCESO DE RADICACIÓN, NOTIFICACIÓN Y ENTREGA DE LA CORRESPONDENCIA INTERNA Y EXTERNA DE LA ALCALDÍA LOCAL DE LOS MÁRTIRES Y CONTROL DE LOS DERECHOS DE PETICIÓN. | I183: Inversión | J183: Un Nuevo Contrato Social y Ambiental para la Bogotá del Siglo XXI | K183: 3 | L183: =IF(ISERROR(VLOOKUP(K183,Proposito_programa!$C$2:$E$59,2,FALSE))," ",VLOOKUP(K183,Proposito_programa!$C$2:$E$59,2,FALSE)) -> Movilidad social integral | M183: =IF(ISERROR(VLOOKUP(K183,Proposito_programa!$C$2:$E$59,3,FALSE))," ",VLOOKUP(K183,Proposito_programa!$C$2:$E$59,3,FALSE)) -> Propósito 1: Hacer un nuevo contrato social para incrementar la inclusión social, productiva y política | N183: 133011605570000002099 | O183: 0 | P183: 1019088888 | Q183: HANS SNEIDER CABARCAS TOROS | R183: Persona Natural | S183: N/A | T183: N/A | U183: N/A | V183: 4302200 | Z183: 4302200 | AA183: 0 | AB183: 2021-11-12 | AC183: 2021-11-12 | AD183: 2021-12-30 | AE183: 1 MES 19 DIAS | AM183: X | AP183: 0
A184: 166-2021 | B184: 2021 | C184: FDLM-CD-AP-166-2021 (63668) | D184: https://community.secop.gov.co/Public/Tendering/OpportunityDetail/Index?noticeUID=CO1.NTC.2390803&isFromPublicArea=True&isModal=False | E184: Contratos de prestación de servicios profesionales y de apoyo a la gestión | F184: Contratación directa | G184: Prestación de servicios profesionales y de apoyo a la gestión, o para la ejecución de trabajos artísticos que sólo puedan encomendarse a determinadas personas naturales; | H184: PRESTAR SUS SERVICIOS PARA APOYAR EL CENTRO DE DOCUMENTACIÓN E INFORMACIÓN - CDI - EN EL PROCESO DE RADICACIÓN, NOTIFICACIÓN Y ENTREGA DE LA CORRESPONDENCIA INTERNA Y EXTERNA DE LA ALCALDÍA LOCAL DE LOS MÁRTIRES Y CONTROL DE LOS DERECHOS DE PETICIÓN. | I184: Inversión | J184: Un Nuevo Contrato Social y Ambiental para la Bogotá del Siglo XXI | K184: 3 | L184: =IF(ISERROR(VLOOKUP(K184,Proposito_programa!$C$2:$E$59,2,FALSE))," ",VLOOKUP(K184,Proposito_programa!$C$2:$E$59,2,FALSE)) -> Movilidad social integral | M184: =IF(ISERROR(VLOOKUP(K184,Proposito_programa!$C$2:$E$59,3,FALSE))," ",VLOOKUP(K184,Proposito_programa!$C$2:$E$59,3,FALSE)) -> Propósito 1: Hacer un nuevo contrato social para incrementar la inclusión social, productiva y política | N184: 133011605570000002099 | O184: 0 | P184: 1032505874 | Q184: MARIA ALEJANDRA MARTINEZ DE LA PEÑA | R184: Persona Natural | S184: N/A | T184: N/A | U184: N/A | V184: 3951000 | Z184: 3951000 | AA184: 3951000 | AB184: 2021-11-12 | AC184: 2021-11-17 | AD184: 2022-01-01 | AE184: 1 MES 15 DIAS | AN184: X | AP184: 1
A185: FDLM-CI-005-2021 | B185: 2021 | C185: FDLM-CI-005-2021FDLM-CI-005-2021 | D185: https://community.secop.gov.co/Public/Tendering/ContractNoticePhases/View?PPI=CO1.PPI.15961705&isFromPublicArea=True&isModal=False | E185: Convenios de apoyo y/o convenios de asociación | F185: Contratación directa | G185: Prestación de servicios profesionales y de apoyo a la gestión, o para la ejecución de trabajos artísticos que sólo puedan encomendarse a determinadas personas naturales; | H185: AUNAR ESFUERZOS PARA LA REALIZACIÓN DE ACCIONES DE FORTALECIMIENTO (CONVOCATORIA, EVALUACIÓN Y SELECCIÓN) DE ORGANIZACIONES SOCIALES, INSTANCIAS DE PARTICIPACIÓN, ORGANIZACIONES DE ACTORES DE PROPIEDAD HORIZONTAL Y LA CELEBRACIÓN DEL EVENTO DÍA COMUNAL | I185: Inversión | J185: Un Nuevo Contrato Social y Ambiental para la Bogotá del Siglo XXI | K185: 3 | L185: =IF(ISERROR(VLOOKUP(K185,Proposito_programa!$C$2:$E$59,2,FALSE))," ",VLOOKUP(K185,Proposito_programa!$C$2:$E$59,2,FALSE)) -> Movilidad social integral | M185: =IF(ISERROR(VLOOKUP(K185,Proposito_programa!$C$2:$E$59,3,FALSE))," ",VLOOKUP(K185,Proposito_programa!$C$2:$E$59,3,FALSE)) -> Propósito 1: Hacer un nuevo contrato social para incrementar la inclusión social, productiva y política | N185: 133011605550000002096 | O185: 0 | P185: 901100455 | Q185: RED COLOMBIANA DE INSTITUCIONES DE EDUCACION SUPERIOR | R185: Persona Jurídica | S185: N/A | T185: N/A | U185: N/A | V185: 291000000 | Z185: 291000000 | AA185: 0 | AB185: 2021-11-12 | AC185: 2021-11-17 | AD185: 2022-03-16 | AE185: 4 MESES | AM185: X | AP185: 0
A186: FDLM-CI-006-2021 | B186: 2021 | C186: FDLM-CI-006-2021 | D186: https://community.secop.gov.co/Public/Tendering/OpportunityDetail/Index?noticeUID=CO1.NTC.2390372&isFromPublicArea=True&isModal=False | E186: Contratos interadministrativos | F186: Contratación directa | G186: Contratos interadministrativos | H186: AUNAR ESFUERZOS PARA VINCULAR 600 PERSONAS CON DISCAPACIDAD, CUIDA-DORES Y CUIDADORAS, EN ACTIVIDADES ALTERNATIVAS DE SALUD Y 400 PERSO-NAS A LAS ACCIONES DESARROLLADAS DESDE LOS DISPOSITIVOS DE BASE CO-MUNITARIA EN RESPUESTA AL CONSUMO DE SPA | I186: Funcionamiento | J186: Un Nuevo Contrato Social y Ambiental para la Bogotá del Siglo XXI | K186: No aplica | N186: 133011601060000002065 | O186: 0 | P186: 356406507 | Q186: SUBRED INTEGRADA DE SERVICIOS DE SALUD CENTRO ORIENTE E.S.E | R186: Persona Jurídica | S186: N/A | T186: N/A | U186: N/A | V186: 262816263 | Z186: 262816263 | AB186: 2021-11-12 | AC186: PEN | AD186: PEN | AE186: 5 MESES | AL186: X | AP186: 0
A187: FDLM-CI-007-2021 | B187: 2021 | C187: FDLM-CI-007-2021 | D187: https://community.secop.gov.co/Public/Tendering/OpportunityDetail/Index?noticeUID=CO1.NTC.2391231&isFromPublicArea=True&isModal=False | E187: Contratos interadministrativos | F187: Contratación directa | G187: Contratos interadministrativos | H187: PRESTAR LOS SERVICIOS DE CORREO CERTIFICADO Y APOYO A LA OPOERACION DEL CENTRO DE DOCUMENTACION E INFORMACION (CDI) DE LA ALCALDIA LOCAL DE LOS MARTIRES EN SU SEDE PRINCIPAL, INSPECCIONES DE POLICIA Y DEMAS QUE LLEGUEN A REQUERIR DURAN CON LA EJECUCION, QUECION CURSO Y ENTREGA DE CORRESPONDENCIA TANTO INTERNA COMO EXTERNA. | I187: Funcionamiento | J187: Un Nuevo Contrato Social y Ambiental para la Bogotá del Siglo XXI | K187: No aplica | N187: 131020202010601 | O187: 0 | P187: 67000000 | Q187: SERVICIOS POSTALES NACIONALES S.A | R187: Persona Jurídica | S187: N/A | T187: N/A | U187: N/A | V187: 70000000 | Z187: 70000000 | AB187: 2021-11-11 | AC187: PEN | AD187: PEN | AE187: 165 DIAS | AL187: X | AP187: 0
A188: FDLM-CI-007-2021 | B188: 2021 | C188: FDLM-CI-007-2021 | D188: https://community.secop.gov.co/Public/Tendering/OpportunityDetail/Index?noticeUID=CO1.NTC.2391231&isFromPublicArea=True&isModal=False | E188: Contratos interadministrativos | F188: Contratación directa | G188: Contratos interadministrativos | H188: PRESTAR LOS SERVICIOS DE CORREO CERTIFICADO Y APOYO A LA OPOERACION DEL CENTRO DE DOCUMENTACION E INFORMACION (CDI) DE LA ALCALDIA LOCAL DE LOS MARTIRES EN SU SEDE PRINCIPAL, INSPECCIONES DE POLICIA Y DEMAS QUE LLEGUEN A REQUERIR DURAN CON LA EJECUCION, QUECION CURSO Y ENTREGA DE CORRESPONDENCIA TANTO INTERNA COMO EXTERNA. | I188: Funcionamiento | J188: Un Nuevo Contrato Social y Ambiental para la Bogotá del Siglo XXI | K188: No aplica | N188: 131020202010602 | O188: 0 | P188: 3000000 | Q188: SERVICIOS POSTALES NACIONALES S.A | R188: Persona Jurídica | S188: N/A | T188: N/A | U188: N/A | V188: 70000000 | Z188: =+V188+W188+Y188 -> 70000000 | AB188: 2021-11-11 | AC188: PEN | AD188: PEN | AE188: 165 DIAS | AL188: X | AP188: =IF(ISERROR(AA188/Z188),"-",(AA188/Z188)) -> 0
A189: 167-2021 | B189: 2021 | C189: FDLM-CD-AP-167-2021 (63935) | D189: https://community.secop.gov.co/Public/Tendering/OpportunityDetail/Index?noticeUID=CO1.NTC.2401720&isFromPublicArea=True&isModal=False | E189: Contratos de prestación de servicios profesionales y de apoyo a la gestión | F189: Contratación directa | G189: Prestación de servicios profesionales y de apoyo a la gestión, o para la ejecución de trabajos artísticos que sólo puedan encomendarse a determinadas personas naturales; | H189: APOYAR EN LAS TAREAS OPERATIVAS DE CARÁCTER ARCHIVÍSTICO DESARROLLADAS EN LA ALCALDÍA LOCAL PARA GARANTIZAR LA APLICACIÓN CORRECTA DE LOS PROCEDIMIENTOS TÉCNICOS. | I189: Inversión | J189: Un Nuevo Contrato Social y Ambiental para la Bogotá del Siglo XXI | K189: 3 | L189: =IF(ISERROR(VLOOKUP(K189,Proposito_programa!$C$2:$E$59,2,FALSE))," ",VLOOKUP(K189,Proposito_programa!$C$2:$E$59,2,FALSE)) -> Movilidad social integral | M189: =IF(ISERROR(VLOOKUP(K189,Proposito_programa!$C$2:$E$59,3,FALSE))," ",VLOOKUP(K189,Proposito_programa!$C$2:$E$59,3,FALSE)) -> Propósito 1: Hacer un nuevo contrato social para incrementar la inclusión social, productiva y política | N189: 133011605570000002099 | O189: 0 | P189: 51689390 | Q189: CARMEN MARIA NISPERUZA FLOREZ | R189: Persona Natural | S189: N/A | T189: N/A | U189: N/A | V189: 4780167 | Y189: 0 | Z189: 4780167 | AA189: 4780167 | AB189: 2021-11-17 | AC189: 2021-11-22 | AD189: 2022-01-04 | AE189: 1 MES 13 DIAS | AG189: N/A | AN189: X | AP189: 1
A190: 168-2021 | B190: 2021 | C190: FDLM-CD-168-2021 (64081) | D190: https://community.secop.gov.co/Public/Tendering/OpportunityDetail/Index?noticeUID=CO1.NTC.2401358&isFromPublicArea=True&isModal=False | E190: Contratos de prestación de servicios profesionales y de apoyo a la gestión | F190: Contratación directa | G190: Prestación de servicios profesionales y de apoyo a la gestión, o para la ejecución de trabajos artísticos que sólo puedan encomendarse a determinadas personas naturales; | H190: PRESTAR LOS SERVICIOS PROFESIONALES COMO APOYO AL ÁREA DE GESTIÓN DEL DESARROLLO ADMINISTRATIVA Y FINANCIERA LOCAL, EN LO RELACIONADO EN TEMAS DE PRESUPUESTO Y CONTABILIDAD EN LAS DIFERENTES ACTIVIDADES QUE SE REQUIERA, ADEMÁS DEL APOYO CORRESPONDIENTE PARA EL MANEJO DE LOS APLICATIVOS PREDIS, OPGET, ORFEO, PAC, SIPROJ, SICO, SIPSE Y BOG DATA | I190: Inversión | J190: Un Nuevo Contrato Social y Ambiental para la Bogotá del Siglo XXI | K190: 3 | L190: =IF(ISERROR(VLOOKUP(K190,Proposito_programa!$C$2:$E$59,2,FALSE))," ",VLOOKUP(K190,Proposito_programa!$C$2:$E$59,2,FALSE)) -> Movilidad social integral | M190: =IF(ISERROR(VLOOKUP(K190,Proposito_programa!$C$2:$E$59,3,FALSE))," ",VLOOKUP(K190,Proposito_programa!$C$2:$E$59,3,FALSE)) -> Propósito 1: Hacer un nuevo contrato social para incrementar la inclusión social, productiva y política | N190: 133011605570000002099 | O190: 0 | P190: 1013603935 | Q190: CATHERINE DIAZ LOZANO | R190: Persona Natural | S190: N/A | T190: N/A | U190: N/A | V190: 7926333 | Y190: 0 | Z190: 7926333 | AA190: 7926333 | AB190: 2021-11-17 | AC190: 2021-11-18 | AD190: 2021-12-31 | AE190: 1 MES 13 DIAS | AG190: N/A | AN190: X | AP190: 1
A191: 172-2021 | B191: 2021 | C191: FDLM-CD-P-168-2021 (63685) | D191: https://community.secop.gov.co/Public/Tendering/OpportunityDetail/Index?noticeUID=CO1.NTC.2407599&isFromPublicArea=True&isModal=False | E191: Contratos de prestación de servicios profesionales y de apoyo a la gestión | F191: Contratación directa | G191: Prestación de servicios profesionales y de apoyo a la gestión, o para la ejecución de trabajos artísticos que sólo puedan encomendarse a determinadas personas naturales; | H191: APOYAR JURÍDICAMENTE LA EJECUCIÓN DE ACCIONES REQUERIDAS PARA EL TRÁMITE E IMPULSO PROCESAL DE LAS ACTUACIONES CONTRAVENCIONALES Y/O QUERELLAS QUE CURSEN EN LAS INSPECCIONES DE POLICÍA DE LA LOCALIDAD DE LOS MÁRTIRES. | I191: Inversión | J191: Un Nuevo Contrato Social y Ambiental para la Bogotá del Siglo XXI | K191: 3 | L191: =IF(ISERROR(VLOOKUP(K191,Proposito_programa!$C$2:$E$59,2,FALSE))," ",VLOOKUP(K191,Proposito_programa!$C$2:$E$59,2,FALSE)) -> Movilidad social integral | M191: =IF(ISERROR(VLOOKUP(K191,Proposito_programa!$C$2:$E$59,3,FALSE))," ",VLOOKUP(K191,Proposito_programa!$C$2:$E$59,3,FALSE)) -> Propósito 1: Hacer un nuevo contrato social para incrementar la inclusión social, productiva y política | N191: 133011605570000002099 | O191: 0 | P191: 51921603 | Q191: AURA ALICIA INFANTE GARCIA | R191: Persona Natural | S191: N/A | T191: N/A | U191: N/A | V191: 6370000 | Y191: 0 | Z191: 6370000 | AA191: 5950000 | AB191: 2021-11-20 | AC191: 2021-11-25 | AD191: 2022-01-01 | AE191: 1 MES 9 DIAS | AG191: N/A | AN191: X | AP191: 0.9340659341
A192: 169-2021 | B192: 2021 | C192: FDLM-CD-P-169-2021 (64477) | D192: https://community.secop.gov.co/Public/Tendering/OpportunityDetail/Index?noticeUID=CO1.NTC.2411189&isFromPublicArea=True&isModal=False | E192: Contratos de prestación de servicios profesionales y de apoyo a la gestión | F192: Contratación directa | G192: Prestación de servicios profesionales y de apoyo a la gestión, o para la ejecución de trabajos artísticos que sólo puedan encomendarse a determinadas personas naturales; | H192: PRESTAR SUS SERVICIOS PROFESIONALES PARA LA FORMULACIÓN PRE CONTRACTUAL PARTICIPATIVA, APOYO A LA SUPERVISIÓN, SEGUIMIENTO, ACOMPAÑAMIENTO, ATENCIÓN Y EVALUACIÓN DE LOS PROYECTOS E INSTANCIAS DE ARTICULACIÓN INTERINSTITUCIONAL Y PARTICIPACIÓN LOCAL EN CUMPLIMROLIENTO DEL PLAN DE DESIGARENTE | I192: Inversión | J192: Un Nuevo Contrato Social y Ambiental para la Bogotá del Siglo XXI | K192: 3 | L192: =IF(ISERROR(VLOOKUP(K192,Proposito_programa!$C$2:$E$59,2,FALSE))," ",VLOOKUP(K192,Proposito_programa!$C$2:$E$59,2,FALSE)) -> Movilidad social integral | M192: =IF(ISERROR(VLOOKUP(K192,Proposito_programa!$C$2:$E$59,3,FALSE))," ",VLOOKUP(K192,Proposito_programa!$C$2:$E$59,3,FALSE)) -> Propósito 1: Hacer un nuevo contrato social para incrementar la inclusión social, productiva y política | N192: 133011605570000002099 | O192: 0 | P192: 1022369884 | Q192: ANDREA CATALINA LEÓN QUINTERO | R192: Persona Natural | S192: N/A | T192: N/A | U192: N/A | V192: 7150000 | Y192: 0 | Z192: 7150000 | AA192: 5900000 | AB192: 2021-11-23 | AC192: 2021-11-23 | AD192: 2022-01-01 | AE192: 1 MES 9 DIAS | AG192: N/A | AN192: X | AP192: 0.8251748252
A193: 170-20121 | B193: 2021 | C193: FDLM-CD-P-170-2021 (64134) | D193: https://community.secop.gov.co/Public/Tendering/OpportunityDetail/Index?noticeUID=CO1.NTC.2407701&isFromPublicArea=True&isModal=False | E193: Contratos de prestación de servicios profesionales y de apoyo a la gestión | F193: Contratación directa | G193: Prestación de servicios profesionales y de apoyo a la gestión, o para la ejecución de trabajos artísticos que sólo puedan encomendarse a determinadas personas naturales; | H193: PRESTAR SERVICIOS PROFESIONALES AL ÁREA POLICIVA DE LA ALCALDÍA LOCAL DE LOS MÁRTIRES, PARA ADELANTAR TRÁMITES Y PROCEDIMIENTOS EN MATERIA JURÍDICA QUE PERMITAN GARANTIZAR EL CUMPLIMIENTO DE LAS METAS ESTABLECIDAS EN EL PLAN DE DESARROLLO LOCAL VIGENTE. | I193: Inversión | J193: Un Nuevo Contrato Social y Ambiental para la Bogotá del Siglo XXI | K193: 3 | L193: =IF(ISERROR(VLOOKUP(K193,Proposito_programa!$C$2:$E$59,2,FALSE))," ",VLOOKUP(K193,Proposito_programa!$C$2:$E$59,2,FALSE)) -> Movilidad social integral | M193: =IF(ISERROR(VLOOKUP(K193,Proposito_programa!$C$2:$E$59,3,FALSE))," ",VLOOKUP(K193,Proposito_programa!$C$2:$E$59,3,FALSE)) -> Propósito 1: Hacer un nuevo contrato social para incrementar la inclusión social, productiva y política | N193: 133011605570000002099 | O193: 0 | P193: 80075984 | Q193: HERNANDO ESPELETA MAIGUEL | R193: Persona Natural | S193: N/A | T193: N/A | U193: N/A | V193: 7150000 | X193: 1 | Y193: 2566667 | Z193: 9716667 | AA193: 9716667 | AB193: 2021-11-19 | AC193: 2021-11-23 | AD193: 2022-01-15 | AE193: 1 MES 9 DIAS | AF193: 1 | AG193: 14 DIAS | AN193: X | AP193: 1
A194: 171-2021 | B194: 2021 | C194: FDLM-CPS-171-2021 | D194: https://community.secop.gov.co/Public/Tendering/OpportunityDetail/Index?noticeUID=CO1.NTC.2407708&isFromPublicArea=True&isModal=False | E194: Contratos de prestación de servicios profesionales y de apoyo a la gestión | F194: Contratación directa | G194: Prestación de servicios profesionales y de apoyo a la gestión, o para la ejecución de trabajos artísticos que sólo puedan encomendarse a determinadas personas naturales; | H194: PRESTAR LOS SERVICIOS PROFESIONALES PARA ADMINISTRAR LA RED DE VOZ Y DATOS Y EL MANEJO DE LA PLATAFORMA INFORMÁTICA DE LAS DIFERENTES DEPENDENCIAS DE LA ENTIDAD | I194: Inversión | J194: Un Nuevo Contrato Social y Ambiental para la Bogotá del Siglo XXI | K194: 3 | L194: =IF(ISERROR(VLOOKUP(K194,Proposito_programa!$C$2:$E$59,2,FALSE))," ",VLOOKUP(K194,Proposito_programa!$C$2:$E$59,2,FALSE)) -> Movilidad social integral | M194: =IF(ISERROR(VLOOKUP(K194,Proposito_programa!$C$2:$E$59,3,FALSE))," ",VLOOKUP(K194,Proposito_programa!$C$2:$E$59,3,FALSE)) -> Propósito 1: Hacer un nuevo contrato social para incrementar la inclusión social, productiva y política | N194: 133011605570000002099 | O194: 0 | P194: 80166441 | Q194: LUIS MIGUEL LÓPEZ RODRÍGUEZ | R194: Persona Natural | S194: N/A | T194: N/A | U194: N/A | V194: 7189000 | Y194: 0 | Z194: 7189000 | AA194: 7189000 | AB194: 2021-11-22 | AC194: 2021-11-24 | AD194: 2022-01-02 | AE194: 1 MES 9 DIAS | AG194: N/A | AN194: X | AP194: 1
A195: 173-2021 | B195: 2021 | C195: FDLM-CD-173-2021 (64029) | D195: https://community.secop.gov.co/Public/Tendering/OpportunityDetail/Index?noticeUID=CO1.NTC.2420347&isFromPublicArea=True&isModal=False | E195: Contratos de prestación de servicios profesionales y de apoyo a la gestión | F195: Contratación directa | G195: Prestación de servicios profesionales y de apoyo a la gestión, o para la ejecución de trabajos artísticos que sólo puedan encomendarse a determinadas personas naturales; | H195: APOYAR JURÍDICAMENTE LA EJECUCIÓN DE LAS ACCIONES REQUERIDAS PARA LA DEPURACIÓN DE LAS ACTUACIONES ADMINISTRATIVAS QUE CURSAN EN LA ALCALDÍA LOCAL, | I195: Inversión | J195: Un Nuevo Contrato Social y Ambiental para la Bogotá del Siglo XXI | K195: 3 | L195: =IF(ISERROR(VLOOKUP(K195,Proposito_programa!$C$2:$E$59,2,FALSE))," ",VLOOKUP(K195,Proposito_programa!$C$2:$E$59,2,FALSE)) -> Movilidad social integral | M195: =IF(ISERROR(VLOOKUP(K195,Proposito_programa!$C$2:$E$59,3,FALSE))," ",VLOOKUP(K195,Proposito_programa!$C$2:$E$59,3,FALSE)) -> Propósito 1: Hacer un nuevo contrato social para incrementar la inclusión social, productiva y política | N195: 133011605570000002099 | O195: 0 | P195: 52796223 | Q195: ALEXANDRA GUZMAN LAMUS | R195: Persona Natural | S195: N/A | T195: N/A | U195: N/A | V195: 5734167 | Y195: 0 | Z195: 5734167 | AA195: 5734167 | AB195: 2021-11-25 | AC195: 2021-11-29 | AD195: 2022-01-03 | AE195: 1 MES 5 DIAS | AG195: N/A | AN195: X | AP195: 1
A196: 174-2021 | B196: 2021 | C196: FDLM-CD-174-2021 (64911) | D196: https://community.secop.gov.co/Public/Tendering/OpportunityDetail/Index?noticeUID=CO1.NTC.2430690&isFromPublicArea=True&isModal=False | E196: Contratos de prestación de servicios profesionales y de apoyo a la gestión | F196: Contratación directa | G196: Prestación de servicios profesionales y de apoyo a la gestión, o para la ejecución de trabajos artísticos que sólo puedan encomendarse a determinadas personas naturales; | H196: APOYAR JURIDICAMENTE LA EJECUCIÓN DE LAS ACCIONES REQUERIDAS PARA LA DEPURACIÓN DE LAS ACTUACIONES ADMINISTRATIVAS QUE CURSAN EN LA ALCALDIA LOCAL. | I196: Inversión | J196: Un Nuevo Contrato Social y Ambiental para la Bogotá del Siglo XXI | K196: 3 | L196: =IF(ISERROR(VLOOKUP(K196,Proposito_programa!$C$2:$E$59,2,FALSE))," ",VLOOKUP(K196,Proposito_programa!$C$2:$E$59,2,FALSE)) -> Movilidad social integral | M196: =IF(ISERROR(VLOOKUP(K196,Proposito_programa!$C$2:$E$59,3,FALSE))," ",VLOOKUP(K196,Proposito_programa!$C$2:$E$59,3,FALSE)) -> Propósito 1: Hacer un nuevo contrato social para incrementar la inclusión social, productiva y política | N196: 133011605570000002099 | O196: 0 | P196: 1014263010 | Q196: KAREN JIMENA BURBANO MORENO | R196: Persona Natural | S196: N/A | T196: N/A | U196: N/A | V196: 5734167 | Y196: 0 | Z196: 5734167 | AA196: 5734167 | AB196: 2021-11-30 | AC196: 2021-12-03 | AD196: 2022-01-07 | AE196: 1 MES 5 DIAS | AG196: N/A | AN196: X | AP196: 1
A197: 175-2021 | B197: 2021 | C197: FDLM-CD-175-2021 (64882) | D197: https://community.secop.gov.co/Public/Tendering/OpportunityDetail/Index?noticeUID=CO1.NTC.2445756&isFromPublicArea=True&isModal=False | E197: Contratos de prestación de servicios profesionales y de apoyo a la gestión | F197: Contratación directa | G197: Prestación de servicios profesionales y de apoyo a la gestión, o para la ejecución de trabajos artísticos que sólo puedan encomendarse a determinadas personas naturales; | H197: PRESTAR SERVICIOS PROFESIONALES EN LOS PROYECTOS QUE TIENEN POR OBJETO LA CONSTRUCCIÓN, MANTENIMIENTO Y DOTACIÓN DE PARQUES VECINALES Y / O DE BOLSILLO DE LA LOCALIDAD DE LOS MÁRTIRES | I197: Inversión | J197: Un Nuevo Contrato Social y Ambiental para la Bogotá del Siglo XXI | K197: 3 | L197: =IF(ISERROR(VLOOKUP(K197,Proposito_programa!$C$2:$E$59,2,FALSE))," ",VLOOKUP(K197,Proposito_programa!$C$2:$E$59,2,FALSE)) -> Movilidad social integral | M197: =IF(ISERROR(VLOOKUP(K197,Proposito_programa!$C$2:$E$59,3,FALSE))," ",VLOOKUP(K197,Proposito_programa!$C$2:$E$59,3,FALSE)) -> Propósito 1: Hacer un nuevo contrato social para incrementar la inclusión social, productiva y política | N197: 133011602330000002092 | O197: 0 | P197: 52384481 | Q197: MARYORI PASACHOVA SANCHEZ | R197: Persona Natural | S197: N/A | T197: N/A | U197: N/A | V197: 8344000 | Y197: 0 | Z197: 8344000 | AA197: 8344000 | AB197: 2021-12-07 | AC197: 2021-12-09 | AD197: 2022-01-20 | AE197: 1 MES 12 DIAS | AG197: N/A | AN197: X | AP197: 1
A198: 176-2021 | B198: 2021 | C198: FDLM ‑ CD ‑ 176‑2021 (65022) | D198: https://community.secop.gov.co/Public/Tendering/OpportunityDetail/Index?noticeUID=CO1.NTC.2431014&isFromPublicArea=True&isModal=False | E198: Contratos de prestación de servicios profesionales y de apoyo a la gestión | F198: Contratación directa | G198: Prestación de servicios profesionales y de apoyo a la gestión, o para la ejecución de trabajos artísticos que sólo puedan encomendarse a determinadas personas naturales; | H198: PRESTAR LOS SERVICIOS TÉCNICOS PARA LA OPERACIÓN, SEGUIMIENTO Y CUMPLIMIENTO DE LOS PROCESOS Y PROCEDIMIENTOS DEL SERVICIO SOCIAL APOYOS PARA LA SEGURIDAD ECONÓMICA TIPO C, REQUERIDOS PARA EL OPORTUNO Y ADECUADO REGISTRO, CRUCE Y REPORTE DE LOS DATOS EN EL SISTEMA DE INFORMACIÓN Y REGISTRO DE BENEFICIARIOS-SIRBE, QUE CONTRIBUYAN A LA GARANTÍA DE LOS DERECHOS DE LA POBLACIÓN MAYOR EN EL MARCO DE LA POLÍTICA PÚBLICA SOCIAL PARA EL ENVEJECIMIENTO Y LA VEJEZ EN EL DISTRITO CAPITAL A CARGO DE LA ALCA | I198: Inversión | J198: Un Nuevo Contrato Social y Ambiental para la Bogotá del Siglo XXI | K198: 3 | L198: =IF(ISERROR(VLOOKUP(K198,Proposito_programa!$C$2:$E$59,2,FALSE))," ",VLOOKUP(K198,Proposito_programa!$C$2:$E$59,2,FALSE)) -> Movilidad social integral | M198: =IF(ISERROR(VLOOKUP(K198,Proposito_programa!$C$2:$E$59,3,FALSE))," ",VLOOKUP(K198,Proposito_programa!$C$2:$E$59,3,FALSE)) -> Propósito 1: Hacer un nuevo contrato social para incrementar la inclusión social, productiva y política | N198: 133011601010000002068 | O198: 0 | P198: 1031157993 | Q198: YEIMI PAHOLA HERRERA RUIZ | R198: Persona Natural | S198: N/A | T198: N/A | U198: N/A | V198: 3733333 | Y198: 0 | Z198: 3733333 | AA198: 3733333 | AB198: 2021-11-30 | AC198: 2021-12-03 | AD198: 2022-01-07 | AE198: 1 MES 5 DIAS | AG198: N/A | AN198: X | AP198: 1
A199: 177-2021 | B199: 2021 | C199: FDLM-CD-177-2021 (64475) | D199: https://community.secop.gov.co/Public/Tendering/OpportunityDetail/Index?noticeUID=CO1.NTC.2445760&isFromPublicArea=True&isModal=False | E199: Contratos de prestación de servicios profesionales y de apoyo a la gestión | F199: Contratación directa | G199: Prestación de servicios profesionales y de apoyo a la gestión, o para la ejecución de trabajos artísticos que sólo puedan encomendarse a determinadas personas naturales; | H199: PRESTAR LOS SERVICIOS PROFESIONALES COMO ABOGADO PARA APOYAR LAS DIFERENTES ETAPAS CONTRACTUALES, Y DEMÁS LABORES PROPIAS DE LA OFICINA DE CONTRATACIÓN DEL FONDO DE DESARROLLO LOCAL DE LOS MÁRTIRES. | I199: Inversión | J199: Un Nuevo Contrato Social y Ambiental para la Bogotá del Siglo XXI | K199: 3 | L199: =IF(ISERROR(VLOOKUP(K199,Proposito_programa!$C$2:$E$59,2,FALSE))," ",VLOOKUP(K199,Proposito_programa!$C$2:$E$59,2,FALSE)) -> Movilidad social integral | M199: =IF(ISERROR(VLOOKUP(K199,Proposito_programa!$C$2:$E$59,3,FALSE))," ",VLOOKUP(K199,Proposito_programa!$C$2:$E$59,3,FALSE)) -> Propósito 1: Hacer un nuevo contrato social para incrementar la inclusión social, productiva y política | N199: 133011605570000002099 | O199: 0 | P199: 1032383222 | Q199: JESUS MAURICIO ROA OME | R199: Persona Natural | S199: N/A | T199: N/A | U199: N/A | V199: 9600000 | Y199: 0 | Z199: 9600000 | AA199: 9600000 | AB199: 2021-12-07 | AC199: 2021-12-09 | AD199: 2022-01-26 | AE199: 1 MES 18 DIAS | AG199: N/A | AN199: X | AP199: 1
A200: 178-2021 | B200: 2021 | C200: 178-2021-CPS P (64962) | D200: https://community.secop.gov.co/Public/Tendering/OpportunityDetail/Index?noticeUID=CO1.NTC.2439176&isFromPublicArea=True&isModal=False | E200: Contratos de prestación de servicios profesionales y de apoyo a la gestión | F200: Contratación directa | G200: Prestación de servicios profesionales y de apoyo a la gestión, o para la ejecución de trabajos artísticos que sólo puedan encomendarse a determinadas personas naturales; | H200: PRESTAR LOS SERVICIOS PROFESIONALES PARA LA OPERACIÓN, PRESTACIÓN, SEGUIMIENTO Y CUMPLIMIENTO DE LOS PROCEDIMIENTOS ADMINISTRATIVOS, OPERATIVOS Y PROGRAMÁTICOS DEL SERVICIO SOCIAL APOYO ECONÓMICO TIPO C, QUE CONTRIBUYAN A LA GARANTÍA DE LOS DERECHOS DE LA POBLACIÓN SOCIAL POLÍTICA EL ENVEJECIMIENTO Y LA VEJEZ EN EL DISTRITO CAPITAL A CARGO DE LA ALCALDÍA LOCAL. | I200: Inversión | J200: Un Nuevo Contrato Social y Ambiental para la Bogotá del Siglo XXI | K200: 3 | L200: =IF(ISERROR(VLOOKUP(K200,Proposito_programa!$C$2:$E$59,2,FALSE))," ",VLOOKUP(K200,Proposito_programa!$C$2:$E$59,2,FALSE)) -> Movilidad social integral | M200: =IF(ISERROR(VLOOKUP(K200,Proposito_programa!$C$2:$E$59,3,FALSE))," ",VLOOKUP(K200,Proposito_programa!$C$2:$E$59,3,FALSE)) -> Propósito 1: Hacer un nuevo contrato social para incrementar la inclusión social, productiva y política | N200: 133011601010000002068 | O200: 0 | P200: 52198702 | Q200: LEDI ANYELI CASTRILLON MARTINEZ | R200: Persona Natural | S200: N/A | T200: N/A | U200: N/A | V200: 4500000 | Y200: 0 | Z200: 4500000 | AA200: 4500000 | AB200: 2021-12-03 | AC200: 2021-12-06 | AD200: 2022-01-05 | AE200: 1 MES | AG200: N/A | AN200: X | AP200: 1
A201: 179-2021 | B201: 2021 | C201: FDLM-CD-179-2021 (65818) | D201: https://community.secop.gov.co/Public/Tendering/OpportunityDetail/Index?noticeUID=CO1.NTC.2438170&isFromPublicArea=True&isModal=False | E201: Contratos de prestación de servicios profesionales y de apoyo a la gestión | F201: Contratación directa | G201: Prestación de servicios profesionales y de apoyo a la gestión, o para la ejecución de trabajos artísticos que sólo puedan encomendarse a determinadas personas naturales; | H201: PRESTAR SUS SERVICIOS PROFESIONALES AL FONDO DE DESARROLLO LOCAL DE LOS MÁRTIRES PARA EL APOYO Y ACOMPAÑAMIENTO DE LAS INSTANCIAS DE COORDINACIÓN INTERINSTITUCIONALES E INSTANCIAS DE PARTICIPACIÓN LOCALES, APOYO A LA SUPERVISIÓN Y SEGUIMIENTO AL PLAN DE DESARROLLO LOCAL Y EVALUACIÓN DE PROYECTOS | I201: Inversión | J201: Un Nuevo Contrato Social y Ambiental para la Bogotá del Siglo XXI | K201: 3 | L201: =IF(ISERROR(VLOOKUP(K201,Proposito_programa!$C$2:$E$59,2,FALSE))," ",VLOOKUP(K201,Proposito_programa!$C$2:$E$59,2,FALSE)) -> Movilidad social integral | M201: =IF(ISERROR(VLOOKUP(K201,Proposito_programa!$C$2:$E$59,3,FALSE))," ",VLOOKUP(K201,Proposito_programa!$C$2:$E$59,3,FALSE)) -> Propósito 1: Hacer un nuevo contrato social para incrementar la inclusión social, productiva y política | N201: 133011605570000002099 | O201: 0 | P201: 88281606 | Q201: DENIS EDUARDO BARROZO ROJAS | R201: Persona Natural | S201: N/A | T201: N/A | U201: N/A | V201: 6000000 | Y201: 0 | Z201: 6000000 | AA201: 0 | AB201: 2021-12-03 | AC201: 2021-12-06 | AD201: 2022-01-05 | AE201: 1 MES | AG201: N/A | AN201: X | AP201: 0
A202: 180-2021 | B202: 2021 | C202: FDLM-CD-180-2021 (63934) | D202: https://community.secop.gov.co/Public/Tendering/OpportunityDetail/Index?noticeUID=CO1.NTC.2448979&isFromPublicArea=True&isModal=False | E202: Contratos de prestación de servicios profesionales y de apoyo a la gestión | F202: Contratación directa | G202: Prestación de servicios profesionales y de apoyo a la gestión, o para la ejecución de trabajos artísticos que sólo puedan encomendarse a determinadas personas naturales; | H202: APOYAR JURÍDICAMENTE LA EJECUCIÓN DE ACCIONES REQUERIDAS PARA EL TRÁMITE E IMPULSO PROCESAL DE LAS ACTUACIONES CONTRAVENCIONALES Y/O QUERELLAS QUE CURSEN EN LAS INSPECCIONES DE POLICÍA DE LA LOCALIDAD DE LOS MÁRTIRES | I202: Inversión | J202: Un Nuevo Contrato Social y Ambiental para la Bogotá del Siglo XXI | K202: 3 | L202: =IF(ISERROR(VLOOKUP(K202,Proposito_programa!$C$2:$E$59,2,FALSE))," ",VLOOKUP(K202,Proposito_programa!$C$2:$E$59,2,FALSE)) -> Movilidad social integral | M202: =IF(ISERROR(VLOOKUP(K202,Proposito_programa!$C$2:$E$59,3,FALSE))," ",VLOOKUP(K202,Proposito_programa!$C$2:$E$59,3,FALSE)) -> Propósito 1: Hacer un nuevo contrato social para incrementar la inclusión social, productiva y política | N202: 133011605570000002099 | O202: 0 | P202: 1007539578 | Q202: JUAN PABLO TORRES ALVAREZ | R202: Persona Natural | S202: N/A | T202: N/A | U202: N/A | V202: 6533333 | Y202: 0 | Z202: 6533333 | AA202: 6533333 | AB202: 2021-12-09 | AC202: 2021-12-13 | AD202: 2022-01-22 | AE202: 40 DIAS | AG202: N/A | AN202: X | AP202: 1
... 35 more rows

Sheet OBSERVACIONE Y REVISIÓN BOGDATA
A1: OBSERVACIONES
A2: 1 | B2: En la hoja de "información acumulada", en columna "i160" en la columna de afectación no esta diligenciada.
A3: 2 | B3: En la hoja de "información acumulada", en la columna "P" Número de Identificación del contratista, las cedulas estan diligenciadas con puntos, el instructivo dice "Indicar el número de identificación del contratista persona natural o jurídica o contratistas plurales (uniones temporales y consorcios) con quien se suscribió el contrato, sin comas, tildes, puntos ni caracteres especiales, y si es NIT sin dígito de verificación".
A4: 3 | B4: En la columna "Q" de Nombre del contratista, en algunas casillas aparece diligenciado el nombre del contratista y entre parentecis el nombre del cesionario, el nombre del cesionario debe ir diligenciado en la columna "AH,AI" identificacion y nombre del cesionario.
A5: 4 | B5: Hay contratos con valor final de cero, deben ser eliminados.
A6: 5
C10: BOGDATA | F10: SUMATORIA FORMATO
C11: DISPONIBLE | D11: COMPROMETIDO | E11: GIROS ACUMULADOS | F11: COMPROMETIDO | G11: DIFERENCIA | H11: GIROS ACUMULADOS | I11: DIFERENCIA
A12: 131 | B12: GASTOS DE FUNCIONAMIENTO | C12: 3053936834 | D12: 2658575748 | E12: 1995102365 | F12: 4694525480 | G12: =+D12-F12 -> -2035949732 | H12: 1191503736 | I12: =+E12-H12 -> 803598629
A13: 13301 | B13: DIRECTA | C13: 26409987676 | D13: 24600396328 | E13: 18584075886 | F13: 7856757542 | G13: =+D13-F13 -> 16743638786 | I13: =+E13-H13 -> 18584075886
A14: 1330116 | B14: Un Nuevo Contrato Social y Ambiental para la Bogotá del Siglo XXI | C14: 26409987676 | D14: 24600396328 | E14: 18584075886 | G14: 24600396328 | I14: =+E14-H14 -> 18584075886
A15: 133011601 | B15: Hacer un nuevo contrato social con igualdad de oportunidades para la inclusión social, productiva y política | C15: 9588224622 | D15: 8155982201 | E15: 4586110540 | F15: =F17+F19+F20+F21+F22+F24+F26+F28+F30+F32+F34 -> 8155982201 | G15: 0 | H15: =H17+H19+H20+H21+H22+H24+H26+H28+H30+H32+H34 -> 4586110540 | I15: =+E15-H15 -> 0
A16: 13301160101 | B16: Subsidios y transferencias para la equidad | C16: 3123145455 | D16: 3050887109 | E16: 2861451112 | G16: 3050887109 | I16: =+E16-H16 -> 2861451112 | L16: =E17-F17 -> -189435997
A17: 133011601010000002068 | B17: Mártires equitativa con la población más vulnerable | C17: 3123145455 | D17: 3050887109 | E17: 2861451112 | F17: 3050887109 | G17: 0 | H17: 2861451112 | I17: 0
A18: 13301160106 | B18: Sistema Distrital del Cuidado | C18: 2980247748 | D18: 1985259906 | E18: 374710011 | G18: 1985259906 | I18: 374710011
A19: 133011601060000002043 | B19: Ayudas técnicas y medicina ancestral | C19: 161577000 | D19: 34750100 | E19: 12000000 | F19: 34750100 | G19: 0 | H19: 12000000 | I19: 0
A20: 133011601060000002060 | B20: Localidad emprendedora y sostenible | C20: 1399637748 | D20: 1003107000 | E20: 252621400 | F20: 1003107000 | G20: 0 | H20: 252621400 | I20: 0
A21: 133011601060000002065 | B21: Mártires cuidadora | C21: 936363000 | D21: 468996247 | E21: 35123612 | F21: 468996247 | G21: 0 | H21: 35123612 | I21: 0
A22: 133011601060000002077 | B22: Territorios diversos y libres de violencia | C22: 482670000 | D22: 478406559 | E22: 74964999 | F22: 478406559 | G22: 0 | H22: 74964999 | I22: 0
A23: 13301160112 | B23: Educación inicial: Bases sólidas para la vida | C23: 471336000 | D23: 471336000 | E23: 0 | G23: 471336000 | I23: 0
A24: 133011601120000002047 | B24: Educación inicial para el desarrollo integral | C24: 471336000 | D24: 471336000 | E24: 0 | F24: 471336000 | G24: 0 | H24: 0 | I24: 0
A25: 13301160114 | B25: Formación integral: más y mejor tiempo en los colegios | C25: 410000000 | D25: 374198710 | E25: 0 | G25: 374198710 | I25: 0
A26: 133011601140000002052 | B26: Educación integral y de calidad | C26: 410000000 | D26: 374198710 | E26: 0 | F26: 374198710 | G26: 0 | H26: 0 | I26: 0
A27: 13301160117 | B27: Jóvenes con capacidades: Proyecto de vida para la ciudadanía, la innovación y el trabajo del siglo XXI | C27: 1604049419 | D27: 1580428096 | E27: 1119049419 | G27: 1580428096 | I27: 1119049419
A28: 133011601170000002056 | B28: Jóvenes con oportunidades para la vida | C28: 1604049419 | D28: 1580428096 | E28: 1119049419 | F28: 1580428096 | G28: 0 | H28: 1119049419 | I28: 0
